Workbook

Sheet 07-Current EPS
A1: Type | B1: NAME | C1: ICB INDUSTRY CODE | D1: ICB SUPRSECTR CODE | E1: ICB SECTOR CODE | F1: ICB SUBSECTOR CODE | G1: P | H1: EARNINGS PER SHR | I1: P/E | J1: ERROR | K1: Error adj. For outliers | L1: ICB INDUSTRY CODE | M1: HARMONIC MEAN | N1: ERROR | O1: ICB SUPRSECTR CODE | P1: HARMONIC MEAN | Q1: ERROR | R1: ICB SECTOR CODE | S1: HARMONIC MEAN | T1: ERROR | U1: ICB SUBSECTOR CODE | V1: HARMONIC MEAN
A2: 902172 | B2: 3M | C2: 2000 | D2: 2700 | E2: 2720 | F2: 2727 | G2: 87.16 | H2: 6.06 | I2: =(IF(IFERROR(G2/H2,"")<0,"",IFERROR(G2/H2,""))) -> 14.38283828 | J2: =IF(COUNTIF($C$2:$C$501,C2)=1,"",IF(I2="","",ABS(IF(I2="",0,(((H2*OFFSET($M$1,MATCH($C2,$L$2:$L$40,0),,)-G2)/G2)))))) -> 0.008412297805 | K2: =IF(OR(J2<(QUARTILE($J$2:$J$501,1))-1.5*(QUARTILE($J$2:$J$501,3)-QUARTILE($J$2:$J$501,1)),J2>(QUARTILE($J$2:$J$501,3))+1.5*(QUARTILE($J$2:$J$501,3)-QUARTILE($J$2:$J$501,1))),"",J2) -> 0.008412297805 | L2: 1 | M2: =HARMEAN(IF($C$2:$C$501=L2,$I$2:$I$501)) -> 9.272625812 | N2: =IF(COUNTIF($D$2:$D$501,D2)=1,"",IF(I2="","",ABS(IF(I2="",0,(((H2*OFFSET($P$1,MATCH($D2,$O$2:$O$40,0),,)-G2)/G2)))))) -> 0.004476691351 | O2: 500 | P2: =HARMEAN(IF($D$2:$D$501=O2,$I$2:$I$501)) -> 9.272625812 | Q2: =IFERROR(IF(COUNTIF($E$2:$E$501,E2)=1,"",IF(I2="","",ABS(IF(I2="",0,(((H2*OFFSET($S$1,MATCH($E2,$R$2:$R$41,0),,)-G2)/G2)))))),"") -> 0.2589360851 | R2: 530 | S2: =IF(COUNT(IF($E$2:$E$501=R2,$I$2:$I$501))<$X$3,"",HARMEAN(IF($E$2:$E$501=R2,$I$2:$I$501))) -> 8.403309431 | T2: =IFERROR(IF(COUNTIF($F$2:$F$501,F2)=1,"",IF(I2="","",ABS(IF(I2="",0,(((H2*OFFSET($V$1,MATCH($F2,$U$2:$U$105,0),,)-G2)/G2)))))),"") -> 0.07762892343 | U2: 533 | V2: =IF(COUNT(IF($F$2:$F$501=U2,$I$2:$I$501))<$X$3,"",HARMEAN(IF($F$2:$F$501=U2,$I$2:$I$501))) -> 8.344604311 | W2: =IF(OR(J2<(QUARTILE($J$2:$J$501,1))-1.5*(QUARTILE($J$2:$J$501,3)-QUARTILE($J$2:$J$501,1)),J2>(QUARTILE($J$2:$J$501,3))+1.5*(QUARTILE($J$2:$J$501,3)-QUARTILE($J$2:$J$501,1))),"Outlier") -> FALSE | X2: Peer-group minimum size
A3: 328314 | B3: ACE | C3: 8000 | D3: 8500 | E3: 8530 | F3: 8536 | G3: 72.3 | H3: 6.67 | I3: =(IF(IFERROR(G3/H3,"")<0,"",IFERROR(G3/H3,""))) -> 10.83958021 | J3: =IF(COUNTIF($C$2:$C$501,C3)=1,"",IF(I3="","",ABS(IF(I3="",0,(((H3*OFFSET($M$1,MATCH($C3,$L$2:$L$40,0),,)-G3)/G3)))))) -> 0.2270577681 | K3: =IF(OR(J3<(QUARTILE($J$2:$J$501,1))-1.5*(QUARTILE($J$2:$J$501,3)-QUARTILE($J$2:$J$501,1)),J3>(QUARTILE($J$2:$J$501,3))+1.5*(QUARTILE($J$2:$J$501,3)-QUARTILE($J$2:$J$501,1))),"",J3) -> 0.2270577681 | L3: 1000 | M3: =HARMEAN(IF($C$2:$C$501=L3,$I$2:$I$501)) -> 15.49687746 | N3: =IF(COUNTIF($D$2:$D$501,D3)=1,"",IF(I3="","",ABS(IF(I3="",0,(((H3*OFFSET($P$1,MATCH($D3,$O$2:$O$40,0),,)-G3)/G3)))))) -> 0.007077584404 | O3: 1300 | P3: =HARMEAN(IF($D$2:$D$501=O3,$I$2:$I$501)) -> 18.07302858 | Q3: =IFERROR(IF(COUNTIF($E$2:$E$501,E3)=1,"",IF(I3="","",ABS(IF(I3="",0,(((H3*OFFSET($S$1,MATCH($E3,$R$2:$R$41,0),,)-G3)/G3)))))),"") -> 0.02047702581 | R3: 570 | S3: =IF(COUNT(IF($E$2:$E$501=R3,$I$2:$I$501))<$X$3,"",HARMEAN(IF($E$2:$E$501=R3,$I$2:$I$501))) -> 10.34255586 | T3: =IFERROR(IF(COUNTIF($F$2:$F$501,F3)=1,"",IF(I3="","",ABS(IF(I3="",0,(((H3*OFFSET($V$1,MATCH($F3,$U$2:$U$105,0),,)-G3)/G3)))))),"") -> 0.3247014328 | U3: 537 | V3: =IF(COUNT(IF($F$2:$F$501=U3,$I$2:$I$501))<$X$3,"",HARMEAN(IF($F$2:$F$501=U3,$I$2:$I$501))) -> 8.498975247 | W3: =IF(OR(J3<(QUARTILE($J$2:$J$501,1))-1.5*(QUARTILE($J$2:$J$501,3)-QUARTILE($J$2:$J$501,1)),J3>(QUARTILE($J$2:$J$501,3))+1.5*(QUARTILE($J$2:$J$501,3)-QUARTILE($J$2:$J$501,1))),"Outlier") -> FALSE | X3: =[1]Resultater!$A$6 -> 4
A4: 982095 | B4: ADC TELECOM. DEAD - DELIST.10/12/10 | C4: 9000 | D4: 9500 | E4: 9570 | F4: 9578 | G4: 12.74 | H4: 0.76 | I4: =(IF(IFERROR(G4/H4,"")<0,"",IFERROR(G4/H4,""))) -> 16.76315789 | J4: =IF(COUNTIF($C$2:$C$501,C4)=1,"",IF(I4="","",ABS(IF(I4="",0,(((H4*OFFSET($M$1,MATCH($C4,$L$2:$L$40,0),,)-G4)/G4)))))) -> 0.2190005291 | K4: =IF(OR(J4<(QUARTILE($J$2:$J$501,1))-1.5*(QUARTILE($J$2:$J$501,3)-QUARTILE($J$2:$J$501,1)),J4>(QUARTILE($J$2:$J$501,3))+1.5*(QUARTILE($J$2:$J$501,3)-QUARTILE($J$2:$J$501,1))),"",J4) -> 0.2190005291 | L4: 2000 | M4: =HARMEAN(IF($C$2:$C$501=L4,$I$2:$I$501)) -> 14.503831 | N4: =IF(COUNTIF($D$2:$D$501,D4)=1,"",IF(I4="","",ABS(IF(I4="",0,(((H4*OFFSET($P$1,MATCH($D4,$O$2:$O$40,0),,)-G4)/G4)))))) -> 0.2190005291 | O4: 1700 | P4: =HARMEAN(IF($D$2:$D$501=O4,$I$2:$I$501)) -> 12.58241879 | Q4: =IFERROR(IF(COUNTIF($E$2:$E$501,E4)=1,"",IF(I4="","",ABS(IF(I4="",0,(((H4*OFFSET($S$1,MATCH($E4,$R$2:$R$41,0),,)-G4)/G4)))))),"") -> 0.2514016805 | R4: 580 | S4: =IF(COUNT(IF($E$2:$E$501=R4,$I$2:$I$501))<$X$3,"",HARMEAN(IF($E$2:$E$501=R4,$I$2:$I$501))) ->  | T4: =IFERROR(IF(COUNTIF($F$2:$F$501,F4)=1,"",IF(I4="","",ABS(IF(I4="",0,(((H4*OFFSET($V$1,MATCH($F4,$U$2:$U$105,0),,)-G4)/G4)))))),"") -> 0.1152800852 | U4: 573 | V4: =IF(COUNT(IF($F$2:$F$501=U4,$I$2:$I$501))<$X$3,"",HARMEAN(IF($F$2:$F$501=U4,$I$2:$I$501))) -> 9.005584474 | W4: =IF(OR(J4<(QUARTILE($J$2:$J$501,1))-1.5*(QUARTILE($J$2:$J$501,3)-QUARTILE($J$2:$J$501,1)),J4>(QUARTILE($J$2:$J$501,3))+1.5*(QUARTILE($J$2:$J$501,3)-QUARTILE($J$2:$J$501,1))),"Outlier") -> FALSE
A5: 545101 | B5: AES | C5: 7000 | D5: 7500 | E5: 7530 | F5: 7535 | G5: 12.62 | H5: 0.12 | I5: =(IF(IFERROR(G5/H5,"")<0,"",IFERROR(G5/H5,""))) -> 105.1666667 | J5: =IF(COUNTIF($C$2:$C$501,C5)=1,"",IF(I5="","",ABS(IF(I5="",0,(((H5*OFFSET($M$1,MATCH($C5,$L$2:$L$40,0),,)-G5)/G5)))))) -> 0.8403577295 | K5: =IF(OR(J5<(QUARTILE($J$2:$J$501,1))-1.5*(QUARTILE($J$2:$J$501,3)-QUARTILE($J$2:$J$501,1)),J5>(QUARTILE($J$2:$J$501,3))+1.5*(QUARTILE($J$2:$J$501,3)-QUARTILE($J$2:$J$501,1))),"",J5) -> 0.8403577295 | L5: 3000 | M5: =HARMEAN(IF($C$2:$C$501=L5,$I$2:$I$501)) -> 15.9901841 | N5: =IF(COUNTIF($D$2:$D$501,D5)=1,"",IF(I5="","",ABS(IF(I5="",0,(((H5*OFFSET($P$1,MATCH($D5,$O$2:$O$40,0),,)-G5)/G5)))))) -> 0.8403577295 | O5: 2300 | P5: =HARMEAN(IF($D$2:$D$501=O5,$I$2:$I$501)) -> 19.91972334 | Q5: =IFERROR(IF(COUNTIF($E$2:$E$501,E5)=1,"",IF(I5="","",ABS(IF(I5="",0,(((H5*OFFSET($S$1,MATCH($E5,$R$2:$R$41,0),,)-G5)/G5)))))),"") -> 0.8491241966 | R5: 1350 | S5: =IF(COUNT(IF($E$2:$E$501=R5,$I$2:$I$501))<$X$3,"",HARMEAN(IF($E$2:$E$501=R5,$I$2:$I$501))) -> 18.07302858 | T5: =IFERROR(IF(COUNTIF($F$2:$F$501,F5)=1,"",IF(I5="","",ABS(IF(I5="",0,(((H5*OFFSET($V$1,MATCH($F5,$U$2:$U$105,0),,)-G5)/G5)))))),"") -> 0.8491241966 | U5: 577 | V5: =IF(COUNT(IF($F$2:$F$501=U5,$I$2:$I$501))<$X$3,"",HARMEAN(IF($F$2:$F$501=U5,$I$2:$I$501))) ->  | W5: =IF(OR(J5<(QUARTILE($J$2:$J$501,1))-1.5*(QUARTILE($J$2:$J$501,3)-QUARTILE($J$2:$J$501,1)),J5>(QUARTILE($J$2:$J$501,3))+1.5*(QUARTILE($J$2:$J$501,3)-QUARTILE($J$2:$J$501,1))),"Outlier") -> FALSE
A6: 933185 | B6: AFLAC | C6: 8000 | D6: 8500 | E6: 8570 | F6: 8575 | G6: 41 | H6: 5.03 | I6: =(IF(IFERROR(G6/H6,"")<0,"",IFERROR(G6/H6,""))) -> 8.151093439 | J6: =IF(COUNTIF($C$2:$C$501,C6)=1,"",IF(I6="","",ABS(IF(I6="",0,(((H6*OFFSET($M$1,MATCH($C6,$L$2:$L$40,0),,)-G6)/G6)))))) -> 0.6317799813 | K6: =IF(OR(J6<(QUARTILE($J$2:$J$501,1))-1.5*(QUARTILE($J$2:$J$501,3)-QUARTILE($J$2:$J$501,1)),J6>(QUARTILE($J$2:$J$501,3))+1.5*(QUARTILE($J$2:$J$501,3)-QUARTILE($J$2:$J$501,1))),"",J6) -> 0.6317799813 | L6: 4000 | M6: =HARMEAN(IF($C$2:$C$501=L6,$I$2:$I$501)) -> 16.92579227 | N6: =IF(COUNTIF($D$2:$D$501,D6)=1,"",IF(I6="","",ABS(IF(I6="",0,(((H6*OFFSET($P$1,MATCH($D6,$O$2:$O$40,0),,)-G6)/G6)))))) -> 0.3204194316 | O6: 2700 | P6: =HARMEAN(IF($D$2:$D$501=O6,$I$2:$I$501)) -> 14.31845076 | Q6: =IFERROR(IF(COUNTIF($E$2:$E$501,E6)=1,"",IF(I6="","",ABS(IF(I6="",0,(((H6*OFFSET($S$1,MATCH($E6,$R$2:$R$41,0),,)-G6)/G6)))))),"") -> 0.2745333492 | R6: 1730 | S6: =IF(COUNT(IF($E$2:$E$501=R6,$I$2:$I$501))<$X$3,"",HARMEAN(IF($E$2:$E$501=R6,$I$2:$I$501))) ->  | T6: =IFERROR(IF(COUNTIF($F$2:$F$501,F6)=1,"",IF(I6="","",ABS(IF(I6="",0,(((H6*OFFSET($V$1,MATCH($F6,$U$2:$U$105,0),,)-G6)/G6)))))),"") -> 0.2745333492 | U6: 583 | V6: =IF(COUNT(IF($F$2:$F$501=U6,$I$2:$I$501))<$X$3,"",HARMEAN(IF($F$2:$F$501=U6,$I$2:$I$501))) ->  | W6: =IF(OR(J6<(QUARTILE($J$2:$J$501,1))-1.5*(QUARTILE($J$2:$J$501,3)-QUARTILE($J$2:$J$501,1)),J6>(QUARTILE($J$2:$J$501,3))+1.5*(QUARTILE($J$2:$J$501,3)-QUARTILE($J$2:$J$501,1))),"Outlier") -> FALSE
A7: 916311 | B7: ALLTEL DEAD - MERGER | C7: 6000 | D7: 6500 | E7: 6570 | F7: 6575 | G7: 71.46 | H7: 2.64 | I7: =(IF(IFERROR(G7/H7,"")<0,"",IFERROR(G7/H7,""))) -> 27.06818182 | J7: =IF(COUNTIF($C$2:$C$501,C7)=1,"",IF(I7="","",ABS(IF(I7="",0,(((H7*OFFSET($M$1,MATCH($C7,$L$2:$L$40,0),,)-G7)/G7)))))) -> 0.1362550961 | K7: =IF(OR(J7<(QUARTILE($J$2:$J$501,1))-1.5*(QUARTILE($J$2:$J$501,3)-QUARTILE($J$2:$J$501,1)),J7>(QUARTILE($J$2:$J$501,3))+1.5*(QUARTILE($J$2:$J$501,3)-QUARTILE($J$2:$J$501,1))),"",J7) -> 0.1362550961 | L7: 5000 | M7: =HARMEAN(IF($C$2:$C$501=L7,$I$2:$I$501)) -> 15.77051196 | N7: =IF(COUNTIF($D$2:$D$501,D7)=1,"",IF(I7="","",ABS(IF(I7="",0,(((H7*OFFSET($P$1,MATCH($D7,$O$2:$O$40,0),,)-G7)/G7)))))) -> 0.1362550961 | O7: 3300 | P7: =HARMEAN(IF($D$2:$D$501=O7,$I$2:$I$501)) -> 6.67256458 | Q7: =IFERROR(IF(COUNTIF($E$2:$E$501,E7)=1,"",IF(I7="","",ABS(IF(I7="",0,(((H7*OFFSET($S$1,MATCH($E7,$R$2:$R$41,0),,)-G7)/G7)))))),"") ->  | R7: 1750 | S7: =IF(COUNT(IF($E$2:$E$501=R7,$I$2:$I$501))<$X$3,"",HARMEAN(IF($E$2:$E$501=R7,$I$2:$I$501))) -> 13.62063905 | T7: =IFERROR(IF(COUNTIF($F$2:$F$501,F7)=1,"",IF(I7="","",ABS(IF(I7="",0,(((H7*OFFSET($V$1,MATCH($F7,$U$2:$U$105,0),,)-G7)/G7)))))),"") ->  | U7: 1353 | V7: =IF(COUNT(IF($F$2:$F$501=U7,$I$2:$I$501))<$X$3,"",HARMEAN(IF($F$2:$F$501=U7,$I$2:$I$501))) -> 14.17941959 | W7: =IF(OR(J7<(QUARTILE($J$2:$J$501,1))-1.5*(QUARTILE($J$2:$J$501,3)-QUARTILE($J$2:$J$501,1)),J7>(QUARTILE($J$2:$J$501,3))+1.5*(QUARTILE($J$2:$J$501,3)-QUARTILE($J$2:$J$501,1))),"Outlier") -> FALSE
A8: 945388 | B8: AT&T | C8: 6000 | D8: 6500 | E8: 6530 | F8: 6535 | G8: 35.39 | H8: 0.68 | I8: =(IF(IFERROR(G8/H8,"")<0,"",IFERROR(G8/H8,""))) -> 52.04411765 | J8: =IF(COUNTIF($C$2:$C$501,C8)=1,"",IF(I8="","",ABS(IF(I8="",0,(((H8*OFFSET($M$1,MATCH($C8,$L$2:$L$40,0),,)-G8)/G8)))))) -> 0.5507656742 | K8: =IF(OR(J8<(QUARTILE($J$2:$J$501,1))-1.5*(QUARTILE($J$2:$J$501,3)-QUARTILE($J$2:$J$501,1)),J8>(QUARTILE($J$2:$J$501,3))+1.5*(QUARTILE($J$2:$J$501,3)-QUARTILE($J$2:$J$501,1))),"",J8) -> 0.5507656742 | L8: 6000 | M8: =HARMEAN(IF($C$2:$C$501=L8,$I$2:$I$501)) -> 23.3800041 | N8: =IF(COUNTIF($D$2:$D$501,D8)=1,"",IF(I8="","",ABS(IF(I8="",0,(((H8*OFFSET($P$1,MATCH($D8,$O$2:$O$40,0),,)-G8)/G8)))))) -> 0.5507656742 | O8: 3500 | P8: =HARMEAN(IF($D$2:$D$501=O8,$I$2:$I$501)) -> 17.86432644 | Q8: =IFERROR(IF(COUNTIF($E$2:$E$501,E8)=1,"",IF(I8="","",ABS(IF(I8="",0,(((H8*OFFSET($S$1,MATCH($E8,$R$2:$R$41,0),,)-G8)/G8)))))),"") -> 0.5607408896 | R8: 1770 | S8: =IF(COUNT(IF($E$2:$E$501=R8,$I$2:$I$501))<$X$3,"",HARMEAN(IF($E$2:$E$501=R8,$I$2:$I$501))) ->  | T8: =IFERROR(IF(COUNTIF($F$2:$F$501,F8)=1,"",IF(I8="","",ABS(IF(I8="",0,(((H8*OFFSET($V$1,MATCH($F8,$U$2:$U$105,0),,)-G8)/G8)))))),"") -> 0.5607408896 | U8: 1357 | V8: =IF(COUNT(IF($F$2:$F$501=U8,$I$2:$I$501))<$X$3,"",HARMEAN(IF($F$2:$F$501=U8,$I$2:$I$501))) -> 21.81737888 | W8: =IF(OR(J8<(QUARTILE($J$2:$J$501,1))-1.5*(QUARTILE($J$2:$J$501,3)-QUARTILE($J$2:$J$501,1)),J8>(QUARTILE($J$2:$J$501,3))+1.5*(QUARTILE($J$2:$J$501,3)-QUARTILE($J$2:$J$501,1))),"Outlier") -> FALSE
A9: 916328 | B9: ABBOTT LABORATORIES | C9: 4000 | D9: 4500 | E9: 4570 | F9: 4577 | G9: 62.91 | H9: 3.24 | I9: =(IF(IFERROR(G9/H9,"")<0,"",IFERROR(G9/H9,""))) -> 19.41666667 | J9: =IF(COUNTIF($C$2:$C$501,C9)=1,"",IF(I9="","",ABS(IF(I9="",0,(((H9*OFFSET($M$1,MATCH($C9,$L$2:$L$40,0),,)-G9)/G9)))))) -> 0.1282853764 | K9: =IF(OR(J9<(QUARTILE($J$2:$J$501,1))-1.5*(QUARTILE($J$2:$J$501,3)-QUARTILE($J$2:$J$501,1)),J9>(QUARTILE($J$2:$J$501,3))+1.5*(QUARTILE($J$2:$J$501,3)-QUARTILE($J$2:$J$501,1))),"",J9) -> 0.1282853764 | L9: 7000 | M9: =HARMEAN(IF($C$2:$C$501=L9,$I$2:$I$501)) -> 16.78904544 | N9: =IF(COUNTIF($D$2:$D$501,D9)=1,"",IF(I9="","",ABS(IF(I9="",0,(((H9*OFFSET($P$1,MATCH($D9,$O$2:$O$40,0),,)-G9)/G9)))))) -> 0.1282853764 | O9: 3700 | P9: =HARMEAN(IF($D$2:$D$501=O9,$I$2:$I$501)) -> 19.28098942 | Q9: =IFERROR(IF(COUNTIF($E$2:$E$501,E9)=1,"",IF(I9="","",ABS(IF(I9="",0,(((H9*OFFSET($S$1,MATCH($E9,$R$2:$R$41,0),,)-G9)/G9)))))),"") -> 0.02434081087 | R9: 2350 | S9: =IF(COUNT(IF($E$2:$E$501=R9,$I$2:$I$501))<$X$3,"",HARMEAN(IF($E$2:$E$501=R9,$I$2:$I$501))) ->  | T9: =IFERROR(IF(COUNTIF($F$2:$F$501,F9)=1,"",IF(I9="","",ABS(IF(I9="",0,(((H9*OFFSET($V$1,MATCH($F9,$U$2:$U$105,0),,)-G9)/G9)))))),"") -> 0.04969435195 | U9: 1737 | V9: =IF(COUNT(IF($F$2:$F$501=U9,$I$2:$I$501))<$X$3,"",HARMEAN(IF($F$2:$F$501=U9,$I$2:$I$501))) ->  | W9: =IF(OR(J9<(QUARTILE($J$2:$J$501,1))-1.5*(QUARTILE($J$2:$J$501,3)-QUARTILE($J$2:$J$501,1)),J9>(QUARTILE($J$2:$J$501,3))+1.5*(QUARTILE($J$2:$J$501,3)-QUARTILE($J$2:$J$501,1))),"Outlier") -> FALSE
A10: 883969 | B10: ABERCROMBIE & FITCH 'A' | C10: 5000 | D10: 5300 | E10: 5370 | F10: 5371 | G10: 31.5 | H10: 1.18 | I10: =(IF(IFERROR(G10/H10,"")<0,"",IFERROR(G10/H10,""))) -> 26.69491525 | J10: =IF(COUNTIF($C$2:$C$501,C10)=1,"",IF(I10="","",ABS(IF(I10="",0,(((H10*OFFSET($M$1,MATCH($C10,$L$2:$L$40,0),,)-G10)/G10)))))) -> 0.4092316154 | K10: =IF(OR(J10<(QUARTILE($J$2:$J$501,1))-1.5*(QUARTILE($J$2:$J$501,3)-QUARTILE($J$2:$J$501,1)),J10>(QUARTILE($J$2:$J$501,3))+1.5*(QUARTILE($J$2:$J$501,3)-QUARTILE($J$2:$J$501,1))),"",J10) -> 0.4092316154 | L10: 8000 | M10: =HARMEAN(IF($C$2:$C$501=L10,$I$2:$I$501)) -> 13.3007911 | N10: =IF(COUNTIF($D$2:$D$501,D10)=1,"",IF(I10="","",ABS(IF(I10="",0,(((H10*OFFSET($P$1,MATCH($D10,$O$2:$O$40,0),,)-G10)/G10)))))) -> 0.454148079 | O10: 4500 | P10: =HARMEAN(IF($D$2:$D$501=O10,$I$2:$I$501)) -> 16.92579227 | Q10: =IFERROR(IF(COUNTIF($E$2:$E$501,E10)=1,"",IF(I10="","",ABS(IF(I10="",0,(((H10*OFFSET($S$1,MATCH($E10,$R$2:$R$41,0),,)-G10)/G10)))))),"") -> 0.4630773598 | R10: 2710 | S10: =IF(COUNT(IF($E$2:$E$501=R10,$I$2:$I$501))<$X$3,"",HARMEAN(IF($E$2:$E$501=R10,$I$2:$I$501))) -> 11.35192168 | T10: =IFERROR(IF(COUNTIF($F$2:$F$501,F10)=1,"",IF(I10="","",ABS(IF(I10="",0,(((H10*OFFSET($V$1,MATCH($F10,$U$2:$U$105,0),,)-G10)/G10)))))),"") -> 0.4931170403 | U10: 1753 | V10: =IF(COUNT(IF($F$2:$F$501=U10,$I$2:$I$501))<$X$3,"",HARMEAN(IF($F$2:$F$501=U10,$I$2:$I$501))) ->  | W10: =IF(OR(J10<(QUARTILE($J$2:$J$501,1))-1.5*(QUARTILE($J$2:$J$501,3)-QUARTILE($J$2:$J$501,1)),J10>(QUARTILE($J$2:$J$501,3))+1.5*(QUARTILE($J$2:$J$501,3)-QUARTILE($J$2:$J$501,1))),"Outlier") -> FALSE
A11: 749382 | B11: ADOBE SYSTEMS | C11: 9000 | D11: 9500 | E11: 9530 | F11: 9537 | G11: 31.17 | H11: 1.56 | I11: =(IF(IFERROR(G11/H11,"")<0,"",IFERROR(G11/H11,""))) -> 19.98076923 | J11: =IF(COUNTIF($C$2:$C$501,C11)=1,"",IF(I11="","",ABS(IF(I11="",0,(((H11*OFFSET($M$1,MATCH($C11,$L$2:$L$40,0),,)-G11)/G11)))))) -> 0.344769098 | K11: =IF(OR(J11<(QUARTILE($J$2:$J$501,1))-1.5*(QUARTILE($J$2:$J$501,3)-QUARTILE($J$2:$J$501,1)),J11>(QUARTILE($J$2:$J$501,3))+1.5*(QUARTILE($J$2:$J$501,3)-QUARTILE($J$2:$J$501,1))),"",J11) -> 0.344769098 | L11: 9000 | M11: =HARMEAN(IF($C$2:$C$501=L11,$I$2:$I$501)) -> 13.09201745 | N11: =IF(COUNTIF($D$2:$D$501,D11)=1,"",IF(I11="","",ABS(IF(I11="",0,(((H11*OFFSET($P$1,MATCH($D11,$O$2:$O$40,0),,)-G11)/G11)))))) -> 0.344769098 | O11: 5300 | P11: =HARMEAN(IF($D$2:$D$501=O11,$I$2:$I$501)) -> 14.57147077 | Q11: =IFERROR(IF(COUNTIF($E$2:$E$501,E11)=1,"",IF(I11="","",ABS(IF(I11="",0,(((H11*OFFSET($S$1,MATCH($E11,$R$2:$R$41,0),,)-G11)/G11)))))),"") -> 0.2932492913 | R11: 2720 | S11: =IF(COUNT(IF($E$2:$E$501=R11,$I$2:$I$501))<$X$3,"",HARMEAN(IF($E$2:$E$501=R11,$I$2:$I$501))) -> 18.10707412 | T11: =IFERROR(IF(COUNTIF($F$2:$F$501,F11)=1,"",IF(I11="","",ABS(IF(I11="",0,(((H11*OFFSET($V$1,MATCH($F11,$U$2:$U$105,0),,)-G11)/G11)))))),"") -> 0.2746676112 | U11: 1755 | V11: =IF(COUNT(IF($F$2:$F$501=U11,$I$2:$I$501))<$X$3,"",HARMEAN(IF($F$2:$F$501=U11,$I$2:$I$501))) ->  | W11: =IF(OR(J11<(QUARTILE($J$2:$J$501,1))-1.5*(QUARTILE($J$2:$J$501,3)-QUARTILE($J$2:$J$501,1)),J11>(QUARTILE($J$2:$J$501,3))+1.5*(QUARTILE($J$2:$J$501,3)-QUARTILE($J$2:$J$501,1))),"Outlier") -> FALSE
A12: 936365 | B12: ADVANCED MICRO DEVC. | C12: 9000 | D12: 9500 | E12: 9570 | F12: 9576 | G12: 5.41 | H12: 0 | I12: =(IF(IFERROR(G12/H12,"")<0,"",IFERROR(G12/H12,""))) ->  | J12: =IF(COUNTIF($C$2:$C$501,C12)=1,"",IF(I12="","",ABS(IF(I12="",0,(((H12*OFFSET($M$1,MATCH($C12,$L$2:$L$40,0),,)-G12)/G12)))))) ->  | K12: =IF(OR(J12<(QUARTILE($J$2:$J$501,1))-1.5*(QUARTILE($J$2:$J$501,3)-QUARTILE($J$2:$J$501,1)),J12>(QUARTILE($J$2:$J$501,3))+1.5*(QUARTILE($J$2:$J$501,3)-QUARTILE($J$2:$J$501,1))),"",J12) ->  | N12: =IF(COUNTIF($D$2:$D$501,D12)=1,"",IF(I12="","",ABS(IF(I12="",0,(((H12*OFFSET($P$1,MATCH($D12,$O$2:$O$40,0),,)-G12)/G12)))))) ->  | O12: 5500 | P12: =HARMEAN(IF($D$2:$D$501=O12,$I$2:$I$501)) -> 15.17032802 | Q12: =IFERROR(IF(COUNTIF($E$2:$E$501,E12)=1,"",IF(I12="","",ABS(IF(I12="",0,(((H12*OFFSET($S$1,MATCH($E12,$R$2:$R$41,0),,)-G12)/G12)))))),"") ->  | R12: 2730 | S12: =IF(COUNT(IF($E$2:$E$501=R12,$I$2:$I$501))<$X$3,"",HARMEAN(IF($E$2:$E$501=R12,$I$2:$I$501))) -> 16.37617744 | T12: =IFERROR(IF(COUNTIF($F$2:$F$501,F12)=1,"",IF(I12="","",ABS(IF(I12="",0,(((H12*OFFSET($V$1,MATCH($F12,$U$2:$U$105,0),,)-G12)/G12)))))),"") ->  | U12: 1757 | V12: =IF(COUNT(IF($F$2:$F$501=U12,$I$2:$I$501))<$X$3,"",HARMEAN(IF($F$2:$F$501=U12,$I$2:$I$501))) ->  | W12: =IF(OR(J12<(QUARTILE($J$2:$J$501,1))-1.5*(QUARTILE($J$2:$J$501,3)-QUARTILE($J$2:$J$501,1)),J12>(QUARTILE($J$2:$J$501,3))+1.5*(QUARTILE($J$2:$J$501,3)-QUARTILE($J$2:$J$501,1))),"Outlier") -> Outlier
A13: 255956 | B13: AETNA | C13: 4000 | D13: 4500 | E13: 4530 | F13: 4533 | G13: 39.85 | H13: 5.14 | I13: =(IF(IFERROR(G13/H13,"")<0,"",IFERROR(G13/H13,""))) -> 7.752918288 | J13: =IF(COUNTIF($C$2:$C$501,C13)=1,"",IF(I13="","",ABS(IF(I13="",0,(((H13*OFFSET($M$1,MATCH($C13,$L$2:$L$40,0),,)-G13)/G13)))))) -> 1.183151124 | K13: =IF(OR(J13<(QUARTILE($J$2:$J$501,1))-1.5*(QUARTILE($J$2:$J$501,3)-QUARTILE($J$2:$J$501,1)),J13>(QUARTILE($J$2:$J$501,3))+1.5*(QUARTILE($J$2:$J$501,3)-QUARTILE($J$2:$J$501,1))),"",J13) ->  | N13: =IF(COUNTIF($D$2:$D$501,D13)=1,"",IF(I13="","",ABS(IF(I13="",0,(((H13*OFFSET($P$1,MATCH($D13,$O$2:$O$40,0),,)-G13)/G13)))))) -> 1.183151124 | O13: 5700 | P13: =HARMEAN(IF($D$2:$D$501=O13,$I$2:$I$501)) -> 21.89895142 | Q13: =IFERROR(IF(COUNTIF($E$2:$E$501,E13)=1,"",IF(I13="","",ABS(IF(I13="",0,(((H13*OFFSET($S$1,MATCH($E13,$R$2:$R$41,0),,)-G13)/G13)))))),"") -> 0.9731521736 | R13: 2750 | S13: =IF(COUNT(IF($E$2:$E$501=R13,$I$2:$I$501))<$X$3,"",HARMEAN(IF($E$2:$E$501=R13,$I$2:$I$501))) -> 12.21970248 | T13: =IFERROR(IF(COUNTIF($F$2:$F$501,F13)=1,"",IF(I13="","",ABS(IF(I13="",0,(((H13*OFFSET($V$1,MATCH($F13,$U$2:$U$105,0),,)-G13)/G13)))))),"") -> 0.6702516386 | U13: 1771 | V13: =IF(COUNT(IF($F$2:$F$501=U13,$I$2:$I$501))<$X$3,"",HARMEAN(IF($F$2:$F$501=U13,$I$2:$I$501))) ->  | W13: =IF(OR(J13<(QUARTILE($J$2:$J$501,1))-1.5*(QUARTILE($J$2:$J$501,3)-QUARTILE($J$2:$J$501,1)),J13>(QUARTILE($J$2:$J$501,3))+1.5*(QUARTILE($J$2:$J$501,3)-QUARTILE($J$2:$J$501,1))),"Outlier") -> Outlier
A14: 134058 | B14: AFFILIATED CMP.SVS.'A' DEAD - DELIST.18/02/10 | C14: 2000 | D14: 2700 | E14: 2790 | F14: 2791 | G14: 59.64 | H14: 3.61 | I14: =(IF(IFERROR(G14/H14,"")<0,"",IFERROR(G14/H14,""))) -> 16.52077562 | J14: =IF(COUNTIF($C$2:$C$501,C14)=1,"",IF(I14="","",ABS(IF(I14="",0,(((H14*OFFSET($M$1,MATCH($C14,$L$2:$L$40,0),,)-G14)/G14)))))) -> 0.1220853467 | K14: =IF(OR(J14<(QUARTILE($J$2:$J$501,1))-1.5*(QUARTILE($J$2:$J$501,3)-QUARTILE($J$2:$J$501,1)),J14>(QUARTILE($J$2:$J$501,3))+1.5*(QUARTILE($J$2:$J$501,3)-QUARTILE($J$2:$J$501,1))),"",J14) -> 0.1220853467 | N14: =IF(COUNTIF($D$2:$D$501,D14)=1,"",IF(I14="","",ABS(IF(I14="",0,(((H14*OFFSET($P$1,MATCH($D14,$O$2:$O$40,0),,)-G14)/G14)))))) -> 0.1333063845 | O14: 6500 | P14: =HARMEAN(IF($D$2:$D$501=O14,$I$2:$I$501)) -> 23.3800041 | Q14: =IFERROR(IF(COUNTIF($E$2:$E$501,E14)=1,"",IF(I14="","",ABS(IF(I14="",0,(((H14*OFFSET($S$1,MATCH($E14,$R$2:$R$41,0),,)-G14)/G14)))))),"") -> 0.09702935706 | R14: 2770 | S14: =IF(COUNT(IF($E$2:$E$501=R14,$I$2:$I$501))<$X$3,"",HARMEAN(IF($E$2:$E$501=R14,$I$2:$I$501))) -> 14.70837116 | T14: =IFERROR(IF(COUNTIF($F$2:$F$501,F14)=1,"",IF(I14="","",ABS(IF(I14="",0,(((H14*OFFSET($V$1,MATCH($F14,$U$2:$U$105,0),,)-G14)/G14)))))),"") -> 0.3744119155 | U14: 1777 | V14: =IF(COUNT(IF($F$2:$F$501=U14,$I$2:$I$501))<$X$3,"",HARMEAN(IF($F$2:$F$501=U14,$I$2:$I$501))) ->  | W14: =IF(OR(J14<(QUARTILE($J$2:$J$501,1))-1.5*(QUARTILE($J$2:$J$501,3)-QUARTILE($J$2:$J$501,1)),J14>(QUARTILE($J$2:$J$501,3))+1.5*(QUARTILE($J$2:$J$501,3)-QUARTILE($J$2:$J$501,1))),"Outlier") -> FALSE
A15: 277642 | B15: AGILENT TECHS. | C15: 2000 | D15: 2700 | E15: 2730 | F15: 2737 | G15: 37.72 | H15: 3.11 | I15: =(IF(IFERROR(G15/H15,"")<0,"",IFERROR(G15/H15,""))) -> 12.12861736 | J15: =IF(COUNTIF($C$2:$C$501,C15)=1,"",IF(I15="","",ABS(IF(I15="",0,(((H15*OFFSET($M$1,MATCH($C15,$L$2:$L$40,0),,)-G15)/G15)))))) -> 0.195835483 | K15: =IF(OR(J15<(QUARTILE($J$2:$J$501,1))-1.5*(QUARTILE($J$2:$J$501,3)-QUARTILE($J$2:$J$501,1)),J15>(QUARTILE($J$2:$J$501,3))+1.5*(QUARTILE($J$2:$J$501,3)-QUARTILE($J$2:$J$501,1))),"",J15) -> 0.195835483 | N15: =IF(COUNTIF($D$2:$D$501,D15)=1,"",IF(I15="","",ABS(IF(I15="",0,(((H15*OFFSET($P$1,MATCH($D15,$O$2:$O$40,0),,)-G15)/G15)))))) -> 0.1805509505 | O15: 7500 | P15: =HARMEAN(IF($D$2:$D$501=O15,$I$2:$I$501)) -> 16.78904544 | Q15: =IFERROR(IF(COUNTIF($E$2:$E$501,E15)=1,"",IF(I15="","",ABS(IF(I15="",0,(((H15*OFFSET($S$1,MATCH($E15,$R$2:$R$41,0),,)-G15)/G15)))))),"") -> 0.350209752 | R15: 2790 | S15: =IF(COUNT(IF($E$2:$E$501=R15,$I$2:$I$501))<$X$3,"",HARMEAN(IF($E$2:$E$501=R15,$I$2:$I$501))) -> 14.91777539 | T15: =IFERROR(IF(COUNTIF($F$2:$F$501,F15)=1,"",IF(I15="","",ABS(IF(I15="",0,(((H15*OFFSET($V$1,MATCH($F15,$U$2:$U$105,0),,)-G15)/G15)))))),"") ->  | U15: 2353 | V15: =IF(COUNT(IF($F$2:$F$501=U15,$I$2:$I$501))<$X$3,"",HARMEAN(IF($F$2:$F$501=U15,$I$2:$I$501))) ->  | W15: =IF(OR(J15<(QUARTILE($J$2:$J$501,1))-1.5*(QUARTILE($J$2:$J$501,3)-QUARTILE($J$2:$J$501,1)),J15>(QUARTILE($J$2:$J$501,3))+1.5*(QUARTILE($J$2:$J$501,3)-QUARTILE($J$2:$J$501,1))),"Outlier") -> FALSE
A16: 905271 | B16: AIR PRDS.& CHEMS. | C16: 1000 | D16: 1300 | E16: 1350 | F16: 1353 | G16: 78.05 | H16: 5.55 | I16: =(IF(IFERROR(G16/H16,"")<0,"",IFERROR(G16/H16,""))) -> 14.06306306 | J16: =IF(COUNTIF($C$2:$C$501,C16)=1,"",IF(I16="","",ABS(IF(I16="",0,(((H16*OFFSET($M$1,MATCH($C16,$L$2:$L$40,0),,)-G16)/G16)))))) -> 0.1019560528 | K16: =IF(OR(J16<(QUARTILE($J$2:$J$501,1))-1.5*(QUARTILE($J$2:$J$501,3)-QUARTILE($J$2:$J$501,1)),J16>(QUARTILE($J$2:$J$501,3))+1.5*(QUARTILE($J$2:$J$501,3)-QUARTILE($J$2:$J$501,1))),"",J16) -> 0.1019560528 | N16: =IF(COUNTIF($D$2:$D$501,D16)=1,"",IF(I16="","",ABS(IF(I16="",0,(((H16*OFFSET($P$1,MATCH($D16,$O$2:$O$40,0),,)-G16)/G16)))))) -> 0.2851416861 | O16: 8300 | P16: =HARMEAN(IF($D$2:$D$501=O16,$I$2:$I$501)) -> 12.17145097 | Q16: =IFERROR(IF(COUNTIF($E$2:$E$501,E16)=1,"",IF(I16="","",ABS(IF(I16="",0,(((H16*OFFSET($S$1,MATCH($E16,$R$2:$R$41,0),,)-G16)/G16)))))),"") -> 0.2851416861 | R16: 3350 | S16: =IF(COUNT(IF($E$2:$E$501=R16,$I$2:$I$501))<$X$3,"",HARMEAN(IF($E$2:$E$501=R16,$I$2:$I$501))) -> 6.67256458 | T16: =IFERROR(IF(COUNTIF($F$2:$F$501,F16)=1,"",IF(I16="","",ABS(IF(I16="",0,(((H16*OFFSET($V$1,MATCH($F16,$U$2:$U$105,0),,)-G16)/G16)))))),"") -> 0.008273910805 | U16: 2357 | V16: =IF(COUNT(IF($F$2:$F$501=U16,$I$2:$I$501))<$X$3,"",HARMEAN(IF($F$2:$F$501=U16,$I$2:$I$501))) ->  | W16: =IF(OR(J16<(QUARTILE($J$2:$J$501,1))-1.5*(QUARTILE($J$2:$J$501,3)-QUARTILE($J$2:$J$501,1)),J16>(QUARTILE($J$2:$J$501,3))+1.5*(QUARTILE($J$2:$J$501,3)-QUARTILE($J$2:$J$501,1))),"Outlier") -> FALSE
A17: 905113 | B17: ALCOA | C17: 1000 | D17: 1700 | E17: 1750 | F17: 1753 | G17: 8.51 | H17: 0.35 | I17: =(IF(IFERROR(G17/H17,"")<0,"",IFERROR(G17/H17,""))) -> 24.31428571 | J17: =IF(COUNTIF($C$2:$C$501,C17)=1,"",IF(I17="","",ABS(IF(I17="",0,(((H17*OFFSET($M$1,MATCH($C17,$L$2:$L$40,0),,)-G17)/G17)))))) -> 0.3626431126 | K17: =IF(OR(J17<(QUARTILE($J$2:$J$501,1))-1.5*(QUARTILE($J$2:$J$501,3)-QUARTILE($J$2:$J$501,1)),J17>(QUARTILE($J$2:$J$501,3))+1.5*(QUARTILE($J$2:$J$501,3)-QUARTILE($J$2:$J$501,1))),"",J17) -> 0.3626431126 | N17: =IF(COUNTIF($D$2:$D$501,D17)=1,"",IF(I17="","",ABS(IF(I17="",0,(((H17*OFFSET($P$1,MATCH($D17,$O$2:$O$40,0),,)-G17)/G17)))))) -> 0.4825092153 | O17: 8500 | P17: =HARMEAN(IF($D$2:$D$501=O17,$I$2:$I$501)) -> 10.76286217 | Q17: =IFERROR(IF(COUNTIF($E$2:$E$501,E17)=1,"",IF(I17="","",ABS(IF(I17="",0,(((H17*OFFSET($S$1,MATCH($E17,$R$2:$R$41,0),,)-G17)/G17)))))),"") -> 0.4398092046 | R17: 3530 | S17: =IF(COUNT(IF($E$2:$E$501=R17,$I$2:$I$501))<$X$3,"",HARMEAN(IF($E$2:$E$501=R17,$I$2:$I$501))) -> 17.91867166 | T17: =IFERROR(IF(COUNTIF($F$2:$F$501,F17)=1,"",IF(I17="","",ABS(IF(I17="",0,(((H17*OFFSET($V$1,MATCH($F17,$U$2:$U$105,0),,)-G17)/G17)))))),"") ->  | U17: 2713 | V17: =IF(COUNT(IF($F$2:$F$501=U17,$I$2:$I$501))<$X$3,"",HARMEAN(IF($F$2:$F$501=U17,$I$2:$I$501))) -> 15.42167782 | W17: =IF(OR(J17<(QUARTILE($J$2:$J$501,1))-1.5*(QUARTILE($J$2:$J$501,3)-QUARTILE($J$2:$J$501,1)),J17>(QUARTILE($J$2:$J$501,3))+1.5*(QUARTILE($J$2:$J$501,3)-QUARTILE($J$2:$J$501,1))),"Outlier") -> FALSE
A18: 902280 | B18: ALLEGHENY EN. DEAD - DELIST.28/02/11 | C18: 7000 | D18: 7500 | E18: 7530 | F18: 7535 | G18: 24.99 | H18: 2.42 | I18: =(IF(IFERROR(G18/H18,"")<0,"",IFERROR(G18/H18,""))) -> 10.32644628 | J18: =IF(COUNTIF($C$2:$C$501,C18)=1,"",IF(I18="","",ABS(IF(I18="",0,(((H18*OFFSET($M$1,MATCH($C18,$L$2:$L$40,0),,)-G18)/G18)))))) -> 0.6258299309 | K18: =IF(OR(J18<(QUARTILE($J$2:$J$501,1))-1.5*(QUARTILE($J$2:$J$501,3)-QUARTILE($J$2:$J$501,1)),J18>(QUARTILE($J$2:$J$501,3))+1.5*(QUARTILE($J$2:$J$501,3)-QUARTILE($J$2:$J$501,1))),"",J18) -> 0.6258299309 | N18: =IF(COUNTIF($D$2:$D$501,D18)=1,"",IF(I18="","",ABS(IF(I18="",0,(((H18*OFFSET($P$1,MATCH($D18,$O$2:$O$40,0),,)-G18)/G18)))))) -> 0.6258299309 | O18: 8600 | P18: =HARMEAN(IF($D$2:$D$501=O18,$I$2:$I$501)) -> 44.77689214 | Q18: =IFERROR(IF(COUNTIF($E$2:$E$501,E18)=1,"",IF(I18="","",ABS(IF(I18="",0,(((H18*OFFSET($S$1,MATCH($E18,$R$2:$R$41,0),,)-G18)/G18)))))),"") -> 0.5365504158 | R18: 3570 | S18: =IF(COUNT(IF($E$2:$E$501=R18,$I$2:$I$501))<$X$3,"",HARMEAN(IF($E$2:$E$501=R18,$I$2:$I$501))) -> 17.82378337 | T18: =IFERROR(IF(COUNTIF($F$2:$F$501,F18)=1,"",IF(I18="","",ABS(IF(I18="",0,(((H18*OFFSET($V$1,MATCH($F18,$U$2:$U$105,0),,)-G18)/G18)))))),"") -> 0.5365504158 | U18: 2717 | V18: =IF(COUNT(IF($F$2:$F$501=U18,$I$2:$I$501))<$X$3,"",HARMEAN(IF($F$2:$F$501=U18,$I$2:$I$501))) -> 8.981672628 | W18: =IF(OR(J18<(QUARTILE($J$2:$J$501,1))-1.5*(QUARTILE($J$2:$J$501,3)-QUARTILE($J$2:$J$501,1)),J18>(QUARTILE($J$2:$J$501,3))+1.5*(QUARTILE($J$2:$J$501,3)-QUARTILE($J$2:$J$501,1))),"Outlier") -> FALSE
A19: 745176 | B19: ALLEGHENY TECHS. | C19: 1000 | D19: 1700 | E19: 1750 | F19: 1757 | G19: 30.23 | H19: 1.93 | I19: =(IF(IFERROR(G19/H19,"")<0,"",IFERROR(G19/H19,""))) -> 15.66321244 | J19: =IF(COUNTIF($C$2:$C$501,C19)=1,"",IF(I19="","",ABS(IF(I19="",0,(((H19*OFFSET($M$1,MATCH($C19,$L$2:$L$40,0),,)-G19)/G19)))))) -> 0.01061946728 | K19: =IF(OR(J19<(QUARTILE($J$2:$J$501,1))-1.5*(QUARTILE($J$2:$J$501,3)-QUARTILE($J$2:$J$501,1)),J19>(QUARTILE($J$2:$J$501,3))+1.5*(QUARTILE($J$2:$J$501,3)-QUARTILE($J$2:$J$501,1))),"",J19) -> 0.01061946728 | N19: =IF(COUNTIF($D$2:$D$501,D19)=1,"",IF(I19="","",ABS(IF(I19="",0,(((H19*OFFSET($P$1,MATCH($D19,$O$2:$O$40,0),,)-G19)/G19)))))) -> 0.1966897693 | O19: 8700 | P19: =HARMEAN(IF($D$2:$D$501=O19,$I$2:$I$501)) -> 12.52763908 | Q19: =IFERROR(IF(COUNTIF($E$2:$E$501,E19)=1,"",IF(I19="","",ABS(IF(I19="",0,(((H19*OFFSET($S$1,MATCH($E19,$R$2:$R$41,0),,)-G19)/G19)))))),"") -> 0.1304057766 | R19: 3720 | S19: =IF(COUNT(IF($E$2:$E$501=R19,$I$2:$I$501))<$X$3,"",HARMEAN(IF($E$2:$E$501=R19,$I$2:$I$501))) -> 21.379047 | T19: =IFERROR(IF(COUNTIF($F$2:$F$501,F19)=1,"",IF(I19="","",ABS(IF(I19="",0,(((H19*OFFSET($V$1,MATCH($F19,$U$2:$U$105,0),,)-G19)/G19)))))),"") ->  | U19: 2723 | V19: =IF(COUNT(IF($F$2:$F$501=U19,$I$2:$I$501))<$X$3,"",HARMEAN(IF($F$2:$F$501=U19,$I$2:$I$501))) -> 21.76975683 | W19: =IF(OR(J19<(QUARTILE($J$2:$J$501,1))-1.5*(QUARTILE($J$2:$J$501,3)-QUARTILE($J$2:$J$501,1)),J19>(QUARTILE($J$2:$J$501,3))+1.5*(QUARTILE($J$2:$J$501,3)-QUARTILE($J$2:$J$501,1))),"Outlier") -> FALSE
A20: 541863 | B20: ALLERGAN | C20: 4000 | D20: 4500 | E20: 4570 | F20: 4577 | G20: 90.03 | H20: 3.24 | I20: =(IF(IFERROR(G20/H20,"")<0,"",IFERROR(G20/H20,""))) -> 27.78703704 | J20: =IF(COUNTIF($C$2:$C$501,C20)=1,"",IF(I20="","",ABS(IF(I20="",0,(((H20*OFFSET($M$1,MATCH($C20,$L$2:$L$40,0),,)-G20)/G20)))))) -> 0.3908745199 | K20: =IF(OR(J20<(QUARTILE($J$2:$J$501,1))-1.5*(QUARTILE($J$2:$J$501,3)-QUARTILE($J$2:$J$501,1)),J20>(QUARTILE($J$2:$J$501,3))+1.5*(QUARTILE($J$2:$J$501,3)-QUARTILE($J$2:$J$501,1))),"",J20) -> 0.3908745199 | N20: =IF(COUNTIF($D$2:$D$501,D20)=1,"",IF(I20="","",ABS(IF(I20="",0,(((H20*OFFSET($P$1,MATCH($D20,$O$2:$O$40,0),,)-G20)/G20)))))) -> 0.3908745199 | O20: 9500 | P20: =HARMEAN(IF($D$2:$D$501=O20,$I$2:$I$501)) -> 13.09201745 | Q20: =IFERROR(IF(COUNTIF($E$2:$E$501,E20)=1,"",IF(I20="","",ABS(IF(I20="",0,(((H20*OFFSET($S$1,MATCH($E20,$R$2:$R$41,0),,)-G20)/G20)))))),"") -> 0.2842243651 | R20: 3740 | S20: =IF(COUNT(IF($E$2:$E$501=R20,$I$2:$I$501))<$X$3,"",HARMEAN(IF($E$2:$E$501=R20,$I$2:$I$501))) -> 15.61205758 | T20: =IFERROR(IF(COUNTIF($F$2:$F$501,F20)=1,"",IF(I20="","",ABS(IF(I20="",0,(((H20*OFFSET($V$1,MATCH($F20,$U$2:$U$105,0),,)-G20)/G20)))))),"") -> 0.3359576994 | U20: 2727 | V20: =IF(COUNT(IF($F$2:$F$501=U20,$I$2:$I$501))<$X$3,"",HARMEAN(IF($F$2:$F$501=U20,$I$2:$I$501))) -> 15.49936254 | W20: =IF(OR(J20<(QUARTILE($J$2:$J$501,1))-1.5*(QUARTILE($J$2:$J$501,3)-QUARTILE($J$2:$J$501,1)),J20>(QUARTILE($J$2:$J$501,3))+1.5*(QUARTILE($J$2:$J$501,3)-QUARTILE($J$2:$J$501,1))),"Outlier") -> FALSE
A21: 545691 | B21: ALLIED WASTE INDS. DEAD - DELIST.18/12/08 | C21: 2000 | D21: 2700 | E21: 2790 | F21: 2799 | G21: 10.1 | H21: 0.95 | I21: =(IF(IFERROR(G21/H21,"")<0,"",IFERROR(G21/H21,""))) -> 10.63157895 | J21: =IF(COUNTIF($C$2:$C$501,C21)=1,"",IF(I21="","",ABS(IF(I21="",0,(((H21*OFFSET($M$1,MATCH($C21,$L$2:$L$40,0),,)-G21)/G21)))))) -> 0.364221728 | K21: =IF(OR(J21<(QUARTILE($J$2:$J$501,1))-1.5*(QUARTILE($J$2:$J$501,3)-QUARTILE($J$2:$J$501,1)),J21>(QUARTILE($J$2:$J$501,3))+1.5*(QUARTILE($J$2:$J$501,3)-QUARTILE($J$2:$J$501,1))),"",J21) -> 0.364221728 | N21: =IF(COUNTIF($D$2:$D$501,D21)=1,"",IF(I21="","",ABS(IF(I21="",0,(((H21*OFFSET($P$1,MATCH($D21,$O$2:$O$40,0),,)-G21)/G21)))))) -> 0.3467849721 | Q21: =IFERROR(IF(COUNTIF($E$2:$E$501,E21)=1,"",IF(I21="","",ABS(IF(I21="",0,(((H21*OFFSET($S$1,MATCH($E21,$R$2:$R$41,0),,)-G21)/G21)))))),"") -> 0.4031570908 | R21: 3760 | S21: =IF(COUNT(IF($E$2:$E$501=R21,$I$2:$I$501))<$X$3,"",HARMEAN(IF($E$2:$E$501=R21,$I$2:$I$501))) -> 19.4445957 | T21: =IFERROR(IF(COUNTIF($F$2:$F$501,F21)=1,"",IF(I21="","",ABS(IF(I21="",0,(((H21*OFFSET($V$1,MATCH($F21,$U$2:$U$105,0),,)-G21)/G21)))))),"") ->  | U21: 2733 | V21: =IF(COUNT(IF($F$2:$F$501=U21,$I$2:$I$501))<$X$3,"",HARMEAN(IF($F$2:$F$501=U21,$I$2:$I$501))) -> 16.3501852 | W21: =IF(OR(J21<(QUARTILE($J$2:$J$501,1))-1.5*(QUARTILE($J$2:$J$501,3)-QUARTILE($J$2:$J$501,1)),J21>(QUARTILE($J$2:$J$501,3))+1.5*(QUARTILE($J$2:$J$501,3)-QUARTILE($J$2:$J$501,1))),"Outlier") -> FALSE
A22: 322677 | B22: ALLSTATE | C22: 8000 | D22: 8500 | E22: 8530 | F22: 8536 | G22: 34.14 | H22: 2.08 | I22: =(IF(IFERROR(G22/H22,"")<0,"",IFERROR(G22/H22,""))) -> 16.41346154 | J22: =IF(COUNTIF($C$2:$C$501,C22)=1,"",IF(I22="","",ABS(IF(I22="",0,(((H22*OFFSET($M$1,MATCH($C22,$L$2:$L$40,0),,)-G22)/G22)))))) -> 0.1896413155 | K22: =IF(OR(J22<(QUARTILE($J$2:$J$501,1))-1.5*(QUARTILE($J$2:$J$501,3)-QUARTILE($J$2:$J$501,1)),J22>(QUARTILE($J$2:$J$501,3))+1.5*(QUARTILE($J$2:$J$501,3)-QUARTILE($J$2:$J$501,1))),"",J22) -> 0.1896413155 | N22: =IF(COUNTIF($D$2:$D$501,D22)=1,"",IF(I22="","",ABS(IF(I22="",0,(((H22*OFFSET($P$1,MATCH($D22,$O$2:$O$40,0),,)-G22)/G22)))))) -> 0.3442661598 | Q22: =IFERROR(IF(COUNTIF($E$2:$E$501,E22)=1,"",IF(I22="","",ABS(IF(I22="",0,(((H22*OFFSET($S$1,MATCH($E22,$R$2:$R$41,0),,)-G22)/G22)))))),"") -> 0.3260688766 | R22: 3780 | S22: =IF(COUNT(IF($E$2:$E$501=R22,$I$2:$I$501))<$X$3,"",HARMEAN(IF($E$2:$E$501=R22,$I$2:$I$501))) ->  | T22: =IFERROR(IF(COUNTIF($F$2:$F$501,F22)=1,"",IF(I22="","",ABS(IF(I22="",0,(((H22*OFFSET($V$1,MATCH($F22,$U$2:$U$105,0),,)-G22)/G22)))))),"") -> 0.1251566647 | U22: 2737 | V22: =IF(COUNT(IF($F$2:$F$501=U22,$I$2:$I$501))<$X$3,"",HARMEAN(IF($F$2:$F$501=U22,$I$2:$I$501))) ->  | W22: =IF(OR(J22<(QUARTILE($J$2:$J$501,1))-1.5*(QUARTILE($J$2:$J$501,3)-QUARTILE($J$2:$J$501,1)),J22>(QUARTILE($J$2:$J$501,3))+1.5*(QUARTILE($J$2:$J$501,3)-QUARTILE($J$2:$J$501,1))),"Outlier") -> FALSE
A23: 777343 | B23: ALTERA | C23: 9000 | D23: 9500 | E23: 9570 | F23: 9576 | G23: 32.45 | H23: 2.02 | I23: =(IF(IFERROR(G23/H23,"")<0,"",IFERROR(G23/H23,""))) -> 16.06435644 | J23: =IF(COUNTIF($C$2:$C$501,C23)=1,"",IF(I23="","",ABS(IF(I23="",0,(((H23*OFFSET($M$1,MATCH($C23,$L$2:$L$40,0),,)-G23)/G23)))))) -> 0.1850269571 | K23: =IF(OR(J23<(QUARTILE($J$2:$J$501,1))-1.5*(QUARTILE($J$2:$J$501,3)-QUARTILE($J$2:$J$501,1)),J23>(QUARTILE($J$2:$J$501,3))+1.5*(QUARTILE($J$2:$J$501,3)-QUARTILE($J$2:$J$501,1))),"",J23) -> 0.1850269571 | N23: =IF(COUNTIF($D$2:$D$501,D23)=1,"",IF(I23="","",ABS(IF(I23="",0,(((H23*OFFSET($P$1,MATCH($D23,$O$2:$O$40,0),,)-G23)/G23)))))) -> 0.1850269571 | Q23: =IFERROR(IF(COUNTIF($E$2:$E$501,E23)=1,"",IF(I23="","",ABS(IF(I23="",0,(((H23*OFFSET($S$1,MATCH($E23,$R$2:$R$41,0),,)-G23)/G23)))))),"") -> 0.2188375625 | R23: 4530 | S23: =IF(COUNT(IF($E$2:$E$501=R23,$I$2:$I$501))<$X$3,"",HARMEAN(IF($E$2:$E$501=R23,$I$2:$I$501))) -> 15.29768757 | T23: =IFERROR(IF(COUNTIF($F$2:$F$501,F23)=1,"",IF(I23="","",ABS(IF(I23="",0,(((H23*OFFSET($V$1,MATCH($F23,$U$2:$U$105,0),,)-G23)/G23)))))),"") -> 0.1352893846 | U23: 2753 | V23: =IF(COUNT(IF($F$2:$F$501=U23,$I$2:$I$501))<$X$3,"",HARMEAN(IF($F$2:$F$501=U23,$I$2:$I$501))) -> 12.04530226 | W23: =IF(OR(J23<(QUARTILE($J$2:$J$501,1))-1.5*(QUARTILE($J$2:$J$501,3)-QUARTILE($J$2:$J$501,1)),J23>(QUARTILE($J$2:$J$501,3))+1.5*(QUARTILE($J$2:$J$501,3)-QUARTILE($J$2:$J$501,1))),"Outlier") -> FALSE
A24: 904853 | B24: ALTRIA GROUP | C24: 3000 | D24: 3700 | E24: 3780 | F24: 3785 | G24: 34.03 | H24: 1.67 | I24: =(IF(IFERROR(G24/H24,"")<0,"",IFERROR(G24/H24,""))) -> 20.37724551 | J24: =IF(COUNTIF($C$2:$C$501,C24)=1,"",IF(I24="","",ABS(IF(I24="",0,(((H24*OFFSET($M$1,MATCH($C24,$L$2:$L$40,0),,)-G24)/G24)))))) -> 0.21529217 | K24: =IF(OR(J24<(QUARTILE($J$2:$J$501,1))-1.5*(QUARTILE($J$2:$J$501,3)-QUARTILE($J$2:$J$501,1)),J24>(QUARTILE($J$2:$J$501,3))+1.5*(QUARTILE($J$2:$J$501,3)-QUARTILE($J$2:$J$501,1))),"",J24) -> 0.21529217 | N24: =IF(COUNTIF($D$2:$D$501,D24)=1,"",IF(I24="","",ABS(IF(I24="",0,(((H24*OFFSET($P$1,MATCH($D24,$O$2:$O$40,0),,)-G24)/G24)))))) -> 0.05379805067 | Q24: =IFERROR(IF(COUNTIF($E$2:$E$501,E24)=1,"",IF(I24="","",ABS(IF(I24="",0,(((H24*OFFSET($S$1,MATCH($E24,$R$2:$R$41,0),,)-G24)/G24)))))),"") ->  | R24: 4570 | S24: =IF(COUNT(IF($E$2:$E$501=R24,$I$2:$I$501))<$X$3,"",HARMEAN(IF($E$2:$E$501=R24,$I$2:$I$501))) -> 19.88928408 | T24: =IFERROR(IF(COUNTIF($F$2:$F$501,F24)=1,"",IF(I24="","",ABS(IF(I24="",0,(((H24*OFFSET($V$1,MATCH($F24,$U$2:$U$105,0),,)-G24)/G24)))))),"") ->  | U24: 2757 | V24: =IF(COUNT(IF($F$2:$F$501=U24,$I$2:$I$501))<$X$3,"",HARMEAN(IF($F$2:$F$501=U24,$I$2:$I$501))) -> 12.39922706 | W24: =IF(OR(J24<(QUARTILE($J$2:$J$501,1))-1.5*(QUARTILE($J$2:$J$501,3)-QUARTILE($J$2:$J$501,1)),J24>(QUARTILE($J$2:$J$501,3))+1.5*(QUARTILE($J$2:$J$501,3)-QUARTILE($J$2:$J$501,1))),"Outlier") -> FALSE
A25: 891399 | B25: AMAZON.COM | C25: 5000 | D25: 5300 | E25: 5370 | F25: 5373 | G25: 221.31 | H25: 1.21 | I25: =(IF(IFERROR(G25/H25,"")<0,"",IFERROR(G25/H25,""))) -> 182.9008264 | J25: =IF(COUNTIF($C$2:$C$501,C25)=1,"",IF(I25="","",ABS(IF(I25="",0,(((H25*OFFSET($M$1,MATCH($C25,$L$2:$L$40,0),,)-G25)/G25)))))) -> 0.9137756113 | K25: =IF(OR(J25<(QUARTILE($J$2:$J$501,1))-1.5*(QUARTILE($J$2:$J$501,3)-QUARTILE($J$2:$J$501,1)),J25>(QUARTILE($J$2:$J$501,3))+1.5*(QUARTILE($J$2:$J$501,3)-QUARTILE($J$2:$J$501,1))),"",J25) -> 0.9137756113 | N25: =IF(COUNTIF($D$2:$D$501,D25)=1,"",IF(I25="","",ABS(IF(I25="",0,(((H25*OFFSET($P$1,MATCH($D25,$O$2:$O$40,0),,)-G25)/G25)))))) -> 0.9203313016 | Q25: =IFERROR(IF(COUNTIF($E$2:$E$501,E25)=1,"",IF(I25="","",ABS(IF(I25="",0,(((H25*OFFSET($S$1,MATCH($E25,$R$2:$R$41,0),,)-G25)/G25)))))),"") -> 0.9216345565 | R25: 5330 | S25: =IF(COUNT(IF($E$2:$E$501=R25,$I$2:$I$501))<$X$3,"",HARMEAN(IF($E$2:$E$501=R25,$I$2:$I$501))) -> 15.36652346 | T25: =IFERROR(IF(COUNTIF($F$2:$F$501,F25)=1,"",IF(I25="","",ABS(IF(I25="",0,(((H25*OFFSET($V$1,MATCH($F25,$U$2:$U$105,0),,)-G25)/G25)))))),"") -> 0.8958312057 | U25: 2771 | V25: =IF(COUNT(IF($F$2:$F$501=U25,$I$2:$I$501))<$X$3,"",HARMEAN(IF($F$2:$F$501=U25,$I$2:$I$501))) ->  | W25: =IF(OR(J25<(QUARTILE($J$2:$J$501,1))-1.5*(QUARTILE($J$2:$J$501,3)-QUARTILE($J$2:$J$501,1)),J25>(QUARTILE($J$2:$J$501,3))+1.5*(QUARTILE($J$2:$J$501,3)-QUARTILE($J$2:$J$501,1))),"Outlier") -> FALSE
A26: 545088 | B26: AMBAC FINANCIAL | C26: 8000 | D26: 8500 | E26: 8530 | F26: 8536 | G26: 0.0255 | H26: 0 | I26: =(IF(IFERROR(G26/H26,"")<0,"",IFERROR(G26/H26,""))) ->  | J26: =IF(COUNTIF($C$2:$C$501,C26)=1,"",IF(I26="","",ABS(IF(I26="",0,(((H26*OFFSET($M$1,MATCH($C26,$L$2:$L$40,0),,)-G26)/G26)))))) ->  | K26: =IF(OR(J26<(QUARTILE($J$2:$J$501,1))-1.5*(QUARTILE($J$2:$J$501,3)-QUARTILE($J$2:$J$501,1)),J26>(QUARTILE($J$2:$J$501,3))+1.5*(QUARTILE($J$2:$J$501,3)-QUARTILE($J$2:$J$501,1))),"",J26) ->  | N26: =IF(COUNTIF($D$2:$D$501,D26)=1,"",IF(I26="","",ABS(IF(I26="",0,(((H26*OFFSET($P$1,MATCH($D26,$O$2:$O$40,0),,)-G26)/G26)))))) ->  | Q26: =IFERROR(IF(COUNTIF($E$2:$E$501,E26)=1,"",IF(I26="","",ABS(IF(I26="",0,(((H26*OFFSET($S$1,MATCH($E26,$R$2:$R$41,0),,)-G26)/G26)))))),"") ->  | R26: 5370 | S26: =IF(COUNT(IF($E$2:$E$501=R26,$I$2:$I$501))<$X$3,"",HARMEAN(IF($E$2:$E$501=R26,$I$2:$I$501))) -> 14.33310438 | T26: =IFERROR(IF(COUNTIF($F$2:$F$501,F26)=1,"",IF(I26="","",ABS(IF(I26="",0,(((H26*OFFSET($V$1,MATCH($F26,$U$2:$U$105,0),,)-G26)/G26)))))),"") ->  | U26: 2775 | V26: =IF(COUNT(IF($F$2:$F$501=U26,$I$2:$I$501))<$X$3,"",HARMEAN(IF($F$2:$F$501=U26,$I$2:$I$501))) -> 14.53399768 | W26: =IF(OR(J26<(QUARTILE($J$2:$J$501,1))-1.5*(QUARTILE($J$2:$J$501,3)-QUARTILE($J$2:$J$501,1)),J26>(QUARTILE($J$2:$J$501,3))+1.5*(QUARTILE($J$2:$J$501,3)-QUARTILE($J$2:$J$501,1))),"Outlier") -> Outlier
A27: 670942 | B27: AMEREN | C27: 7000 | D27: 7500 | E27: 7570 | F27: 7575 | G27: 33.56 | H27: 0.19 | I27: =(IF(IFERROR(G27/H27,"")<0,"",IFERROR(G27/H27,""))) -> 176.6315789 | J27: =IF(COUNTIF($C$2:$C$501,C27)=1,"",IF(I27="","",ABS(IF(I27="",0,(((H27*OFFSET($M$1,MATCH($C27,$L$2:$L$40,0),,)-G27)/G27)))))) -> 0.9049487892 | K27: =IF(OR(J27<(QUARTILE($J$2:$J$501,1))-1.5*(QUARTILE($J$2:$J$501,3)-QUARTILE($J$2:$J$501,1)),J27>(QUARTILE($J$2:$J$501,3))+1.5*(QUARTILE($J$2:$J$501,3)-QUARTILE($J$2:$J$501,1))),"",J27) -> 0.9049487892 | N27: =IF(COUNTIF($D$2:$D$501,D27)=1,"",IF(I27="","",ABS(IF(I27="",0,(((H27*OFFSET($P$1,MATCH($D27,$O$2:$O$40,0),,)-G27)/G27)))))) -> 0.9049487892 | Q27: =IFERROR(IF(COUNTIF($E$2:$E$501,E27)=1,"",IF(I27="","",ABS(IF(I27="",0,(((H27*OFFSET($S$1,MATCH($E27,$R$2:$R$41,0),,)-G27)/G27)))))),"") -> 0.8924507335 | R27: 5550 | S27: =IF(COUNT(IF($E$2:$E$501=R27,$I$2:$I$501))<$X$3,"",HARMEAN(IF($E$2:$E$501=R27,$I$2:$I$501))) -> 15.17032802 | T27: =IFERROR(IF(COUNTIF($F$2:$F$501,F27)=1,"",IF(I27="","",ABS(IF(I27="",0,(((H27*OFFSET($V$1,MATCH($F27,$U$2:$U$105,0),,)-G27)/G27)))))),"") -> 0.8940446709 | U27: 2777 | V27: =IF(COUNT(IF($F$2:$F$501=U27,$I$2:$I$501))<$X$3,"",HARMEAN(IF($F$2:$F$501=U27,$I$2:$I$501))) ->  | W27: =IF(OR(J27<(QUARTILE($J$2:$J$501,1))-1.5*(QUARTILE($J$2:$J$501,3)-QUARTILE($J$2:$J$501,1)),J27>(QUARTILE($J$2:$J$501,3))+1.5*(QUARTILE($J$2:$J$501,3)-QUARTILE($J$2:$J$501,1))),"Outlier") -> FALSE
A28: 905425 | B28: AMER.ELEC.PWR. | C28: 7000 | D28: 7500 | E28: 7530 | F28: 7535 | G28: 39.93 | H28: 3.32 | I28: =(IF(IFERROR(G28/H28,"")<0,"",IFERROR(G28/H28,""))) -> 12.02710843 | J28: =IF(COUNTIF($C$2:$C$501,C28)=1,"",IF(I28="","",ABS(IF(I28="",0,(((H28*OFFSET($M$1,MATCH($C28,$L$2:$L$40,0),,)-G28)/G28)))))) -> 0.3959336557 | K28: =IF(OR(J28<(QUARTILE($J$2:$J$501,1))-1.5*(QUARTILE($J$2:$J$501,3)-QUARTILE($J$2:$J$501,1)),J28>(QUARTILE($J$2:$J$501,3))+1.5*(QUARTILE($J$2:$J$501,3)-QUARTILE($J$2:$J$501,1))),"",J28) -> 0.3959336557 | N28: =IF(COUNTIF($D$2:$D$501,D28)=1,"",IF(I28="","",ABS(IF(I28="",0,(((H28*OFFSET($P$1,MATCH($D28,$O$2:$O$40,0),,)-G28)/G28)))))) -> 0.3959336557 | Q28: =IFERROR(IF(COUNTIF($E$2:$E$501,E28)=1,"",IF(I28="","",ABS(IF(I28="",0,(((H28*OFFSET($S$1,MATCH($E28,$R$2:$R$41,0),,)-G28)/G28)))))),"") -> 0.3192784795 | R28: 5750 | S28: =IF(COUNT(IF($E$2:$E$501=R28,$I$2:$I$501))<$X$3,"",HARMEAN(IF($E$2:$E$501=R28,$I$2:$I$501))) -> 21.89895142 | T28: =IFERROR(IF(COUNTIF($F$2:$F$501,F28)=1,"",IF(I28="","",ABS(IF(I28="",0,(((H28*OFFSET($V$1,MATCH($F28,$U$2:$U$105,0),,)-G28)/G28)))))),"") -> 0.3192784795 | U28: 2779 | V28: =IF(COUNT(IF($F$2:$F$501=U28,$I$2:$I$501))<$X$3,"",HARMEAN(IF($F$2:$F$501=U28,$I$2:$I$501))) ->  | W28: =IF(OR(J28<(QUARTILE($J$2:$J$501,1))-1.5*(QUARTILE($J$2:$J$501,3)-QUARTILE($J$2:$J$501,1)),J28>(QUARTILE($J$2:$J$501,3))+1.5*(QUARTILE($J$2:$J$501,3)-QUARTILE($J$2:$J$501,1))),"Outlier") -> FALSE
A29: 906156 | B29: AMERICAN EXPRESS | C29: 8000 | D29: 8700 | E29: 8770 | F29: 8773 | G29: 56.69 | H29: 4.21 | I29: =(IF(IFERROR(G29/H29,"")<0,"",IFERROR(G29/H29,""))) -> 13.46555819 | J29: =IF(COUNTIF($C$2:$C$501,C29)=1,"",IF(I29="","",ABS(IF(I29="",0,(((H29*OFFSET($M$1,MATCH($C29,$L$2:$L$40,0),,)-G29)/G29)))))) -> 0.0122361875 | K29: =IF(OR(J29<(QUARTILE($J$2:$J$501,1))-1.5*(QUARTILE($J$2:$J$501,3)-QUARTILE($J$2:$J$501,1)),J29>(QUARTILE($J$2:$J$501,3))+1.5*(QUARTILE($J$2:$J$501,3)-QUARTILE($J$2:$J$501,1))),"",J29) -> 0.0122361875 | N29: =IF(COUNTIF($D$2:$D$501,D29)=1,"",IF(I29="","",ABS(IF(I29="",0,(((H29*OFFSET($P$1,MATCH($D29,$O$2:$O$40,0),,)-G29)/G29)))))) -> 0.06965319227 | Q29: =IFERROR(IF(COUNTIF($E$2:$E$501,E29)=1,"",IF(I29="","",ABS(IF(I29="",0,(((H29*OFFSET($S$1,MATCH($E29,$R$2:$R$41,0),,)-G29)/G29)))))),"") -> 0.06965319227 | R29: 6530 | S29: =IF(COUNT(IF($E$2:$E$501=R29,$I$2:$I$501))<$X$3,"",HARMEAN(IF($E$2:$E$501=R29,$I$2:$I$501))) -> 22.86085282 | T29: =IFERROR(IF(COUNTIF($F$2:$F$501,F29)=1,"",IF(I29="","",ABS(IF(I29="",0,(((H29*OFFSET($V$1,MATCH($F29,$U$2:$U$105,0),,)-G29)/G29)))))),"") -> 0.2542099895 | U29: 2791 | V29: =IF(COUNT(IF($F$2:$F$501=U29,$I$2:$I$501))<$X$3,"",HARMEAN(IF($F$2:$F$501=U29,$I$2:$I$501))) -> 10.33520038 | W29: =IF(OR(J29<(QUARTILE($J$2:$J$501,1))-1.5*(QUARTILE($J$2:$J$501,3)-QUARTILE($J$2:$J$501,1)),J29>(QUARTILE($J$2:$J$501,3))+1.5*(QUARTILE($J$2:$J$501,3)-QUARTILE($J$2:$J$501,1))),"Outlier") -> FALSE
A30: 916305 | B30: AMERICAN INTL.GP. | C30: 8000 | D30: 8500 | E30: 8530 | F30: 8532 | G30: 30.84 | H30: 11.58 | I30: =(IF(IFERROR(G30/H30,"")<0,"",IFERROR(G30/H30,""))) -> 2.663212435 | J30: =IF(COUNTIF($C$2:$C$501,C30)=1,"",IF(I30="","",ABS(IF(I30="",0,(((H30*OFFSET($M$1,MATCH($C30,$L$2:$L$40,0),,)-G30)/G30)))))) -> 3.994265919 | K30: =IF(OR(J30<(QUARTILE($J$2:$J$501,1))-1.5*(QUARTILE($J$2:$J$501,3)-QUARTILE($J$2:$J$501,1)),J30>(QUARTILE($J$2:$J$501,3))+1.5*(QUARTILE($J$2:$J$501,3)-QUARTILE($J$2:$J$501,1))),"",J30) ->  | N30: =IF(COUNTIF($D$2:$D$501,D30)=1,"",IF(I30="","",ABS(IF(I30="",0,(((H30*OFFSET($P$1,MATCH($D30,$O$2:$O$40,0),,)-G30)/G30)))))) -> 3.041308167 | Q30: =IFERROR(IF(COUNTIF($E$2:$E$501,E30)=1,"",IF(I30="","",ABS(IF(I30="",0,(((H30*OFFSET($S$1,MATCH($E30,$R$2:$R$41,0),,)-G30)/G30)))))),"") -> 3.153458593 | R30: 6570 | S30: =IF(COUNT(IF($E$2:$E$501=R30,$I$2:$I$501))<$X$3,"",HARMEAN(IF($E$2:$E$501=R30,$I$2:$I$501))) ->  | T30: =IFERROR(IF(COUNTIF($F$2:$F$501,F30)=1,"",IF(I30="","",ABS(IF(I30="",0,(((H30*OFFSET($V$1,MATCH($F30,$U$2:$U$105,0),,)-G30)/G30)))))),"") ->  | U30: 2793 | V30: =IF(COUNT(IF($F$2:$F$501=U30,$I$2:$I$501))<$X$3,"",HARMEAN(IF($F$2:$F$501=U30,$I$2:$I$501))) ->  | W30: =IF(OR(J30<(QUARTILE($J$2:$J$501,1))-1.5*(QUARTILE($J$2:$J$501,3)-QUARTILE($J$2:$J$501,1)),J30>(QUARTILE($J$2:$J$501,3))+1.5*(QUARTILE($J$2:$J$501,3)-QUARTILE($J$2:$J$501,1))),"Outlier") -> Outlier
A31: 151860 | B31: TRANE DEAD - MERGER | C31: 2000 | D31: 2300 | E31: 2350 | F31: 2353 | G31: 46.49 | H31: 2.01 | I31: =(IF(IFERROR(G31/H31,"")<0,"",IFERROR(G31/H31,""))) -> 23.12935323 | J31: =IF(COUNTIF($C$2:$C$501,C31)=1,"",IF(I31="","",ABS(IF(I31="",0,(((H31*OFFSET($M$1,MATCH($C31,$L$2:$L$40,0),,)-G31)/G31)))))) -> 0.3729253535 | K31: =IF(OR(J31<(QUARTILE($J$2:$J$501,1))-1.5*(QUARTILE($J$2:$J$501,3)-QUARTILE($J$2:$J$501,1)),J31>(QUARTILE($J$2:$J$501,3))+1.5*(QUARTILE($J$2:$J$501,3)-QUARTILE($J$2:$J$501,1))),"",J31) -> 0.3729253535 | N31: =IF(COUNTIF($D$2:$D$501,D31)=1,"",IF(I31="","",ABS(IF(I31="",0,(((H31*OFFSET($P$1,MATCH($D31,$O$2:$O$40,0),,)-G31)/G31)))))) -> 0.1387686832 | Q31: =IFERROR(IF(COUNTIF($E$2:$E$501,E31)=1,"",IF(I31="","",ABS(IF(I31="",0,(((H31*OFFSET($S$1,MATCH($E31,$R$2:$R$41,0),,)-G31)/G31)))))),"") ->  | R31: 7530 | S31: =IF(COUNT(IF($E$2:$E$501=R31,$I$2:$I$501))<$X$3,"",HARMEAN(IF($E$2:$E$501=R31,$I$2:$I$501))) -> 15.86710533 | T31: =IFERROR(IF(COUNTIF($F$2:$F$501,F31)=1,"",IF(I31="","",ABS(IF(I31="",0,(((H31*OFFSET($V$1,MATCH($F31,$U$2:$U$105,0),,)-G31)/G31)))))),"") ->  | U31: 2795 | V31: =IF(COUNT(IF($F$2:$F$501=U31,$I$2:$I$501))<$X$3,"",HARMEAN(IF($F$2:$F$501=U31,$I$2:$I$501))) -> 23.64453789 | W31: =IF(OR(J31<(QUARTILE($J$2:$J$501,1))-1.5*(QUARTILE($J$2:$J$501,3)-QUARTILE($J$2:$J$501,1)),J31>(QUARTILE($J$2:$J$501,3))+1.5*(QUARTILE($J$2:$J$501,3)-QUARTILE($J$2:$J$501,1))),"Outlier") -> FALSE
A32: 31604H | B32: AMERIPRISE FINL. | C32: 8000 | D32: 8700 | E32: 8770 | F32: 8777 | G32: 50.8 | H32: 4.44 | I32: =(IF(IFERROR(G32/H32,"")<0,"",IFERROR(G32/H32,""))) -> 11.44144144 | J32: =IF(COUNTIF($C$2:$C$501,C32)=1,"",IF(I32="","",ABS(IF(I32="",0,(((H32*OFFSET($M$1,MATCH($C32,$L$2:$L$40,0),,)-G32)/G32)))))) -> 0.1625100883 | K32: =IF(OR(J32<(QUARTILE($J$2:$J$501,1))-1.5*(QUARTILE($J$2:$J$501,3)-QUARTILE($J$2:$J$501,1)),J32>(QUARTILE($J$2:$J$501,3))+1.5*(QUARTILE($J$2:$J$501,3)-QUARTILE($J$2:$J$501,1))),"",J32) -> 0.1625100883 | N32: =IF(COUNTIF($D$2:$D$501,D32)=1,"",IF(I32="","",ABS(IF(I32="",0,(((H32*OFFSET($P$1,MATCH($D32,$O$2:$O$40,0),,)-G32)/G32)))))) -> 0.09493538423 | Q32: =IFERROR(IF(COUNTIF($E$2:$E$501,E32)=1,"",IF(I32="","",ABS(IF(I32="",0,(((H32*OFFSET($S$1,MATCH($E32,$R$2:$R$41,0),,)-G32)/G32)))))),"") -> 0.09493538423 | R32: 7570 | S32: =IF(COUNT(IF($E$2:$E$501=R32,$I$2:$I$501))<$X$3,"",HARMEAN(IF($E$2:$E$501=R32,$I$2:$I$501))) -> 18.99659676 | T32: =IFERROR(IF(COUNTIF($F$2:$F$501,F32)=1,"",IF(I32="","",ABS(IF(I32="",0,(((H32*OFFSET($V$1,MATCH($F32,$U$2:$U$105,0),,)-G32)/G32)))))),"") -> 0.03731411698 | U32: 2797 | V32: =IF(COUNT(IF($F$2:$F$501=U32,$I$2:$I$501))<$X$3,"",HARMEAN(IF($F$2:$F$501=U32,$I$2:$I$501))) ->  | W32: =IF(OR(J32<(QUARTILE($J$2:$J$501,1))-1.5*(QUARTILE($J$2:$J$501,3)-QUARTILE($J$2:$J$501,1)),J32>(QUARTILE($J$2:$J$501,3))+1.5*(QUARTILE($J$2:$J$501,3)-QUARTILE($J$2:$J$501,1))),"Outlier") -> FALSE
A33: 154680 | B33: AMERISOURCEBERGEN | C33: 5000 | D33: 5300 | E33: 5330 | F33: 5333 | G33: 38.74 | H33: 2.62 | I33: =(IF(IFERROR(G33/H33,"")<0,"",IFERROR(G33/H33,""))) -> 14.78625954 | J33: =IF(COUNTIF($C$2:$C$501,C33)=1,"",IF(I33="","",ABS(IF(I33="",0,(((H33*OFFSET($M$1,MATCH($C33,$L$2:$L$40,0),,)-G33)/G33)))))) -> 0.06656534178 | K33: =IF(OR(J33<(QUARTILE($J$2:$J$501,1))-1.5*(QUARTILE($J$2:$J$501,3)-QUARTILE($J$2:$J$501,1)),J33>(QUARTILE($J$2:$J$501,3))+1.5*(QUARTILE($J$2:$J$501,3)-QUARTILE($J$2:$J$501,1))),"",J33) -> 0.06656534178 | N33: =IF(COUNTIF($D$2:$D$501,D33)=1,"",IF(I33="","",ABS(IF(I33="",0,(((H33*OFFSET($P$1,MATCH($D33,$O$2:$O$40,0),,)-G33)/G33)))))) -> 0.01452624101 | Q33: =IFERROR(IF(COUNTIF($E$2:$E$501,E33)=1,"",IF(I33="","",ABS(IF(I33="",0,(((H33*OFFSET($S$1,MATCH($E33,$R$2:$R$41,0),,)-G33)/G33)))))),"") -> 0.03924345521 | R33: 8350 | S33: =IF(COUNT(IF($E$2:$E$501=R33,$I$2:$I$501))<$X$3,"",HARMEAN(IF($E$2:$E$501=R33,$I$2:$I$501))) -> 12.17145097 | T33: =IFERROR(IF(COUNTIF($F$2:$F$501,F33)=1,"",IF(I33="","",ABS(IF(I33="",0,(((H33*OFFSET($V$1,MATCH($F33,$U$2:$U$105,0),,)-G33)/G33)))))),"") -> 0.05297876553 | U33: 2799 | V33: =IF(COUNT(IF($F$2:$F$501=U33,$I$2:$I$501))<$X$3,"",HARMEAN(IF($F$2:$F$501=U33,$I$2:$I$501))) ->  | W33: =IF(OR(J33<(QUARTILE($J$2:$J$501,1))-1.5*(QUARTILE($J$2:$J$501,3)-QUARTILE($J$2:$J$501,1)),J33>(QUARTILE($J$2:$J$501,3))+1.5*(QUARTILE($J$2:$J$501,3)-QUARTILE($J$2:$J$501,1))),"Outlier") -> FALSE
A34: 938692 | B34: AMGEN | C34: 4000 | D34: 4500 | E34: 4570 | F34: 4573 | G34: 71.42 | H34: 4.31 | I34: =(IF(IFERROR(G34/H34,"")<0,"",IFERROR(G34/H34,""))) -> 16.57076566 | J34: =IF(COUNTIF($C$2:$C$501,C34)=1,"",IF(I34="","",ABS(IF(I34="",0,(((H34*OFFSET($M$1,MATCH($C34,$L$2:$L$40,0),,)-G34)/G34)))))) -> 0.02142487684 | K34: =IF(OR(J34<(QUARTILE($J$2:$J$501,1))-1.5*(QUARTILE($J$2:$J$501,3)-QUARTILE($J$2:$J$501,1)),J34>(QUARTILE($J$2:$J$501,3))+1.5*(QUARTILE($J$2:$J$501,3)-QUARTILE($J$2:$J$501,1))),"",J34) -> 0.02142487684 | N34: =IF(COUNTIF($D$2:$D$501,D34)=1,"",IF(I34="","",ABS(IF(I34="",0,(((H34*OFFSET($P$1,MATCH($D34,$O$2:$O$40,0),,)-G34)/G34)))))) -> 0.02142487684 | Q34: =IFERROR(IF(COUNTIF($E$2:$E$501,E34)=1,"",IF(I34="","",ABS(IF(I34="",0,(((H34*OFFSET($S$1,MATCH($E34,$R$2:$R$41,0),,)-G34)/G34)))))),"") -> 0.2002634329 | R34: 8530 | S34: =IF(COUNT(IF($E$2:$E$501=R34,$I$2:$I$501))<$X$3,"",HARMEAN(IF($E$2:$E$501=R34,$I$2:$I$501))) -> 11.06154257 | T34: =IFERROR(IF(COUNTIF($F$2:$F$501,F34)=1,"",IF(I34="","",ABS(IF(I34="",0,(((H34*OFFSET($V$1,MATCH($F34,$U$2:$U$105,0),,)-G34)/G34)))))),"") -> 0.4669242448 | U34: 3353 | V34: =IF(COUNT(IF($F$2:$F$501=U34,$I$2:$I$501))<$X$3,"",HARMEAN(IF($F$2:$F$501=U34,$I$2:$I$501))) ->  | W34: =IF(OR(J34<(QUARTILE($J$2:$J$501,1))-1.5*(QUARTILE($J$2:$J$501,3)-QUARTILE($J$2:$J$501,1)),J34>(QUARTILE($J$2:$J$501,3))+1.5*(QUARTILE($J$2:$J$501,3)-QUARTILE($J$2:$J$501,1))),"Outlier") -> FALSE
A35: 741076 | B35: ANADARKO PETROLEUM | C35: 1 | D35: 500 | E35: 530 | F35: 533 | G35: 63.25 | H35: 0 | I35: =(IF(IFERROR(G35/H35,"")<0,"",IFERROR(G35/H35,""))) ->  | J35: =IF(COUNTIF($C$2:$C$501,C35)=1,"",IF(I35="","",ABS(IF(I35="",0,(((H35*OFFSET($M$1,MATCH($C35,$L$2:$L$40,0),,)-G35)/G35)))))) ->  | K35: =IF(OR(J35<(QUARTILE($J$2:$J$501,1))-1.5*(QUARTILE($J$2:$J$501,3)-QUARTILE($J$2:$J$501,1)),J35>(QUARTILE($J$2:$J$501,3))+1.5*(QUARTILE($J$2:$J$501,3)-QUARTILE($J$2:$J$501,1))),"",J35) ->  | N35: =IF(COUNTIF($D$2:$D$501,D35)=1,"",IF(I35="","",ABS(IF(I35="",0,(((H35*OFFSET($P$1,MATCH($D35,$O$2:$O$40,0),,)-G35)/G35)))))) ->  | Q35: =IFERROR(IF(COUNTIF($E$2:$E$501,E35)=1,"",IF(I35="","",ABS(IF(I35="",0,(((H35*OFFSET($S$1,MATCH($E35,$R$2:$R$41,0),,)-G35)/G35)))))),"") ->  | R35: 8570 | S35: =IF(COUNT(IF($E$2:$E$501=R35,$I$2:$I$501))<$X$3,"",HARMEAN(IF($E$2:$E$501=R35,$I$2:$I$501))) -> 10.38884042 | T35: =IFERROR(IF(COUNTIF($F$2:$F$501,F35)=1,"",IF(I35="","",ABS(IF(I35="",0,(((H35*OFFSET($V$1,MATCH($F35,$U$2:$U$105,0),,)-G35)/G35)))))),"") ->  | U35: 3355 | V35: =IF(COUNT(IF($F$2:$F$501=U35,$I$2:$I$501))<$X$3,"",HARMEAN(IF($F$2:$F$501=U35,$I$2:$I$501))) ->  | W35: =IF(OR(J35<(QUARTILE($J$2:$J$501,1))-1.5*(QUARTILE($J$2:$J$501,3)-QUARTILE($J$2:$J$501,1)),J35>(QUARTILE($J$2:$J$501,3))+1.5*(QUARTILE($J$2:$J$501,3)-QUARTILE($J$2:$J$501,1))),"Outlier") -> Outlier
A36: 905276 | B36: ANALOG DEVICES | C36: 9000 | D36: 9500 | E36: 9570 | F36: 9576 | G36: 36.52 | H36: 2.3 | I36: =(IF(IFERROR(G36/H36,"")<0,"",IFERROR(G36/H36,""))) -> 15.87826087 | J36: =IF(COUNTIF($C$2:$C$501,C36)=1,"",IF(I36="","",ABS(IF(I36="",0,(((H36*OFFSET($M$1,MATCH($C36,$L$2:$L$40,0),,)-G36)/G36)))))) -> 0.1754753525 | K36: =IF(OR(J36<(QUARTILE($J$2:$J$501,1))-1.5*(QUARTILE($J$2:$J$501,3)-QUARTILE($J$2:$J$501,1)),J36>(QUARTILE($J$2:$J$501,3))+1.5*(QUARTILE($J$2:$J$501,3)-QUARTILE($J$2:$J$501,1))),"",J36) -> 0.1754753525 | N36: =IF(COUNTIF($D$2:$D$501,D36)=1,"",IF(I36="","",ABS(IF(I36="",0,(((H36*OFFSET($P$1,MATCH($D36,$O$2:$O$40,0),,)-G36)/G36)))))) -> 0.1754753525 | Q36: =IFERROR(IF(COUNTIF($E$2:$E$501,E36)=1,"",IF(I36="","",ABS(IF(I36="",0,(((H36*OFFSET($S$1,MATCH($E36,$R$2:$R$41,0),,)-G36)/G36)))))),"") -> 0.2096822232 | R36: 8630 | S36: =IF(COUNT(IF($E$2:$E$501=R36,$I$2:$I$501))<$X$3,"",HARMEAN(IF($E$2:$E$501=R36,$I$2:$I$501))) ->  | T36: =IFERROR(IF(COUNTIF($F$2:$F$501,F36)=1,"",IF(I36="","",ABS(IF(I36="",0,(((H36*OFFSET($V$1,MATCH($F36,$U$2:$U$105,0),,)-G36)/G36)))))),"") -> 0.1251548483 | U36: 3357 | V36: =IF(COUNT(IF($F$2:$F$501=U36,$I$2:$I$501))<$X$3,"",HARMEAN(IF($F$2:$F$501=U36,$I$2:$I$501))) ->  | W36: =IF(OR(J36<(QUARTILE($J$2:$J$501,1))-1.5*(QUARTILE($J$2:$J$501,3)-QUARTILE($J$2:$J$501,1)),J36>(QUARTILE($J$2:$J$501,3))+1.5*(QUARTILE($J$2:$J$501,3)-QUARTILE($J$2:$J$501,1))),"Outlier") -> FALSE
A37: 912059 | B37: ANHEUSER-BUSCH COS. DEAD - DELIST.08/12/08 | C37: 3000 | D37: 3500 | E37: 3530 | F37: 3533 | G37: 68.58 | H37: 2.84 | I37: =(IF(IFERROR(G37/H37,"")<0,"",IFERROR(G37/H37,""))) -> 24.14788732 | J37: =IF(COUNTIF($C$2:$C$501,C37)=1,"",IF(I37="","",ABS(IF(I37="",0,(((H37*OFFSET($M$1,MATCH($C37,$L$2:$L$40,0),,)-G37)/G37)))))) -> 0.3378226472 | K37: =IF(OR(J37<(QUARTILE($J$2:$J$501,1))-1.5*(QUARTILE($J$2:$J$501,3)-QUARTILE($J$2:$J$501,1)),J37>(QUARTILE($J$2:$J$501,3))+1.5*(QUARTILE($J$2:$J$501,3)-QUARTILE($J$2:$J$501,1))),"",J37) -> 0.3378226472 | N37: =IF(COUNTIF($D$2:$D$501,D37)=1,"",IF(I37="","",ABS(IF(I37="",0,(((H37*OFFSET($P$1,MATCH($D37,$O$2:$O$40,0),,)-G37)/G37)))))) -> 0.26021162 | Q37: =IFERROR(IF(COUNTIF($E$2:$E$501,E37)=1,"",IF(I37="","",ABS(IF(I37="",0,(((H37*OFFSET($S$1,MATCH($E37,$R$2:$R$41,0),,)-G37)/G37)))))),"") -> 0.2579611038 | R37: 8670 | S37: =IF(COUNT(IF($E$2:$E$501=R37,$I$2:$I$501))<$X$3,"",HARMEAN(IF($E$2:$E$501=R37,$I$2:$I$501))) -> 50.01296802 | T37: =IFERROR(IF(COUNTIF($F$2:$F$501,F37)=1,"",IF(I37="","",ABS(IF(I37="",0,(((H37*OFFSET($V$1,MATCH($F37,$U$2:$U$105,0),,)-G37)/G37)))))),"") ->  | U37: 3533 | V37: =IF(COUNT(IF($F$2:$F$501=U37,$I$2:$I$501))<$X$3,"",HARMEAN(IF($F$2:$F$501=U37,$I$2:$I$501))) ->  | W37: =IF(OR(J37<(QUARTILE($J$2:$J$501,1))-1.5*(QUARTILE($J$2:$J$501,3)-QUARTILE($J$2:$J$501,1)),J37>(QUARTILE($J$2:$J$501,3))+1.5*(QUARTILE($J$2:$J$501,3)-QUARTILE($J$2:$J$501,1))),"Outlier") -> FALSE
A38: 922817 | B38: AON CLASS A | C38: 8000 | D38: 8500 | E38: 8530 | F38: 8534 | G38: 45.72 | H38: 2.87 | I38: =(IF(IFERROR(G38/H38,"")<0,"",IFERROR(G38/H38,""))) -> 15.93031359 | J38: =IF(COUNTIF($C$2:$C$501,C38)=1,"",IF(I38="","",ABS(IF(I38="",0,(((H38*OFFSET($M$1,MATCH($C38,$L$2:$L$40,0),,)-G38)/G38)))))) -> 0.1650640757 | K38: =IF(OR(J38<(QUARTILE($J$2:$J$501,1))-1.5*(QUARTILE($J$2:$J$501,3)-QUARTILE($J$2:$J$501,1)),J38>(QUARTILE($J$2:$J$501,3))+1.5*(QUARTILE($J$2:$J$501,3)-QUARTILE($J$2:$J$501,1))),"",J38) -> 0.1650640757 | N38: =IF(COUNTIF($D$2:$D$501,D38)=1,"",IF(I38="","",ABS(IF(I38="",0,(((H38*OFFSET($P$1,MATCH($D38,$O$2:$O$40,0),,)-G38)/G38)))))) -> 0.3243785123 | Q38: =IFERROR(IF(COUNTIF($E$2:$E$501,E38)=1,"",IF(I38="","",ABS(IF(I38="",0,(((H38*OFFSET($S$1,MATCH($E38,$R$2:$R$41,0),,)-G38)/G38)))))),"") -> 0.3056293266 | R38: 8770 | S38: =IF(COUNT(IF($E$2:$E$501=R38,$I$2:$I$501))<$X$3,"",HARMEAN(IF($E$2:$E$501=R38,$I$2:$I$501))) -> 12.52763908 | T38: =IFERROR(IF(COUNTIF($F$2:$F$501,F38)=1,"",IF(I38="","",ABS(IF(I38="",0,(((H38*OFFSET($V$1,MATCH($F38,$U$2:$U$105,0),,)-G38)/G38)))))),"") ->  | U38: 3535 | V38: =IF(COUNT(IF($F$2:$F$501=U38,$I$2:$I$501))<$X$3,"",HARMEAN(IF($F$2:$F$501=U38,$I$2:$I$501))) ->  | W38: =IF(OR(J38<(QUARTILE($J$2:$J$501,1))-1.5*(QUARTILE($J$2:$J$501,3)-QUARTILE($J$2:$J$501,1)),J38>(QUARTILE($J$2:$J$501,3))+1.5*(QUARTILE($J$2:$J$501,3)-QUARTILE($J$2:$J$501,1))),"Outlier") -> FALSE
A39: 921983 | B39: APACHE | C39: 1 | D39: 500 | E39: 530 | F39: 533 | G39: 85.23 | H39: 10.55 | I39: =(IF(IFERROR(G39/H39,"")<0,"",IFERROR(G39/H39,""))) -> 8.078672986 | J39: =IF(COUNTIF($C$2:$C$501,C39)=1,"",IF(I39="","",ABS(IF(I39="",0,(((H39*OFFSET($M$1,MATCH($C39,$L$2:$L$40,0),,)-G39)/G39)))))) -> 0.1477907112 | K39: =IF(OR(J39<(QUARTILE($J$2:$J$501,1))-1.5*(QUARTILE($J$2:$J$501,3)-QUARTILE($J$2:$J$501,1)),J39>(QUARTILE($J$2:$J$501,3))+1.5*(QUARTILE($J$2:$J$501,3)-QUARTILE($J$2:$J$501,1))),"",J39) -> 0.1477907112 | N39: =IF(COUNTIF($D$2:$D$501,D39)=1,"",IF(I39="","",ABS(IF(I39="",0,(((H39*OFFSET($P$1,MATCH($D39,$O$2:$O$40,0),,)-G39)/G39)))))) -> 0.1477907112 | Q39: =IFERROR(IF(COUNTIF($E$2:$E$501,E39)=1,"",IF(I39="","",ABS(IF(I39="",0,(((H39*OFFSET($S$1,MATCH($E39,$R$2:$R$41,0),,)-G39)/G39)))))),"") -> 0.04018437754 | R39: 8980 | S39: =IF(COUNT(IF($E$2:$E$501=R39,$I$2:$I$501))<$X$3,"",HARMEAN(IF($E$2:$E$501=R39,$I$2:$I$501))) ->  | T39: =IFERROR(IF(COUNTIF($F$2:$F$501,F39)=1,"",IF(I39="","",ABS(IF(I39="",0,(((H39*OFFSET($V$1,MATCH($F39,$U$2:$U$105,0),,)-G39)/G39)))))),"") -> 0.03291769893 | U39: 3537 | V39: =IF(COUNT(IF($F$2:$F$501=U39,$I$2:$I$501))<$X$3,"",HARMEAN(IF($F$2:$F$501=U39,$I$2:$I$501))) -> 17.81688228 | W39: =IF(OR(J39<(QUARTILE($J$2:$J$501,1))-1.5*(QUARTILE($J$2:$J$501,3)-QUARTILE($J$2:$J$501,1)),J39>(QUARTILE($J$2:$J$501,3))+1.5*(QUARTILE($J$2:$J$501,3)-QUARTILE($J$2:$J$501,1))),"Outlier") -> FALSE
A40: 132808 | B40: APARTMENT INV.& MAN.'A' | C40: 8000 | D40: 8600 | E40: 8670 | F40: 8673 | G40: 26.68 | H40: 0 | I40: =(IF(IFERROR(G40/H40,"")<0,"",IFERROR(G40/H40,""))) ->  | J40: =IF(COUNTIF($C$2:$C$501,C40)=1,"",IF(I40="","",ABS(IF(I40="",0,(((H40*OFFSET($M$1,MATCH($C40,$L$2:$L$40,0),,)-G40)/G40)))))) ->  | K40: =IF(OR(J40<(QUARTILE($J$2:$J$501,1))-1.5*(QUARTILE($J$2:$J$501,3)-QUARTILE($J$2:$J$501,1)),J40>(QUARTILE($J$2:$J$501,3))+1.5*(QUARTILE($J$2:$J$501,3)-QUARTILE($J$2:$J$501,1))),"",J40) ->  | N40: =IF(COUNTIF($D$2:$D$501,D40)=1,"",IF(I40="","",ABS(IF(I40="",0,(((H40*OFFSET($P$1,MATCH($D40,$O$2:$O$40,0),,)-G40)/G40)))))) ->  | Q40: =IFERROR(IF(COUNTIF($E$2:$E$501,E40)=1,"",IF(I40="","",ABS(IF(I40="",0,(((H40*OFFSET($S$1,MATCH($E40,$R$2:$R$41,0),,)-G40)/G40)))))),"") ->  | R40: 9530 | S40: =IF(COUNT(IF($E$2:$E$501=R40,$I$2:$I$501))<$X$3,"",HARMEAN(IF($E$2:$E$501=R40,$I$2:$I$501))) -> 14.12142281 | T40: =IFERROR(IF(COUNTIF($F$2:$F$501,F40)=1,"",IF(I40="","",ABS(IF(I40="",0,(((H40*OFFSET($V$1,MATCH($F40,$U$2:$U$105,0),,)-G40)/G40)))))),"") ->  | U40: 3573 | V40: =IF(COUNT(IF($F$2:$F$501=U40,$I$2:$I$501))<$X$3,"",HARMEAN(IF($F$2:$F$501=U40,$I$2:$I$501))) ->  | W40: =IF(OR(J40<(QUARTILE($J$2:$J$501,1))-1.5*(QUARTILE($J$2:$J$501,3)-QUARTILE($J$2:$J$501,1)),J40>(QUARTILE($J$2:$J$501,3))+1.5*(QUARTILE($J$2:$J$501,3)-QUARTILE($J$2:$J$501,1))),"Outlier") -> Outlier
A41: 149387 | B41: APOLLO GP.'A' | C41: 5000 | D41: 5300 | E41: 5370 | F41: 5377 | G41: 35.7 | H41: 4.14 | I41: =(IF(IFERROR(G41/H41,"")<0,"",IFERROR(G41/H41,""))) -> 8.623188406 | J41: =IF(COUNTIF($C$2:$C$501,C41)=1,"",IF(I41="","",ABS(IF(I41="",0,(((H41*OFFSET($M$1,MATCH($C41,$L$2:$L$40,0),,)-G41)/G41)))))) -> 0.8288492863 | K41: =IF(OR(J41<(QUARTILE($J$2:$J$501,1))-1.5*(QUARTILE($J$2:$J$501,3)-QUARTILE($J$2:$J$501,1)),J41>(QUARTILE($J$2:$J$501,3))+1.5*(QUARTILE($J$2:$J$501,3)-QUARTILE($J$2:$J$501,1))),"",J41) -> 0.8288492863 | N41: =IF(COUNTIF($D$2:$D$501,D41)=1,"",IF(I41="","",ABS(IF(I41="",0,(((H41*OFFSET($P$1,MATCH($D41,$O$2:$O$40,0),,)-G41)/G41)))))) -> 0.6898008122 | Q41: =IFERROR(IF(COUNTIF($E$2:$E$501,E41)=1,"",IF(I41="","",ABS(IF(I41="",0,(((H41*OFFSET($S$1,MATCH($E41,$R$2:$R$41,0),,)-G41)/G41)))))),"") -> 0.6621583229 | R41: 9570 | S41: =IF(COUNT(IF($E$2:$E$501=R41,$I$2:$I$501))<$X$3,"",HARMEAN(IF($E$2:$E$501=R41,$I$2:$I$501))) -> 12.54887183 | T41: =IFERROR(IF(COUNTIF($F$2:$F$501,F41)=1,"",IF(I41="","",ABS(IF(I41="",0,(((H41*OFFSET($V$1,MATCH($F41,$U$2:$U$105,0),,)-G41)/G41)))))),"") ->  | U41: 3577 | V41: =IF(COUNT(IF($F$2:$F$501=U41,$I$2:$I$501))<$X$3,"",HARMEAN(IF($F$2:$F$501=U41,$I$2:$I$501))) -> 17.48402957 | W41: =IF(OR(J41<(QUARTILE($J$2:$J$501,1))-1.5*(QUARTILE($J$2:$J$501,3)-QUARTILE($J$2:$J$501,1)),J41>(QUARTILE($J$2:$J$501,3))+1.5*(QUARTILE($J$2:$J$501,3)-QUARTILE($J$2:$J$501,1))),"Outlier") -> FALSE
A42: 992816 | B42: APPLE | C42: 9000 | D42: 9500 | E42: 9570 | F42: 9572 | G42: 569.0498 | H42: 41.02 | I42: =(IF(IFERROR(G42/H42,"")<0,"",IFERROR(G42/H42,""))) -> 13.87249634 | J42: =IF(COUNTIF($C$2:$C$501,C42)=1,"",IF(I42="","",ABS(IF(I42="",0,(((H42*OFFSET($M$1,MATCH($C42,$L$2:$L$40,0),,)-G42)/G42)))))) -> 0.05626088326 | K42: =IF(OR(J42<(QUARTILE($J$2:$J$501,1))-1.5*(QUARTILE($J$2:$J$501,3)-QUARTILE($J$2:$J$501,1)),J42>(QUARTILE($J$2:$J$501,3))+1.5*(QUARTILE($J$2:$J$501,3)-QUARTILE($J$2:$J$501,1))),"",J42) -> 0.05626088326 | N42: =IF(COUNTIF($D$2:$D$501,D42)=1,"",IF(I42="","",ABS(IF(I42="",0,(((H42*OFFSET($P$1,MATCH($D42,$O$2:$O$40,0),,)-G42)/G42)))))) -> 0.05626088326 | Q42: =IFERROR(IF(COUNTIF($E$2:$E$501,E42)=1,"",IF(I42="","",ABS(IF(I42="",0,(((H42*OFFSET($S$1,MATCH($E42,$R$2:$R$41,0),,)-G42)/G42)))))),"") -> 0.09541357809 | T42: =IFERROR(IF(COUNTIF($F$2:$F$501,F42)=1,"",IF(I42="","",ABS(IF(I42="",0,(((H42*OFFSET($V$1,MATCH($F42,$U$2:$U$105,0),,)-G42)/G42)))))),"") -> 0.1943446297 | U42: 3722 | V42: =IF(COUNT(IF($F$2:$F$501=U42,$I$2:$I$501))<$X$3,"",HARMEAN(IF($F$2:$F$501=U42,$I$2:$I$501))) -> 18.62093735 | W42: =IF(OR(J42<(QUARTILE($J$2:$J$501,1))-1.5*(QUARTILE($J$2:$J$501,3)-QUARTILE($J$2:$J$501,1)),J42>(QUARTILE($J$2:$J$501,3))+1.5*(QUARTILE($J$2:$J$501,3)-QUARTILE($J$2:$J$501,1))),"Outlier") -> FALSE
A43: 916427 | B43: APPLIED BIOSYSTEMS DEAD - DELIST.08/12/08 | C43: 4000 | D43: 4500 | E43: 4530 | F43: 4535 | G43: 27.81 | H43: 1.91 | I43: =(IF(IFERROR(G43/H43,"")<0,"",IFERROR(G43/H43,""))) -> 14.56020942 | J43: =IF(COUNTIF($C$2:$C$501,C43)=1,"",IF(I43="","",ABS(IF(I43="",0,(((H43*OFFSET($M$1,MATCH($C43,$L$2:$L$40,0),,)-G43)/G43)))))) -> 0.1624690128 | K43: =IF(OR(J43<(QUARTILE($J$2:$J$501,1))-1.5*(QUARTILE($J$2:$J$501,3)-QUARTILE($J$2:$J$501,1)),J43>(QUARTILE($J$2:$J$501,3))+1.5*(QUARTILE($J$2:$J$501,3)-QUARTILE($J$2:$J$501,1))),"",J43) -> 0.1624690128 | N43: =IF(COUNTIF($D$2:$D$501,D43)=1,"",IF(I43="","",ABS(IF(I43="",0,(((H43*OFFSET($P$1,MATCH($D43,$O$2:$O$40,0),,)-G43)/G43)))))) -> 0.1624690128 | Q43: =IFERROR(IF(COUNTIF($E$2:$E$501,E43)=1,"",IF(I43="","",ABS(IF(I43="",0,(((H43*OFFSET($S$1,MATCH($E43,$R$2:$R$41,0),,)-G43)/G43)))))),"") -> 0.05065024315 | T43: =IFERROR(IF(COUNTIF($F$2:$F$501,F43)=1,"",IF(I43="","",ABS(IF(I43="",0,(((H43*OFFSET($V$1,MATCH($F43,$U$2:$U$105,0),,)-G43)/G43)))))),"") -> 0.1718511755 | U43: 3724 | V43: =IF(COUNT(IF($F$2:$F$501=U43,$I$2:$I$501))<$X$3,"",HARMEAN(IF($F$2:$F$501=U43,$I$2:$I$501))) ->  | W43: =IF(OR(J43<(QUARTILE($J$2:$J$501,1))-1.5*(QUARTILE($J$2:$J$501,3)-QUARTILE($J$2:$J$501,1)),J43>(QUARTILE($J$2:$J$501,3))+1.5*(QUARTILE($J$2:$J$501,3)-QUARTILE($J$2:$J$501,1))),"Outlier") -> FALSE
A44: 905296 | B44: APPLIED MATS. | C44: 9000 | D44: 9500 | E44: 9570 | F44: 9576 | G44: 11.09 | H44: 1.01 | I44: =(IF(IFERROR(G44/H44,"")<0,"",IFERROR(G44/H44,""))) -> 10.98019802 | J44: =IF(COUNTIF($C$2:$C$501,C44)=1,"",IF(I44="","",ABS(IF(I44="",0,(((H44*OFFSET($M$1,MATCH($C44,$L$2:$L$40,0),,)-G44)/G44)))))) -> 0.1923298125 | K44: =IF(OR(J44<(QUARTILE($J$2:$J$501,1))-1.5*(QUARTILE($J$2:$J$501,3)-QUARTILE($J$2:$J$501,1)),J44>(QUARTILE($J$2:$J$501,3))+1.5*(QUARTILE($J$2:$J$501,3)-QUARTILE($J$2:$J$501,1))),"",J44) -> 0.1923298125 | N44: =IF(COUNTIF($D$2:$D$501,D44)=1,"",IF(I44="","",ABS(IF(I44="",0,(((H44*OFFSET($P$1,MATCH($D44,$O$2:$O$40,0),,)-G44)/G44)))))) -> 0.1923298125 | Q44: =IFERROR(IF(COUNTIF($E$2:$E$501,E44)=1,"",IF(I44="","",ABS(IF(I44="",0,(((H44*OFFSET($S$1,MATCH($E44,$R$2:$R$41,0),,)-G44)/G44)))))),"") -> 0.1428638907 | T44: =IFERROR(IF(COUNTIF($F$2:$F$501,F44)=1,"",IF(I44="","",ABS(IF(I44="",0,(((H44*OFFSET($V$1,MATCH($F44,$U$2:$U$105,0),,)-G44)/G44)))))),"") -> 0.2650973611 | U44: 3726 | V44: =IF(COUNT(IF($F$2:$F$501=U44,$I$2:$I$501))<$X$3,"",HARMEAN(IF($F$2:$F$501=U44,$I$2:$I$501))) ->  | W44: =IF(OR(J44<(QUARTILE($J$2:$J$501,1))-1.5*(QUARTILE($J$2:$J$501,3)-QUARTILE($J$2:$J$501,1)),J44>(QUARTILE($J$2:$J$501,3))+1.5*(QUARTILE($J$2:$J$501,3)-QUARTILE($J$2:$J$501,1))),"Outlier") -> FALSE
A45: 921093 | B45: ARCHER-DANLS.-MIDL. | C45: 3000 | D45: 3500 | E45: 3570 | F45: 3577 | G45: 29.14 | H45: 1.99 | I45: =(IF(IFERROR(G45/H45,"")<0,"",IFERROR(G45/H45,""))) -> 14.64321608 | J45: =IF(COUNTIF($C$2:$C$501,C45)=1,"",IF(I45="","",ABS(IF(I45="",0,(((H45*OFFSET($M$1,MATCH($C45,$L$2:$L$40,0),,)-G45)/G45)))))) -> 0.09198580532 | K45: =IF(OR(J45<(QUARTILE($J$2:$J$501,1))-1.5*(QUARTILE($J$2:$J$501,3)-QUARTILE($J$2:$J$501,1)),J45>(QUARTILE($J$2:$J$501,3))+1.5*(QUARTILE($J$2:$J$501,3)-QUARTILE($J$2:$J$501,1))),"",J45) -> 0.09198580532 | N45: =IF(COUNTIF($D$2:$D$501,D45)=1,"",IF(I45="","",ABS(IF(I45="",0,(((H45*OFFSET($P$1,MATCH($D45,$O$2:$O$40,0),,)-G45)/G45)))))) -> 0.2199728765 | Q45: =IFERROR(IF(COUNTIF($E$2:$E$501,E45)=1,"",IF(I45="","",ABS(IF(I45="",0,(((H45*OFFSET($S$1,MATCH($E45,$R$2:$R$41,0),,)-G45)/G45)))))),"") -> 0.2172041493 | T45: =IFERROR(IF(COUNTIF($F$2:$F$501,F45)=1,"",IF(I45="","",ABS(IF(I45="",0,(((H45*OFFSET($V$1,MATCH($F45,$U$2:$U$105,0),,)-G45)/G45)))))),"") -> 0.1940020196 | U45: 3728 | V45: =IF(COUNT(IF($F$2:$F$501=U45,$I$2:$I$501))<$X$3,"",HARMEAN(IF($F$2:$F$501=U45,$I$2:$I$501))) ->  | W45: =IF(OR(J45<(QUARTILE($J$2:$J$501,1))-1.5*(QUARTILE($J$2:$J$501,3)-QUARTILE($J$2:$J$501,1)),J45>(QUARTILE($J$2:$J$501,3))+1.5*(QUARTILE($J$2:$J$501,3)-QUARTILE($J$2:$J$501,1))),"Outlier") -> FALSE
A46: 937525 | B46: ARCHSTONE SMITH TST. DEAD - MERGER | C46: 8000 | D46: 8600 | E46: 8670 | F46: 8671 | G46: 60.7 | H46: 0.71 | I46: =(IF(IFERROR(G46/H46,"")<0,"",IFERROR(G46/H46,""))) -> 85.49295775 | J46: =IF(COUNTIF($C$2:$C$501,C46)=1,"",IF(I46="","",ABS(IF(I46="",0,(((H46*OFFSET($M$1,MATCH($C46,$L$2:$L$40,0),,)-G46)/G46)))))) -> 0.8444223776 | K46: =IF(OR(J46<(QUARTILE($J$2:$J$501,1))-1.5*(QUARTILE($J$2:$J$501,3)-QUARTILE($J$2:$J$501,1)),J46>(QUARTILE($J$2:$J$501,3))+1.5*(QUARTILE($J$2:$J$501,3)-QUARTILE($J$2:$J$501,1))),"",J46) -> 0.8444223776 | N46: =IF(COUNTIF($D$2:$D$501,D46)=1,"",IF(I46="","",ABS(IF(I46="",0,(((H46*OFFSET($P$1,MATCH($D46,$O$2:$O$40,0),,)-G46)/G46)))))) -> 0.4762505203 | Q46: =IFERROR(IF(COUNTIF($E$2:$E$501,E46)=1,"",IF(I46="","",ABS(IF(I46="",0,(((H46*OFFSET($S$1,MATCH($E46,$R$2:$R$41,0),,)-G46)/G46)))))),"") -> 0.4150048221 | T46: =IFERROR(IF(COUNTIF($F$2:$F$501,F46)=1,"",IF(I46="","",ABS(IF(I46="",0,(((H46*OFFSET($V$1,MATCH($F46,$U$2:$U$105,0),,)-G46)/G46)))))),"") ->  | U46: 3743 | V46: =IF(COUNT(IF($F$2:$F$501=U46,$I$2:$I$501))<$X$3,"",HARMEAN(IF($F$2:$F$501=U46,$I$2:$I$501))) ->  | W46: =IF(OR(J46<(QUARTILE($J$2:$J$501,1))-1.5*(QUARTILE($J$2:$J$501,3)-QUARTILE($J$2:$J$501,1)),J46>(QUARTILE($J$2:$J$501,3))+1.5*(QUARTILE($J$2:$J$501,3)-QUARTILE($J$2:$J$501,1))),"Outlier") -> FALSE
A47: 905342 | B47: ASHLAND | C47: 1000 | D47: 1300 | E47: 1350 | F47: 1357 | G47: 68.38 | H47: 1.13 | I47: =(IF(IFERROR(G47/H47,"")<0,"",IFERROR(G47/H47,""))) -> 60.51327434 | J47: =IF(COUNTIF($C$2:$C$501,C47)=1,"",IF(I47="","",ABS(IF(I47="",0,(((H47*OFFSET($M$1,MATCH($C47,$L$2:$L$40,0),,)-G47)/G47)))))) -> 0.743909454 | K47: =IF(OR(J47<(QUARTILE($J$2:$J$501,1))-1.5*(QUARTILE($J$2:$J$501,3)-QUARTILE($J$2:$J$501,1)),J47>(QUARTILE($J$2:$J$501,3))+1.5*(QUARTILE($J$2:$J$501,3)-QUARTILE($J$2:$J$501,1))),"",J47) -> 0.743909454 | N47: =IF(COUNTIF($D$2:$D$501,D47)=1,"",IF(I47="","",ABS(IF(I47="",0,(((H47*OFFSET($P$1,MATCH($D47,$O$2:$O$40,0),,)-G47)/G47)))))) -> 0.7013377846 | Q47: =IFERROR(IF(COUNTIF($E$2:$E$501,E47)=1,"",IF(I47="","",ABS(IF(I47="",0,(((H47*OFFSET($S$1,MATCH($E47,$R$2:$R$41,0),,)-G47)/G47)))))),"") -> 0.7013377846 | T47: =IFERROR(IF(COUNTIF($F$2:$F$501,F47)=1,"",IF(I47="","",ABS(IF(I47="",0,(((H47*OFFSET($V$1,MATCH($F47,$U$2:$U$105,0),,)-G47)/G47)))))),"") -> 0.6394612733 | U47: 3745 | V47: =IF(COUNT(IF($F$2:$F$501=U47,$I$2:$I$501))<$X$3,"",HARMEAN(IF($F$2:$F$501=U47,$I$2:$I$501))) ->  | W47: =IF(OR(J47<(QUARTILE($J$2:$J$501,1))-1.5*(QUARTILE($J$2:$J$501,3)-QUARTILE($J$2:$J$501,1)),J47>(QUARTILE($J$2:$J$501,3))+1.5*(QUARTILE($J$2:$J$501,3)-QUARTILE($J$2:$J$501,1))),"Outlier") -> FALSE
A48: 28341F | B48: ASSURANT | C48: 8000 | D48: 8500 | E48: 8570 | F48: 8575 | G48: 34.62 | H48: 6.01 | I48: =(IF(IFERROR(G48/H48,"")<0,"",IFERROR(G48/H48,""))) -> 5.760399334 | J48: =IF(COUNTIF($C$2:$C$501,C48)=1,"",IF(I48="","",ABS(IF(I48="",0,(((H48*OFFSET($M$1,MATCH($C48,$L$2:$L$40,0),,)-G48)/G48)))))) -> 1.309005041 | K48: =IF(OR(J48<(QUARTILE($J$2:$J$501,1))-1.5*(QUARTILE($J$2:$J$501,3)-QUARTILE($J$2:$J$501,1)),J48>(QUARTILE($J$2:$J$501,3))+1.5*(QUARTILE($J$2:$J$501,3)-QUARTILE($J$2:$J$501,1))),"",J48) ->  | N48: =IF(COUNTIF($D$2:$D$501,D48)=1,"",IF(I48="","",ABS(IF(I48="",0,(((H48*OFFSET($P$1,MATCH($D48,$O$2:$O$40,0),,)-G48)/G48)))))) -> 0.8684229237 | Q48: =IFERROR(IF(COUNTIF($E$2:$E$501,E48)=1,"",IF(I48="","",ABS(IF(I48="",0,(((H48*OFFSET($S$1,MATCH($E48,$R$2:$R$41,0),,)-G48)/G48)))))),"") -> 0.8034930945 | T48: =IFERROR(IF(COUNTIF($F$2:$F$501,F48)=1,"",IF(I48="","",ABS(IF(I48="",0,(((H48*OFFSET($V$1,MATCH($F48,$U$2:$U$105,0),,)-G48)/G48)))))),"") -> 0.8034930945 | U48: 3747 | V48: =IF(COUNT(IF($F$2:$F$501=U48,$I$2:$I$501))<$X$3,"",HARMEAN(IF($F$2:$F$501=U48,$I$2:$I$501))) ->  | W48: =IF(OR(J48<(QUARTILE($J$2:$J$501,1))-1.5*(QUARTILE($J$2:$J$501,3)-QUARTILE($J$2:$J$501,1)),J48>(QUARTILE($J$2:$J$501,3))+1.5*(QUARTILE($J$2:$J$501,3)-QUARTILE($J$2:$J$501,1))),"Outlier") -> Outlier
A49: 543420 | B49: AUTONATION | C49: 5000 | D49: 5300 | E49: 5370 | F49: 5379 | G49: 34.45 | H49: 2 | I49: =(IF(IFERROR(G49/H49,"")<0,"",IFERROR(G49/H49,""))) -> 17.225 | J49: =IF(COUNTIF($C$2:$C$501,C49)=1,"",IF(I49="","",ABS(IF(I49="",0,(((H49*OFFSET($M$1,MATCH($C49,$L$2:$L$40,0),,)-G49)/G49)))))) -> 0.0844405247 | K49: =IF(OR(J49<(QUARTILE($J$2:$J$501,1))-1.5*(QUARTILE($J$2:$J$501,3)-QUARTILE($J$2:$J$501,1)),J49>(QUARTILE($J$2:$J$501,3))+1.5*(QUARTILE($J$2:$J$501,3)-QUARTILE($J$2:$J$501,1))),"",J49) -> 0.0844405247 | N49: =IF(COUNTIF($D$2:$D$501,D49)=1,"",IF(I49="","",ABS(IF(I49="",0,(((H49*OFFSET($P$1,MATCH($D49,$O$2:$O$40,0),,)-G49)/G49)))))) -> 0.1540510437 | Q49: =IFERROR(IF(COUNTIF($E$2:$E$501,E49)=1,"",IF(I49="","",ABS(IF(I49="",0,(((H49*OFFSET($S$1,MATCH($E49,$R$2:$R$41,0),,)-G49)/G49)))))),"") -> 0.167889441 | T49: =IFERROR(IF(COUNTIF($F$2:$F$501,F49)=1,"",IF(I49="","",ABS(IF(I49="",0,(((H49*OFFSET($V$1,MATCH($F49,$U$2:$U$105,0),,)-G49)/G49)))))),"") -> 0.2818063367 | U49: 3763 | V49: =IF(COUNT(IF($F$2:$F$501=U49,$I$2:$I$501))<$X$3,"",HARMEAN(IF($F$2:$F$501=U49,$I$2:$I$501))) -> 18.92040419 | W49: =IF(OR(J49<(QUARTILE($J$2:$J$501,1))-1.5*(QUARTILE($J$2:$J$501,3)-QUARTILE($J$2:$J$501,1)),J49>(QUARTILE($J$2:$J$501,3))+1.5*(QUARTILE($J$2:$J$501,3)-QUARTILE($J$2:$J$501,1))),"Outlier") -> FALSE
A50: 544616 | B50: AUTOZONE | C50: 5000 | D50: 5300 | E50: 5370 | F50: 5379 | G50: 358.4299 | H50: 21.99 | I50: =(IF(IFERROR(G50/H50,"")<0,"",IFERROR(G50/H50,""))) -> 16.29967713 | J50: =IF(COUNTIF($C$2:$C$501,C50)=1,"",IF(I50="","",ABS(IF(I50="",0,(((H50*OFFSET($M$1,MATCH($C50,$L$2:$L$40,0),,)-G50)/G50)))))) -> 0.03246476356 | K50: =IF(OR(J50<(QUARTILE($J$2:$J$501,1))-1.5*(QUARTILE($J$2:$J$501,3)-QUARTILE($J$2:$J$501,1)),J50>(QUARTILE($J$2:$J$501,3))+1.5*(QUARTILE($J$2:$J$501,3)-QUARTILE($J$2:$J$501,1))),"",J50) -> 0.03246476356 | N50: =IF(COUNTIF($D$2:$D$501,D50)=1,"",IF(I50="","",ABS(IF(I50="",0,(((H50*OFFSET($P$1,MATCH($D50,$O$2:$O$40,0),,)-G50)/G50)))))) -> 0.1060270299 | Q50: =IFERROR(IF(COUNTIF($E$2:$E$501,E50)=1,"",IF(I50="","",ABS(IF(I50="",0,(((H50*OFFSET($S$1,MATCH($E50,$R$2:$R$41,0),,)-G50)/G50)))))),"") -> 0.1206510247 | T50: =IFERROR(IF(COUNTIF($F$2:$F$501,F50)=1,"",IF(I50="","",ABS(IF(I50="",0,(((H50*OFFSET($V$1,MATCH($F50,$U$2:$U$105,0),,)-G50)/G50)))))),"") -> 0.241034914 | U50: 3765 | V50: =IF(COUNT(IF($F$2:$F$501=U50,$I$2:$I$501))<$X$3,"",HARMEAN(IF($F$2:$F$501=U50,$I$2:$I$501))) ->  | W50: =IF(OR(J50<(QUARTILE($J$2:$J$501,1))-1.5*(QUARTILE($J$2:$J$501,3)-QUARTILE($J$2:$J$501,1)),J50>(QUARTILE($J$2:$J$501,3))+1.5*(QUARTILE($J$2:$J$501,3)-QUARTILE($J$2:$J$501,1))),"Outlier") -> FALSE
A51: 702259 | B51: AUTODESK | C51: 9000 | D51: 9500 | E51: 9530 | F51: 9537 | G51: 32.83 | H51: 1.27 | I51: =(IF(IFERROR(G51/H51,"")<0,"",IFERROR(G51/H51,""))) -> 25.8503937 | J51: =IF(COUNTIF($C$2:$C$501,C51)=1,"",IF(I51="","",ABS(IF(I51="",0,(((H51*OFFSET($M$1,MATCH($C51,$L$2:$L$40,0),,)-G51)/G51)))))) -> 0.4935466903 | K51: =IF(OR(J51<(QUARTILE($J$2:$J$501,1))-1.5*(QUARTILE($J$2:$J$501,3)-QUARTILE($J$2:$J$501,1)),J51>(QUARTILE($J$2:$J$501,3))+1.5*(QUARTILE($J$2:$J$501,3)-QUARTILE($J$2:$J$501,1))),"",J51) -> 0.4935466903 | N51: =IF(COUNTIF($D$2:$D$501,D51)=1,"",IF(I51="","",ABS(IF(I51="",0,(((H51*OFFSET($P$1,MATCH($D51,$O$2:$O$40,0),,)-G51)/G51)))))) -> 0.4935466903 | Q51: =IFERROR(IF(COUNTIF($E$2:$E$501,E51)=1,"",IF(I51="","",ABS(IF(I51="",0,(((H51*OFFSET($S$1,MATCH($E51,$R$2:$R$41,0),,)-G51)/G51)))))),"") -> 0.4537250389 | T51: =IFERROR(IF(COUNTIF($F$2:$F$501,F51)=1,"",IF(I51="","",ABS(IF(I51="",0,(((H51*OFFSET($V$1,MATCH($F51,$U$2:$U$105,0),,)-G51)/G51)))))),"") -> 0.4393625395 | U51: 3767 | V51: =IF(COUNT(IF($F$2:$F$501=U51,$I$2:$I$501))<$X$3,"",HARMEAN(IF($F$2:$F$501=U51,$I$2:$I$501))) -> 19.95251005 | W51: =IF(OR(J51<(QUARTILE($J$2:$J$501,1))-1.5*(QUARTILE($J$2:$J$501,3)-QUARTILE($J$2:$J$501,1)),J51>(QUARTILE($J$2:$J$501,3))+1.5*(QUARTILE($J$2:$J$501,3)-QUARTILE($J$2:$J$501,1))),"Outlier") -> FALSE
A52: 912669 | B52: AUTOMATIC DATA PROC. | C52: 2000 | D52: 2700 | E52: 2790 | F52: 2795 | G52: 54.18 | H52: 2.77 | I52: =(IF(IFERROR(G52/H52,"")<0,"",IFERROR(G52/H52,""))) -> 19.55956679 | J52: =IF(COUNTIF($C$2:$C$501,C52)=1,"",IF(I52="","",ABS(IF(I52="",0,(((H52*OFFSET($M$1,MATCH($C52,$L$2:$L$40,0),,)-G52)/G52)))))) -> 0.2584789244 | K52: =IF(OR(J52<(QUARTILE($J$2:$J$501,1))-1.5*(QUARTILE($J$2:$J$501,3)-QUARTILE($J$2:$J$501,1)),J52>(QUARTILE($J$2:$J$501,3))+1.5*(QUARTILE($J$2:$J$501,3)-QUARTILE($J$2:$J$501,1))),"",J52) -> 0.2584789244 | N52: =IF(COUNTIF($D$2:$D$501,D52)=1,"",IF(I52="","",ABS(IF(I52="",0,(((H52*OFFSET($P$1,MATCH($D52,$O$2:$O$40,0),,)-G52)/G52)))))) -> 0.267956652 | Q52: =IFERROR(IF(COUNTIF($E$2:$E$501,E52)=1,"",IF(I52="","",ABS(IF(I52="",0,(((H52*OFFSET($S$1,MATCH($E52,$R$2:$R$41,0),,)-G52)/G52)))))),"") -> 0.2373156548 | T52: =IFERROR(IF(COUNTIF($F$2:$F$501,F52)=1,"",IF(I52="","",ABS(IF(I52="",0,(((H52*OFFSET($V$1,MATCH($F52,$U$2:$U$105,0),,)-G52)/G52)))))),"") -> 0.2088477288 | U52: 3785 | V52: =IF(COUNT(IF($F$2:$F$501=U52,$I$2:$I$501))<$X$3,"",HARMEAN(IF($F$2:$F$501=U52,$I$2:$I$501))) ->  | W52: =IF(OR(J52<(QUARTILE($J$2:$J$501,1))-1.5*(QUARTILE($J$2:$J$501,3)-QUARTILE($J$2:$J$501,1)),J52>(QUARTILE($J$2:$J$501,3))+1.5*(QUARTILE($J$2:$J$501,3)-QUARTILE($J$2:$J$501,1))),"Outlier") -> FALSE
A53: 130502 | B53: AVALONBAY COMMNS. | C53: 8000 | D53: 8600 | E53: 8670 | F53: 8673 | G53: 138.01 | H53: 2.05 | I53: =(IF(IFERROR(G53/H53,"")<0,"",IFERROR(G53/H53,""))) -> 67.32195122 | J53: =IF(COUNTIF($C$2:$C$501,C53)=1,"",IF(I53="","",ABS(IF(I53="",0,(((H53*OFFSET($M$1,MATCH($C53,$L$2:$L$40,0),,)-G53)/G53)))))) -> 0.802430101 | K53: =IF(OR(J53<(QUARTILE($J$2:$J$501,1))-1.5*(QUARTILE($J$2:$J$501,3)-QUARTILE($J$2:$J$501,1)),J53>(QUARTILE($J$2:$J$501,3))+1.5*(QUARTILE($J$2:$J$501,3)-QUARTILE($J$2:$J$501,1))),"",J53) -> 0.802430101 | N53: =IF(COUNTIF($D$2:$D$501,D53)=1,"",IF(I53="","",ABS(IF(I53="",0,(((H53*OFFSET($P$1,MATCH($D53,$O$2:$O$40,0),,)-G53)/G53)))))) -> 0.3348842193 | Q53: =IFERROR(IF(COUNTIF($E$2:$E$501,E53)=1,"",IF(I53="","",ABS(IF(I53="",0,(((H53*OFFSET($S$1,MATCH($E53,$R$2:$R$41,0),,)-G53)/G53)))))),"") -> 0.2571075687 | T53: =IFERROR(IF(COUNTIF($F$2:$F$501,F53)=1,"",IF(I53="","",ABS(IF(I53="",0,(((H53*OFFSET($V$1,MATCH($F53,$U$2:$U$105,0),,)-G53)/G53)))))),"") ->  | U53: 4533 | V53: =IF(COUNT(IF($F$2:$F$501=U53,$I$2:$I$501))<$X$3,"",HARMEAN(IF($F$2:$F$501=U53,$I$2:$I$501))) -> 12.94932447 | W53: =IF(OR(J53<(QUARTILE($J$2:$J$501,1))-1.5*(QUARTILE($J$2:$J$501,3)-QUARTILE($J$2:$J$501,1)),J53>(QUARTILE($J$2:$J$501,3))+1.5*(QUARTILE($J$2:$J$501,3)-QUARTILE($J$2:$J$501,1))),"Outlier") -> FALSE
A54: 264518 | B54: AVAYA DEAD - MERGER | C54: 9000 | D54: 9500 | E54: 9570 | F54: 9578 | G54: 17.48 | H54: 0.47 | I54: =(IF(IFERROR(G54/H54,"")<0,"",IFERROR(G54/H54,""))) -> 37.19148936 | J54: =IF(COUNTIF($C$2:$C$501,C54)=1,"",IF(I54="","",ABS(IF(I54="",0,(((H54*OFFSET($M$1,MATCH($C54,$L$2:$L$40,0),,)-G54)/G54)))))) -> 0.6479835126 | K54: =IF(OR(J54<(QUARTILE($J$2:$J$501,1))-1.5*(QUARTILE($J$2:$J$501,3)-QUARTILE($J$2:$J$501,1)),J54>(QUARTILE($J$2:$J$501,3))+1.5*(QUARTILE($J$2:$J$501,3)-QUARTILE($J$2:$J$501,1))),"",J54) -> 0.6479835126 | N54: =IF(COUNTIF($D$2:$D$501,D54)=1,"",IF(I54="","",ABS(IF(I54="",0,(((H54*OFFSET($P$1,MATCH($D54,$O$2:$O$40,0),,)-G54)/G54)))))) -> 0.6479835126 | Q54: =IFERROR(IF(COUNTIF($E$2:$E$501,E54)=1,"",IF(I54="","",ABS(IF(I54="",0,(((H54*OFFSET($S$1,MATCH($E54,$R$2:$R$41,0),,)-G54)/G54)))))),"") -> 0.6625875423 | T54: =IFERROR(IF(COUNTIF($F$2:$F$501,F54)=1,"",IF(I54="","",ABS(IF(I54="",0,(((H54*OFFSET($V$1,MATCH($F54,$U$2:$U$105,0),,)-G54)/G54)))))),"") -> 0.601234049 | U54: 4535 | V54: =IF(COUNT(IF($F$2:$F$501=U54,$I$2:$I$501))<$X$3,"",HARMEAN(IF($F$2:$F$501=U54,$I$2:$I$501))) -> 17.06239853 | W54: =IF(OR(J54<(QUARTILE($J$2:$J$501,1))-1.5*(QUARTILE($J$2:$J$501,3)-QUARTILE($J$2:$J$501,1)),J54>(QUARTILE($J$2:$J$501,3))+1.5*(QUARTILE($J$2:$J$501,3)-QUARTILE($J$2:$J$501,1))),"Outlier") -> FALSE
A55: 921161 | B55: AVERY DENNISON | C55: 1000 | D55: 1300 | E55: 1350 | F55: 1357 | G55: 26.73 | H55: 1.78 | I55: =(IF(IFERROR(G55/H55,"")<0,"",IFERROR(G55/H55,""))) -> 15.01685393 | J55: =IF(COUNTIF($C$2:$C$501,C55)=1,"",IF(I55="","",ABS(IF(I55="",0,(((H55*OFFSET($M$1,MATCH($C55,$L$2:$L$40,0),,)-G55)/G55)))))) -> 0.03196565225 | K55: =IF(OR(J55<(QUARTILE($J$2:$J$501,1))-1.5*(QUARTILE($J$2:$J$501,3)-QUARTILE($J$2:$J$501,1)),J55>(QUARTILE($J$2:$J$501,3))+1.5*(QUARTILE($J$2:$J$501,3)-QUARTILE($J$2:$J$501,1))),"",J55) -> 0.03196565225 | N55: =IF(COUNTIF($D$2:$D$501,D55)=1,"",IF(I55="","",ABS(IF(I55="",0,(((H55*OFFSET($P$1,MATCH($D55,$O$2:$O$40,0),,)-G55)/G55)))))) -> 0.2035163063 | Q55: =IFERROR(IF(COUNTIF($E$2:$E$501,E55)=1,"",IF(I55="","",ABS(IF(I55="",0,(((H55*OFFSET($S$1,MATCH($E55,$R$2:$R$41,0),,)-G55)/G55)))))),"") -> 0.2035163063 | T55: =IFERROR(IF(COUNTIF($F$2:$F$501,F55)=1,"",IF(I55="","",ABS(IF(I55="",0,(((H55*OFFSET($V$1,MATCH($F55,$U$2:$U$105,0),,)-G55)/G55)))))),"") -> 0.4528594988 | U55: 4537 | V55: =IF(COUNT(IF($F$2:$F$501=U55,$I$2:$I$501))<$X$3,"",HARMEAN(IF($F$2:$F$501=U55,$I$2:$I$501))) -> 19.30798256 | W55: =IF(OR(J55<(QUARTILE($J$2:$J$501,1))-1.5*(QUARTILE($J$2:$J$501,3)-QUARTILE($J$2:$J$501,1)),J55>(QUARTILE($J$2:$J$501,3))+1.5*(QUARTILE($J$2:$J$501,3)-QUARTILE($J$2:$J$501,1))),"Outlier") -> FALSE
A56: 905793 | B56: AVON PRODUCTS | C56: 3000 | D56: 3700 | E56: 3760 | F56: 3767 | G56: 15.45 | H56: 0.91 | I56: =(IF(IFERROR(G56/H56,"")<0,"",IFERROR(G56/H56,""))) -> 16.97802198 | J56: =IF(COUNTIF($C$2:$C$501,C56)=1,"",IF(I56="","",ABS(IF(I56="",0,(((H56*OFFSET($M$1,MATCH($C56,$L$2:$L$40,0),,)-G56)/G56)))))) -> 0.05818333109 | K56: =IF(OR(J56<(QUARTILE($J$2:$J$501,1))-1.5*(QUARTILE($J$2:$J$501,3)-QUARTILE($J$2:$J$501,1)),J56>(QUARTILE($J$2:$J$501,3))+1.5*(QUARTILE($J$2:$J$501,3)-QUARTILE($J$2:$J$501,1))),"",J56) -> 0.05818333109 | N56: =IF(COUNTIF($D$2:$D$501,D56)=1,"",IF(I56="","",ABS(IF(I56="",0,(((H56*OFFSET($P$1,MATCH($D56,$O$2:$O$40,0),,)-G56)/G56)))))) -> 0.1356440372 | Q56: =IFERROR(IF(COUNTIF($E$2:$E$501,E56)=1,"",IF(I56="","",ABS(IF(I56="",0,(((H56*OFFSET($S$1,MATCH($E56,$R$2:$R$41,0),,)-G56)/G56)))))),"") -> 0.1452803941 | T56: =IFERROR(IF(COUNTIF($F$2:$F$501,F56)=1,"",IF(I56="","",ABS(IF(I56="",0,(((H56*OFFSET($V$1,MATCH($F56,$U$2:$U$105,0),,)-G56)/G56)))))),"") -> 0.1751963848 | U56: 4573 | V56: =IF(COUNT(IF($F$2:$F$501=U56,$I$2:$I$501))<$X$3,"",HARMEAN(IF($F$2:$F$501=U56,$I$2:$I$501))) -> 24.3080579 | W56: =IF(OR(J56<(QUARTILE($J$2:$J$501,1))-1.5*(QUARTILE($J$2:$J$501,3)-QUARTILE($J$2:$J$501,1)),J56>(QUARTILE($J$2:$J$501,3))+1.5*(QUARTILE($J$2:$J$501,3)-QUARTILE($J$2:$J$501,1))),"Outlier") -> FALSE
A57: 992305 | B57: BB&T | C57: 8000 | D57: 8300 | E57: 8350 | F57: 8355 | G57: 30.2 | H57: 2.12 | I57: =(IF(IFERROR(G57/H57,"")<0,"",IFERROR(G57/H57,""))) -> 14.24528302 | J57: =IF(COUNTIF($C$2:$C$501,C57)=1,"",IF(I57="","",ABS(IF(I57="",0,(((H57*OFFSET($M$1,MATCH($C57,$L$2:$L$40,0),,)-G57)/G57)))))) -> 0.06630208172 | K57: =IF(OR(J57<(QUARTILE($J$2:$J$501,1))-1.5*(QUARTILE($J$2:$J$501,3)-QUARTILE($J$2:$J$501,1)),J57>(QUARTILE($J$2:$J$501,3))+1.5*(QUARTILE($J$2:$J$501,3)-QUARTILE($J$2:$J$501,1))),"",J57) -> 0.06630208172 | N57: =IF(COUNTIF($D$2:$D$501,D57)=1,"",IF(I57="","",ABS(IF(I57="",0,(((H57*OFFSET($P$1,MATCH($D57,$O$2:$O$40,0),,)-G57)/G57)))))) -> 0.1455802633 | Q57: =IFERROR(IF(COUNTIF($E$2:$E$501,E57)=1,"",IF(I57="","",ABS(IF(I57="",0,(((H57*OFFSET($S$1,MATCH($E57,$R$2:$R$41,0),,)-G57)/G57)))))),"") -> 0.1455802633 | T57: =IFERROR(IF(COUNTIF($F$2:$F$501,F57)=1,"",IF(I57="","",ABS(IF(I57="",0,(((H57*OFFSET($V$1,MATCH($F57,$U$2:$U$105,0),,)-G57)/G57)))))),"") -> 0.1455802633 | U57: 4577 | V57: =IF(COUNT(IF($F$2:$F$501=U57,$I$2:$I$501))<$X$3,"",HARMEAN(IF($F$2:$F$501=U57,$I$2:$I$501))) -> 18.451768 | W57: =IF(OR(J57<(QUARTILE($J$2:$J$501,1))-1.5*(QUARTILE($J$2:$J$501,3)-QUARTILE($J$2:$J$501,1)),J57>(QUARTILE($J$2:$J$501,3))+1.5*(QUARTILE($J$2:$J$501,3)-QUARTILE($J$2:$J$501,1))),"Outlier") -> FALSE
A58: 545725 | B58: BIOGEN IDEC | C58: 4000 | D58: 4500 | E58: 4570 | F58: 4573 | G58: 140.11 | H58: 5.08 | I58: =(IF(IFERROR(G58/H58,"")<0,"",IFERROR(G58/H58,""))) -> 27.58070866 | J58: =IF(COUNTIF($C$2:$C$501,C58)=1,"",IF(I58="","",ABS(IF(I58="",0,(((H58*OFFSET($M$1,MATCH($C58,$L$2:$L$40,0),,)-G58)/G58)))))) -> 0.3863177164 | K58: =IF(OR(J58<(QUARTILE($J$2:$J$501,1))-1.5*(QUARTILE($J$2:$J$501,3)-QUARTILE($J$2:$J$501,1)),J58>(QUARTILE($J$2:$J$501,3))+1.5*(QUARTILE($J$2:$J$501,3)-QUARTILE($J$2:$J$501,1))),"",J58) -> 0.3863177164 | N58: =IF(COUNTIF($D$2:$D$501,D58)=1,"",IF(I58="","",ABS(IF(I58="",0,(((H58*OFFSET($P$1,MATCH($D58,$O$2:$O$40,0),,)-G58)/G58)))))) -> 0.3863177164 | Q58: =IFERROR(IF(COUNTIF($E$2:$E$501,E58)=1,"",IF(I58="","",ABS(IF(I58="",0,(((H58*OFFSET($S$1,MATCH($E58,$R$2:$R$41,0),,)-G58)/G58)))))),"") -> 0.278869723 | T58: =IFERROR(IF(COUNTIF($F$2:$F$501,F58)=1,"",IF(I58="","",ABS(IF(I58="",0,(((H58*OFFSET($V$1,MATCH($F58,$U$2:$U$105,0),,)-G58)/G58)))))),"") -> 0.1186572397 | U58: 5333 | V58: =IF(COUNT(IF($F$2:$F$501=U58,$I$2:$I$501))<$X$3,"",HARMEAN(IF($F$2:$F$501=U58,$I$2:$I$501))) -> 14.00290176 | W58: =IF(OR(J58<(QUARTILE($J$2:$J$501,1))-1.5*(QUARTILE($J$2:$J$501,3)-QUARTILE($J$2:$J$501,1)),J58>(QUARTILE($J$2:$J$501,3))+1.5*(QUARTILE($J$2:$J$501,3)-QUARTILE($J$2:$J$501,1))),"Outlier") -> FALSE
A59: 543697 | B59: BJ SVS. DEAD - DELIST.30/04/10 | C59: 1 | D59: 500 | E59: 570 | F59: 573 | G59: 23.18 | H59: 0 | I59: =(IF(IFERROR(G59/H59,"")<0,"",IFERROR(G59/H59,""))) ->  | J59: =IF(COUNTIF($C$2:$C$501,C59)=1,"",IF(I59="","",ABS(IF(I59="",0,(((H59*OFFSET($M$1,MATCH($C59,$L$2:$L$40,0),,)-G59)/G59)))))) ->  | K59: =IF(OR(J59<(QUARTILE($J$2:$J$501,1))-1.5*(QUARTILE($J$2:$J$501,3)-QUARTILE($J$2:$J$501,1)),J59>(QUARTILE($J$2:$J$501,3))+1.5*(QUARTILE($J$2:$J$501,3)-QUARTILE($J$2:$J$501,1))),"",J59) ->  | N59: =IF(COUNTIF($D$2:$D$501,D59)=1,"",IF(I59="","",ABS(IF(I59="",0,(((H59*OFFSET($P$1,MATCH($D59,$O$2:$O$40,0),,)-G59)/G59)))))) ->  | Q59: =IFERROR(IF(COUNTIF($E$2:$E$501,E59)=1,"",IF(I59="","",ABS(IF(I59="",0,(((H59*OFFSET($S$1,MATCH($E59,$R$2:$R$41,0),,)-G59)/G59)))))),"") ->  | T59: =IFERROR(IF(COUNTIF($F$2:$F$501,F59)=1,"",IF(I59="","",ABS(IF(I59="",0,(((H59*OFFSET($V$1,MATCH($F59,$U$2:$U$105,0),,)-G59)/G59)))))),"") ->  | U59: 5337 | V59: =IF(COUNT(IF($F$2:$F$501=U59,$I$2:$I$501))<$X$3,"",HARMEAN(IF($F$2:$F$501=U59,$I$2:$I$501))) -> 17.49628911 | W59: =IF(OR(J59<(QUARTILE($J$2:$J$501,1))-1.5*(QUARTILE($J$2:$J$501,3)-QUARTILE($J$2:$J$501,1)),J59>(QUARTILE($J$2:$J$501,3))+1.5*(QUARTILE($J$2:$J$501,3)-QUARTILE($J$2:$J$501,1))),"Outlier") -> Outlier
A60: 777267 | B60: BMC SOFTWARE | C60: 9000 | D60: 9500 | E60: 9530 | F60: 9537 | G60: 41.53 | H60: 2.32 | I60: =(IF(IFERROR(G60/H60,"")<0,"",IFERROR(G60/H60,""))) -> 17.90086207 | J60: =IF(COUNTIF($C$2:$C$501,C60)=1,"",IF(I60="","",ABS(IF(I60="",0,(((H60*OFFSET($M$1,MATCH($C60,$L$2:$L$40,0),,)-G60)/G60)))))) -> 0.2686375999 | K60: =IF(OR(J60<(QUARTILE($J$2:$J$501,1))-1.5*(QUARTILE($J$2:$J$501,3)-QUARTILE($J$2:$J$501,1)),J60>(QUARTILE($J$2:$J$501,3))+1.5*(QUARTILE($J$2:$J$501,3)-QUARTILE($J$2:$J$501,1))),"",J60) -> 0.2686375999 | N60: =IF(COUNTIF($D$2:$D$501,D60)=1,"",IF(I60="","",ABS(IF(I60="",0,(((H60*OFFSET($P$1,MATCH($D60,$O$2:$O$40,0),,)-G60)/G60)))))) -> 0.2686375999 | Q60: =IFERROR(IF(COUNTIF($E$2:$E$501,E60)=1,"",IF(I60="","",ABS(IF(I60="",0,(((H60*OFFSET($S$1,MATCH($E60,$R$2:$R$41,0),,)-G60)/G60)))))),"") -> 0.2111316896 | T60: =IFERROR(IF(COUNTIF($F$2:$F$501,F60)=1,"",IF(I60="","",ABS(IF(I60="",0,(((H60*OFFSET($V$1,MATCH($F60,$U$2:$U$105,0),,)-G60)/G60)))))),"") -> 0.1903909979 | U60: 5371 | V60: =IF(COUNT(IF($F$2:$F$501=U60,$I$2:$I$501))<$X$3,"",HARMEAN(IF($F$2:$F$501=U60,$I$2:$I$501))) -> 13.53119765 | W60: =IF(OR(J60<(QUARTILE($J$2:$J$501,1))-1.5*(QUARTILE($J$2:$J$501,3)-QUARTILE($J$2:$J$501,1)),J60>(QUARTILE($J$2:$J$501,3))+1.5*(QUARTILE($J$2:$J$501,3)-QUARTILE($J$2:$J$501,1))),"Outlier") -> FALSE
A61: 921431 | B61: BAKER HUGHES | C61: 1 | D61: 500 | E61: 570 | F61: 573 | G61: 39.96 | H61: 3.96 | I61: =(IF(IFERROR(G61/H61,"")<0,"",IFERROR(G61/H61,""))) -> 10.09090909 | J61: =IF(COUNTIF($C$2:$C$501,C61)=1,"",IF(I61="","",ABS(IF(I61="",0,(((H61*OFFSET($M$1,MATCH($C61,$L$2:$L$40,0),,)-G61)/G61)))))) -> 0.08109113576 | K61: =IF(OR(J61<(QUARTILE($J$2:$J$501,1))-1.5*(QUARTILE($J$2:$J$501,3)-QUARTILE($J$2:$J$501,1)),J61>(QUARTILE($J$2:$J$501,3))+1.5*(QUARTILE($J$2:$J$501,3)-QUARTILE($J$2:$J$501,1))),"",J61) -> 0.08109113576 | N61: =IF(COUNTIF($D$2:$D$501,D61)=1,"",IF(I61="","",ABS(IF(I61="",0,(((H61*OFFSET($P$1,MATCH($D61,$O$2:$O$40,0),,)-G61)/G61)))))) -> 0.08109113576 | Q61: =IFERROR(IF(COUNTIF($E$2:$E$501,E61)=1,"",IF(I61="","",ABS(IF(I61="",0,(((H61*OFFSET($S$1,MATCH($E61,$R$2:$R$41,0),,)-G61)/G61)))))),"") -> 0.02493796764 | T61: =IFERROR(IF(COUNTIF($F$2:$F$501,F61)=1,"",IF(I61="","",ABS(IF(I61="",0,(((H61*OFFSET($V$1,MATCH($F61,$U$2:$U$105,0),,)-G61)/G61)))))),"") -> 0.1075546918 | U61: 5373 | V61: =IF(COUNT(IF($F$2:$F$501=U61,$I$2:$I$501))<$X$3,"",HARMEAN(IF($F$2:$F$501=U61,$I$2:$I$501))) -> 19.05255857 | W61: =IF(OR(J61<(QUARTILE($J$2:$J$501,1))-1.5*(QUARTILE($J$2:$J$501,3)-QUARTILE($J$2:$J$501,1)),J61>(QUARTILE($J$2:$J$501,3))+1.5*(QUARTILE($J$2:$J$501,3)-QUARTILE($J$2:$J$501,1))),"Outlier") -> FALSE
A62: 932060 | B62: BALL | C62: 2000 | D62: 2700 | E62: 2720 | F62: 2723 | G62: 40.57 | H62: 2.65 | I62: =(IF(IFERROR(G62/H62,"")<0,"",IFERROR(G62/H62,""))) -> 15.30943396 | J62: =IF(COUNTIF($C$2:$C$501,C62)=1,"",IF(I62="","",ABS(IF(I62="",0,(((H62*OFFSET($M$1,MATCH($C62,$L$2:$L$40,0),,)-G62)/G62)))))) -> 0.05262134195 | K62: =IF(OR(J62<(QUARTILE($J$2:$J$501,1))-1.5*(QUARTILE($J$2:$J$501,3)-QUARTILE($J$2:$J$501,1)),J62>(QUARTILE($J$2:$J$501,3))+1.5*(QUARTILE($J$2:$J$501,3)-QUARTILE($J$2:$J$501,1))),"",J62) -> 0.05262134195 | N62: =IF(COUNTIF($D$2:$D$501,D62)=1,"",IF(I62="","",ABS(IF(I62="",0,(((H62*OFFSET($P$1,MATCH($D62,$O$2:$O$40,0),,)-G62)/G62)))))) -> 0.06473023161 | Q62: =IFERROR(IF(COUNTIF($E$2:$E$501,E62)=1,"",IF(I62="","",ABS(IF(I62="",0,(((H62*OFFSET($S$1,MATCH($E62,$R$2:$R$41,0),,)-G62)/G62)))))),"") -> 0.1827396209 | T62: =IFERROR(IF(COUNTIF($F$2:$F$501,F62)=1,"",IF(I62="","",ABS(IF(I62="",0,(((H62*OFFSET($V$1,MATCH($F62,$U$2:$U$105,0),,)-G62)/G62)))))),"") -> 0.4219831301 | U62: 5375 | V62: =IF(COUNT(IF($F$2:$F$501=U62,$I$2:$I$501))<$X$3,"",HARMEAN(IF($F$2:$F$501=U62,$I$2:$I$501))) ->  | W62: =IF(OR(J62<(QUARTILE($J$2:$J$501,1))-1.5*(QUARTILE($J$2:$J$501,3)-QUARTILE($J$2:$J$501,1)),J62>(QUARTILE($J$2:$J$501,3))+1.5*(QUARTILE($J$2:$J$501,3)-QUARTILE($J$2:$J$501,1))),"Outlier") -> FALSE
A63: 923937 | B63: BANK OF AMERICA | C63: 8000 | D63: 8300 | E63: 8350 | F63: 8355 | G63: 7.74 | H63: 0 | I63: =(IF(IFERROR(G63/H63,"")<0,"",IFERROR(G63/H63,""))) ->  | J63: =IF(COUNTIF($C$2:$C$501,C63)=1,"",IF(I63="","",ABS(IF(I63="",0,(((H63*OFFSET($M$1,MATCH($C63,$L$2:$L$40,0),,)-G63)/G63)))))) ->  | K63: =IF(OR(J63<(QUARTILE($J$2:$J$501,1))-1.5*(QUARTILE($J$2:$J$501,3)-QUARTILE($J$2:$J$501,1)),J63>(QUARTILE($J$2:$J$501,3))+1.5*(QUARTILE($J$2:$J$501,3)-QUARTILE($J$2:$J$501,1))),"",J63) ->  | N63: =IF(COUNTIF($D$2:$D$501,D63)=1,"",IF(I63="","",ABS(IF(I63="",0,(((H63*OFFSET($P$1,MATCH($D63,$O$2:$O$40,0),,)-G63)/G63)))))) ->  | Q63: =IFERROR(IF(COUNTIF($E$2:$E$501,E63)=1,"",IF(I63="","",ABS(IF(I63="",0,(((H63*OFFSET($S$1,MATCH($E63,$R$2:$R$41,0),,)-G63)/G63)))))),"") ->  | T63: =IFERROR(IF(COUNTIF($F$2:$F$501,F63)=1,"",IF(I63="","",ABS(IF(I63="",0,(((H63*OFFSET($V$1,MATCH($F63,$U$2:$U$105,0),,)-G63)/G63)))))),"") ->  | U63: 5377 | V63: =IF(COUNT(IF($F$2:$F$501=U63,$I$2:$I$501))<$X$3,"",HARMEAN(IF($F$2:$F$501=U63,$I$2:$I$501))) ->  | W63: =IF(OR(J63<(QUARTILE($J$2:$J$501,1))-1.5*(QUARTILE($J$2:$J$501,3)-QUARTILE($J$2:$J$501,1)),J63>(QUARTILE($J$2:$J$501,3))+1.5*(QUARTILE($J$2:$J$501,3)-QUARTILE($J$2:$J$501,1))),"Outlier") -> Outlier
A64: 905840 | B64: BANK OF NEW YORK MELLON | C64: 8000 | D64: 8700 | E64: 8770 | F64: 8771 | G64: 21.04 | H64: 2.06 | I64: =(IF(IFERROR(G64/H64,"")<0,"",IFERROR(G64/H64,""))) -> 10.21359223 | J64: =IF(COUNTIF($C$2:$C$501,C64)=1,"",IF(I64="","",ABS(IF(I64="",0,(((H64*OFFSET($M$1,MATCH($C64,$L$2:$L$40,0),,)-G64)/G64)))))) -> 0.3022637674 | K64: =IF(OR(J64<(QUARTILE($J$2:$J$501,1))-1.5*(QUARTILE($J$2:$J$501,3)-QUARTILE($J$2:$J$501,1)),J64>(QUARTILE($J$2:$J$501,3))+1.5*(QUARTILE($J$2:$J$501,3)-QUARTILE($J$2:$J$501,1))),"",J64) -> 0.3022637674 | N64: =IF(COUNTIF($D$2:$D$501,D64)=1,"",IF(I64="","",ABS(IF(I64="",0,(((H64*OFFSET($P$1,MATCH($D64,$O$2:$O$40,0),,)-G64)/G64)))))) -> 0.2265654233 | Q64: =IFERROR(IF(COUNTIF($E$2:$E$501,E64)=1,"",IF(I64="","",ABS(IF(I64="",0,(((H64*OFFSET($S$1,MATCH($E64,$R$2:$R$41,0),,)-G64)/G64)))))),"") -> 0.2265654233 | T64: =IFERROR(IF(COUNTIF($F$2:$F$501,F64)=1,"",IF(I64="","",ABS(IF(I64="",0,(((H64*OFFSET($V$1,MATCH($F64,$U$2:$U$105,0),,)-G64)/G64)))))),"") -> 0.3437421522 | U64: 5379 | V64: =IF(COUNT(IF($F$2:$F$501=U64,$I$2:$I$501))<$X$3,"",HARMEAN(IF($F$2:$F$501=U64,$I$2:$I$501))) -> 12.37088585 | W64: =IF(OR(J64<(QUARTILE($J$2:$J$501,1))-1.5*(QUARTILE($J$2:$J$501,3)-QUARTILE($J$2:$J$501,1)),J64>(QUARTILE($J$2:$J$501,3))+1.5*(QUARTILE($J$2:$J$501,3)-QUARTILE($J$2:$J$501,1))),"Outlier") -> FALSE
A65: 905592 | B65: C R BARD | C65: 4000 | D65: 4500 | E65: 4530 | F65: 4537 | G65: 104.82 | H65: 3.81 | I65: =(IF(IFERROR(G65/H65,"")<0,"",IFERROR(G65/H65,""))) -> 27.51181102 | J65: =IF(COUNTIF($C$2:$C$501,C65)=1,"",IF(I65="","",ABS(IF(I65="",0,(((H65*OFFSET($M$1,MATCH($C65,$L$2:$L$40,0),,)-G65)/G65)))))) -> 0.3847808761 | K65: =IF(OR(J65<(QUARTILE($J$2:$J$501,1))-1.5*(QUARTILE($J$2:$J$501,3)-QUARTILE($J$2:$J$501,1)),J65>(QUARTILE($J$2:$J$501,3))+1.5*(QUARTILE($J$2:$J$501,3)-QUARTILE($J$2:$J$501,1))),"",J65) -> 0.3847808761 | N65: =IF(COUNTIF($D$2:$D$501,D65)=1,"",IF(I65="","",ABS(IF(I65="",0,(((H65*OFFSET($P$1,MATCH($D65,$O$2:$O$40,0),,)-G65)/G65)))))) -> 0.3847808761 | Q65: =IFERROR(IF(COUNTIF($E$2:$E$501,E65)=1,"",IF(I65="","",ABS(IF(I65="",0,(((H65*OFFSET($S$1,MATCH($E65,$R$2:$R$41,0),,)-G65)/G65)))))),"") -> 0.4439592669 | T65: =IFERROR(IF(COUNTIF($F$2:$F$501,F65)=1,"",IF(I65="","",ABS(IF(I65="",0,(((H65*OFFSET($V$1,MATCH($F65,$U$2:$U$105,0),,)-G65)/G65)))))),"") -> 0.2981929636 | U65: 5553 | V65: =IF(COUNT(IF($F$2:$F$501=U65,$I$2:$I$501))<$X$3,"",HARMEAN(IF($F$2:$F$501=U65,$I$2:$I$501))) -> 16.14890415 | W65: =IF(OR(J65<(QUARTILE($J$2:$J$501,1))-1.5*(QUARTILE($J$2:$J$501,3)-QUARTILE($J$2:$J$501,1)),J65>(QUARTILE($J$2:$J$501,3))+1.5*(QUARTILE($J$2:$J$501,3)-QUARTILE($J$2:$J$501,1))),"Outlier") -> FALSE
A66: 755187 | B66: BARR PHARMACEUTICALS DEAD - DELIST.02/01/09 | C66: 4000 | D66: 4500 | E66: 4570 | F66: 4577 | G66: 65.8 | H66: 1.41 | I66: =(IF(IFERROR(G66/H66,"")<0,"",IFERROR(G66/H66,""))) -> 46.66666667 | J66: =IF(COUNTIF($C$2:$C$501,C66)=1,"",IF(I66="","",ABS(IF(I66="",0,(((H66*OFFSET($M$1,MATCH($C66,$L$2:$L$40,0),,)-G66)/G66)))))) -> 0.6373044513 | K66: =IF(OR(J66<(QUARTILE($J$2:$J$501,1))-1.5*(QUARTILE($J$2:$J$501,3)-QUARTILE($J$2:$J$501,1)),J66>(QUARTILE($J$2:$J$501,3))+1.5*(QUARTILE($J$2:$J$501,3)-QUARTILE($J$2:$J$501,1))),"",J66) -> 0.6373044513 | N66: =IF(COUNTIF($D$2:$D$501,D66)=1,"",IF(I66="","",ABS(IF(I66="",0,(((H66*OFFSET($P$1,MATCH($D66,$O$2:$O$40,0),,)-G66)/G66)))))) -> 0.6373044513 | Q66: =IFERROR(IF(COUNTIF($E$2:$E$501,E66)=1,"",IF(I66="","",ABS(IF(I66="",0,(((H66*OFFSET($S$1,MATCH($E66,$R$2:$R$41,0),,)-G66)/G66)))))),"") -> 0.5738010555 | T66: =IFERROR(IF(COUNTIF($F$2:$F$501,F66)=1,"",IF(I66="","",ABS(IF(I66="",0,(((H66*OFFSET($V$1,MATCH($F66,$U$2:$U$105,0),,)-G66)/G66)))))),"") -> 0.6046049714 | U66: 5555 | V66: =IF(COUNT(IF($F$2:$F$501=U66,$I$2:$I$501))<$X$3,"",HARMEAN(IF($F$2:$F$501=U66,$I$2:$I$501))) ->  | W66: =IF(OR(J66<(QUARTILE($J$2:$J$501,1))-1.5*(QUARTILE($J$2:$J$501,3)-QUARTILE($J$2:$J$501,1)),J66>(QUARTILE($J$2:$J$501,3))+1.5*(QUARTILE($J$2:$J$501,3)-QUARTILE($J$2:$J$501,1))),"Outlier") -> FALSE
A67: 905439 | B67: BAUSCH & LOMB DEAD - MERGER | C67: 4000 | D67: 4500 | E67: 4530 | F67: 4537 | G67: 64.98 | H67: 0.93 | I67: =(IF(IFERROR(G67/H67,"")<0,"",IFERROR(G67/H67,""))) -> 69.87096774 | J67: =IF(COUNTIF($C$2:$C$501,C67)=1,"",IF(I67="","",ABS(IF(I67="",0,(((H67*OFFSET($M$1,MATCH($C67,$L$2:$L$40,0),,)-G67)/G67)))))) -> 0.7577564356 | K67: =IF(OR(J67<(QUARTILE($J$2:$J$501,1))-1.5*(QUARTILE($J$2:$J$501,3)-QUARTILE($J$2:$J$501,1)),J67>(QUARTILE($J$2:$J$501,3))+1.5*(QUARTILE($J$2:$J$501,3)-QUARTILE($J$2:$J$501,1))),"",J67) -> 0.7577564356 | N67: =IF(COUNTIF($D$2:$D$501,D67)=1,"",IF(I67="","",ABS(IF(I67="",0,(((H67*OFFSET($P$1,MATCH($D67,$O$2:$O$40,0),,)-G67)/G67)))))) -> 0.7577564356 | Q67: =IFERROR(IF(COUNTIF($E$2:$E$501,E67)=1,"",IF(I67="","",ABS(IF(I67="",0,(((H67*OFFSET($S$1,MATCH($E67,$R$2:$R$41,0),,)-G67)/G67)))))),"") -> 0.7810580264 | T67: =IFERROR(IF(COUNTIF($F$2:$F$501,F67)=1,"",IF(I67="","",ABS(IF(I67="",0,(((H67*OFFSET($V$1,MATCH($F67,$U$2:$U$105,0),,)-G67)/G67)))))),"") -> 0.7236622995 | U67: 5557 | V67: =IF(COUNT(IF($F$2:$F$501=U67,$I$2:$I$501))<$X$3,"",HARMEAN(IF($F$2:$F$501=U67,$I$2:$I$501))) -> 15.28605364 | W67: =IF(OR(J67<(QUARTILE($J$2:$J$501,1))-1.5*(QUARTILE($J$2:$J$501,3)-QUARTILE($J$2:$J$501,1)),J67>(QUARTILE($J$2:$J$501,3))+1.5*(QUARTILE($J$2:$J$501,3)-QUARTILE($J$2:$J$501,1))),"Outlier") -> FALSE
A68: 916365 | B68: BAXTER INTL. | C68: 4000 | D68: 4500 | E68: 4530 | F68: 4537 | G68: 51.58 | H68: 3.94 | I68: =(IF(IFERROR(G68/H68,"")<0,"",IFERROR(G68/H68,""))) -> 13.09137056 | J68: =IF(COUNTIF($C$2:$C$501,C68)=1,"",IF(I68="","",ABS(IF(I68="",0,(((H68*OFFSET($M$1,MATCH($C68,$L$2:$L$40,0),,)-G68)/G68)))))) -> 0.2928968895 | K68: =IF(OR(J68<(QUARTILE($J$2:$J$501,1))-1.5*(QUARTILE($J$2:$J$501,3)-QUARTILE($J$2:$J$501,1)),J68>(QUARTILE($J$2:$J$501,3))+1.5*(QUARTILE($J$2:$J$501,3)-QUARTILE($J$2:$J$501,1))),"",J68) -> 0.2928968895 | N68: =IF(COUNTIF($D$2:$D$501,D68)=1,"",IF(I68="","",ABS(IF(I68="",0,(((H68*OFFSET($P$1,MATCH($D68,$O$2:$O$40,0),,)-G68)/G68)))))) -> 0.2928968895 | Q68: =IFERROR(IF(COUNTIF($E$2:$E$501,E68)=1,"",IF(I68="","",ABS(IF(I68="",0,(((H68*OFFSET($S$1,MATCH($E68,$R$2:$R$41,0),,)-G68)/G68)))))),"") -> 0.1685321643 | T68: =IFERROR(IF(COUNTIF($F$2:$F$501,F68)=1,"",IF(I68="","",ABS(IF(I68="",0,(((H68*OFFSET($V$1,MATCH($F68,$U$2:$U$105,0),,)-G68)/G68)))))),"") -> 0.4748633441 | U68: 5751 | V68: =IF(COUNT(IF($F$2:$F$501=U68,$I$2:$I$501))<$X$3,"",HARMEAN(IF($F$2:$F$501=U68,$I$2:$I$501))) ->  | W68: =IF(OR(J68<(QUARTILE($J$2:$J$501,1))-1.5*(QUARTILE($J$2:$J$501,3)-QUARTILE($J$2:$J$501,1)),J68>(QUARTILE($J$2:$J$501,3))+1.5*(QUARTILE($J$2:$J$501,3)-QUARTILE($J$2:$J$501,1))),"Outlier") -> FALSE
A69: 936911 | B69: BEAR STEARNS DEAD - DELIST.16/06/08 | C69: 8000 | D69: 8700 | E69: 8770 | F69: 8777 | G69: 9.33 | H69: 0 | I69: =(IF(IFERROR(G69/H69,"")<0,"",IFERROR(G69/H69,""))) ->  | J69: =IF(COUNTIF($C$2:$C$501,C69)=1,"",IF(I69="","",ABS(IF(I69="",0,(((H69*OFFSET($M$1,MATCH($C69,$L$2:$L$40,0),,)-G69)/G69)))))) ->  | K69: =IF(OR(J69<(QUARTILE($J$2:$J$501,1))-1.5*(QUARTILE($J$2:$J$501,3)-QUARTILE($J$2:$J$501,1)),J69>(QUARTILE($J$2:$J$501,3))+1.5*(QUARTILE($J$2:$J$501,3)-QUARTILE($J$2:$J$501,1))),"",J69) ->  | N69: =IF(COUNTIF($D$2:$D$501,D69)=1,"",IF(I69="","",ABS(IF(I69="",0,(((H69*OFFSET($P$1,MATCH($D69,$O$2:$O$40,0),,)-G69)/G69)))))) ->  | Q69: =IFERROR(IF(COUNTIF($E$2:$E$501,E69)=1,"",IF(I69="","",ABS(IF(I69="",0,(((H69*OFFSET($S$1,MATCH($E69,$R$2:$R$41,0),,)-G69)/G69)))))),"") ->  | T69: =IFERROR(IF(COUNTIF($F$2:$F$501,F69)=1,"",IF(I69="","",ABS(IF(I69="",0,(((H69*OFFSET($V$1,MATCH($F69,$U$2:$U$105,0),,)-G69)/G69)))))),"") ->  | U69: 5752 | V69: =IF(COUNT(IF($F$2:$F$501=U69,$I$2:$I$501))<$X$3,"",HARMEAN(IF($F$2:$F$501=U69,$I$2:$I$501))) ->  | W69: =IF(OR(J69<(QUARTILE($J$2:$J$501,1))-1.5*(QUARTILE($J$2:$J$501,3)-QUARTILE($J$2:$J$501,1)),J69>(QUARTILE($J$2:$J$501,3))+1.5*(QUARTILE($J$2:$J$501,3)-QUARTILE($J$2:$J$501,1))),"Outlier") -> Outlier
A70: 905876 | B70: BECTON DICKINSON | C70: 4000 | D70: 4500 | E70: 4530 | F70: 4537 | G70: 73.14 | H70: 5.47 | I70: =(IF(IFERROR(G70/H70,"")<0,"",IFERROR(G70/H70,""))) -> 13.37111517 | J70: =IF(COUNTIF($C$2:$C$501,C70)=1,"",IF(I70="","",ABS(IF(I70="",0,(((H70*OFFSET($M$1,MATCH($C70,$L$2:$L$40,0),,)-G70)/G70)))))) -> 0.2658474671 | K70: =IF(OR(J70<(QUARTILE($J$2:$J$501,1))-1.5*(QUARTILE($J$2:$J$501,3)-QUARTILE($J$2:$J$501,1)),J70>(QUARTILE($J$2:$J$501,3))+1.5*(QUARTILE($J$2:$J$501,3)-QUARTILE($J$2:$J$501,1))),"",J70) -> 0.2658474671 | N70: =IF(COUNTIF($D$2:$D$501,D70)=1,"",IF(I70="","",ABS(IF(I70="",0,(((H70*OFFSET($P$1,MATCH($D70,$O$2:$O$40,0),,)-G70)/G70)))))) -> 0.2658474671 | Q70: =IFERROR(IF(COUNTIF($E$2:$E$501,E70)=1,"",IF(I70="","",ABS(IF(I70="",0,(((H70*OFFSET($S$1,MATCH($E70,$R$2:$R$41,0),,)-G70)/G70)))))),"") -> 0.1440846461 | T70: =IFERROR(IF(COUNTIF($F$2:$F$501,F70)=1,"",IF(I70="","",ABS(IF(I70="",0,(((H70*OFFSET($V$1,MATCH($F70,$U$2:$U$105,0),,)-G70)/G70)))))),"") -> 0.4440068992 | U70: 5753 | V70: =IF(COUNT(IF($F$2:$F$501=U70,$I$2:$I$501))<$X$3,"",HARMEAN(IF($F$2:$F$501=U70,$I$2:$I$501))) ->  | W70: =IF(OR(J70<(QUARTILE($J$2:$J$501,1))-1.5*(QUARTILE($J$2:$J$501,3)-QUARTILE($J$2:$J$501,1)),J70>(QUARTILE($J$2:$J$501,3))+1.5*(QUARTILE($J$2:$J$501,3)-QUARTILE($J$2:$J$501,1))),"Outlier") -> FALSE
A71: 325972 | B71: BED BATH & BEYOND | C71: 5000 | D71: 5300 | E71: 5370 | F71: 5379 | G71: 59.64 | H71: 4.24 | I71: =(IF(IFERROR(G71/H71,"")<0,"",IFERROR(G71/H71,""))) -> 14.06603774 | J71: =IF(COUNTIF($C$2:$C$501,C71)=1,"",IF(I71="","",ABS(IF(I71="",0,(((H71*OFFSET($M$1,MATCH($C71,$L$2:$L$40,0),,)-G71)/G71)))))) -> 0.1211765714 | K71: =IF(OR(J71<(QUARTILE($J$2:$J$501,1))-1.5*(QUARTILE($J$2:$J$501,3)-QUARTILE($J$2:$J$501,1)),J71>(QUARTILE($J$2:$J$501,3))+1.5*(QUARTILE($J$2:$J$501,3)-QUARTILE($J$2:$J$501,1))),"",J71) -> 0.1211765714 | N71: =IF(COUNTIF($D$2:$D$501,D71)=1,"",IF(I71="","",ABS(IF(I71="",0,(((H71*OFFSET($P$1,MATCH($D71,$O$2:$O$40,0),,)-G71)/G71)))))) -> 0.03593286509 | Q71: =IFERROR(IF(COUNTIF($E$2:$E$501,E71)=1,"",IF(I71="","",ABS(IF(I71="",0,(((H71*OFFSET($S$1,MATCH($E71,$R$2:$R$41,0),,)-G71)/G71)))))),"") -> 0.01898662917 | T71: =IFERROR(IF(COUNTIF($F$2:$F$501,F71)=1,"",IF(I71="","",ABS(IF(I71="",0,(((H71*OFFSET($V$1,MATCH($F71,$U$2:$U$105,0),,)-G71)/G71)))))),"") -> 0.1205138161 | U71: 5755 | V71: =IF(COUNT(IF($F$2:$F$501=U71,$I$2:$I$501))<$X$3,"",HARMEAN(IF($F$2:$F$501=U71,$I$2:$I$501))) ->  | W71: =IF(OR(J71<(QUARTILE($J$2:$J$501,1))-1.5*(QUARTILE($J$2:$J$501,3)-QUARTILE($J$2:$J$501,1)),J71>(QUARTILE($J$2:$J$501,3))+1.5*(QUARTILE($J$2:$J$501,3)-QUARTILE($J$2:$J$501,1))),"Outlier") -> FALSE
A72: 912125 | B72: BEMIS | C72: 2000 | D72: 2700 | E72: 2720 | F72: 2723 | G72: 31.1 | H72: 1.66 | I72: =(IF(IFERROR(G72/H72,"")<0,"",IFERROR(G72/H72,""))) -> 18.73493976 | J72: =IF(COUNTIF($C$2:$C$501,C72)=1,"",IF(I72="","",ABS(IF(I72="",0,(((H72*OFFSET($M$1,MATCH($C72,$L$2:$L$40,0),,)-G72)/G72)))))) -> 0.2258405317 | K72: =IF(OR(J72<(QUARTILE($J$2:$J$501,1))-1.5*(QUARTILE($J$2:$J$501,3)-QUARTILE($J$2:$J$501,1)),J72>(QUARTILE($J$2:$J$501,3))+1.5*(QUARTILE($J$2:$J$501,3)-QUARTILE($J$2:$J$501,1))),"",J72) -> 0.2258405317 | N72: =IF(COUNTIF($D$2:$D$501,D72)=1,"",IF(I72="","",ABS(IF(I72="",0,(((H72*OFFSET($P$1,MATCH($D72,$O$2:$O$40,0),,)-G72)/G72)))))) -> 0.2357354259 | Q72: =IFERROR(IF(COUNTIF($E$2:$E$501,E72)=1,"",IF(I72="","",ABS(IF(I72="",0,(((H72*OFFSET($S$1,MATCH($E72,$R$2:$R$41,0),,)-G72)/G72)))))),"") -> 0.03351308549 | T72: =IFERROR(IF(COUNTIF($F$2:$F$501,F72)=1,"",IF(I72="","",ABS(IF(I72="",0,(((H72*OFFSET($V$1,MATCH($F72,$U$2:$U$105,0),,)-G72)/G72)))))),"") -> 0.1619870203 | U72: 5757 | V72: =IF(COUNT(IF($F$2:$F$501=U72,$I$2:$I$501))<$X$3,"",HARMEAN(IF($F$2:$F$501=U72,$I$2:$I$501))) -> 21.26787833 | W72: =IF(OR(J72<(QUARTILE($J$2:$J$501,1))-1.5*(QUARTILE($J$2:$J$501,3)-QUARTILE($J$2:$J$501,1)),J72>(QUARTILE($J$2:$J$501,3))+1.5*(QUARTILE($J$2:$J$501,3)-QUARTILE($J$2:$J$501,1))),"Outlier") -> FALSE
A73: 929302 | B73: BEST BUY | C73: 5000 | D73: 5300 | E73: 5370 | F73: 5379 | G73: 20.88 | H73: 0 | I73: =(IF(IFERROR(G73/H73,"")<0,"",IFERROR(G73/H73,""))) ->  | J73: =IF(COUNTIF($C$2:$C$501,C73)=1,"",IF(I73="","",ABS(IF(I73="",0,(((H73*OFFSET($M$1,MATCH($C73,$L$2:$L$40,0),,)-G73)/G73)))))) ->  | K73: =IF(OR(J73<(QUARTILE($J$2:$J$501,1))-1.5*(QUARTILE($J$2:$J$501,3)-QUARTILE($J$2:$J$501,1)),J73>(QUARTILE($J$2:$J$501,3))+1.5*(QUARTILE($J$2:$J$501,3)-QUARTILE($J$2:$J$501,1))),"",J73) ->  | N73: =IF(COUNTIF($D$2:$D$501,D73)=1,"",IF(I73="","",ABS(IF(I73="",0,(((H73*OFFSET($P$1,MATCH($D73,$O$2:$O$40,0),,)-G73)/G73)))))) ->  | Q73: =IFERROR(IF(COUNTIF($E$2:$E$501,E73)=1,"",IF(I73="","",ABS(IF(I73="",0,(((H73*OFFSET($S$1,MATCH($E73,$R$2:$R$41,0),,)-G73)/G73)))))),"") ->  | T73: =IFERROR(IF(COUNTIF($F$2:$F$501,F73)=1,"",IF(I73="","",ABS(IF(I73="",0,(((H73*OFFSET($V$1,MATCH($F73,$U$2:$U$105,0),,)-G73)/G73)))))),"") ->  | U73: 5759 | V73: =IF(COUNT(IF($F$2:$F$501=U73,$I$2:$I$501))<$X$3,"",HARMEAN(IF($F$2:$F$501=U73,$I$2:$I$501))) ->  | W73: =IF(OR(J73<(QUARTILE($J$2:$J$501,1))-1.5*(QUARTILE($J$2:$J$501,3)-QUARTILE($J$2:$J$501,1)),J73>(QUARTILE($J$2:$J$501,3))+1.5*(QUARTILE($J$2:$J$501,3)-QUARTILE($J$2:$J$501,1))),"Outlier") -> Outlier
A74: 702108 | B74: BIG LOTS | C74: 5000 | D74: 5300 | E74: 5370 | F74: 5373 | G74: 40.12 | H74: 2.85 | I74: =(IF(IFERROR(G74/H74,"")<0,"",IFERROR(G74/H74,""))) -> 14.07719298 | J74: =IF(COUNTIF($C$2:$C$501,C74)=1,"",IF(I74="","",ABS(IF(I74="",0,(((H74*OFFSET($M$1,MATCH($C74,$L$2:$L$40,0),,)-G74)/G74)))))) -> 0.120288113 | K74: =IF(OR(J74<(QUARTILE($J$2:$J$501,1))-1.5*(QUARTILE($J$2:$J$501,3)-QUARTILE($J$2:$J$501,1)),J74>(QUARTILE($J$2:$J$501,3))+1.5*(QUARTILE($J$2:$J$501,3)-QUARTILE($J$2:$J$501,1))),"",J74) -> 0.120288113 | N74: =IF(COUNTIF($D$2:$D$501,D74)=1,"",IF(I74="","",ABS(IF(I74="",0,(((H74*OFFSET($P$1,MATCH($D74,$O$2:$O$40,0),,)-G74)/G74)))))) -> 0.03511195665 | Q74: =IFERROR(IF(COUNTIF($E$2:$E$501,E74)=1,"",IF(I74="","",ABS(IF(I74="",0,(((H74*OFFSET($S$1,MATCH($E74,$R$2:$R$41,0),,)-G74)/G74)))))),"") -> 0.0181791495 | T74: =IFERROR(IF(COUNTIF($F$2:$F$501,F74)=1,"",IF(I74="","",ABS(IF(I74="",0,(((H74*OFFSET($V$1,MATCH($F74,$U$2:$U$105,0),,)-G74)/G74)))))),"") -> 0.3534344949 | U74: 6535 | V74: =IF(COUNT(IF($F$2:$F$501=U74,$I$2:$I$501))<$X$3,"",HARMEAN(IF($F$2:$F$501=U74,$I$2:$I$501))) -> 22.86085282 | W74: =IF(OR(J74<(QUARTILE($J$2:$J$501,1))-1.5*(QUARTILE($J$2:$J$501,3)-QUARTILE($J$2:$J$501,1)),J74>(QUARTILE($J$2:$J$501,3))+1.5*(QUARTILE($J$2:$J$501,3)-QUARTILE($J$2:$J$501,1))),"Outlier") -> FALSE
A75: 982423 | B75: BIOMET DEAD - DEL.26/09/07 | C75: 4000 | D75: 4500 | E75: 4530 | F75: 4535 | G75: 45.99 | H75: 1.37 | I75: =(IF(IFERROR(G75/H75,"")<0,"",IFERROR(G75/H75,""))) -> 33.56934307 | J75: =IF(COUNTIF($C$2:$C$501,C75)=1,"",IF(I75="","",ABS(IF(I75="",0,(((H75*OFFSET($M$1,MATCH($C75,$L$2:$L$40,0),,)-G75)/G75)))))) -> 0.4957961423 | K75: =IF(OR(J75<(QUARTILE($J$2:$J$501,1))-1.5*(QUARTILE($J$2:$J$501,3)-QUARTILE($J$2:$J$501,1)),J75>(QUARTILE($J$2:$J$501,3))+1.5*(QUARTILE($J$2:$J$501,3)-QUARTILE($J$2:$J$501,1))),"",J75) -> 0.4957961423 | N75: =IF(COUNTIF($D$2:$D$501,D75)=1,"",IF(I75="","",ABS(IF(I75="",0,(((H75*OFFSET($P$1,MATCH($D75,$O$2:$O$40,0),,)-G75)/G75)))))) -> 0.4957961423 | Q75: =IFERROR(IF(COUNTIF($E$2:$E$501,E75)=1,"",IF(I75="","",ABS(IF(I75="",0,(((H75*OFFSET($S$1,MATCH($E75,$R$2:$R$41,0),,)-G75)/G75)))))),"") -> 0.544295891 | T75: =IFERROR(IF(COUNTIF($F$2:$F$501,F75)=1,"",IF(I75="","",ABS(IF(I75="",0,(((H75*OFFSET($V$1,MATCH($F75,$U$2:$U$105,0),,)-G75)/G75)))))),"") -> 0.491726767 | U75: 6575 | V75: =IF(COUNT(IF($F$2:$F$501=U75,$I$2:$I$501))<$X$3,"",HARMEAN(IF($F$2:$F$501=U75,$I$2:$I$501))) ->  | W75: =IF(OR(J75<(QUARTILE($J$2:$J$501,1))-1.5*(QUARTILE($J$2:$J$501,3)-QUARTILE($J$2:$J$501,1)),J75>(QUARTILE($J$2:$J$501,3))+1.5*(QUARTILE($J$2:$J$501,3)-QUARTILE($J$2:$J$501,1))),"Outlier") -> FALSE
A76: 905147 | B76: BLACK & DECKER DEAD - DELIST.25/03/10 | C76: 3000 | D76: 3700 | E76: 3720 | F76: 3722 | G76: 74.05 | H76: 2.17 | I76: =(IF(IFERROR(G76/H76,"")<0,"",IFERROR(G76/H76,""))) -> 34.12442396 | J76: =IF(COUNTIF($C$2:$C$501,C76)=1,"",IF(I76="","",ABS(IF(I76="",0,(((H76*OFFSET($M$1,MATCH($C76,$L$2:$L$40,0),,)-G76)/G76)))))) -> 0.5314152666 | K76: =IF(OR(J76<(QUARTILE($J$2:$J$501,1))-1.5*(QUARTILE($J$2:$J$501,3)-QUARTILE($J$2:$J$501,1)),J76>(QUARTILE($J$2:$J$501,3))+1.5*(QUARTILE($J$2:$J$501,3)-QUARTILE($J$2:$J$501,1))),"",J76) -> 0.5314152666 | N76: =IF(COUNTIF($D$2:$D$501,D76)=1,"",IF(I76="","",ABS(IF(I76="",0,(((H76*OFFSET($P$1,MATCH($D76,$O$2:$O$40,0),,)-G76)/G76)))))) -> 0.4349797833 | Q76: =IFERROR(IF(COUNTIF($E$2:$E$501,E76)=1,"",IF(I76="","",ABS(IF(I76="",0,(((H76*OFFSET($S$1,MATCH($E76,$R$2:$R$41,0),,)-G76)/G76)))))),"") -> 0.3734972047 | T76: =IFERROR(IF(COUNTIF($F$2:$F$501,F76)=1,"",IF(I76="","",ABS(IF(I76="",0,(((H76*OFFSET($V$1,MATCH($F76,$U$2:$U$105,0),,)-G76)/G76)))))),"") -> 0.4543222951 | U76: 7535 | V76: =IF(COUNT(IF($F$2:$F$501=U76,$I$2:$I$501))<$X$3,"",HARMEAN(IF($F$2:$F$501=U76,$I$2:$I$501))) -> 15.86710533 | W76: =IF(OR(J76<(QUARTILE($J$2:$J$501,1))-1.5*(QUARTILE($J$2:$J$501,3)-QUARTILE($J$2:$J$501,1)),J76>(QUARTILE($J$2:$J$501,3))+1.5*(QUARTILE($J$2:$J$501,3)-QUARTILE($J$2:$J$501,1))),"Outlier") -> FALSE
A77: 905596 | B77: H&R BLOCK | C77: 5000 | D77: 5300 | E77: 5370 | F77: 5377 | G77: 15.85 | H77: 0.89 | I77: =(IF(IFERROR(G77/H77,"")<0,"",IFERROR(G77/H77,""))) -> 17.80898876 | J77: =IF(COUNTIF($C$2:$C$501,C77)=1,"",IF(I77="","",ABS(IF(I77="",0,(((H77*OFFSET($M$1,MATCH($C77,$L$2:$L$40,0),,)-G77)/G77)))))) -> 0.1144633662 | K77: =IF(OR(J77<(QUARTILE($J$2:$J$501,1))-1.5*(QUARTILE($J$2:$J$501,3)-QUARTILE($J$2:$J$501,1)),J77>(QUARTILE($J$2:$J$501,3))+1.5*(QUARTILE($J$2:$J$501,3)-QUARTILE($J$2:$J$501,1))),"",J77) -> 0.1144633662 | N77: =IF(COUNTIF($D$2:$D$501,D77)=1,"",IF(I77="","",ABS(IF(I77="",0,(((H77*OFFSET($P$1,MATCH($D77,$O$2:$O$40,0),,)-G77)/G77)))))) -> 0.1817912311 | Q77: =IFERROR(IF(COUNTIF($E$2:$E$501,E77)=1,"",IF(I77="","",ABS(IF(I77="",0,(((H77*OFFSET($S$1,MATCH($E77,$R$2:$R$41,0),,)-G77)/G77)))))),"") -> 0.1951758425 | T77: =IFERROR(IF(COUNTIF($F$2:$F$501,F77)=1,"",IF(I77="","",ABS(IF(I77="",0,(((H77*OFFSET($V$1,MATCH($F77,$U$2:$U$105,0),,)-G77)/G77)))))),"") ->  | U77: 7573 | V77: =IF(COUNT(IF($F$2:$F$501=U77,$I$2:$I$501))<$X$3,"",HARMEAN(IF($F$2:$F$501=U77,$I$2:$I$501))) -> 19.2867365 | W77: =IF(OR(J77<(QUARTILE($J$2:$J$501,1))-1.5*(QUARTILE($J$2:$J$501,3)-QUARTILE($J$2:$J$501,1)),J77>(QUARTILE($J$2:$J$501,3))+1.5*(QUARTILE($J$2:$J$501,3)-QUARTILE($J$2:$J$501,1))),"Outlier") -> FALSE
A78: 904818 | B78: BOEING | C78: 2000 | D78: 2700 | E78: 2710 | F78: 2713 | G78: 71.58 | H78: 5.76 | I78: =(IF(IFERROR(G78/H78,"")<0,"",IFERROR(G78/H78,""))) -> 12.42708333 | J78: =IF(COUNTIF($C$2:$C$501,C78)=1,"",IF(I78="","",ABS(IF(I78="",0,(((H78*OFFSET($M$1,MATCH($C78,$L$2:$L$40,0),,)-G78)/G78)))))) -> 0.167114649 | K78: =IF(OR(J78<(QUARTILE($J$2:$J$501,1))-1.5*(QUARTILE($J$2:$J$501,3)-QUARTILE($J$2:$J$501,1)),J78>(QUARTILE($J$2:$J$501,3))+1.5*(QUARTILE($J$2:$J$501,3)-QUARTILE($J$2:$J$501,1))),"",J78) -> 0.167114649 | N78: =IF(COUNTIF($D$2:$D$501,D78)=1,"",IF(I78="","",ABS(IF(I78="",0,(((H78*OFFSET($P$1,MATCH($D78,$O$2:$O$40,0),,)-G78)/G78)))))) -> 0.1521972109 | Q78: =IFERROR(IF(COUNTIF($E$2:$E$501,E78)=1,"",IF(I78="","",ABS(IF(I78="",0,(((H78*OFFSET($S$1,MATCH($E78,$R$2:$R$41,0),,)-G78)/G78)))))),"") -> 0.08651761801 | T78: =IFERROR(IF(COUNTIF($F$2:$F$501,F78)=1,"",IF(I78="","",ABS(IF(I78="",0,(((H78*OFFSET($V$1,MATCH($F78,$U$2:$U$105,0),,)-G78)/G78)))))),"") -> 0.2409732364 | U78: 7575 | V78: =IF(COUNT(IF($F$2:$F$501=U78,$I$2:$I$501))<$X$3,"",HARMEAN(IF($F$2:$F$501=U78,$I$2:$I$501))) -> 18.71505707 | W78: =IF(OR(J78<(QUARTILE($J$2:$J$501,1))-1.5*(QUARTILE($J$2:$J$501,3)-QUARTILE($J$2:$J$501,1)),J78>(QUARTILE($J$2:$J$501,3))+1.5*(QUARTILE($J$2:$J$501,3)-QUARTILE($J$2:$J$501,1))),"Outlier") -> FALSE
A79: 894371 | B79: BOSTON PROPERTIES | C79: 8000 | D79: 8600 | E79: 8670 | F79: 8671 | G79: 104.86 | H79: 2.01 | I79: =(IF(IFERROR(G79/H79,"")<0,"",IFERROR(G79/H79,""))) -> 52.16915423 | J79: =IF(COUNTIF($C$2:$C$501,C79)=1,"",IF(I79="","",ABS(IF(I79="",0,(((H79*OFFSET($M$1,MATCH($C79,$L$2:$L$40,0),,)-G79)/G79)))))) -> 0.745044916 | K79: =IF(OR(J79<(QUARTILE($J$2:$J$501,1))-1.5*(QUARTILE($J$2:$J$501,3)-QUARTILE($J$2:$J$501,1)),J79>(QUARTILE($J$2:$J$501,3))+1.5*(QUARTILE($J$2:$J$501,3)-QUARTILE($J$2:$J$501,1))),"",J79) -> 0.745044916 | N79: =IF(COUNTIF($D$2:$D$501,D79)=1,"",IF(I79="","",ABS(IF(I79="",0,(((H79*OFFSET($P$1,MATCH($D79,$O$2:$O$40,0),,)-G79)/G79)))))) -> 0.1416979477 | Q79: =IFERROR(IF(COUNTIF($E$2:$E$501,E79)=1,"",IF(I79="","",ABS(IF(I79="",0,(((H79*OFFSET($S$1,MATCH($E79,$R$2:$R$41,0),,)-G79)/G79)))))),"") -> 0.04133067204 | T79: =IFERROR(IF(COUNTIF($F$2:$F$501,F79)=1,"",IF(I79="","",ABS(IF(I79="",0,(((H79*OFFSET($V$1,MATCH($F79,$U$2:$U$105,0),,)-G79)/G79)))))),"") ->  | U79: 7577 | V79: =IF(COUNT(IF($F$2:$F$501=U79,$I$2:$I$501))<$X$3,"",HARMEAN(IF($F$2:$F$501=U79,$I$2:$I$501))) ->  | W79: =IF(OR(J79<(QUARTILE($J$2:$J$501,1))-1.5*(QUARTILE($J$2:$J$501,3)-QUARTILE($J$2:$J$501,1)),J79>(QUARTILE($J$2:$J$501,3))+1.5*(QUARTILE($J$2:$J$501,3)-QUARTILE($J$2:$J$501,1))),"Outlier") -> FALSE
A80: 325824 | B80: BOSTON SCIENTIFIC | C80: 4000 | D80: 4500 | E80: 4530 | F80: 4535 | G80: 5.55 | H80: 0.34 | I80: =(IF(IFERROR(G80/H80,"")<0,"",IFERROR(G80/H80,""))) -> 16.32352941 | J80: =IF(COUNTIF($C$2:$C$501,C80)=1,"",IF(I80="","",ABS(IF(I80="",0,(((H80*OFFSET($M$1,MATCH($C80,$L$2:$L$40,0),,)-G80)/G80)))))) -> 0.03689538259 | K80: =IF(OR(J80<(QUARTILE($J$2:$J$501,1))-1.5*(QUARTILE($J$2:$J$501,3)-QUARTILE($J$2:$J$501,1)),J80>(QUARTILE($J$2:$J$501,3))+1.5*(QUARTILE($J$2:$J$501,3)-QUARTILE($J$2:$J$501,1))),"",J80) -> 0.03689538259 | N80: =IF(COUNTIF($D$2:$D$501,D80)=1,"",IF(I80="","",ABS(IF(I80="",0,(((H80*OFFSET($P$1,MATCH($D80,$O$2:$O$40,0),,)-G80)/G80)))))) -> 0.03689538259 | Q80: =IFERROR(IF(COUNTIF($E$2:$E$501,E80)=1,"",IF(I80="","",ABS(IF(I80="",0,(((H80*OFFSET($S$1,MATCH($E80,$R$2:$R$41,0),,)-G80)/G80)))))),"") -> 0.06284436498 | T80: =IFERROR(IF(COUNTIF($F$2:$F$501,F80)=1,"",IF(I80="","",ABS(IF(I80="",0,(((H80*OFFSET($V$1,MATCH($F80,$U$2:$U$105,0),,)-G80)/G80)))))),"") -> 0.04526405408 | U80: 8355 | V80: =IF(COUNT(IF($F$2:$F$501=U80,$I$2:$I$501))<$X$3,"",HARMEAN(IF($F$2:$F$501=U80,$I$2:$I$501))) -> 12.17145097 | W80: =IF(OR(J80<(QUARTILE($J$2:$J$501,1))-1.5*(QUARTILE($J$2:$J$501,3)-QUARTILE($J$2:$J$501,1)),J80>(QUARTILE($J$2:$J$501,3))+1.5*(QUARTILE($J$2:$J$501,3)-QUARTILE($J$2:$J$501,1))),"Outlier") -> FALSE
A81: 905080 | B81: BRISTOL MYERS SQUIBB | C81: 4000 | D81: 4500 | E81: 4570 | F81: 4577 | G81: 35.08 | H81: 2.23 | I81: =(IF(IFERROR(G81/H81,"")<0,"",IFERROR(G81/H81,""))) -> 15.7309417 | J81: =IF(COUNTIF($C$2:$C$501,C81)=1,"",IF(I81="","",ABS(IF(I81="",0,(((H81*OFFSET($M$1,MATCH($C81,$L$2:$L$40,0),,)-G81)/G81)))))) -> 0.07595543821 | K81: =IF(OR(J81<(QUARTILE($J$2:$J$501,1))-1.5*(QUARTILE($J$2:$J$501,3)-QUARTILE($J$2:$J$501,1)),J81>(QUARTILE($J$2:$J$501,3))+1.5*(QUARTILE($J$2:$J$501,3)-QUARTILE($J$2:$J$501,1))),"",J81) -> 0.07595543821 | N81: =IF(COUNTIF($D$2:$D$501,D81)=1,"",IF(I81="","",ABS(IF(I81="",0,(((H81*OFFSET($P$1,MATCH($D81,$O$2:$O$40,0),,)-G81)/G81)))))) -> 0.07595543821 | Q81: =IFERROR(IF(COUNTIF($E$2:$E$501,E81)=1,"",IF(I81="","",ABS(IF(I81="",0,(((H81*OFFSET($S$1,MATCH($E81,$R$2:$R$41,0),,)-G81)/G81)))))),"") -> 0.2643416047 | T81: =IFERROR(IF(COUNTIF($F$2:$F$501,F81)=1,"",IF(I81="","",ABS(IF(I81="",0,(((H81*OFFSET($V$1,MATCH($F81,$U$2:$U$105,0),,)-G81)/G81)))))),"") -> 0.1729601664 | U81: 8532 | V81: =IF(COUNT(IF($F$2:$F$501=U81,$I$2:$I$501))<$X$3,"",HARMEAN(IF($F$2:$F$501=U81,$I$2:$I$501))) ->  | W81: =IF(OR(J81<(QUARTILE($J$2:$J$501,1))-1.5*(QUARTILE($J$2:$J$501,3)-QUARTILE($J$2:$J$501,1)),J81>(QUARTILE($J$2:$J$501,3))+1.5*(QUARTILE($J$2:$J$501,3)-QUARTILE($J$2:$J$501,1))),"Outlier") -> FALSE
A82: 680006 | B82: BROADCOM 'A' | C82: 9000 | D82: 9500 | E82: 9570 | F82: 9576 | G82: 32.48 | H82: 1.39 | I82: =(IF(IFERROR(G82/H82,"")<0,"",IFERROR(G82/H82,""))) -> 23.36690647 | J82: =IF(COUNTIF($C$2:$C$501,C82)=1,"",IF(I82="","",ABS(IF(I82="",0,(((H82*OFFSET($M$1,MATCH($C82,$L$2:$L$40,0),,)-G82)/G82)))))) -> 0.4397196967 | K82: =IF(OR(J82<(QUARTILE($J$2:$J$501,1))-1.5*(QUARTILE($J$2:$J$501,3)-QUARTILE($J$2:$J$501,1)),J82>(QUARTILE($J$2:$J$501,3))+1.5*(QUARTILE($J$2:$J$501,3)-QUARTILE($J$2:$J$501,1))),"",J82) -> 0.4397196967 | N82: =IF(COUNTIF($D$2:$D$501,D82)=1,"",IF(I82="","",ABS(IF(I82="",0,(((H82*OFFSET($P$1,MATCH($D82,$O$2:$O$40,0),,)-G82)/G82)))))) -> 0.4397196967 | Q82: =IFERROR(IF(COUNTIF($E$2:$E$501,E82)=1,"",IF(I82="","",ABS(IF(I82="",0,(((H82*OFFSET($S$1,MATCH($E82,$R$2:$R$41,0),,)-G82)/G82)))))),"") -> 0.4629639211 | T82: =IFERROR(IF(COUNTIF($F$2:$F$501,F82)=1,"",IF(I82="","",ABS(IF(I82="",0,(((H82*OFFSET($V$1,MATCH($F82,$U$2:$U$105,0),,)-G82)/G82)))))),"") -> 0.4055259495 | U82: 8534 | V82: =IF(COUNT(IF($F$2:$F$501=U82,$I$2:$I$501))<$X$3,"",HARMEAN(IF($F$2:$F$501=U82,$I$2:$I$501))) ->  | W82: =IF(OR(J82<(QUARTILE($J$2:$J$501,1))-1.5*(QUARTILE($J$2:$J$501,3)-QUARTILE($J$2:$J$501,1)),J82>(QUARTILE($J$2:$J$501,3))+1.5*(QUARTILE($J$2:$J$501,3)-QUARTILE($J$2:$J$501,1))),"Outlier") -> FALSE
A83: 912216 | B83: BROWN-FORMAN 'B' | C83: 3000 | D83: 3500 | E83: 3530 | F83: 3535 | G83: 94.7 | H83: 3.95 | I83: =(IF(IFERROR(G83/H83,"")<0,"",IFERROR(G83/H83,""))) -> 23.97468354 | J83: =IF(COUNTIF($C$2:$C$501,C83)=1,"",IF(I83="","",ABS(IF(I83="",0,(((H83*OFFSET($M$1,MATCH($C83,$L$2:$L$40,0),,)-G83)/G83)))))) -> 0.3330387834 | K83: =IF(OR(J83<(QUARTILE($J$2:$J$501,1))-1.5*(QUARTILE($J$2:$J$501,3)-QUARTILE($J$2:$J$501,1)),J83>(QUARTILE($J$2:$J$501,3))+1.5*(QUARTILE($J$2:$J$501,3)-QUARTILE($J$2:$J$501,1))),"",J83) -> 0.3330387834 | N83: =IF(COUNTIF($D$2:$D$501,D83)=1,"",IF(I83="","",ABS(IF(I83="",0,(((H83*OFFSET($P$1,MATCH($D83,$O$2:$O$40,0),,)-G83)/G83)))))) -> 0.2548670597 | Q83: =IFERROR(IF(COUNTIF($E$2:$E$501,E83)=1,"",IF(I83="","",ABS(IF(I83="",0,(((H83*OFFSET($S$1,MATCH($E83,$R$2:$R$41,0),,)-G83)/G83)))))),"") -> 0.2526002847 | T83: =IFERROR(IF(COUNTIF($F$2:$F$501,F83)=1,"",IF(I83="","",ABS(IF(I83="",0,(((H83*OFFSET($V$1,MATCH($F83,$U$2:$U$105,0),,)-G83)/G83)))))),"") ->  | U83: 8536 | V83: =IF(COUNT(IF($F$2:$F$501=U83,$I$2:$I$501))<$X$3,"",HARMEAN(IF($F$2:$F$501=U83,$I$2:$I$501))) -> 14.35920744 | W83: =IF(OR(J83<(QUARTILE($J$2:$J$501,1))-1.5*(QUARTILE($J$2:$J$501,3)-QUARTILE($J$2:$J$501,1)),J83>(QUARTILE($J$2:$J$501,3))+1.5*(QUARTILE($J$2:$J$501,3)-QUARTILE($J$2:$J$501,1))),"Outlier") -> FALSE
A84: 921436 | B84: BRUNSWICK | C84: 3000 | D84: 3700 | E84: 3740 | F84: 3745 | G84: 21.26 | H84: 0.91 | I84: =(IF(IFERROR(G84/H84,"")<0,"",IFERROR(G84/H84,""))) -> 23.36263736 | J84: =IF(COUNTIF($C$2:$C$501,C84)=1,"",IF(I84="","",ABS(IF(I84="",0,(((H84*OFFSET($M$1,MATCH($C84,$L$2:$L$40,0),,)-G84)/G84)))))) -> 0.3155659673 | K84: =IF(OR(J84<(QUARTILE($J$2:$J$501,1))-1.5*(QUARTILE($J$2:$J$501,3)-QUARTILE($J$2:$J$501,1)),J84>(QUARTILE($J$2:$J$501,3))+1.5*(QUARTILE($J$2:$J$501,3)-QUARTILE($J$2:$J$501,1))),"",J84) -> 0.3155659673 | N84: =IF(COUNTIF($D$2:$D$501,D84)=1,"",IF(I84="","",ABS(IF(I84="",0,(((H84*OFFSET($P$1,MATCH($D84,$O$2:$O$40,0),,)-G84)/G84)))))) -> 0.1747083549 | Q84: =IFERROR(IF(COUNTIF($E$2:$E$501,E84)=1,"",IF(I84="","",ABS(IF(I84="",0,(((H84*OFFSET($S$1,MATCH($E84,$R$2:$R$41,0),,)-G84)/G84)))))),"") -> 0.331751063 | T84: =IFERROR(IF(COUNTIF($F$2:$F$501,F84)=1,"",IF(I84="","",ABS(IF(I84="",0,(((H84*OFFSET($V$1,MATCH($F84,$U$2:$U$105,0),,)-G84)/G84)))))),"") ->  | U84: 8538 | V84: =IF(COUNT(IF($F$2:$F$501=U84,$I$2:$I$501))<$X$3,"",HARMEAN(IF($F$2:$F$501=U84,$I$2:$I$501))) ->  | W84: =IF(OR(J84<(QUARTILE($J$2:$J$501,1))-1.5*(QUARTILE($J$2:$J$501,3)-QUARTILE($J$2:$J$501,1)),J84>(QUARTILE($J$2:$J$501,3))+1.5*(QUARTILE($J$2:$J$501,3)-QUARTILE($J$2:$J$501,1))),"Outlier") -> FALSE
A85: 916098 | B85: BURL.NTHN.SANTA FE C DEAD - DELIST.26/02/10 | C85: 2000 | D85: 2700 | E85: 2770 | F85: 2775 | G85: 100.21 | H85: 5.01 | I85: =(IF(IFERROR(G85/H85,"")<0,"",IFERROR(G85/H85,""))) -> 20.00199601 | J85: =IF(COUNTIF($C$2:$C$501,C85)=1,"",IF(I85="","",ABS(IF(I85="",0,(((H85*OFFSET($M$1,MATCH($C85,$L$2:$L$40,0),,)-G85)/G85)))))) -> 0.274880817 | K85: =IF(OR(J85<(QUARTILE($J$2:$J$501,1))-1.5*(QUARTILE($J$2:$J$501,3)-QUARTILE($J$2:$J$501,1)),J85>(QUARTILE($J$2:$J$501,3))+1.5*(QUARTILE($J$2:$J$501,3)-QUARTILE($J$2:$J$501,1))),"",J85) -> 0.274880817 | N85: =IF(COUNTIF($D$2:$D$501,D85)=1,"",IF(I85="","",ABS(IF(I85="",0,(((H85*OFFSET($P$1,MATCH($D85,$O$2:$O$40,0),,)-G85)/G85)))))) -> 0.2841489044 | Q85: =IFERROR(IF(COUNTIF($E$2:$E$501,E85)=1,"",IF(I85="","",ABS(IF(I85="",0,(((H85*OFFSET($S$1,MATCH($E85,$R$2:$R$41,0),,)-G85)/G85)))))),"") -> 0.2646548295 | T85: =IFERROR(IF(COUNTIF($F$2:$F$501,F85)=1,"",IF(I85="","",ABS(IF(I85="",0,(((H85*OFFSET($V$1,MATCH($F85,$U$2:$U$105,0),,)-G85)/G85)))))),"") -> 0.2733726335 | U85: 8575 | V85: =IF(COUNT(IF($F$2:$F$501=U85,$I$2:$I$501))<$X$3,"",HARMEAN(IF($F$2:$F$501=U85,$I$2:$I$501))) -> 10.38884042 | W85: =IF(OR(J85<(QUARTILE($J$2:$J$501,1))-1.5*(QUARTILE($J$2:$J$501,3)-QUARTILE($J$2:$J$501,1)),J85>(QUARTILE($J$2:$J$501,3))+1.5*(QUARTILE($J$2:$J$501,3)-QUARTILE($J$2:$J$501,1))),"Outlier") -> FALSE
A86: 879628 | B86: CH ROBINSON WWD. | C86: 2000 | D86: 2700 | E86: 2770 | F86: 2779 | G86: 56.66 | H86: 2.69 | I86: =(IF(IFERROR(G86/H86,"")<0,"",IFERROR(G86/H86,""))) -> 21.06319703 | J86: =IF(COUNTIF($C$2:$C$501,C86)=1,"",IF(I86="","",ABS(IF(I86="",0,(((H86*OFFSET($M$1,MATCH($C86,$L$2:$L$40,0),,)-G86)/G86)))))) -> 0.3114136005 | K86: =IF(OR(J86<(QUARTILE($J$2:$J$501,1))-1.5*(QUARTILE($J$2:$J$501,3)-QUARTILE($J$2:$J$501,1)),J86>(QUARTILE($J$2:$J$501,3))+1.5*(QUARTILE($J$2:$J$501,3)-QUARTILE($J$2:$J$501,1))),"",J86) -> 0.3114136005 | N86: =IF(COUNTIF($D$2:$D$501,D86)=1,"",IF(I86="","",ABS(IF(I86="",0,(((H86*OFFSET($P$1,MATCH($D86,$O$2:$O$40,0),,)-G86)/G86)))))) -> 0.3202147453 | Q86: =IFERROR(IF(COUNTIF($E$2:$E$501,E86)=1,"",IF(I86="","",ABS(IF(I86="",0,(((H86*OFFSET($S$1,MATCH($E86,$R$2:$R$41,0),,)-G86)/G86)))))),"") -> 0.3017028163 | T86: =IFERROR(IF(COUNTIF($F$2:$F$501,F86)=1,"",IF(I86="","",ABS(IF(I86="",0,(((H86*OFFSET($V$1,MATCH($F86,$U$2:$U$105,0),,)-G86)/G86)))))),"") ->  | U86: 8633 | V86: =IF(COUNT(IF($F$2:$F$501=U86,$I$2:$I$501))<$X$3,"",HARMEAN(IF($F$2:$F$501=U86,$I$2:$I$501))) ->  | W86: =IF(OR(J86<(QUARTILE($J$2:$J$501,1))-1.5*(QUARTILE($J$2:$J$501,3)-QUARTILE($J$2:$J$501,1)),J86>(QUARTILE($J$2:$J$501,3))+1.5*(QUARTILE($J$2:$J$501,3)-QUARTILE($J$2:$J$501,1))),"Outlier") -> FALSE
A87: 998326 | B87: CA | C87: 9000 | D87: 9500 | E87: 9530 | F87: 9537 | G87: 25.92 | H87: 1.88 | I87: =(IF(IFERROR(G87/H87,"")<0,"",IFERROR(G87/H87,""))) -> 13.78723404 | J87: =IF(COUNTIF($C$2:$C$501,C87)=1,"",IF(I87="","",ABS(IF(I87="",0,(((H87*OFFSET($M$1,MATCH($C87,$L$2:$L$40,0),,)-G87)/G87)))))) -> 0.05042466055 | K87: =IF(OR(J87<(QUARTILE($J$2:$J$501,1))-1.5*(QUARTILE($J$2:$J$501,3)-QUARTILE($J$2:$J$501,1)),J87>(QUARTILE($J$2:$J$501,3))+1.5*(QUARTILE($J$2:$J$501,3)-QUARTILE($J$2:$J$501,1))),"",J87) -> 0.05042466055 | N87: =IF(COUNTIF($D$2:$D$501,D87)=1,"",IF(I87="","",ABS(IF(I87="",0,(((H87*OFFSET($P$1,MATCH($D87,$O$2:$O$40,0),,)-G87)/G87)))))) -> 0.05042466055 | Q87: =IFERROR(IF(COUNTIF($E$2:$E$501,E87)=1,"",IF(I87="","",ABS(IF(I87="",0,(((H87*OFFSET($S$1,MATCH($E87,$R$2:$R$41,0),,)-G87)/G87)))))),"") -> 0.02423900043 | T87: =IFERROR(IF(COUNTIF($F$2:$F$501,F87)=1,"",IF(I87="","",ABS(IF(I87="",0,(((H87*OFFSET($V$1,MATCH($F87,$U$2:$U$105,0),,)-G87)/G87)))))),"") -> 0.05116798858 | U87: 8637 | V87: =IF(COUNT(IF($F$2:$F$501=U87,$I$2:$I$501))<$X$3,"",HARMEAN(IF($F$2:$F$501=U87,$I$2:$I$501))) ->  | W87: =IF(OR(J87<(QUARTILE($J$2:$J$501,1))-1.5*(QUARTILE($J$2:$J$501,3)-QUARTILE($J$2:$J$501,1)),J87>(QUARTILE($J$2:$J$501,3))+1.5*(QUARTILE($J$2:$J$501,3)-QUARTILE($J$2:$J$501,1))),"Outlier") -> FALSE
A88: 28513N | B88: CBRE GROUP CLASS A | C88: 8000 | D88: 8600 | E88: 8630 | F88: 8637 | G88: 15.75 | H88: 0.72 | I88: =(IF(IFERROR(G88/H88,"")<0,"",IFERROR(G88/H88,""))) -> 21.875 | J88: =IF(COUNTIF($C$2:$C$501,C88)=1,"",IF(I88="","",ABS(IF(I88="",0,(((H88*OFFSET($M$1,MATCH($C88,$L$2:$L$40,0),,)-G88)/G88)))))) -> 0.3919638354 | K88: =IF(OR(J88<(QUARTILE($J$2:$J$501,1))-1.5*(QUARTILE($J$2:$J$501,3)-QUARTILE($J$2:$J$501,1)),J88>(QUARTILE($J$2:$J$501,3))+1.5*(QUARTILE($J$2:$J$501,3)-QUARTILE($J$2:$J$501,1))),"",J88) -> 0.3919638354 | N88: =IF(COUNTIF($D$2:$D$501,D88)=1,"",IF(I88="","",ABS(IF(I88="",0,(((H88*OFFSET($P$1,MATCH($D88,$O$2:$O$40,0),,)-G88)/G88)))))) -> 1.046943641 | Q88: =IFERROR(IF(COUNTIF($E$2:$E$501,E88)=1,"",IF(I88="","",ABS(IF(I88="",0,(((H88*OFFSET($S$1,MATCH($E88,$R$2:$R$41,0),,)-G88)/G88)))))),"") ->  | T88: =IFERROR(IF(COUNTIF($F$2:$F$501,F88)=1,"",IF(I88="","",ABS(IF(I88="",0,(((H88*OFFSET($V$1,MATCH($F88,$U$2:$U$105,0),,)-G88)/G88)))))),"") ->  | U88: 8671 | V88: =IF(COUNT(IF($F$2:$F$501=U88,$I$2:$I$501))<$X$3,"",HARMEAN(IF($F$2:$F$501=U88,$I$2:$I$501))) ->  | W88: =IF(OR(J88<(QUARTILE($J$2:$J$501,1))-1.5*(QUARTILE($J$2:$J$501,3)-QUARTILE($J$2:$J$501,1)),J88>(QUARTILE($J$2:$J$501,3))+1.5*(QUARTILE($J$2:$J$501,3)-QUARTILE($J$2:$J$501,1))),"Outlier") -> FALSE
A89: 32480Q | B89: CBS 'B' | C89: 5000 | D89: 5500 | E89: 5550 | F89: 5553 | G89: 31.76 | H89: 1.92 | I89: =(IF(IFERROR(G89/H89,"")<0,"",IFERROR(G89/H89,""))) -> 16.54166667 | J89: =IF(COUNTIF($C$2:$C$501,C89)=1,"",IF(I89="","",ABS(IF(I89="",0,(((H89*OFFSET($M$1,MATCH($C89,$L$2:$L$40,0),,)-G89)/G89)))))) -> 0.04661892421 | K89: =IF(OR(J89<(QUARTILE($J$2:$J$501,1))-1.5*(QUARTILE($J$2:$J$501,3)-QUARTILE($J$2:$J$501,1)),J89>(QUARTILE($J$2:$J$501,3))+1.5*(QUARTILE($J$2:$J$501,3)-QUARTILE($J$2:$J$501,1))),"",J89) -> 0.04661892421 | N89: =IF(COUNTIF($D$2:$D$501,D89)=1,"",IF(I89="","",ABS(IF(I89="",0,(((H89*OFFSET($P$1,MATCH($D89,$O$2:$O$40,0),,)-G89)/G89)))))) -> 0.08290208417 | Q89: =IFERROR(IF(COUNTIF($E$2:$E$501,E89)=1,"",IF(I89="","",ABS(IF(I89="",0,(((H89*OFFSET($S$1,MATCH($E89,$R$2:$R$41,0),,)-G89)/G89)))))),"") -> 0.08290208417 | T89: =IFERROR(IF(COUNTIF($F$2:$F$501,F89)=1,"",IF(I89="","",ABS(IF(I89="",0,(((H89*OFFSET($V$1,MATCH($F89,$U$2:$U$105,0),,)-G89)/G89)))))),"") -> 0.02374382997 | U89: 8672 | V89: =IF(COUNT(IF($F$2:$F$501=U89,$I$2:$I$501))<$X$3,"",HARMEAN(IF($F$2:$F$501=U89,$I$2:$I$501))) ->  | W89: =IF(OR(J89<(QUARTILE($J$2:$J$501,1))-1.5*(QUARTILE($J$2:$J$501,3)-QUARTILE($J$2:$J$501,1)),J89>(QUARTILE($J$2:$J$501,3))+1.5*(QUARTILE($J$2:$J$501,3)-QUARTILE($J$2:$J$501,1))),"Outlier") -> FALSE
A90: 912278 | B90: CIGNA | C90: 4000 | D90: 4500 | E90: 4530 | F90: 4533 | G90: 44.18 | H90: 4.56 | I90: =(IF(IFERROR(G90/H90,"")<0,"",IFERROR(G90/H90,""))) -> 9.688596491 | J90: =IF(COUNTIF($C$2:$C$501,C90)=1,"",IF(I90="","",ABS(IF(I90="",0,(((H90*OFFSET($M$1,MATCH($C90,$L$2:$L$40,0),,)-G90)/G90)))))) -> 0.7469808233 | K90: =IF(OR(J90<(QUARTILE($J$2:$J$501,1))-1.5*(QUARTILE($J$2:$J$501,3)-QUARTILE($J$2:$J$501,1)),J90>(QUARTILE($J$2:$J$501,3))+1.5*(QUARTILE($J$2:$J$501,3)-QUARTILE($J$2:$J$501,1))),"",J90) -> 0.7469808233 | N90: =IF(COUNTIF($D$2:$D$501,D90)=1,"",IF(I90="","",ABS(IF(I90="",0,(((H90*OFFSET($P$1,MATCH($D90,$O$2:$O$40,0),,)-G90)/G90)))))) -> 0.7469808233 | Q90: =IFERROR(IF(COUNTIF($E$2:$E$501,E90)=1,"",IF(I90="","",ABS(IF(I90="",0,(((H90*OFFSET($S$1,MATCH($E90,$R$2:$R$41,0),,)-G90)/G90)))))),"") -> 0.5789374225 | T90: =IFERROR(IF(COUNTIF($F$2:$F$501,F90)=1,"",IF(I90="","",ABS(IF(I90="",0,(((H90*OFFSET($V$1,MATCH($F90,$U$2:$U$105,0),,)-G90)/G90)))))),"") -> 0.3365531825 | U90: 8673 | V90: =IF(COUNT(IF($F$2:$F$501=U90,$I$2:$I$501))<$X$3,"",HARMEAN(IF($F$2:$F$501=U90,$I$2:$I$501))) ->  | W90: =IF(OR(J90<(QUARTILE($J$2:$J$501,1))-1.5*(QUARTILE($J$2:$J$501,3)-QUARTILE($J$2:$J$501,1)),J90>(QUARTILE($J$2:$J$501,3))+1.5*(QUARTILE($J$2:$J$501,3)-QUARTILE($J$2:$J$501,1))),"Outlier") -> FALSE
A91: 25744E | B91: CIT GROUP DEAD - DELIST.10/12/09 | C91: 8000 | D91: 8700 | E91: 8770 | F91: 8775 | G91: 0.04 | H91: 0 | I91: =(IF(IFERROR(G91/H91,"")<0,"",IFERROR(G91/H91,""))) ->  | J91: =IF(COUNTIF($C$2:$C$501,C91)=1,"",IF(I91="","",ABS(IF(I91="",0,(((H91*OFFSET($M$1,MATCH($C91,$L$2:$L$40,0),,)-G91)/G91)))))) ->  | K91: =IF(OR(J91<(QUARTILE($J$2:$J$501,1))-1.5*(QUARTILE($J$2:$J$501,3)-QUARTILE($J$2:$J$501,1)),J91>(QUARTILE($J$2:$J$501,3))+1.5*(QUARTILE($J$2:$J$501,3)-QUARTILE($J$2:$J$501,1))),"",J91) ->  | N91: =IF(COUNTIF($D$2:$D$501,D91)=1,"",IF(I91="","",ABS(IF(I91="",0,(((H91*OFFSET($P$1,MATCH($D91,$O$2:$O$40,0),,)-G91)/G91)))))) ->  | Q91: =IFERROR(IF(COUNTIF($E$2:$E$501,E91)=1,"",IF(I91="","",ABS(IF(I91="",0,(((H91*OFFSET($S$1,MATCH($E91,$R$2:$R$41,0),,)-G91)/G91)))))),"") ->  | T91: =IFERROR(IF(COUNTIF($F$2:$F$501,F91)=1,"",IF(I91="","",ABS(IF(I91="",0,(((H91*OFFSET($V$1,MATCH($F91,$U$2:$U$105,0),,)-G91)/G91)))))),"") ->  | U91: 8675 | V91: =IF(COUNT(IF($F$2:$F$501=U91,$I$2:$I$501))<$X$3,"",HARMEAN(IF($F$2:$F$501=U91,$I$2:$I$501))) ->  | W91: =IF(OR(J91<(QUARTILE($J$2:$J$501,1))-1.5*(QUARTILE($J$2:$J$501,3)-QUARTILE($J$2:$J$501,1)),J91>(QUARTILE($J$2:$J$501,3))+1.5*(QUARTILE($J$2:$J$501,3)-QUARTILE($J$2:$J$501,1))),"Outlier") -> Outlier
A92: 901686 | B92: CMS ENERGY | C92: 7000 | D92: 7500 | E92: 7530 | F92: 7535 | G92: 23.33 | H92: 1.31 | I92: =(IF(IFERROR(G92/H92,"")<0,"",IFERROR(G92/H92,""))) -> 17.80916031 | J92: =IF(COUNTIF($C$2:$C$501,C92)=1,"",IF(I92="","",ABS(IF(I92="",0,(((H92*OFFSET($M$1,MATCH($C92,$L$2:$L$40,0),,)-G92)/G92)))))) -> 0.05728034585 | K92: =IF(OR(J92<(QUARTILE($J$2:$J$501,1))-1.5*(QUARTILE($J$2:$J$501,3)-QUARTILE($J$2:$J$501,1)),J92>(QUARTILE($J$2:$J$501,3))+1.5*(QUARTILE($J$2:$J$501,3)-QUARTILE($J$2:$J$501,1))),"",J92) -> 0.05728034585 | N92: =IF(COUNTIF($D$2:$D$501,D92)=1,"",IF(I92="","",ABS(IF(I92="",0,(((H92*OFFSET($P$1,MATCH($D92,$O$2:$O$40,0),,)-G92)/G92)))))) -> 0.05728034585 | Q92: =IFERROR(IF(COUNTIF($E$2:$E$501,E92)=1,"",IF(I92="","",ABS(IF(I92="",0,(((H92*OFFSET($S$1,MATCH($E92,$R$2:$R$41,0),,)-G92)/G92)))))),"") -> 0.1090480935 | T92: =IFERROR(IF(COUNTIF($F$2:$F$501,F92)=1,"",IF(I92="","",ABS(IF(I92="",0,(((H92*OFFSET($V$1,MATCH($F92,$U$2:$U$105,0),,)-G92)/G92)))))),"") -> 0.1090480935 | U92: 8677 | V92: =IF(COUNT(IF($F$2:$F$501=U92,$I$2:$I$501))<$X$3,"",HARMEAN(IF($F$2:$F$501=U92,$I$2:$I$501))) ->  | W92: =IF(OR(J92<(QUARTILE($J$2:$J$501,1))-1.5*(QUARTILE($J$2:$J$501,3)-QUARTILE($J$2:$J$501,1)),J92>(QUARTILE($J$2:$J$501,3))+1.5*(QUARTILE($J$2:$J$501,3)-QUARTILE($J$2:$J$501,1))),"Outlier") -> FALSE
A93: 696703 | B93: CONSOL EN. | C93: 1000 | D93: 1700 | E93: 1770 | F93: 1771 | G93: 29.31 | H93: 2.34 | I93: =(IF(IFERROR(G93/H93,"")<0,"",IFERROR(G93/H93,""))) -> 12.52564103 | J93: =IF(COUNTIF($C$2:$C$501,C93)=1,"",IF(I93="","",ABS(IF(I93="",0,(((H93*OFFSET($M$1,MATCH($C93,$L$2:$L$40,0),,)-G93)/G93)))))) -> 0.2372123256 | K93: =IF(OR(J93<(QUARTILE($J$2:$J$501,1))-1.5*(QUARTILE($J$2:$J$501,3)-QUARTILE($J$2:$J$501,1)),J93>(QUARTILE($J$2:$J$501,3))+1.5*(QUARTILE($J$2:$J$501,3)-QUARTILE($J$2:$J$501,1))),"",J93) -> 0.2372123256 | N93: =IF(COUNTIF($D$2:$D$501,D93)=1,"",IF(I93="","",ABS(IF(I93="",0,(((H93*OFFSET($P$1,MATCH($D93,$O$2:$O$40,0),,)-G93)/G93)))))) -> 0.00453292319 | Q93: =IFERROR(IF(COUNTIF($E$2:$E$501,E93)=1,"",IF(I93="","",ABS(IF(I93="",0,(((H93*OFFSET($S$1,MATCH($E93,$R$2:$R$41,0),,)-G93)/G93)))))),"") ->  | T93: =IFERROR(IF(COUNTIF($F$2:$F$501,F93)=1,"",IF(I93="","",ABS(IF(I93="",0,(((H93*OFFSET($V$1,MATCH($F93,$U$2:$U$105,0),,)-G93)/G93)))))),"") ->  | U93: 8771 | V93: =IF(COUNT(IF($F$2:$F$501=U93,$I$2:$I$501))<$X$3,"",HARMEAN(IF($F$2:$F$501=U93,$I$2:$I$501))) -> 13.72443441 | W93: =IF(OR(J93<(QUARTILE($J$2:$J$501,1))-1.5*(QUARTILE($J$2:$J$501,3)-QUARTILE($J$2:$J$501,1)),J93>(QUARTILE($J$2:$J$501,3))+1.5*(QUARTILE($J$2:$J$501,3)-QUARTILE($J$2:$J$501,1))),"Outlier") -> FALSE
A94: 993189 | B94: CSX | C94: 2000 | D94: 2700 | E94: 2770 | F94: 2775 | G94: 21.88 | H94: 1.75 | I94: =(IF(IFERROR(G94/H94,"")<0,"",IFERROR(G94/H94,""))) -> 12.50285714 | J94: =IF(COUNTIF($C$2:$C$501,C94)=1,"",IF(I94="","",ABS(IF(I94="",0,(((H94*OFFSET($M$1,MATCH($C94,$L$2:$L$40,0),,)-G94)/G94)))))) -> 0.1600413279 | K94: =IF(OR(J94<(QUARTILE($J$2:$J$501,1))-1.5*(QUARTILE($J$2:$J$501,3)-QUARTILE($J$2:$J$501,1)),J94>(QUARTILE($J$2:$J$501,3))+1.5*(QUARTILE($J$2:$J$501,3)-QUARTILE($J$2:$J$501,1))),"",J94) -> 0.1600413279 | N94: =IF(COUNTIF($D$2:$D$501,D94)=1,"",IF(I94="","",ABS(IF(I94="",0,(((H94*OFFSET($P$1,MATCH($D94,$O$2:$O$40,0),,)-G94)/G94)))))) -> 0.1452142972 | Q94: =IFERROR(IF(COUNTIF($E$2:$E$501,E94)=1,"",IF(I94="","",ABS(IF(I94="",0,(((H94*OFFSET($S$1,MATCH($E94,$R$2:$R$41,0),,)-G94)/G94)))))),"") -> 0.1764008015 | T94: =IFERROR(IF(COUNTIF($F$2:$F$501,F94)=1,"",IF(I94="","",ABS(IF(I94="",0,(((H94*OFFSET($V$1,MATCH($F94,$U$2:$U$105,0),,)-G94)/G94)))))),"") -> 0.1624541109 | U94: 8773 | V94: =IF(COUNT(IF($F$2:$F$501=U94,$I$2:$I$501))<$X$3,"",HARMEAN(IF($F$2:$F$501=U94,$I$2:$I$501))) -> 10.04247879 | W94: =IF(OR(J94<(QUARTILE($J$2:$J$501,1))-1.5*(QUARTILE($J$2:$J$501,3)-QUARTILE($J$2:$J$501,1)),J94>(QUARTILE($J$2:$J$501,3))+1.5*(QUARTILE($J$2:$J$501,3)-QUARTILE($J$2:$J$501,1))),"Outlier") -> FALSE
A95: 912635 | B95: CVS CAREMARK | C95: 5000 | D95: 5300 | E95: 5330 | F95: 5333 | G95: 45.99 | H95: 2.65 | I95: =(IF(IFERROR(G95/H95,"")<0,"",IFERROR(G95/H95,""))) -> 17.35471698 | J95: =IF(COUNTIF($C$2:$C$501,C95)=1,"",IF(I95="","",ABS(IF(I95="",0,(((H95*OFFSET($M$1,MATCH($C95,$L$2:$L$40,0),,)-G95)/G95)))))) -> 0.09128382911 | K95: =IF(OR(J95<(QUARTILE($J$2:$J$501,1))-1.5*(QUARTILE($J$2:$J$501,3)-QUARTILE($J$2:$J$501,1)),J95>(QUARTILE($J$2:$J$501,3))+1.5*(QUARTILE($J$2:$J$501,3)-QUARTILE($J$2:$J$501,1))),"",J95) -> 0.09128382911 | N95: =IF(COUNTIF($D$2:$D$501,D95)=1,"",IF(I95="","",ABS(IF(I95="",0,(((H95*OFFSET($P$1,MATCH($D95,$O$2:$O$40,0),,)-G95)/G95)))))) -> 0.1603740477 | Q95: =IFERROR(IF(COUNTIF($E$2:$E$501,E95)=1,"",IF(I95="","",ABS(IF(I95="",0,(((H95*OFFSET($S$1,MATCH($E95,$R$2:$R$41,0),,)-G95)/G95)))))),"") -> 0.1145621405 | T95: =IFERROR(IF(COUNTIF($F$2:$F$501,F95)=1,"",IF(I95="","",ABS(IF(I95="",0,(((H95*OFFSET($V$1,MATCH($F95,$U$2:$U$105,0),,)-G95)/G95)))))),"") -> 0.1931356887 | U95: 8775 | V95: =IF(COUNT(IF($F$2:$F$501=U95,$I$2:$I$501))<$X$3,"",HARMEAN(IF($F$2:$F$501=U95,$I$2:$I$501))) ->  | W95: =IF(OR(J95<(QUARTILE($J$2:$J$501,1))-1.5*(QUARTILE($J$2:$J$501,3)-QUARTILE($J$2:$J$501,1)),J95>(QUARTILE($J$2:$J$501,3))+1.5*(QUARTILE($J$2:$J$501,3)-QUARTILE($J$2:$J$501,1))),"Outlier") -> FALSE
A96: 905075 | B96: CAMPBELL SOUP | C96: 3000 | D96: 3500 | E96: 3570 | F96: 3577 | G96: 32.52 | H96: 2.32 | I96: =(IF(IFERROR(G96/H96,"")<0,"",IFERROR(G96/H96,""))) -> 14.01724138 | J96: =IF(COUNTIF($C$2:$C$501,C96)=1,"",IF(I96="","",ABS(IF(I96="",0,(((H96*OFFSET($M$1,MATCH($C96,$L$2:$L$40,0),,)-G96)/G96)))))) -> 0.1407511415 | K96: =IF(OR(J96<(QUARTILE($J$2:$J$501,1))-1.5*(QUARTILE($J$2:$J$501,3)-QUARTILE($J$2:$J$501,1)),J96>(QUARTILE($J$2:$J$501,3))+1.5*(QUARTILE($J$2:$J$501,3)-QUARTILE($J$2:$J$501,1))),"",J96) -> 0.1407511415 | N96: =IF(COUNTIF($D$2:$D$501,D96)=1,"",IF(I96="","",ABS(IF(I96="",0,(((H96*OFFSET($P$1,MATCH($D96,$O$2:$O$40,0),,)-G96)/G96)))))) -> 0.274453793 | Q96: =IFERROR(IF(COUNTIF($E$2:$E$501,E96)=1,"",IF(I96="","",ABS(IF(I96="",0,(((H96*OFFSET($S$1,MATCH($E96,$R$2:$R$41,0),,)-G96)/G96)))))),"") -> 0.2715614214 | T96: =IFERROR(IF(COUNTIF($F$2:$F$501,F96)=1,"",IF(I96="","",ABS(IF(I96="",0,(((H96*OFFSET($V$1,MATCH($F96,$U$2:$U$105,0),,)-G96)/G96)))))),"") -> 0.247323143 | U96: 8777 | V96: =IF(COUNT(IF($F$2:$F$501=U96,$I$2:$I$501))<$X$3,"",HARMEAN(IF($F$2:$F$501=U96,$I$2:$I$501))) -> 11.86836873 | W96: =IF(OR(J96<(QUARTILE($J$2:$J$501,1))-1.5*(QUARTILE($J$2:$J$501,3)-QUARTILE($J$2:$J$501,1)),J96>(QUARTILE($J$2:$J$501,3))+1.5*(QUARTILE($J$2:$J$501,3)-QUARTILE($J$2:$J$501,1))),"Outlier") -> FALSE
A97: 134843 | B97: CAPITAL ONE FINL. | C97: 8000 | D97: 8700 | E97: 8770 | F97: 8773 | G97: 53.46 | H97: 7.3 | I97: =(IF(IFERROR(G97/H97,"")<0,"",IFERROR(G97/H97,""))) -> 7.323287671 | J97: =IF(COUNTIF($C$2:$C$501,C97)=1,"",IF(I97="","",ABS(IF(I97="",0,(((H97*OFFSET($M$1,MATCH($C97,$L$2:$L$40,0),,)-G97)/G97)))))) -> 0.8162322303 | K97: =IF(OR(J97<(QUARTILE($J$2:$J$501,1))-1.5*(QUARTILE($J$2:$J$501,3)-QUARTILE($J$2:$J$501,1)),J97>(QUARTILE($J$2:$J$501,3))+1.5*(QUARTILE($J$2:$J$501,3)-QUARTILE($J$2:$J$501,1))),"",J97) -> 0.8162322303 | N97: =IF(COUNTIF($D$2:$D$501,D97)=1,"",IF(I97="","",ABS(IF(I97="",0,(((H97*OFFSET($P$1,MATCH($D97,$O$2:$O$40,0),,)-G97)/G97)))))) -> 0.710657787 | Q97: =IFERROR(IF(COUNTIF($E$2:$E$501,E97)=1,"",IF(I97="","",ABS(IF(I97="",0,(((H97*OFFSET($S$1,MATCH($E97,$R$2:$R$41,0),,)-G97)/G97)))))),"") -> 0.710657787 | T97: =IFERROR(IF(COUNTIF($F$2:$F$501,F97)=1,"",IF(I97="","",ABS(IF(I97="",0,(((H97*OFFSET($V$1,MATCH($F97,$U$2:$U$105,0),,)-G97)/G97)))))),"") -> 0.3713074289 | U97: 8779 | V97: =IF(COUNT(IF($F$2:$F$501=U97,$I$2:$I$501))<$X$3,"",HARMEAN(IF($F$2:$F$501=U97,$I$2:$I$501))) ->  | W97: =IF(OR(J97<(QUARTILE($J$2:$J$501,1))-1.5*(QUARTILE($J$2:$J$501,3)-QUARTILE($J$2:$J$501,1)),J97>(QUARTILE($J$2:$J$501,3))+1.5*(QUARTILE($J$2:$J$501,3)-QUARTILE($J$2:$J$501,1))),"Outlier") -> FALSE
A98: 944704 | B98: CARDINAL HEALTH | C98: 5000 | D98: 5300 | E98: 5330 | F98: 5333 | G98: 40.96 | H98: 2.95 | I98: =(IF(IFERROR(G98/H98,"")<0,"",IFERROR(G98/H98,""))) -> 13.88474576 | J98: =IF(COUNTIF($C$2:$C$501,C98)=1,"",IF(I98="","",ABS(IF(I98="",0,(((H98*OFFSET($M$1,MATCH($C98,$L$2:$L$40,0),,)-G98)/G98)))))) -> 0.1358156809 | K98: =IF(OR(J98<(QUARTILE($J$2:$J$501,1))-1.5*(QUARTILE($J$2:$J$501,3)-QUARTILE($J$2:$J$501,1)),J98>(QUARTILE($J$2:$J$501,3))+1.5*(QUARTILE($J$2:$J$501,3)-QUARTILE($J$2:$J$501,1))),"",J98) -> 0.1358156809 | N98: =IF(COUNTIF($D$2:$D$501,D98)=1,"",IF(I98="","",ABS(IF(I98="",0,(((H98*OFFSET($P$1,MATCH($D98,$O$2:$O$40,0),,)-G98)/G98)))))) -> 0.04945895454 | Q98: =IFERROR(IF(COUNTIF($E$2:$E$501,E98)=1,"",IF(I98="","",ABS(IF(I98="",0,(((H98*OFFSET($S$1,MATCH($E98,$R$2:$R$41,0),,)-G98)/G98)))))),"") -> 0.106719829 | T98: =IFERROR(IF(COUNTIF($F$2:$F$501,F98)=1,"",IF(I98="","",ABS(IF(I98="",0,(((H98*OFFSET($V$1,MATCH($F98,$U$2:$U$105,0),,)-G98)/G98)))))),"") -> 0.008509770644 | U98: 8985 | V98: =IF(COUNT(IF($F$2:$F$501=U98,$I$2:$I$501))<$X$3,"",HARMEAN(IF($F$2:$F$501=U98,$I$2:$I$501))) ->  | W98: =IF(OR(J98<(QUARTILE($J$2:$J$501,1))-1.5*(QUARTILE($J$2:$J$501,3)-QUARTILE($J$2:$J$501,1)),J98>(QUARTILE($J$2:$J$501,3))+1.5*(QUARTILE($J$2:$J$501,3)-QUARTILE($J$2:$J$501,1))),"Outlier") -> FALSE
A99: 755695 | B99: CARNIVAL | C99: 5000 | D99: 5700 | E99: 5750 | F99: 5755 | G99: 33.74 | H99: 1.81 | I99: =(IF(IFERROR(G99/H99,"")<0,"",IFERROR(G99/H99,""))) -> 18.64088398 | J99: =IF(COUNTIF($C$2:$C$501,C99)=1,"",IF(I99="","",ABS(IF(I99="",0,(((H99*OFFSET($M$1,MATCH($C99,$L$2:$L$40,0),,)-G99)/G99)))))) -> 0.1539826126 | K99: =IF(OR(J99<(QUARTILE($J$2:$J$501,1))-1.5*(QUARTILE($J$2:$J$501,3)-QUARTILE($J$2:$J$501,1)),J99>(QUARTILE($J$2:$J$501,3))+1.5*(QUARTILE($J$2:$J$501,3)-QUARTILE($J$2:$J$501,1))),"",J99) -> 0.1539826126 | N99: =IF(COUNTIF($D$2:$D$501,D99)=1,"",IF(I99="","",ABS(IF(I99="",0,(((H99*OFFSET($P$1,MATCH($D99,$O$2:$O$40,0),,)-G99)/G99)))))) -> 0.174780737 | Q99: =IFERROR(IF(COUNTIF($E$2:$E$501,E99)=1,"",IF(I99="","",ABS(IF(I99="",0,(((H99*OFFSET($S$1,MATCH($E99,$R$2:$R$41,0),,)-G99)/G99)))))),"") -> 0.174780737 | T99: =IFERROR(IF(COUNTIF($F$2:$F$501,F99)=1,"",IF(I99="","",ABS(IF(I99="",0,(((H99*OFFSET($V$1,MATCH($F99,$U$2:$U$105,0),,)-G99)/G99)))))),"") ->  | U99: 9533 | V99: =IF(COUNT(IF($F$2:$F$501=U99,$I$2:$I$501))<$X$3,"",HARMEAN(IF($F$2:$F$501=U99,$I$2:$I$501))) -> 11.76349391 | W99: =IF(OR(J99<(QUARTILE($J$2:$J$501,1))-1.5*(QUARTILE($J$2:$J$501,3)-QUARTILE($J$2:$J$501,1)),J99>(QUARTILE($J$2:$J$501,3))+1.5*(QUARTILE($J$2:$J$501,3)-QUARTILE($J$2:$J$501,1))),"Outlier") -> FALSE
A100: 902224 | B100: CATERPILLAR | C100: 2000 | D100: 2700 | E100: 2750 | F100: 2753 | G100: 82.63 | H100: 7.92 | I100: =(IF(IFERROR(G100/H100,"")<0,"",IFERROR(G100/H100,""))) -> 10.43308081 | J100: =IF(COUNTIF($C$2:$C$501,C100)=1,"",IF(I100="","",ABS(IF(I100="",0,(((H100*OFFSET($M$1,MATCH($C100,$L$2:$L$40,0),,)-G100)/G100)))))) -> 0.390177194 | K100: =IF(OR(J100<(QUARTILE($J$2:$J$501,1))-1.5*(QUARTILE($J$2:$J$501,3)-QUARTILE($J$2:$J$501,1)),J100>(QUARTILE($J$2:$J$501,3))+1.5*(QUARTILE($J$2:$J$501,3)-QUARTILE($J$2:$J$501,1))),"",J100) -> 0.390177194 | N100: =IF(COUNTIF($D$2:$D$501,D100)=1,"",IF(I100="","",ABS(IF(I100="",0,(((H100*OFFSET($P$1,MATCH($D100,$O$2:$O$40,0),,)-G100)/G100)))))) -> 0.3724086892 | Q100: =IFERROR(IF(COUNTIF($E$2:$E$501,E100)=1,"",IF(I100="","",ABS(IF(I100="",0,(((H100*OFFSET($S$1,MATCH($E100,$R$2:$R$41,0),,)-G100)/G100)))))),"") -> 0.1712458381 | T100: =IFERROR(IF(COUNTIF($F$2:$F$501,F100)=1,"",IF(I100="","",ABS(IF(I100="",0,(((H100*OFFSET($V$1,MATCH($F100,$U$2:$U$105,0),,)-G100)/G100)))))),"") -> 0.1545297583 | U100: 9535 | V100: =IF(COUNT(IF($F$2:$F$501=U100,$I$2:$I$501))<$X$3,"",HARMEAN(IF($F$2:$F$501=U100,$I$2:$I$501))) ->  | W100: =IF(OR(J100<(QUARTILE($J$2:$J$501,1))-1.5*(QUARTILE($J$2:$J$501,3)-QUARTILE($J$2:$J$501,1)),J100>(QUARTILE($J$2:$J$501,3))+1.5*(QUARTILE($J$2:$J$501,3)-QUARTILE($J$2:$J$501,1))),"Outlier") -> FALSE
A101: 755790 | B101: CELGENE | C101: 4000 | D101: 4500 | E101: 4570 | F101: 4573 | G101: 62.05 | H101: 3.21 | I101: =(IF(IFERROR(G101/H101,"")<0,"",IFERROR(G101/H101,""))) -> 19.33021807 | J101: =IF(COUNTIF($C$2:$C$501,C101)=1,"",IF(I101="","",ABS(IF(I101="",0,(((H101*OFFSET($M$1,MATCH($C101,$L$2:$L$40,0),,)-G101)/G101)))))) -> 0.1243868944 | K101: =IF(OR(J101<(QUARTILE($J$2:$J$501,1))-1.5*(QUARTILE($J$2:$J$501,3)-QUARTILE($J$2:$J$501,1)),J101>(QUARTILE($J$2:$J$501,3))+1.5*(QUARTILE($J$2:$J$501,3)-QUARTILE($J$2:$J$501,1))),"",J101) -> 0.1243868944 | N101: =IF(COUNTIF($D$2:$D$501,D101)=1,"",IF(I101="","",ABS(IF(I101="",0,(((H101*OFFSET($P$1,MATCH($D101,$O$2:$O$40,0),,)-G101)/G101)))))) -> 0.1243868944 | Q101: =IFERROR(IF(COUNTIF($E$2:$E$501,E101)=1,"",IF(I101="","",ABS(IF(I101="",0,(((H101*OFFSET($S$1,MATCH($E101,$R$2:$R$41,0),,)-G101)/G101)))))),"") -> 0.02892186768 | T101: =IFERROR(IF(COUNTIF($F$2:$F$501,F101)=1,"",IF(I101="","",ABS(IF(I101="",0,(((H101*OFFSET($V$1,MATCH($F101,$U$2:$U$105,0),,)-G101)/G101)))))),"") -> 0.2575159689 | U101: 9537 | V101: =IF(COUNT(IF($F$2:$F$501=U101,$I$2:$I$501))<$X$3,"",HARMEAN(IF($F$2:$F$501=U101,$I$2:$I$501))) -> 14.49269908 | W101: =IF(OR(J101<(QUARTILE($J$2:$J$501,1))-1.5*(QUARTILE($J$2:$J$501,3)-QUARTILE($J$2:$J$501,1)),J101>(QUARTILE($J$2:$J$501,3))+1.5*(QUARTILE($J$2:$J$501,3)-QUARTILE($J$2:$J$501,1))),"Outlier") -> FALSE
A102: 904842 | B102: CENTERPOINT EN. | C102: 7000 | D102: 7500 | E102: 7570 | F102: 7575 | G102: 20.62 | H102: 1.79 | I102: =(IF(IFERROR(G102/H102,"")<0,"",IFERROR(G102/H102,""))) -> 11.51955307 | J102: =IF(COUNTIF($C$2:$C$501,C102)=1,"",IF(I102="","",ABS(IF(I102="",0,(((H102*OFFSET($M$1,MATCH($C102,$L$2:$L$40,0),,)-G102)/G102)))))) -> 0.4574389595 | K102: =IF(OR(J102<(QUARTILE($J$2:$J$501,1))-1.5*(QUARTILE($J$2:$J$501,3)-QUARTILE($J$2:$J$501,1)),J102>(QUARTILE($J$2:$J$501,3))+1.5*(QUARTILE($J$2:$J$501,3)-QUARTILE($J$2:$J$501,1))),"",J102) -> 0.4574389595 | N102: =IF(COUNTIF($D$2:$D$501,D102)=1,"",IF(I102="","",ABS(IF(I102="",0,(((H102*OFFSET($P$1,MATCH($D102,$O$2:$O$40,0),,)-G102)/G102)))))) -> 0.4574389595 | Q102: =IFERROR(IF(COUNTIF($E$2:$E$501,E102)=1,"",IF(I102="","",ABS(IF(I102="",0,(((H102*OFFSET($S$1,MATCH($E102,$R$2:$R$41,0),,)-G102)/G102)))))),"") -> 0.6490741126 | T102: =IFERROR(IF(COUNTIF($F$2:$F$501,F102)=1,"",IF(I102="","",ABS(IF(I102="",0,(((H102*OFFSET($V$1,MATCH($F102,$U$2:$U$105,0),,)-G102)/G102)))))),"") -> 0.6246339555 | U102: 9572 | V102: =IF(COUNT(IF($F$2:$F$501=U102,$I$2:$I$501))<$X$3,"",HARMEAN(IF($F$2:$F$501=U102,$I$2:$I$501))) -> 11.17645118 | W102: =IF(OR(J102<(QUARTILE($J$2:$J$501,1))-1.5*(QUARTILE($J$2:$J$501,3)-QUARTILE($J$2:$J$501,1)),J102>(QUARTILE($J$2:$J$501,3))+1.5*(QUARTILE($J$2:$J$501,3)-QUARTILE($J$2:$J$501,1))),"Outlier") -> FALSE
A103: 916604 | B103: CENTEX DEAD - DELIST.19/08/09 | C103: 3000 | D103: 3700 | E103: 3720 | F103: 3728 | G103: 11.95 | H103: 0 | I103: =(IF(IFERROR(G103/H103,"")<0,"",IFERROR(G103/H103,""))) ->  | J103: =IF(COUNTIF($C$2:$C$501,C103)=1,"",IF(I103="","",ABS(IF(I103="",0,(((H103*OFFSET($M$1,MATCH($C103,$L$2:$L$40,0),,)-G103)/G103)))))) ->  | K103: =IF(OR(J103<(QUARTILE($J$2:$J$501,1))-1.5*(QUARTILE($J$2:$J$501,3)-QUARTILE($J$2:$J$501,1)),J103>(QUARTILE($J$2:$J$501,3))+1.5*(QUARTILE($J$2:$J$501,3)-QUARTILE($J$2:$J$501,1))),"",J103) ->  | N103: =IF(COUNTIF($D$2:$D$501,D103)=1,"",IF(I103="","",ABS(IF(I103="",0,(((H103*OFFSET($P$1,MATCH($D103,$O$2:$O$40,0),,)-G103)/G103)))))) ->  | Q103: =IFERROR(IF(COUNTIF($E$2:$E$501,E103)=1,"",IF(I103="","",ABS(IF(I103="",0,(((H103*OFFSET($S$1,MATCH($E103,$R$2:$R$41,0),,)-G103)/G103)))))),"") ->  | T103: =IFERROR(IF(COUNTIF($F$2:$F$501,F103)=1,"",IF(I103="","",ABS(IF(I103="",0,(((H103*OFFSET($V$1,MATCH($F103,$U$2:$U$105,0),,)-G103)/G103)))))),"") ->  | U103: 9574 | V103: =IF(COUNT(IF($F$2:$F$501=U103,$I$2:$I$501))<$X$3,"",HARMEAN(IF($F$2:$F$501=U103,$I$2:$I$501))) ->  | W103: =IF(OR(J103<(QUARTILE($J$2:$J$501,1))-1.5*(QUARTILE($J$2:$J$501,3)-QUARTILE($J$2:$J$501,1)),J103>(QUARTILE($J$2:$J$501,3))+1.5*(QUARTILE($J$2:$J$501,3)-QUARTILE($J$2:$J$501,1))),"Outlier") -> Outlier
A104: 906838 | B104: CENTURYLINK | C104: 6000 | D104: 6500 | E104: 6530 | F104: 6535 | G104: 38.8 | H104: 0.99 | I104: =(IF(IFERROR(G104/H104,"")<0,"",IFERROR(G104/H104,""))) -> 39.19191919 | J104: =IF(COUNTIF($C$2:$C$501,C104)=1,"",IF(I104="","",ABS(IF(I104="",0,(((H104*OFFSET($M$1,MATCH($C104,$L$2:$L$40,0),,)-G104)/G104)))))) -> 0.4034483489 | K104: =IF(OR(J104<(QUARTILE($J$2:$J$501,1))-1.5*(QUARTILE($J$2:$J$501,3)-QUARTILE($J$2:$J$501,1)),J104>(QUARTILE($J$2:$J$501,3))+1.5*(QUARTILE($J$2:$J$501,3)-QUARTILE($J$2:$J$501,1))),"",J104) -> 0.4034483489 | N104: =IF(COUNTIF($D$2:$D$501,D104)=1,"",IF(I104="","",ABS(IF(I104="",0,(((H104*OFFSET($P$1,MATCH($D104,$O$2:$O$40,0),,)-G104)/G104)))))) -> 0.4034483489 | Q104: =IFERROR(IF(COUNTIF($E$2:$E$501,E104)=1,"",IF(I104="","",ABS(IF(I104="",0,(((H104*OFFSET($S$1,MATCH($E104,$R$2:$R$41,0),,)-G104)/G104)))))),"") -> 0.4166947348 | T104: =IFERROR(IF(COUNTIF($F$2:$F$501,F104)=1,"",IF(I104="","",ABS(IF(I104="",0,(((H104*OFFSET($V$1,MATCH($F104,$U$2:$U$105,0),,)-G104)/G104)))))),"") -> 0.4166947348 | U104: 9576 | V104: =IF(COUNT(IF($F$2:$F$501=U104,$I$2:$I$501))<$X$3,"",HARMEAN(IF($F$2:$F$501=U104,$I$2:$I$501))) -> 13.89101954 | W104: =IF(OR(J104<(QUARTILE($J$2:$J$501,1))-1.5*(QUARTILE($J$2:$J$501,3)-QUARTILE($J$2:$J$501,1)),J104>(QUARTILE($J$2:$J$501,3))+1.5*(QUARTILE($J$2:$J$501,3)-QUARTILE($J$2:$J$501,1))),"Outlier") -> FALSE
A105: 755741 | B105: CHARLES SCHWAB | C105: 8000 | D105: 8700 | E105: 8770 | F105: 8777 | G105: 12.54 | H105: 0.66 | I105: =(IF(IFERROR(G105/H105,"")<0,"",IFERROR(G105/H105,""))) -> 19 | J105: =IF(COUNTIF($C$2:$C$501,C105)=1,"",IF(I105="","",ABS(IF(I105="",0,(((H105*OFFSET($M$1,MATCH($C105,$L$2:$L$40,0),,)-G105)/G105)))))) -> 0.2999583632 | K105: =IF(OR(J105<(QUARTILE($J$2:$J$501,1))-1.5*(QUARTILE($J$2:$J$501,3)-QUARTILE($J$2:$J$501,1)),J105>(QUARTILE($J$2:$J$501,3))+1.5*(QUARTILE($J$2:$J$501,3)-QUARTILE($J$2:$J$501,1))),"",J105) -> 0.2999583632 | N105: =IF(COUNTIF($D$2:$D$501,D105)=1,"",IF(I105="","",ABS(IF(I105="",0,(((H105*OFFSET($P$1,MATCH($D105,$O$2:$O$40,0),,)-G105)/G105)))))) -> 0.3406505747 | Q105: =IFERROR(IF(COUNTIF($E$2:$E$501,E105)=1,"",IF(I105="","",ABS(IF(I105="",0,(((H105*OFFSET($S$1,MATCH($E105,$R$2:$R$41,0),,)-G105)/G105)))))),"") -> 0.3406505747 | T105: =IFERROR(IF(COUNTIF($F$2:$F$501,F105)=1,"",IF(I105="","",ABS(IF(I105="",0,(((H105*OFFSET($V$1,MATCH($F105,$U$2:$U$105,0),,)-G105)/G105)))))),"") -> 0.3753490144 | U105: 9578 | V105: =IF(COUNT(IF($F$2:$F$501=U105,$I$2:$I$501))<$X$3,"",HARMEAN(IF($F$2:$F$501=U105,$I$2:$I$501))) -> 14.83069963 | W105: =IF(OR(J105<(QUARTILE($J$2:$J$501,1))-1.5*(QUARTILE($J$2:$J$501,3)-QUARTILE($J$2:$J$501,1)),J105>(QUARTILE($J$2:$J$501,3))+1.5*(QUARTILE($J$2:$J$501,3)-QUARTILE($J$2:$J$501,1))),"Outlier") -> FALSE
A106: 130375 | B106: QLOGIC | C106: 9000 | D106: 9500 | E106: 9570 | F106: 9578 | G106: 13.31 | H106: 1.17 | I106: =(IF(IFERROR(G106/H106,"")<0,"",IFERROR(G106/H106,""))) -> 11.37606838 | J106: =IF(COUNTIF($C$2:$C$501,C106)=1,"",IF(I106="","",ABS(IF(I106="",0,(((H106*OFFSET($M$1,MATCH($C106,$L$2:$L$40,0),,)-G106)/G106)))))) -> 0.1508384983 | K106: =IF(OR(J106<(QUARTILE($J$2:$J$501,1))-1.5*(QUARTILE($J$2:$J$501,3)-QUARTILE($J$2:$J$501,1)),J106>(QUARTILE($J$2:$J$501,3))+1.5*(QUARTILE($J$2:$J$501,3)-QUARTILE($J$2:$J$501,1))),"",J106) -> 0.1508384983 | N106: =IF(COUNTIF($D$2:$D$501,D106)=1,"",IF(I106="","",ABS(IF(I106="",0,(((H106*OFFSET($P$1,MATCH($D106,$O$2:$O$40,0),,)-G106)/G106)))))) -> 0.1508384983 | Q106: =IFERROR(IF(COUNTIF($E$2:$E$501,E106)=1,"",IF(I106="","",ABS(IF(I106="",0,(((H106*OFFSET($S$1,MATCH($E106,$R$2:$R$41,0),,)-G106)/G106)))))),"") -> 0.1030939174 | T106: =IFERROR(IF(COUNTIF($F$2:$F$501,F106)=1,"",IF(I106="","",ABS(IF(I106="",0,(((H106*OFFSET($V$1,MATCH($F106,$U$2:$U$105,0),,)-G106)/G106)))))),"") -> 0.3036753239 | W106: =IF(OR(J106<(QUARTILE($J$2:$J$501,1))-1.5*(QUARTILE($J$2:$J$501,3)-QUARTILE($J$2:$J$501,1)),J106>(QUARTILE($J$2:$J$501,3))+1.5*(QUARTILE($J$2:$J$501,3)-QUARTILE($J$2:$J$501,1))),"Outlier") -> FALSE
A107: 130809 | B107: PROLOGIS DEAD - DELIST.03/06/11 | C107: 8000 | D107: 8600 | E107: 8670 | F107: 8671 | G107: 15.21 | H107: 0 | I107: =(IF(IFERROR(G107/H107,"")<0,"",IFERROR(G107/H107,""))) ->  | J107: =IF(COUNTIF($C$2:$C$501,C107)=1,"",IF(I107="","",ABS(IF(I107="",0,(((H107*OFFSET($M$1,MATCH($C107,$L$2:$L$40,0),,)-G107)/G107)))))) ->  | K107: =IF(OR(J107<(QUARTILE($J$2:$J$501,1))-1.5*(QUARTILE($J$2:$J$501,3)-QUARTILE($J$2:$J$501,1)),J107>(QUARTILE($J$2:$J$501,3))+1.5*(QUARTILE($J$2:$J$501,3)-QUARTILE($J$2:$J$501,1))),"",J107) ->  | N107: =IF(COUNTIF($D$2:$D$501,D107)=1,"",IF(I107="","",ABS(IF(I107="",0,(((H107*OFFSET($P$1,MATCH($D107,$O$2:$O$40,0),,)-G107)/G107)))))) ->  | Q107: =IFERROR(IF(COUNTIF($E$2:$E$501,E107)=1,"",IF(I107="","",ABS(IF(I107="",0,(((H107*OFFSET($S$1,MATCH($E107,$R$2:$R$41,0),,)-G107)/G107)))))),"") ->  | T107: =IFERROR(IF(COUNTIF($F$2:$F$501,F107)=1,"",IF(I107="","",ABS(IF(I107="",0,(((H107*OFFSET($V$1,MATCH($F107,$U$2:$U$105,0),,)-G107)/G107)))))),"") ->  | W107: =IF(OR(J107<(QUARTILE($J$2:$J$501,1))-1.5*(QUARTILE($J$2:$J$501,3)-QUARTILE($J$2:$J$501,1)),J107>(QUARTILE($J$2:$J$501,3))+1.5*(QUARTILE($J$2:$J$501,3)-QUARTILE($J$2:$J$501,1))),"Outlier") -> Outlier
A108: 131508 | B108: LEHMAN BROS.HDG. DEAD - DELIST.06/03/12 | C108: 8000 | D108: 8700 | E108: 8770 | F108: 8777 | G108: 0.03 | H108: 0 | I108: =(IF(IFERROR(G108/H108,"")<0,"",IFERROR(G108/H108,""))) ->  | J108: =IF(COUNTIF($C$2:$C$501,C108)=1,"",IF(I108="","",ABS(IF(I108="",0,(((H108*OFFSET($M$1,MATCH($C108,$L$2:$L$40,0),,)-G108)/G108)))))) ->  | K108: =IF(OR(J108<(QUARTILE($J$2:$J$501,1))-1.5*(QUARTILE($J$2:$J$501,3)-QUARTILE($J$2:$J$501,1)),J108>(QUARTILE($J$2:$J$501,3))+1.5*(QUARTILE($J$2:$J$501,3)-QUARTILE($J$2:$J$501,1))),"",J108) ->  | N108: =IF(COUNTIF($D$2:$D$501,D108)=1,"",IF(I108="","",ABS(IF(I108="",0,(((H108*OFFSET($P$1,MATCH($D108,$O$2:$O$40,0),,)-G108)/G108)))))) ->  | Q108: =IFERROR(IF(COUNTIF($E$2:$E$501,E108)=1,"",IF(I108="","",ABS(IF(I108="",0,(((H108*OFFSET($S$1,MATCH($E108,$R$2:$R$41,0),,)-G108)/G108)))))),"") ->  | T108: =IFERROR(IF(COUNTIF($F$2:$F$501,F108)=1,"",IF(I108="","",ABS(IF(I108="",0,(((H108*OFFSET($V$1,MATCH($F108,$U$2:$U$105,0),,)-G108)/G108)))))),"") ->  | W108: =IF(OR(J108<(QUARTILE($J$2:$J$501,1))-1.5*(QUARTILE($J$2:$J$501,3)-QUARTILE($J$2:$J$501,1)),J108>(QUARTILE($J$2:$J$501,3))+1.5*(QUARTILE($J$2:$J$501,3)-QUARTILE($J$2:$J$501,1))),"Outlier") -> Outlier
A109: 134784 | B109: MCKESSON | C109: 5000 | D109: 5300 | E109: 5330 | F109: 5333 | G109: 93.27 | H109: 5.59 | I109: =(IF(IFERROR(G109/H109,"")<0,"",IFERROR(G109/H109,""))) -> 16.68515206 | J109: =IF(COUNTIF($C$2:$C$501,C109)=1,"",IF(I109="","",ABS(IF(I109="",0,(((H109*OFFSET($M$1,MATCH($C109,$L$2:$L$40,0),,)-G109)/G109)))))) -> 0.05481760622 | K109: =IF(OR(J109<(QUARTILE($J$2:$J$501,1))-1.5*(QUARTILE($J$2:$J$501,3)-QUARTILE($J$2:$J$501,1)),J109>(QUARTILE($J$2:$J$501,3))+1.5*(QUARTILE($J$2:$J$501,3)-QUARTILE($J$2:$J$501,1))),"",J109) -> 0.05481760622 | N109: =IF(COUNTIF($D$2:$D$501,D109)=1,"",IF(I109="","",ABS(IF(I109="",0,(((H109*OFFSET($P$1,MATCH($D109,$O$2:$O$40,0),,)-G109)/G109)))))) -> 0.1266803729 | Q109: =IFERROR(IF(COUNTIF($E$2:$E$501,E109)=1,"",IF(I109="","",ABS(IF(I109="",0,(((H109*OFFSET($S$1,MATCH($E109,$R$2:$R$41,0),,)-G109)/G109)))))),"") -> 0.07903006198 | T109: =IFERROR(IF(COUNTIF($F$2:$F$501,F109)=1,"",IF(I109="","",ABS(IF(I109="",0,(((H109*OFFSET($V$1,MATCH($F109,$U$2:$U$105,0),,)-G109)/G109)))))),"") -> 0.1607567185 | W109: =IF(OR(J109<(QUARTILE($J$2:$J$501,1))-1.5*(QUARTILE($J$2:$J$501,3)-QUARTILE($J$2:$J$501,1)),J109>(QUARTILE($J$2:$J$501,3))+1.5*(QUARTILE($J$2:$J$501,3)-QUARTILE($J$2:$J$501,1))),"Outlier") -> FALSE
A110: 152533 | B110: LABORATORY CORP.OF AM. HDG. | C110: 4000 | D110: 4500 | E110: 4530 | F110: 4533 | G110: 92.04 | H110: 5.49 | I110: =(IF(IFERROR(G110/H110,"")<0,"",IFERROR(G110/H110,""))) -> 16.76502732 | J110: =IF(COUNTIF($C$2:$C$501,C110)=1,"",IF(I110="","",ABS(IF(I110="",0,(((H110*OFFSET($M$1,MATCH($C110,$L$2:$L$40,0),,)-G110)/G110)))))) -> 0.009589304519 | K110: =IF(OR(J110<(QUARTILE($J$2:$J$501,1))-1.5*(QUARTILE($J$2:$J$501,3)-QUARTILE($J$2:$J$501,1)),J110>(QUARTILE($J$2:$J$501,3))+1.5*(QUARTILE($J$2:$J$501,3)-QUARTILE($J$2:$J$501,1))),"",J110) -> 0.009589304519 | N110: =IF(COUNTIF($D$2:$D$501,D110)=1,"",IF(I110="","",ABS(IF(I110="",0,(((H110*OFFSET($P$1,MATCH($D110,$O$2:$O$40,0),,)-G110)/G110)))))) -> 0.009589304519 | Q110: =IFERROR(IF(COUNTIF($E$2:$E$501,E110)=1,"",IF(I110="","",ABS(IF(I110="",0,(((H110*OFFSET($S$1,MATCH($E110,$R$2:$R$41,0),,)-G110)/G110)))))),"") -> 0.08752385084 | T110: =IFERROR(IF(COUNTIF($F$2:$F$501,F110)=1,"",IF(I110="","",ABS(IF(I110="",0,(((H110*OFFSET($V$1,MATCH($F110,$U$2:$U$105,0),,)-G110)/G110)))))),"") -> 0.2275989639 | W110: =IF(OR(J110<(QUARTILE($J$2:$J$501,1))-1.5*(QUARTILE($J$2:$J$501,3)-QUARTILE($J$2:$J$501,1)),J110>(QUARTILE($J$2:$J$501,3))+1.5*(QUARTILE($J$2:$J$501,3)-QUARTILE($J$2:$J$501,1))),"Outlier") -> FALSE
A111: 152594 | B111: FREEPORT-MCMOR.CPR.& GD. | C111: 1000 | D111: 1700 | E111: 1750 | F111: 1755 | G111: 32.26 | H111: 4 | I111: =(IF(IFERROR(G111/H111,"")<0,"",IFERROR(G111/H111,""))) -> 8.065 | J111: =IF(COUNTIF($C$2:$C$501,C111)=1,"",IF(I111="","",ABS(IF(I111="",0,(((H111*OFFSET($M$1,MATCH($C111,$L$2:$L$40,0),,)-G111)/G111)))))) -> 0.9214975156 | K111: =IF(OR(J111<(QUARTILE($J$2:$J$501,1))-1.5*(QUARTILE($J$2:$J$501,3)-QUARTILE($J$2:$J$501,1)),J111>(QUARTILE($J$2:$J$501,3))+1.5*(QUARTILE($J$2:$J$501,3)-QUARTILE($J$2:$J$501,1))),"",J111) -> 0.9214975156 | N111: =IF(COUNTIF($D$2:$D$501,D111)=1,"",IF(I111="","",ABS(IF(I111="",0,(((H111*OFFSET($P$1,MATCH($D111,$O$2:$O$40,0),,)-G111)/G111)))))) -> 0.5601263229 | Q111: =IFERROR(IF(COUNTIF($E$2:$E$501,E111)=1,"",IF(I111="","",ABS(IF(I111="",0,(((H111*OFFSET($S$1,MATCH($E111,$R$2:$R$41,0),,)-G111)/G111)))))),"") -> 0.6888579112 | T111: =IFERROR(IF(COUNTIF($F$2:$F$501,F111)=1,"",IF(I111="","",ABS(IF(I111="",0,(((H111*OFFSET($V$1,MATCH($F111,$U$2:$U$105,0),,)-G111)/G111)))))),"") ->  | W111: =IF(OR(J111<(QUARTILE($J$2:$J$501,1))-1.5*(QUARTILE($J$2:$J$501,3)-QUARTILE($J$2:$J$501,1)),J111>(QUARTILE($J$2:$J$501,3))+1.5*(QUARTILE($J$2:$J$501,3)-QUARTILE($J$2:$J$501,1))),"Outlier") -> FALSE
A112: 152719 | B112: DARDEN RESTAURANTS | C112: 5000 | D112: 5700 | E112: 5750 | F112: 5757 | G112: 49.2 | H112: 3.57 | I112: =(IF(IFERROR(G112/H112,"")<0,"",IFERROR(G112/H112,""))) -> 13.78151261 | J112: =IF(COUNTIF($C$2:$C$501,C112)=1,"",IF(I112="","",ABS(IF(I112="",0,(((H112*OFFSET($M$1,MATCH($C112,$L$2:$L$40,0),,)-G112)/G112)))))) -> 0.1443237338 | K112: =IF(OR(J112<(QUARTILE($J$2:$J$501,1))-1.5*(QUARTILE($J$2:$J$501,3)-QUARTILE($J$2:$J$501,1)),J112>(QUARTILE($J$2:$J$501,3))+1.5*(QUARTILE($J$2:$J$501,3)-QUARTILE($J$2:$J$501,1))),"",J112) -> 0.1443237338 | N112: =IF(COUNTIF($D$2:$D$501,D112)=1,"",IF(I112="","",ABS(IF(I112="",0,(((H112*OFFSET($P$1,MATCH($D112,$O$2:$O$40,0),,)-G112)/G112)))))) -> 0.5890092798 | Q112: =IFERROR(IF(COUNTIF($E$2:$E$501,E112)=1,"",IF(I112="","",ABS(IF(I112="",0,(((H112*OFFSET($S$1,MATCH($E112,$R$2:$R$41,0),,)-G112)/G112)))))),"") -> 0.5890092798 | T112: =IFERROR(IF(COUNTIF($F$2:$F$501,F112)=1,"",IF(I112="","",ABS(IF(I112="",0,(((H112*OFFSET($V$1,MATCH($F112,$U$2:$U$105,0),,)-G112)/G112)))))),"") -> 0.5432180009 | W112: =IF(OR(J112<(QUARTILE($J$2:$J$501,1))-1.5*(QUARTILE($J$2:$J$501,3)-QUARTILE($J$2:$J$501,1)),J112>(QUARTILE($J$2:$J$501,3))+1.5*(QUARTILE($J$2:$J$501,3)-QUARTILE($J$2:$J$501,1))),"Outlier") -> FALSE
A113: 154423 | B113: LOCKHEED MARTIN | C113: 2000 | D113: 2700 | E113: 2710 | F113: 2717 | G113: 84.53 | H113: 8.28 | I113: =(IF(IFERROR(G113/H113,"")<0,"",IFERROR(G113/H113,""))) -> 10.2089372 | J113: =IF(COUNTIF($C$2:$C$501,C113)=1,"",IF(I113="","",ABS(IF(I113="",0,(((H113*OFFSET($M$1,MATCH($C113,$L$2:$L$40,0),,)-G113)/G113)))))) -> 0.420699405 | K113: =IF(OR(J113<(QUARTILE($J$2:$J$501,1))-1.5*(QUARTILE($J$2:$J$501,3)-QUARTILE($J$2:$J$501,1)),J113>(QUARTILE($J$2:$J$501,3))+1.5*(QUARTILE($J$2:$J$501,3)-QUARTILE($J$2:$J$501,1))),"",J113) -> 0.420699405 | N113: =IF(COUNTIF($D$2:$D$501,D113)=1,"",IF(I113="","",ABS(IF(I113="",0,(((H113*OFFSET($P$1,MATCH($D113,$O$2:$O$40,0),,)-G113)/G113)))))) -> 0.4025407815 | Q113: =IFERROR(IF(COUNTIF($E$2:$E$501,E113)=1,"",IF(I113="","",ABS(IF(I113="",0,(((H113*OFFSET($S$1,MATCH($E113,$R$2:$R$41,0),,)-G113)/G113)))))),"") -> 0.1119592044 | T113: =IFERROR(IF(COUNTIF($F$2:$F$501,F113)=1,"",IF(I113="","",ABS(IF(I113="",0,(((H113*OFFSET($V$1,MATCH($F113,$U$2:$U$105,0),,)-G113)/G113)))))),"") -> 0.1202147243 | W113: =IF(OR(J113<(QUARTILE($J$2:$J$501,1))-1.5*(QUARTILE($J$2:$J$501,3)-QUARTILE($J$2:$J$501,1)),J113>(QUARTILE($J$2:$J$501,3))+1.5*(QUARTILE($J$2:$J$501,3)-QUARTILE($J$2:$J$501,1))),"Outlier") -> FALSE
A114: 255272 | B114: FLUOR | C114: 2000 | D114: 2300 | E114: 2350 | F114: 2357 | G114: 48.34 | H114: 3.53 | I114: =(IF(IFERROR(G114/H114,"")<0,"",IFERROR(G114/H114,""))) -> 13.69405099 | J114: =IF(COUNTIF($C$2:$C$501,C114)=1,"",IF(I114="","",ABS(IF(I114="",0,(((H114*OFFSET($M$1,MATCH($C114,$L$2:$L$40,0),,)-G114)/G114)))))) -> 0.0591337079 | K114: =IF(OR(J114<(QUARTILE($J$2:$J$501,1))-1.5*(QUARTILE($J$2:$J$501,3)-QUARTILE($J$2:$J$501,1)),J114>(QUARTILE($J$2:$J$501,3))+1.5*(QUARTILE($J$2:$J$501,3)-QUARTILE($J$2:$J$501,1))),"",J114) -> 0.0591337079 | N114: =IF(COUNTIF($D$2:$D$501,D114)=1,"",IF(I114="","",ABS(IF(I114="",0,(((H114*OFFSET($P$1,MATCH($D114,$O$2:$O$40,0),,)-G114)/G114)))))) -> 0.4546260529 | Q114: =IFERROR(IF(COUNTIF($E$2:$E$501,E114)=1,"",IF(I114="","",ABS(IF(I114="",0,(((H114*OFFSET($S$1,MATCH($E114,$R$2:$R$41,0),,)-G114)/G114)))))),"") ->  | T114: =IFERROR(IF(COUNTIF($F$2:$F$501,F114)=1,"",IF(I114="","",ABS(IF(I114="",0,(((H114*OFFSET($V$1,MATCH($F114,$U$2:$U$105,0),,)-G114)/G114)))))),"") ->  | W114: =IF(OR(J114<(QUARTILE($J$2:$J$501,1))-1.5*(QUARTILE($J$2:$J$501,3)-QUARTILE($J$2:$J$501,1)),J114>(QUARTILE($J$2:$J$501,3))+1.5*(QUARTILE($J$2:$J$501,3)-QUARTILE($J$2:$J$501,1))),"Outlier") -> FALSE
A115: 266220 | B115: COACH | C115: 3000 | D115: 3700 | E115: 3760 | F115: 3763 | G115: 56.12 | H115: 3.35 | I115: =(IF(IFERROR(G115/H115,"")<0,"",IFERROR(G115/H115,""))) -> 16.75223881 | J115: =IF(COUNTIF($C$2:$C$501,C115)=1,"",IF(I115="","",ABS(IF(I115="",0,(((H115*OFFSET($M$1,MATCH($C115,$L$2:$L$40,0),,)-G115)/G115)))))) -> 0.04548972295 | K115: =IF(OR(J115<(QUARTILE($J$2:$J$501,1))-1.5*(QUARTILE($J$2:$J$501,3)-QUARTILE($J$2:$J$501,1)),J115>(QUARTILE($J$2:$J$501,3))+1.5*(QUARTILE($J$2:$J$501,3)-QUARTILE($J$2:$J$501,1))),"",J115) -> 0.04548972295 | N115: =IF(COUNTIF($D$2:$D$501,D115)=1,"",IF(I115="","",ABS(IF(I115="",0,(((H115*OFFSET($P$1,MATCH($D115,$O$2:$O$40,0),,)-G115)/G115)))))) -> 0.1509500101 | Q115: =IFERROR(IF(COUNTIF($E$2:$E$501,E115)=1,"",IF(I115="","",ABS(IF(I115="",0,(((H115*OFFSET($S$1,MATCH($E115,$R$2:$R$41,0),,)-G115)/G115)))))),"") -> 0.1607162437 | T115: =IFERROR(IF(COUNTIF($F$2:$F$501,F115)=1,"",IF(I115="","",ABS(IF(I115="",0,(((H115*OFFSET($V$1,MATCH($F115,$U$2:$U$105,0),,)-G115)/G115)))))),"") -> 0.1294254103 | W115: =IF(OR(J115<(QUARTILE($J$2:$J$501,1))-1.5*(QUARTILE($J$2:$J$501,3)-QUARTILE($J$2:$J$501,1)),J115>(QUARTILE($J$2:$J$501,3))+1.5*(QUARTILE($J$2:$J$501,3)-QUARTILE($J$2:$J$501,1))),"Outlier") -> FALSE
A116: 268193 | B116: MONSANTO | C116: 3000 | D116: 3500 | E116: 3570 | F116: 3573 | G116: 80.25 | H116: 3.54 | I116: =(IF(IFERROR(G116/H116,"")<0,"",IFERROR(G116/H116,""))) -> 22.66949153 | J116: =IF(COUNTIF($C$2:$C$501,C116)=1,"",IF(I116="","",ABS(IF(I116="",0,(((H116*OFFSET($M$1,MATCH($C116,$L$2:$L$40,0),,)-G116)/G116)))))) -> 0.2946386077 | K116: =IF(OR(J116<(QUARTILE($J$2:$J$501,1))-1.5*(QUARTILE($J$2:$J$501,3)-QUARTILE($J$2:$J$501,1)),J116>(QUARTILE($J$2:$J$501,3))+1.5*(QUARTILE($J$2:$J$501,3)-QUARTILE($J$2:$J$501,1))),"",J116) -> 0.2946386077 | N116: =IF(COUNTIF($D$2:$D$501,D116)=1,"",IF(I116="","",ABS(IF(I116="",0,(((H116*OFFSET($P$1,MATCH($D116,$O$2:$O$40,0),,)-G116)/G116)))))) -> 0.2119661606 | Q116: =IFERROR(IF(COUNTIF($E$2:$E$501,E116)=1,"",IF(I116="","",ABS(IF(I116="",0,(((H116*OFFSET($S$1,MATCH($E116,$R$2:$R$41,0),,)-G116)/G116)))))),"") -> 0.2137546026 | T116: =IFERROR(IF(COUNTIF($F$2:$F$501,F116)=1,"",IF(I116="","",ABS(IF(I116="",0,(((H116*OFFSET($V$1,MATCH($F116,$U$2:$U$105,0),,)-G116)/G116)))))),"") ->  | W116: =IF(OR(J116<(QUARTILE($J$2:$J$501,1))-1.5*(QUARTILE($J$2:$J$501,3)-QUARTILE($J$2:$J$501,1)),J116>(QUARTILE($J$2:$J$501,3))+1.5*(QUARTILE($J$2:$J$501,3)-QUARTILE($J$2:$J$501,1))),"Outlier") -> FALSE
A117: 271662 | B117: HUDSON CITY BANC. | C117: 8000 | D117: 8300 | E117: 8350 | F117: 8355 | G117: 6.24 | H117: 0 | I117: =(IF(IFERROR(G117/H117,"")<0,"",IFERROR(G117/H117,""))) ->  | J117: =IF(COUNTIF($C$2:$C$501,C117)=1,"",IF(I117="","",ABS(IF(I117="",0,(((H117*OFFSET($M$1,MATCH($C117,$L$2:$L$40,0),,)-G117)/G117)))))) ->  | K117: =IF(OR(J117<(QUARTILE($J$2:$J$501,1))-1.5*(QUARTILE($J$2:$J$501,3)-QUARTILE($J$2:$J$501,1)),J117>(QUARTILE($J$2:$J$501,3))+1.5*(QUARTILE($J$2:$J$501,3)-QUARTILE($J$2:$J$501,1))),"",J117) ->  | N117: =IF(COUNTIF($D$2:$D$501,D117)=1,"",IF(I117="","",ABS(IF(I117="",0,(((H117*OFFSET($P$1,MATCH($D117,$O$2:$O$40,0),,)-G117)/G117)))))) ->  | Q117: =IFERROR(IF(COUNTIF($E$2:$E$501,E117)=1,"",IF(I117="","",ABS(IF(I117="",0,(((H117*OFFSET($S$1,MATCH($E117,$R$2:$R$41,0),,)-G117)/G117)))))),"") ->  | T117: =IFERROR(IF(COUNTIF($F$2:$F$501,F117)=1,"",IF(I117="","",ABS(IF(I117="",0,(((H117*OFFSET($V$1,MATCH($F117,$U$2:$U$105,0),,)-G117)/G117)))))),"") ->  | W117: =IF(OR(J117<(QUARTILE($J$2:$J$501,1))-1.5*(QUARTILE($J$2:$J$501,3)-QUARTILE($J$2:$J$501,1)),J117>(QUARTILE($J$2:$J$501,3))+1.5*(QUARTILE($J$2:$J$501,3)-QUARTILE($J$2:$J$501,1))),"Outlier") -> Outlier
A118: 271980 | B118: DEVON ENERGY | C118: 1 | D118: 500 | E118: 530 | F118: 533 | G118: 56.84 | H118: 11.28 | I118: =(IF(IFERROR(G118/H118,"")<0,"",IFERROR(G118/H118,""))) -> 5.039007092 | J118: =IF(COUNTIF($C$2:$C$501,C118)=1,"",IF(I118="","",ABS(IF(I118="",0,(((H118*OFFSET($M$1,MATCH($C118,$L$2:$L$40,0),,)-G118)/G118)))))) -> 0.8401692322 | K118: =IF(OR(J118<(QUARTILE($J$2:$J$501,1))-1.5*(QUARTILE($J$2:$J$501,3)-QUARTILE($J$2:$J$501,1)),J118>(QUARTILE($J$2:$J$501,3))+1.5*(QUARTILE($J$2:$J$501,3)-QUARTILE($J$2:$J$501,1))),"",J118) -> 0.8401692322 | N118: =IF(COUNTIF($D$2:$D$501,D118)=1,"",IF(I118="","",ABS(IF(I118="",0,(((H118*OFFSET($P$1,MATCH($D118,$O$2:$O$40,0),,)-G118)/G118)))))) -> 0.8401692322 | Q118: =IFERROR(IF(COUNTIF($E$2:$E$501,E118)=1,"",IF(I118="","",ABS(IF(I118="",0,(((H118*OFFSET($S$1,MATCH($E118,$R$2:$R$41,0),,)-G118)/G118)))))),"") -> 0.6676518364 | T118: =IFERROR(IF(COUNTIF($F$2:$F$501,F118)=1,"",IF(I118="","",ABS(IF(I118="",0,(((H118*OFFSET($V$1,MATCH($F118,$U$2:$U$105,0),,)-G118)/G118)))))),"") -> 0.6560017 | W118: =IF(OR(J118<(QUARTILE($J$2:$J$501,1))-1.5*(QUARTILE($J$2:$J$501,3)-QUARTILE($J$2:$J$501,1)),J118>(QUARTILE($J$2:$J$501,3))+1.5*(QUARTILE($J$2:$J$501,3)-QUARTILE($J$2:$J$501,1))),"Outlier") -> FALSE
A119: 277343 | B119: PACTIV DEAD - DELIST.17/11/10 | C119: 2000 | D119: 2700 | E119: 2720 | F119: 2723 | G119: 33.23 | H119: 1.93 | I119: =(IF(IFERROR(G119/H119,"")<0,"",IFERROR(G119/H119,""))) -> 17.21761658 | J119: =IF(COUNTIF($C$2:$C$501,C119)=1,"",IF(I119="","",ABS(IF(I119="",0,(((H119*OFFSET($M$1,MATCH($C119,$L$2:$L$40,0),,)-G119)/G119)))))) -> 0.157616797 | K119: =IF(OR(J119<(QUARTILE($J$2:$J$501,1))-1.5*(QUARTILE($J$2:$J$501,3)-QUARTILE($J$2:$J$501,1)),J119>(QUARTILE($J$2:$J$501,3))+1.5*(QUARTILE($J$2:$J$501,3)-QUARTILE($J$2:$J$501,1))),"",J119) -> 0.157616797 | N119: =IF(COUNTIF($D$2:$D$501,D119)=1,"",IF(I119="","",ABS(IF(I119="",0,(((H119*OFFSET($P$1,MATCH($D119,$O$2:$O$40,0),,)-G119)/G119)))))) -> 0.1683836907 | Q119: =IFERROR(IF(COUNTIF($E$2:$E$501,E119)=1,"",IF(I119="","",ABS(IF(I119="",0,(((H119*OFFSET($S$1,MATCH($E119,$R$2:$R$41,0),,)-G119)/G119)))))),"") -> 0.0516597368 | T119: =IFERROR(IF(COUNTIF($F$2:$F$501,F119)=1,"",IF(I119="","",ABS(IF(I119="",0,(((H119*OFFSET($V$1,MATCH($F119,$U$2:$U$105,0),,)-G119)/G119)))))),"") -> 0.2643885246 | W119: =IF(OR(J119<(QUARTILE($J$2:$J$501,1))-1.5*(QUARTILE($J$2:$J$501,3)-QUARTILE($J$2:$J$501,1)),J119>(QUARTILE($J$2:$J$501,3))+1.5*(QUARTILE($J$2:$J$501,3)-QUARTILE($J$2:$J$501,1))),"Outlier") -> FALSE
A120: 277487 | B120: UNITED PARCEL SER. | C120: 2000 | D120: 2700 | E120: 2770 | F120: 2771 | G120: 77.11 | H120: 3.93 | I120: =(IF(IFERROR(G120/H120,"")<0,"",IFERROR(G120/H120,""))) -> 19.62086514 | J120: =IF(COUNTIF($C$2:$C$501,C120)=1,"",IF(I120="","",ABS(IF(I120="",0,(((H120*OFFSET($M$1,MATCH($C120,$L$2:$L$40,0),,)-G120)/G120)))))) -> 0.2607955409 | K120: =IF(OR(J120<(QUARTILE($J$2:$J$501,1))-1.5*(QUARTILE($J$2:$J$501,3)-QUARTILE($J$2:$J$501,1)),J120>(QUARTILE($J$2:$J$501,3))+1.5*(QUARTILE($J$2:$J$501,3)-QUARTILE($J$2:$J$501,1))),"",J120) -> 0.2607955409 | N120: =IF(COUNTIF($D$2:$D$501,D120)=1,"",IF(I120="","",ABS(IF(I120="",0,(((H120*OFFSET($P$1,MATCH($D120,$O$2:$O$40,0),,)-G120)/G120)))))) -> 0.2702436588 | Q120: =IFERROR(IF(COUNTIF($E$2:$E$501,E120)=1,"",IF(I120="","",ABS(IF(I120="",0,(((H120*OFFSET($S$1,MATCH($E120,$R$2:$R$41,0),,)-G120)/G120)))))),"") -> 0.2503709159 | T120: =IFERROR(IF(COUNTIF($F$2:$F$501,F120)=1,"",IF(I120="","",ABS(IF(I120="",0,(((H120*OFFSET($V$1,MATCH($F120,$U$2:$U$105,0),,)-G120)/G120)))))),"") ->  | W120: =IF(OR(J120<(QUARTILE($J$2:$J$501,1))-1.5*(QUARTILE($J$2:$J$501,3)-QUARTILE($J$2:$J$501,1)),J120>(QUARTILE($J$2:$J$501,3))+1.5*(QUARTILE($J$2:$J$501,3)-QUARTILE($J$2:$J$501,1))),"Outlier") -> FALSE
A121: 286738 | B121: METLIFE | C121: 8000 | D121: 8500 | E121: 8570 | F121: 8575 | G121: 29.49 | H121: 5.42 | I121: =(IF(IFERROR(G121/H121,"")<0,"",IFERROR(G121/H121,""))) -> 5.44095941 | J121: =IF(COUNTIF($C$2:$C$501,C121)=1,"",IF(I121="","",ABS(IF(I121="",0,(((H121*OFFSET($M$1,MATCH($C121,$L$2:$L$40,0),,)-G121)/G121)))))) -> 1.444567235 | K121: =IF(OR(J121<(QUARTILE($J$2:$J$501,1))-1.5*(QUARTILE($J$2:$J$501,3)-QUARTILE($J$2:$J$501,1)),J121>(QUARTILE($J$2:$J$501,3))+1.5*(QUARTILE($J$2:$J$501,3)-QUARTILE($J$2:$J$501,1))),"",J121) ->  | N121: =IF(COUNTIF($D$2:$D$501,D121)=1,"",IF(I121="","",ABS(IF(I121="",0,(((H121*OFFSET($P$1,MATCH($D121,$O$2:$O$40,0),,)-G121)/G121)))))) -> 0.9781184449 | Q121: =IFERROR(IF(COUNTIF($E$2:$E$501,E121)=1,"",IF(I121="","",ABS(IF(I121="",0,(((H121*OFFSET($S$1,MATCH($E121,$R$2:$R$41,0),,)-G121)/G121)))))),"") -> 0.9093765711 | T121: =IFERROR(IF(COUNTIF($F$2:$F$501,F121)=1,"",IF(I121="","",ABS(IF(I121="",0,(((H121*OFFSET($V$1,MATCH($F121,$U$2:$U$105,0),,)-G121)/G121)))))),"") -> 0.9093765711 | W121: =IF(OR(J121<(QUARTILE($J$2:$J$501,1))-1.5*(QUARTILE($J$2:$J$501,3)-QUARTILE($J$2:$J$501,1)),J121>(QUARTILE($J$2:$J$501,3))+1.5*(QUARTILE($J$2:$J$501,3)-QUARTILE($J$2:$J$501,1))),"Outlier") -> Outlier
A122: 292731 | B122: JANUS CAPITAL GP. | C122: 8000 | D122: 8700 | E122: 8770 | F122: 8771 | G122: 7.58 | H122: 0.69 | I122: =(IF(IFERROR(G122/H122,"")<0,"",IFERROR(G122/H122,""))) -> 10.98550725 | J122: =IF(COUNTIF($C$2:$C$501,C122)=1,"",IF(I122="","",ABS(IF(I122="",0,(((H122*OFFSET($M$1,MATCH($C122,$L$2:$L$40,0),,)-G122)/G122)))))) -> 0.2107580289 | K122: =IF(OR(J122<(QUARTILE($J$2:$J$501,1))-1.5*(QUARTILE($J$2:$J$501,3)-QUARTILE($J$2:$J$501,1)),J122>(QUARTILE($J$2:$J$501,3))+1.5*(QUARTILE($J$2:$J$501,3)-QUARTILE($J$2:$J$501,1))),"",J122) -> 0.2107580289 | N122: =IF(COUNTIF($D$2:$D$501,D122)=1,"",IF(I122="","",ABS(IF(I122="",0,(((H122*OFFSET($P$1,MATCH($D122,$O$2:$O$40,0),,)-G122)/G122)))))) -> 0.1403787554 | Q122: =IFERROR(IF(COUNTIF($E$2:$E$501,E122)=1,"",IF(I122="","",ABS(IF(I122="",0,(((H122*OFFSET($S$1,MATCH($E122,$R$2:$R$41,0),,)-G122)/G122)))))),"") -> 0.1403787554 | T122: =IFERROR(IF(COUNTIF($F$2:$F$501,F122)=1,"",IF(I122="","",ABS(IF(I122="",0,(((H122*OFFSET($V$1,MATCH($F122,$U$2:$U$105,0),,)-G122)/G122)))))),"") -> 0.2493218657 | W122: =IF(OR(J122<(QUARTILE($J$2:$J$501,1))-1.5*(QUARTILE($J$2:$J$501,3)-QUARTILE($J$2:$J$501,1)),J122>(QUARTILE($J$2:$J$501,3))+1.5*(QUARTILE($J$2:$J$501,3)-QUARTILE($J$2:$J$501,1))),"Outlier") -> FALSE
A123: 312385 | B123: COSTCO WHOLESALE | C123: 5000 | D123: 5300 | E123: 5370 | F123: 5373 | G123: 92.92 | H123: 3.58 | I123: =(IF(IFERROR(G123/H123,"")<0,"",IFERROR(G123/H123,""))) -> 25.95530726 | J123: =IF(COUNTIF($C$2:$C$501,C123)=1,"",IF(I123="","",ABS(IF(I123="",0,(((H123*OFFSET($M$1,MATCH($C123,$L$2:$L$40,0),,)-G123)/G123)))))) -> 0.3923974083 | K123: =IF(OR(J123<(QUARTILE($J$2:$J$501,1))-1.5*(QUARTILE($J$2:$J$501,3)-QUARTILE($J$2:$J$501,1)),J123>(QUARTILE($J$2:$J$501,3))+1.5*(QUARTILE($J$2:$J$501,3)-QUARTILE($J$2:$J$501,1))),"",J123) -> 0.3923974083 | N123: =IF(COUNTIF($D$2:$D$501,D123)=1,"",IF(I123="","",ABS(IF(I123="",0,(((H123*OFFSET($P$1,MATCH($D123,$O$2:$O$40,0),,)-G123)/G123)))))) -> 0.4385937864 | Q123: =IFERROR(IF(COUNTIF($E$2:$E$501,E123)=1,"",IF(I123="","",ABS(IF(I123="",0,(((H123*OFFSET($S$1,MATCH($E123,$R$2:$R$41,0),,)-G123)/G123)))))),"") -> 0.447777511 | T123: =IFERROR(IF(COUNTIF($F$2:$F$501,F123)=1,"",IF(I123="","",ABS(IF(I123="",0,(((H123*OFFSET($V$1,MATCH($F123,$U$2:$U$105,0),,)-G123)/G123)))))),"") -> 0.265947485 | W123: =IF(OR(J123<(QUARTILE($J$2:$J$501,1))-1.5*(QUARTILE($J$2:$J$501,3)-QUARTILE($J$2:$J$501,1)),J123>(QUARTILE($J$2:$J$501,3))+1.5*(QUARTILE($J$2:$J$501,3)-QUARTILE($J$2:$J$501,1))),"Outlier") -> FALSE
A124: 321354 | B124: IAC/INTERACTIVECORP | C124: 9000 | D124: 9500 | E124: 9530 | F124: 9535 | G124: 44.34 | H124: 2.04 | I124: =(IF(IFERROR(G124/H124,"")<0,"",IFERROR(G124/H124,""))) -> 21.73529412 | J124: =IF(COUNTIF($C$2:$C$501,C124)=1,"",IF(I124="","",ABS(IF(I124="",0,(((H124*OFFSET($M$1,MATCH($C124,$L$2:$L$40,0),,)-G124)/G124)))))) -> 0.3976609023 | K124: =IF(OR(J124<(QUARTILE($J$2:$J$501,1))-1.5*(QUARTILE($J$2:$J$501,3)-QUARTILE($J$2:$J$501,1)),J124>(QUARTILE($J$2:$J$501,3))+1.5*(QUARTILE($J$2:$J$501,3)-QUARTILE($J$2:$J$501,1))),"",J124) -> 0.3976609023 | N124: =IF(COUNTIF($D$2:$D$501,D124)=1,"",IF(I124="","",ABS(IF(I124="",0,(((H124*OFFSET($P$1,MATCH($D124,$O$2:$O$40,0),,)-G124)/G124)))))) -> 0.3976609023 | Q124: =IFERROR(IF(COUNTIF($E$2:$E$501,E124)=1,"",IF(I124="","",ABS(IF(I124="",0,(((H124*OFFSET($S$1,MATCH($E124,$R$2:$R$41,0),,)-G124)/G124)))))),"") -> 0.3502998976 | T124: =IFERROR(IF(COUNTIF($F$2:$F$501,F124)=1,"",IF(I124="","",ABS(IF(I124="",0,(((H124*OFFSET($V$1,MATCH($F124,$U$2:$U$105,0),,)-G124)/G124)))))),"") ->  | W124: =IF(OR(J124<(QUARTILE($J$2:$J$501,1))-1.5*(QUARTILE($J$2:$J$501,3)-QUARTILE($J$2:$J$501,1)),J124>(QUARTILE($J$2:$J$501,3))+1.5*(QUARTILE($J$2:$J$501,3)-QUARTILE($J$2:$J$501,1))),"Outlier") -> FALSE
A125: 322668 | B125: TRANSOCEAN | C125: 1 | D125: 500 | E125: 570 | F125: 573 | G125: 42.9 | H125: 17.82 | I125: =(IF(IFERROR(G125/H125,"")<0,"",IFERROR(G125/H125,""))) -> 2.407407407 | J125: =IF(COUNTIF($C$2:$C$501,C125)=1,"",IF(I125="","",ABS(IF(I125="",0,(((H125*OFFSET($M$1,MATCH($C125,$L$2:$L$40,0),,)-G125)/G125)))))) -> 2.851706106 | K125: =IF(OR(J125<(QUARTILE($J$2:$J$501,1))-1.5*(QUARTILE($J$2:$J$501,3)-QUARTILE($J$2:$J$501,1)),J125>(QUARTILE($J$2:$J$501,3))+1.5*(QUARTILE($J$2:$J$501,3)-QUARTILE($J$2:$J$501,1))),"",J125) ->  | N125: =IF(COUNTIF($D$2:$D$501,D125)=1,"",IF(I125="","",ABS(IF(I125="",0,(((H125*OFFSET($P$1,MATCH($D125,$O$2:$O$40,0),,)-G125)/G125)))))) -> 2.851706106 | Q125: =IFERROR(IF(COUNTIF($E$2:$E$501,E125)=1,"",IF(I125="","",ABS(IF(I125="",0,(((H125*OFFSET($S$1,MATCH($E125,$R$2:$R$41,0),,)-G125)/G125)))))),"") -> 3.296138586 | T125: =IFERROR(IF(COUNTIF($F$2:$F$501,F125)=1,"",IF(I125="","",ABS(IF(I125="",0,(((H125*OFFSET($V$1,MATCH($F125,$U$2:$U$105,0),,)-G125)/G125)))))),"") -> 2.740781243 | W125: =IF(OR(J125<(QUARTILE($J$2:$J$501,1))-1.5*(QUARTILE($J$2:$J$501,3)-QUARTILE($J$2:$J$501,1)),J125>(QUARTILE($J$2:$J$501,3))+1.5*(QUARTILE($J$2:$J$501,3)-QUARTILE($J$2:$J$501,1))),"Outlier") -> Outlier
A126: 325308 | B126: EL PASO DEAD - MERGER.74500P | C126: 1 | D126: 500 | E126: 570 | F126: 577 | G126: 28.75 | H126: 0.21 | I126: =(IF(IFERROR(G126/H126,"")<0,"",IFERROR(G126/H126,""))) -> 136.9047619 | J126: =IF(COUNTIF($C$2:$C$501,C126)=1,"",IF(I126="","",ABS(IF(I126="",0,(((H126*OFFSET($M$1,MATCH($C126,$L$2:$L$40,0),,)-G126)/G126)))))) -> 0.9322695158 | K126: =IF(OR(J126<(QUARTILE($J$2:$J$501,1))-1.5*(QUARTILE($J$2:$J$501,3)-QUARTILE($J$2:$J$501,1)),J126>(QUARTILE($J$2:$J$501,3))+1.5*(QUARTILE($J$2:$J$501,3)-QUARTILE($J$2:$J$501,1))),"",J126) -> 0.9322695158 | N126: =IF(COUNTIF($D$2:$D$501,D126)=1,"",IF(I126="","",ABS(IF(I126="",0,(((H126*OFFSET($P$1,MATCH($D126,$O$2:$O$40,0),,)-G126)/G126)))))) -> 0.9322695158 | Q126: =IFERROR(IF(COUNTIF($E$2:$E$501,E126)=1,"",IF(I126="","",ABS(IF(I126="",0,(((H126*OFFSET($S$1,MATCH($E126,$R$2:$R$41,0),,)-G126)/G126)))))),"") -> 0.9244543746 | T126: =IFERROR(IF(COUNTIF($F$2:$F$501,F126)=1,"",IF(I126="","",ABS(IF(I126="",0,(((H126*OFFSET($V$1,MATCH($F126,$U$2:$U$105,0),,)-G126)/G126)))))),"") ->  | W126: =IF(OR(J126<(QUARTILE($J$2:$J$501,1))-1.5*(QUARTILE($J$2:$J$501,3)-QUARTILE($J$2:$J$501,1)),J126>(QUARTILE($J$2:$J$501,3))+1.5*(QUARTILE($J$2:$J$501,3)-QUARTILE($J$2:$J$501,1))),"Outlier") -> FALSE
A127: 325364 | B127: TIME WARNER | C127: 5000 | D127: 5500 | E127: 5550 | F127: 5553 | G127: 37.87 | H127: 2.68 | I127: =(IF(IFERROR(G127/H127,"")<0,"",IFERROR(G127/H127,""))) -> 14.13059701 | J127: =IF(COUNTIF($C$2:$C$501,C127)=1,"",IF(I127="","",ABS(IF(I127="",0,(((H127*OFFSET($M$1,MATCH($C127,$L$2:$L$40,0),,)-G127)/G127)))))) -> 0.1160541869 | K127: =IF(OR(J127<(QUARTILE($J$2:$J$501,1))-1.5*(QUARTILE($J$2:$J$501,3)-QUARTILE($J$2:$J$501,1)),J127>(QUARTILE($J$2:$J$501,3))+1.5*(QUARTILE($J$2:$J$501,3)-QUARTILE($J$2:$J$501,1))),"",J127) -> 0.1160541869 | N127: =IF(COUNTIF($D$2:$D$501,D127)=1,"",IF(I127="","",ABS(IF(I127="",0,(((H127*OFFSET($P$1,MATCH($D127,$O$2:$O$40,0),,)-G127)/G127)))))) -> 0.07358011896 | Q127: =IFERROR(IF(COUNTIF($E$2:$E$501,E127)=1,"",IF(I127="","",ABS(IF(I127="",0,(((H127*OFFSET($S$1,MATCH($E127,$R$2:$R$41,0),,)-G127)/G127)))))),"") -> 0.07358011896 | T127: =IFERROR(IF(COUNTIF($F$2:$F$501,F127)=1,"",IF(I127="","",ABS(IF(I127="",0,(((H127*OFFSET($V$1,MATCH($F127,$U$2:$U$105,0),,)-G127)/G127)))))),"") -> 0.1428324032 | W127: =IF(OR(J127<(QUARTILE($J$2:$J$501,1))-1.5*(QUARTILE($J$2:$J$501,3)-QUARTILE($J$2:$J$501,1)),J127>(QUARTILE($J$2:$J$501,3))+1.5*(QUARTILE($J$2:$J$501,3)-QUARTILE($J$2:$J$501,1))),"Outlier") -> FALSE
A128: 325518 | B128: FIRST DATA DEAD - MERGER | C128: 2000 | D128: 2700 | E128: 2790 | F128: 2795 | G128: 33.97 | H128: 0.58 | I128: =(IF(IFERROR(G128/H128,"")<0,"",IFERROR(G128/H128,""))) -> 58.56896552 | J128: =IF(COUNTIF($C$2:$C$501,C128)=1,"",IF(I128="","",ABS(IF(I128="",0,(((H128*OFFSET($M$1,MATCH($C128,$L$2:$L$40,0),,)-G128)/G128)))))) -> 0.7523632034 | K128: =IF(OR(J128<(QUARTILE($J$2:$J$501,1))-1.5*(QUARTILE($J$2:$J$501,3)-QUARTILE($J$2:$J$501,1)),J128>(QUARTILE($J$2:$J$501,3))+1.5*(QUARTILE($J$2:$J$501,3)-QUARTILE($J$2:$J$501,1))),"",J128) -> 0.7523632034 | N128: =IF(COUNTIF($D$2:$D$501,D128)=1,"",IF(I128="","",ABS(IF(I128="",0,(((H128*OFFSET($P$1,MATCH($D128,$O$2:$O$40,0),,)-G128)/G128)))))) -> 0.7555283651 | Q128: =IFERROR(IF(COUNTIF($E$2:$E$501,E128)=1,"",IF(I128="","",ABS(IF(I128="",0,(((H128*OFFSET($S$1,MATCH($E128,$R$2:$R$41,0),,)-G128)/G128)))))),"") -> 0.745295563 | T128: =IFERROR(IF(COUNTIF($F$2:$F$501,F128)=1,"",IF(I128="","",ABS(IF(I128="",0,(((H128*OFFSET($V$1,MATCH($F128,$U$2:$U$105,0),,)-G128)/G128)))))),"") -> 0.5962957911 | W128: =IF(OR(J128<(QUARTILE($J$2:$J$501,1))-1.5*(QUARTILE($J$2:$J$501,3)-QUARTILE($J$2:$J$501,1)),J128>(QUARTILE($J$2:$J$501,3))+1.5*(QUARTILE($J$2:$J$501,3)-QUARTILE($J$2:$J$501,1))),"Outlier") -> FALSE
A129: 325596 | B129: WATSON PHARMS. | C129: 4000 | D129: 4500 | E129: 4570 | F129: 4577 | G129: 72.2 | H129: 2.14 | I129: =(IF(IFERROR(G129/H129,"")<0,"",IFERROR(G129/H129,""))) -> 33.73831776 | J129: =IF(COUNTIF($C$2:$C$501,C129)=1,"",IF(I129="","",ABS(IF(I129="",0,(((H129*OFFSET($M$1,MATCH($C129,$L$2:$L$40,0),,)-G129)/G129)))))) -> 0.4983213924 | K129: =IF(OR(J129<(QUARTILE($J$2:$J$501,1))-1.5*(QUARTILE($J$2:$J$501,3)-QUARTILE($J$2:$J$501,1)),J129>(QUARTILE($J$2:$J$501,3))+1.5*(QUARTILE($J$2:$J$501,3)-QUARTILE($J$2:$J$501,1))),"",J129) -> 0.4983213924 | N129: =IF(COUNTIF($D$2:$D$501,D129)=1,"",IF(I129="","",ABS(IF(I129="",0,(((H129*OFFSET($P$1,MATCH($D129,$O$2:$O$40,0),,)-G129)/G129)))))) -> 0.4983213924 | Q129: =IFERROR(IF(COUNTIF($E$2:$E$501,E129)=1,"",IF(I129="","",ABS(IF(I129="",0,(((H129*OFFSET($S$1,MATCH($E129,$R$2:$R$41,0),,)-G129)/G129)))))),"") -> 0.4104838237 | T129: =IFERROR(IF(COUNTIF($F$2:$F$501,F129)=1,"",IF(I129="","",ABS(IF(I129="",0,(((H129*OFFSET($V$1,MATCH($F129,$U$2:$U$105,0),,)-G129)/G129)))))),"") -> 0.453091641 | W129: =IF(OR(J129<(QUARTILE($J$2:$J$501,1))-1.5*(QUARTILE($J$2:$J$501,3)-QUARTILE($J$2:$J$501,1)),J129>(QUARTILE($J$2:$J$501,3))+1.5*(QUARTILE($J$2:$J$501,3)-QUARTILE($J$2:$J$501,1))),"Outlier") -> FALSE
A130: 325849 | B130: KOHL'S | C130: 5000 | D130: 5300 | E130: 5370 | F130: 5371 | G130: 44.55 | H130: 4.19 | I130: =(IF(IFERROR(G130/H130,"")<0,"",IFERROR(G130/H130,""))) -> 10.63245823 | J130: =IF(COUNTIF($C$2:$C$501,C130)=1,"",IF(I130="","",ABS(IF(I130="",0,(((H130*OFFSET($M$1,MATCH($C130,$L$2:$L$40,0),,)-G130)/G130)))))) -> 0.4832423147 | K130: =IF(OR(J130<(QUARTILE($J$2:$J$501,1))-1.5*(QUARTILE($J$2:$J$501,3)-QUARTILE($J$2:$J$501,1)),J130>(QUARTILE($J$2:$J$501,3))+1.5*(QUARTILE($J$2:$J$501,3)-QUARTILE($J$2:$J$501,1))),"",J130) -> 0.4832423147 | N130: =IF(COUNTIF($D$2:$D$501,D130)=1,"",IF(I130="","",ABS(IF(I130="",0,(((H130*OFFSET($P$1,MATCH($D130,$O$2:$O$40,0),,)-G130)/G130)))))) -> 0.3704705395 | Q130: =IFERROR(IF(COUNTIF($E$2:$E$501,E130)=1,"",IF(I130="","",ABS(IF(I130="",0,(((H130*OFFSET($S$1,MATCH($E130,$R$2:$R$41,0),,)-G130)/G130)))))),"") -> 0.3480517923 | T130: =IFERROR(IF(COUNTIF($F$2:$F$501,F130)=1,"",IF(I130="","",ABS(IF(I130="",0,(((H130*OFFSET($V$1,MATCH($F130,$U$2:$U$105,0),,)-G130)/G130)))))),"") -> 0.2726311599 | W130: =IF(OR(J130<(QUARTILE($J$2:$J$501,1))-1.5*(QUARTILE($J$2:$J$501,3)-QUARTILE($J$2:$J$501,1)),J130>(QUARTILE($J$2:$J$501,3))+1.5*(QUARTILE($J$2:$J$501,3)-QUARTILE($J$2:$J$501,1))),"Outlier") -> FALSE
A131: 325922 | B131: D R HORTON | C131: 3000 | D131: 3700 | E131: 3720 | F131: 3728 | G131: 17.39 | H131: 0.42 | I131: =(IF(IFERROR(G131/H131,"")<0,"",IFERROR(G131/H131,""))) -> 41.4047619 | J131: =IF(COUNTIF($C$2:$C$501,C131)=1,"",IF(I131="","",ABS(IF(I131="",0,(((H131*OFFSET($M$1,MATCH($C131,$L$2:$L$40,0),,)-G131)/G131)))))) -> 0.6138080895 | K131: =IF(OR(J131<(QUARTILE($J$2:$J$501,1))-1.5*(QUARTILE($J$2:$J$501,3)-QUARTILE($J$2:$J$501,1)),J131>(QUARTILE($J$2:$J$501,3))+1.5*(QUARTILE($J$2:$J$501,3)-QUARTILE($J$2:$J$501,1))),"",J131) -> 0.6138080895 | N131: =IF(COUNTIF($D$2:$D$501,D131)=1,"",IF(I131="","",ABS(IF(I131="",0,(((H131*OFFSET($P$1,MATCH($D131,$O$2:$O$40,0),,)-G131)/G131)))))) -> 0.5343291801 | Q131: =IFERROR(IF(COUNTIF($E$2:$E$501,E131)=1,"",IF(I131="","",ABS(IF(I131="",0,(((H131*OFFSET($S$1,MATCH($E131,$R$2:$R$41,0),,)-G131)/G131)))))),"") -> 0.4836572892 | T131: =IFERROR(IF(COUNTIF($F$2:$F$501,F131)=1,"",IF(I131="","",ABS(IF(I131="",0,(((H131*OFFSET($V$1,MATCH($F131,$U$2:$U$105,0),,)-G131)/G131)))))),"") ->  | W131: =IF(OR(J131<(QUARTILE($J$2:$J$501,1))-1.5*(QUARTILE($J$2:$J$501,3)-QUARTILE($J$2:$J$501,1)),J131>(QUARTILE($J$2:$J$501,3))+1.5*(QUARTILE($J$2:$J$501,3)-QUARTILE($J$2:$J$501,1))),"Outlier") -> FALSE
A132: 326038 | B132: EXPRESS SCRIPTS HOLDING | C132: 4000 | D132: 4500 | E132: 4530 | F132: 4533 | G132: 54.79 | H132: 2.46 | I132: =(IF(IFERROR(G132/H132,"")<0,"",IFERROR(G132/H132,""))) -> 22.27235772 | J132: =IF(COUNTIF($C$2:$C$501,C132)=1,"",IF(I132="","",ABS(IF(I132="",0,(((H132*OFFSET($M$1,MATCH($C132,$L$2:$L$40,0),,)-G132)/G132)))))) -> 0.2400538603 | K132: =IF(OR(J132<(QUARTILE($J$2:$J$501,1))-1.5*(QUARTILE($J$2:$J$501,3)-QUARTILE($J$2:$J$501,1)),J132>(QUARTILE($J$2:$J$501,3))+1.5*(QUARTILE($J$2:$J$501,3)-QUARTILE($J$2:$J$501,1))),"",J132) -> 0.2400538603 | N132: =IF(COUNTIF($D$2:$D$501,D132)=1,"",IF(I132="","",ABS(IF(I132="",0,(((H132*OFFSET($P$1,MATCH($D132,$O$2:$O$40,0),,)-G132)/G132)))))) -> 0.2400538603 | Q132: =IFERROR(IF(COUNTIF($E$2:$E$501,E132)=1,"",IF(I132="","",ABS(IF(I132="",0,(((H132*OFFSET($S$1,MATCH($E132,$R$2:$R$41,0),,)-G132)/G132)))))),"") -> 0.3131536516 | T132: =IFERROR(IF(COUNTIF($F$2:$F$501,F132)=1,"",IF(I132="","",ABS(IF(I132="",0,(((H132*OFFSET($V$1,MATCH($F132,$U$2:$U$105,0),,)-G132)/G132)))))),"") -> 0.4185921116 | W132: =IF(OR(J132<(QUARTILE($J$2:$J$501,1))-1.5*(QUARTILE($J$2:$J$501,3)-QUARTILE($J$2:$J$501,1)),J132>(QUARTILE($J$2:$J$501,3))+1.5*(QUARTILE($J$2:$J$501,3)-QUARTILE($J$2:$J$501,1))),"Outlier") -> FALSE
A133: 326105 | B133: PRAXAIR | C133: 1000 | D133: 1300 | E133: 1350 | F133: 1353 | G133: 105.34 | H133: 5.54 | I133: =(IF(IFERROR(G133/H133,"")<0,"",IFERROR(G133/H133,""))) -> 19.01444043 | J133: =IF(COUNTIF($C$2:$C$501,C133)=1,"",IF(I133="","",ABS(IF(I133="",0,(((H133*OFFSET($M$1,MATCH($C133,$L$2:$L$40,0),,)-G133)/G133)))))) -> 0.1849942933 | K133: =IF(OR(J133<(QUARTILE($J$2:$J$501,1))-1.5*(QUARTILE($J$2:$J$501,3)-QUARTILE($J$2:$J$501,1)),J133>(QUARTILE($J$2:$J$501,3))+1.5*(QUARTILE($J$2:$J$501,3)-QUARTILE($J$2:$J$501,1))),"",J133) -> 0.1849942933 | N133: =IF(COUNTIF($D$2:$D$501,D133)=1,"",IF(I133="","",ABS(IF(I133="",0,(((H133*OFFSET($P$1,MATCH($D133,$O$2:$O$40,0),,)-G133)/G133)))))) -> 0.04951036342 | Q133: =IFERROR(IF(COUNTIF($E$2:$E$501,E133)=1,"",IF(I133="","",ABS(IF(I133="",0,(((H133*OFFSET($S$1,MATCH($E133,$R$2:$R$41,0),,)-G133)/G133)))))),"") -> 0.04951036342 | T133: =IFERROR(IF(COUNTIF($F$2:$F$501,F133)=1,"",IF(I133="","",ABS(IF(I133="",0,(((H133*OFFSET($V$1,MATCH($F133,$U$2:$U$105,0),,)-G133)/G133)))))),"") -> 0.2542815213 | W133: =IF(OR(J133<(QUARTILE($J$2:$J$501,1))-1.5*(QUARTILE($J$2:$J$501,3)-QUARTILE($J$2:$J$501,1)),J133>(QUARTILE($J$2:$J$501,3))+1.5*(QUARTILE($J$2:$J$501,3)-QUARTILE($J$2:$J$501,1))),"Outlier") -> FALSE
A134: 326143 | B134: STARBUCKS | C134: 5000 | D134: 5700 | E134: 5750 | F134: 5757 | G134: 52.09 | H134: 1.73 | I134: =(IF(IFERROR(G134/H134,"")<0,"",IFERROR(G134/H134,""))) -> 30.10982659 | J134: =IF(COUNTIF($C$2:$C$501,C134)=1,"",IF(I134="","",ABS(IF(I134="",0,(((H134*OFFSET($M$1,MATCH($C134,$L$2:$L$40,0),,)-G134)/G134)))))) -> 0.4762337168 | K134: =IF(OR(J134<(QUARTILE($J$2:$J$501,1))-1.5*(QUARTILE($J$2:$J$501,3)-QUARTILE($J$2:$J$501,1)),J134>(QUARTILE($J$2:$J$501,3))+1.5*(QUARTILE($J$2:$J$501,3)-QUARTILE($J$2:$J$501,1))),"",J134) -> 0.4762337168 | N134: =IF(COUNTIF($D$2:$D$501,D134)=1,"",IF(I134="","",ABS(IF(I134="",0,(((H134*OFFSET($P$1,MATCH($D134,$O$2:$O$40,0),,)-G134)/G134)))))) -> 0.2726975244 | Q134: =IFERROR(IF(COUNTIF($E$2:$E$501,E134)=1,"",IF(I134="","",ABS(IF(I134="",0,(((H134*OFFSET($S$1,MATCH($E134,$R$2:$R$41,0),,)-G134)/G134)))))),"") -> 0.2726975244 | T134: =IFERROR(IF(COUNTIF($F$2:$F$501,F134)=1,"",IF(I134="","",ABS(IF(I134="",0,(((H134*OFFSET($V$1,MATCH($F134,$U$2:$U$105,0),,)-G134)/G134)))))),"") -> 0.2936565653 | W134: =IF(OR(J134<(QUARTILE($J$2:$J$501,1))-1.5*(QUARTILE($J$2:$J$501,3)-QUARTILE($J$2:$J$501,1)),J134>(QUARTILE($J$2:$J$501,3))+1.5*(QUARTILE($J$2:$J$501,3)-QUARTILE($J$2:$J$501,1))),"Outlier") -> FALSE
A135: 326996 | B135: PATTERSON COMPANIES | C135: 4000 | D135: 4500 | E135: 4530 | F135: 4537 | G135: 33.61 | H135: 1.92 | I135: =(IF(IFERROR(G135/H135,"")<0,"",IFERROR(G135/H135,""))) -> 17.50520833 | J135: =IF(COUNTIF($C$2:$C$501,C135)=1,"",IF(I135="","",ABS(IF(I135="",0,(((H135*OFFSET($M$1,MATCH($C135,$L$2:$L$40,0),,)-G135)/G135)))))) -> 0.03309963798 | K135: =IF(OR(J135<(QUARTILE($J$2:$J$501,1))-1.5*(QUARTILE($J$2:$J$501,3)-QUARTILE($J$2:$J$501,1)),J135>(QUARTILE($J$2:$J$501,3))+1.5*(QUARTILE($J$2:$J$501,3)-QUARTILE($J$2:$J$501,1))),"",J135) -> 0.03309963798 | N135: =IF(COUNTIF($D$2:$D$501,D135)=1,"",IF(I135="","",ABS(IF(I135="",0,(((H135*OFFSET($P$1,MATCH($D135,$O$2:$O$40,0),,)-G135)/G135)))))) -> 0.03309963798 | Q135: =IFERROR(IF(COUNTIF($E$2:$E$501,E135)=1,"",IF(I135="","",ABS(IF(I135="",0,(((H135*OFFSET($S$1,MATCH($E135,$R$2:$R$41,0),,)-G135)/G135)))))),"") -> 0.1261065118 | T135: =IFERROR(IF(COUNTIF($F$2:$F$501,F135)=1,"",IF(I135="","",ABS(IF(I135="",0,(((H135*OFFSET($V$1,MATCH($F135,$U$2:$U$105,0),,)-G135)/G135)))))),"") -> 0.1029850198 | W135: =IF(OR(J135<(QUARTILE($J$2:$J$501,1))-1.5*(QUARTILE($J$2:$J$501,3)-QUARTILE($J$2:$J$501,1)),J135>(QUARTILE($J$2:$J$501,3))+1.5*(QUARTILE($J$2:$J$501,3)-QUARTILE($J$2:$J$501,1))),"Outlier") -> FALSE
A136: 327352 | B136: COMPUWARE | C136: 9000 | D136: 9500 | E136: 9530 | F136: 9537 | G136: 8.98 | H136: 0.4 | I136: =(IF(IFERROR(G136/H136,"")<0,"",IFERROR(G136/H136,""))) -> 22.45 | J136: =IF(COUNTIF($C$2:$C$501,C136)=1,"",IF(I136="","",ABS(IF(I136="",0,(((H136*OFFSET($M$1,MATCH($C136,$L$2:$L$40,0),,)-G136)/G136)))))) -> 0.4168366394 | K136: =IF(OR(J136<(QUARTILE($J$2:$J$501,1))-1.5*(QUARTILE($J$2:$J$501,3)-QUARTILE($J$2:$J$501,1)),J136>(QUARTILE($J$2:$J$501,3))+1.5*(QUARTILE($J$2:$J$501,3)-QUARTILE($J$2:$J$501,1))),"",J136) -> 0.4168366394 | N136: =IF(COUNTIF($D$2:$D$501,D136)=1,"",IF(I136="","",ABS(IF(I136="",0,(((H136*OFFSET($P$1,MATCH($D136,$O$2:$O$40,0),,)-G136)/G136)))))) -> 0.4168366394 | Q136: =IFERROR(IF(COUNTIF($E$2:$E$501,E136)=1,"",IF(I136="","",ABS(IF(I136="",0,(((H136*OFFSET($S$1,MATCH($E136,$R$2:$R$41,0),,)-G136)/G136)))))),"") -> 0.3709833936 | T136: =IFERROR(IF(COUNTIF($F$2:$F$501,F136)=1,"",IF(I136="","",ABS(IF(I136="",0,(((H136*OFFSET($V$1,MATCH($F136,$U$2:$U$105,0),,)-G136)/G136)))))),"") -> 0.3544454754 | W136: =IF(OR(J136<(QUARTILE($J$2:$J$501,1))-1.5*(QUARTILE($J$2:$J$501,3)-QUARTILE($J$2:$J$501,1)),J136>(QUARTILE($J$2:$J$501,3))+1.5*(QUARTILE($J$2:$J$501,3)-QUARTILE($J$2:$J$501,1))),"Outlier") -> FALSE
A137: 327731 | B137: DDR | C137: 8000 | D137: 8600 | E137: 8670 | F137: 8672 | G137: 14.2 | H137: 0 | I137: =(IF(IFERROR(G137/H137,"")<0,"",IFERROR(G137/H137,""))) ->  | J137: =IF(COUNTIF($C$2:$C$501,C137)=1,"",IF(I137="","",ABS(IF(I137="",0,(((H137*OFFSET($M$1,MATCH($C137,$L$2:$L$40,0),,)-G137)/G137)))))) ->  | K137: =IF(OR(J137<(QUARTILE($J$2:$J$501,1))-1.5*(QUARTILE($J$2:$J$501,3)-QUARTILE($J$2:$J$501,1)),J137>(QUARTILE($J$2:$J$501,3))+1.5*(QUARTILE($J$2:$J$501,3)-QUARTILE($J$2:$J$501,1))),"",J137) ->  | N137: =IF(COUNTIF($D$2:$D$501,D137)=1,"",IF(I137="","",ABS(IF(I137="",0,(((H137*OFFSET($P$1,MATCH($D137,$O$2:$O$40,0),,)-G137)/G137)))))) ->  | Q137: =IFERROR(IF(COUNTIF($E$2:$E$501,E137)=1,"",IF(I137="","",ABS(IF(I137="",0,(((H137*OFFSET($S$1,MATCH($E137,$R$2:$R$41,0),,)-G137)/G137)))))),"") ->  | T137: =IFERROR(IF(COUNTIF($F$2:$F$501,F137)=1,"",IF(I137="","",ABS(IF(I137="",0,(((H137*OFFSET($V$1,MATCH($F137,$U$2:$U$105,0),,)-G137)/G137)))))),"") ->  | W137: =IF(OR(J137<(QUARTILE($J$2:$J$501,1))-1.5*(QUARTILE($J$2:$J$501,3)-QUARTILE($J$2:$J$501,1)),J137>(QUARTILE($J$2:$J$501,3))+1.5*(QUARTILE($J$2:$J$501,3)-QUARTILE($J$2:$J$501,1))),"Outlier") -> Outlier
A138: 327747 | B138: CHESAPEAKE ENERGY | C138: 1 | D138: 500 | E138: 530 | F138: 533 | G138: 17.78 | H138: 2.71 | I138: =(IF(IFERROR(G138/H138,"")<0,"",IFERROR(G138/H138,""))) -> 6.560885609 | J138: =IF(COUNTIF($C$2:$C$501,C138)=1,"",IF(I138="","",ABS(IF(I138="",0,(((H138*OFFSET($M$1,MATCH($C138,$L$2:$L$40,0),,)-G138)/G138)))))) -> 0.4133192323 | K138: =IF(OR(J138<(QUARTILE($J$2:$J$501,1))-1.5*(QUARTILE($J$2:$J$501,3)-QUARTILE($J$2:$J$501,1)),J138>(QUARTILE($J$2:$J$501,3))+1.5*(QUARTILE($J$2:$J$501,3)-QUARTILE($J$2:$J$501,1))),"",J138) -> 0.4133192323 | N138: =IF(COUNTIF($D$2:$D$501,D138)=1,"",IF(I138="","",ABS(IF(I138="",0,(((H138*OFFSET($P$1,MATCH($D138,$O$2:$O$40,0),,)-G138)/G138)))))) -> 0.4133192323 | Q138: =IFERROR(IF(COUNTIF($E$2:$E$501,E138)=1,"",IF(I138="","",ABS(IF(I138="",0,(((H138*OFFSET($S$1,MATCH($E138,$R$2:$R$41,0),,)-G138)/G138)))))),"") -> 0.280819379 | T138: =IFERROR(IF(COUNTIF($F$2:$F$501,F138)=1,"",IF(I138="","",ABS(IF(I138="",0,(((H138*OFFSET($V$1,MATCH($F138,$U$2:$U$105,0),,)-G138)/G138)))))),"") -> 0.2718716357 | W138: =IF(OR(J138<(QUARTILE($J$2:$J$501,1))-1.5*(QUARTILE($J$2:$J$501,3)-QUARTILE($J$2:$J$501,1)),J138>(QUARTILE($J$2:$J$501,3))+1.5*(QUARTILE($J$2:$J$501,3)-QUARTILE($J$2:$J$501,1))),"Outlier") -> FALSE
A139: 327998 | B139: MORGAN STANLEY | C139: 8000 | D139: 8700 | E139: 8770 | F139: 8777 | G139: 13.87 | H139: 1.69 | I139: =(IF(IFERROR(G139/H139,"")<0,"",IFERROR(G139/H139,""))) -> 8.207100592 | J139: =IF(COUNTIF($C$2:$C$501,C139)=1,"",IF(I139="","",ABS(IF(I139="",0,(((H139*OFFSET($M$1,MATCH($C139,$L$2:$L$40,0),,)-G139)/G139)))))) -> 0.6206443373 | K139: =IF(OR(J139<(QUARTILE($J$2:$J$501,1))-1.5*(QUARTILE($J$2:$J$501,3)-QUARTILE($J$2:$J$501,1)),J139>(QUARTILE($J$2:$J$501,3))+1.5*(QUARTILE($J$2:$J$501,3)-QUARTILE($J$2:$J$501,1))),"",J139) -> 0.6206443373 | N139: =IF(COUNTIF($D$2:$D$501,D139)=1,"",IF(I139="","",ABS(IF(I139="",0,(((H139*OFFSET($P$1,MATCH($D139,$O$2:$O$40,0),,)-G139)/G139)))))) -> 0.5264390805 | Q139: =IFERROR(IF(COUNTIF($E$2:$E$501,E139)=1,"",IF(I139="","",ABS(IF(I139="",0,(((H139*OFFSET($S$1,MATCH($E139,$R$2:$R$41,0),,)-G139)/G139)))))),"") -> 0.5264390805 | T139: =IFERROR(IF(COUNTIF($F$2:$F$501,F139)=1,"",IF(I139="","",ABS(IF(I139="",0,(((H139*OFFSET($V$1,MATCH($F139,$U$2:$U$105,0),,)-G139)/G139)))))),"") -> 0.4461098159 | W139: =IF(OR(J139<(QUARTILE($J$2:$J$501,1))-1.5*(QUARTILE($J$2:$J$501,3)-QUARTILE($J$2:$J$501,1)),J139>(QUARTILE($J$2:$J$501,3))+1.5*(QUARTILE($J$2:$J$501,3)-QUARTILE($J$2:$J$501,1))),"Outlier") -> FALSE
A140: 328184 | B140: INTUIT | C140: 9000 | D140: 9500 | E140: 9530 | F140: 9537 | G140: 57 | H140: 2.39 | I140: =(IF(IFERROR(G140/H140,"")<0,"",IFERROR(G140/H140,""))) -> 23.84937238 | J140: =IF(COUNTIF($C$2:$C$501,C140)=1,"",IF(I140="","",ABS(IF(I140="",0,(((H140*OFFSET($M$1,MATCH($C140,$L$2:$L$40,0),,)-G140)/G140)))))) -> 0.4510540053 | K140: =IF(OR(J140<(QUARTILE($J$2:$J$501,1))-1.5*(QUARTILE($J$2:$J$501,3)-QUARTILE($J$2:$J$501,1)),J140>(QUARTILE($J$2:$J$501,3))+1.5*(QUARTILE($J$2:$J$501,3)-QUARTILE($J$2:$J$501,1))),"",J140) -> 0.4510540053 | N140: =IF(COUNTIF($D$2:$D$501,D140)=1,"",IF(I140="","",ABS(IF(I140="",0,(((H140*OFFSET($P$1,MATCH($D140,$O$2:$O$40,0),,)-G140)/G140)))))) -> 0.4510540053 | Q140: =IFERROR(IF(COUNTIF($E$2:$E$501,E140)=1,"",IF(I140="","",ABS(IF(I140="",0,(((H140*OFFSET($S$1,MATCH($E140,$R$2:$R$41,0),,)-G140)/G140)))))),"") -> 0.4078912188 | T140: =IFERROR(IF(COUNTIF($F$2:$F$501,F140)=1,"",IF(I140="","",ABS(IF(I140="",0,(((H140*OFFSET($V$1,MATCH($F140,$U$2:$U$105,0),,)-G140)/G140)))))),"") -> 0.3923236703 | W140: =IF(OR(J140<(QUARTILE($J$2:$J$501,1))-1.5*(QUARTILE($J$2:$J$501,3)-QUARTILE($J$2:$J$501,1)),J140>(QUARTILE($J$2:$J$501,3))+1.5*(QUARTILE($J$2:$J$501,3)-QUARTILE($J$2:$J$501,1))),"Outlier") -> FALSE
A141: 328426 | B141: SANMINA-SCI | C141: 2000 | D141: 2700 | E141: 2730 | F141: 2733 | G141: 7.85 | H141: 0.42 | I141: =(IF(IFERROR(G141/H141,"")<0,"",IFERROR(G141/H141,""))) -> 18.69047619 | J141: =IF(COUNTIF($C$2:$C$501,C141)=1,"",IF(I141="","",ABS(IF(I141="",0,(((H141*OFFSET($M$1,MATCH($C141,$L$2:$L$40,0),,)-G141)/G141)))))) -> 0.2239988508 | K141: =IF(OR(J141<(QUARTILE($J$2:$J$501,1))-1.5*(QUARTILE($J$2:$J$501,3)-QUARTILE($J$2:$J$501,1)),J141>(QUARTILE($J$2:$J$501,3))+1.5*(QUARTILE($J$2:$J$501,3)-QUARTILE($J$2:$J$501,1))),"",J141) -> 0.2239988508 | N141: =IF(COUNTIF($D$2:$D$501,D141)=1,"",IF(I141="","",ABS(IF(I141="",0,(((H141*OFFSET($P$1,MATCH($D141,$O$2:$O$40,0),,)-G141)/G141)))))) -> 0.2339172844 | Q141: =IFERROR(IF(COUNTIF($E$2:$E$501,E141)=1,"",IF(I141="","",ABS(IF(I141="",0,(((H141*OFFSET($S$1,MATCH($E141,$R$2:$R$41,0),,)-G141)/G141)))))),"") -> 0.1238223534 | T141: =IFERROR(IF(COUNTIF($F$2:$F$501,F141)=1,"",IF(I141="","",ABS(IF(I141="",0,(((H141*OFFSET($V$1,MATCH($F141,$U$2:$U$105,0),,)-G141)/G141)))))),"") -> 0.1252130214 | W141: =IF(OR(J141<(QUARTILE($J$2:$J$501,1))-1.5*(QUARTILE($J$2:$J$501,3)-QUARTILE($J$2:$J$501,1)),J141>(QUARTILE($J$2:$J$501,3))+1.5*(QUARTILE($J$2:$J$501,3)-QUARTILE($J$2:$J$501,1))),"Outlier") -> FALSE
A142: 328576 | B142: JABIL CIRCUIT | C142: 2000 | D142: 2700 | E142: 2730 | F142: 2733 | G142: 19.53 | H142: 2 | I142: =(IF(IFERROR(G142/H142,"")<0,"",IFERROR(G142/H142,""))) -> 9.765 | J142: =IF(COUNTIF($C$2:$C$501,C142)=1,"",IF(I142="","",ABS(IF(I142="",0,(((H142*OFFSET($M$1,MATCH($C142,$L$2:$L$40,0),,)-G142)/G142)))))) -> 0.4852873531 | K142: =IF(OR(J142<(QUARTILE($J$2:$J$501,1))-1.5*(QUARTILE($J$2:$J$501,3)-QUARTILE($J$2:$J$501,1)),J142>(QUARTILE($J$2:$J$501,3))+1.5*(QUARTILE($J$2:$J$501,3)-QUARTILE($J$2:$J$501,1))),"",J142) -> 0.4852873531 | N142: =IF(COUNTIF($D$2:$D$501,D142)=1,"",IF(I142="","",ABS(IF(I142="",0,(((H142*OFFSET($P$1,MATCH($D142,$O$2:$O$40,0),,)-G142)/G142)))))) -> 0.4663032008 | Q142: =IFERROR(IF(COUNTIF($E$2:$E$501,E142)=1,"",IF(I142="","",ABS(IF(I142="",0,(((H142*OFFSET($S$1,MATCH($E142,$R$2:$R$41,0),,)-G142)/G142)))))),"") -> 0.6770278999 | T142: =IFERROR(IF(COUNTIF($F$2:$F$501,F142)=1,"",IF(I142="","",ABS(IF(I142="",0,(((H142*OFFSET($V$1,MATCH($F142,$U$2:$U$105,0),,)-G142)/G142)))))),"") -> 0.6743661235 | W142: =IF(OR(J142<(QUARTILE($J$2:$J$501,1))-1.5*(QUARTILE($J$2:$J$501,3)-QUARTILE($J$2:$J$501,1)),J142>(QUARTILE($J$2:$J$501,3))+1.5*(QUARTILE($J$2:$J$501,3)-QUARTILE($J$2:$J$501,1))),"Outlier") -> FALSE
A143: 328723 | B143: XTO EN. DEAD - DELIST.08/07/10 | C143: 1 | D143: 500 | E143: 530 | F143: 533 | G143: 41.81 | H143: 3.19 | I143: =(IF(IFERROR(G143/H143,"")<0,"",IFERROR(G143/H143,""))) -> 13.10658307 | J143: =IF(COUNTIF($C$2:$C$501,C143)=1,"",IF(I143="","",ABS(IF(I143="",0,(((H143*OFFSET($M$1,MATCH($C143,$L$2:$L$40,0),,)-G143)/G143)))))) -> 0.2925214939 | K143: =IF(OR(J143<(QUARTILE($J$2:$J$501,1))-1.5*(QUARTILE($J$2:$J$501,3)-QUARTILE($J$2:$J$501,1)),J143>(QUARTILE($J$2:$J$501,3))+1.5*(QUARTILE($J$2:$J$501,3)-QUARTILE($J$2:$J$501,1))),"",J143) -> 0.2925214939 | N143: =IF(COUNTIF($D$2:$D$501,D143)=1,"",IF(I143="","",ABS(IF(I143="",0,(((H143*OFFSET($P$1,MATCH($D143,$O$2:$O$40,0),,)-G143)/G143)))))) -> 0.2925214939 | Q143: =IFERROR(IF(COUNTIF($E$2:$E$501,E143)=1,"",IF(I143="","",ABS(IF(I143="",0,(((H143*OFFSET($S$1,MATCH($E143,$R$2:$R$41,0),,)-G143)/G143)))))),"") -> 0.3588481922 | T143: =IFERROR(IF(COUNTIF($F$2:$F$501,F143)=1,"",IF(I143="","",ABS(IF(I143="",0,(((H143*OFFSET($V$1,MATCH($F143,$U$2:$U$105,0),,)-G143)/G143)))))),"") -> 0.3633272482 | W143: =IF(OR(J143<(QUARTILE($J$2:$J$501,1))-1.5*(QUARTILE($J$2:$J$501,3)-QUARTILE($J$2:$J$501,1)),J143>(QUARTILE($J$2:$J$501,3))+1.5*(QUARTILE($J$2:$J$501,3)-QUARTILE($J$2:$J$501,1))),"Outlier") -> FALSE
A144: 329534 | B144: EQUITY RESD.TST.PROPS. SHBI | C144: 8000 | D144: 8600 | E144: 8670 | F144: 8673 | G144: 60.53 | H144: 0.31 | I144: =(IF(IFERROR(G144/H144,"")<0,"",IFERROR(G144/H144,""))) -> 195.2580645 | J144: =IF(COUNTIF($C$2:$C$501,C144)=1,"",IF(I144="","",ABS(IF(I144="",0,(((H144*OFFSET($M$1,MATCH($C144,$L$2:$L$40,0),,)-G144)/G144)))))) -> 0.9318809641 | K144: =IF(OR(J144<(QUARTILE($J$2:$J$501,1))-1.5*(QUARTILE($J$2:$J$501,3)-QUARTILE($J$2:$J$501,1)),J144>(QUARTILE($J$2:$J$501,3))+1.5*(QUARTILE($J$2:$J$501,3)-QUARTILE($J$2:$J$501,1))),"",J144) -> 0.9318809641 | N144: =IF(COUNTIF($D$2:$D$501,D144)=1,"",IF(I144="","",ABS(IF(I144="",0,(((H144*OFFSET($P$1,MATCH($D144,$O$2:$O$40,0),,)-G144)/G144)))))) -> 0.7706783981 | Q144: =IFERROR(IF(COUNTIF($E$2:$E$501,E144)=1,"",IF(I144="","",ABS(IF(I144="",0,(((H144*OFFSET($S$1,MATCH($E144,$R$2:$R$41,0),,)-G144)/G144)))))),"") -> 0.7438622156 | T144: =IFERROR(IF(COUNTIF($F$2:$F$501,F144)=1,"",IF(I144="","",ABS(IF(I144="",0,(((H144*OFFSET($V$1,MATCH($F144,$U$2:$U$105,0),,)-G144)/G144)))))),"") ->  | W144: =IF(OR(J144<(QUARTILE($J$2:$J$501,1))-1.5*(QUARTILE($J$2:$J$501,3)-QUARTILE($J$2:$J$501,1)),J144>(QUARTILE($J$2:$J$501,3))+1.5*(QUARTILE($J$2:$J$501,3)-QUARTILE($J$2:$J$501,1))),"Outlier") -> FALSE
A145: 357344 | B145: JDS UNIPHASE | C145: 9000 | D145: 9500 | E145: 9570 | F145: 9578 | G145: 10.48 | H145: 0 | I145: =(IF(IFERROR(G145/H145,"")<0,"",IFERROR(G145/H145,""))) ->  | J145: =IF(COUNTIF($C$2:$C$501,C145)=1,"",IF(I145="","",ABS(IF(I145="",0,(((H145*OFFSET($M$1,MATCH($C145,$L$2:$L$40,0),,)-G145)/G145)))))) ->  | K145: =IF(OR(J145<(QUARTILE($J$2:$J$501,1))-1.5*(QUARTILE($J$2:$J$501,3)-QUARTILE($J$2:$J$501,1)),J145>(QUARTILE($J$2:$J$501,3))+1.5*(QUARTILE($J$2:$J$501,3)-QUARTILE($J$2:$J$501,1))),"",J145) ->  | N145: =IF(COUNTIF($D$2:$D$501,D145)=1,"",IF(I145="","",ABS(IF(I145="",0,(((H145*OFFSET($P$1,MATCH($D145,$O$2:$O$40,0),,)-G145)/G145)))))) ->  | Q145: =IFERROR(IF(COUNTIF($E$2:$E$501,E145)=1,"",IF(I145="","",ABS(IF(I145="",0,(((H145*OFFSET($S$1,MATCH($E145,$R$2:$R$41,0),,)-G145)/G145)))))),"") ->  | T145: =IFERROR(IF(COUNTIF($F$2:$F$501,F145)=1,"",IF(I145="","",ABS(IF(I145="",0,(((H145*OFFSET($V$1,MATCH($F145,$U$2:$U$105,0),,)-G145)/G145)))))),"") ->  | W145: =IF(OR(J145<(QUARTILE($J$2:$J$501,1))-1.5*(QUARTILE($J$2:$J$501,3)-QUARTILE($J$2:$J$501,1)),J145>(QUARTILE($J$2:$J$501,3))+1.5*(QUARTILE($J$2:$J$501,3)-QUARTILE($J$2:$J$501,1))),"Outlier") -> Outlier
A146: 357834 | B146: SIMON PR.GP. | C146: 8000 | D146: 8600 | E146: 8670 | F146: 8672 | G146: 151.7 | H146: 5.05 | I146: =(IF(IFERROR(G146/H146,"")<0,"",IFERROR(G146/H146,""))) -> 30.03960396 | J146: =IF(COUNTIF($C$2:$C$501,C146)=1,"",IF(I146="","",ABS(IF(I146="",0,(((H146*OFFSET($M$1,MATCH($C146,$L$2:$L$40,0),,)-G146)/G146)))))) -> 0.5572248184 | K146: =IF(OR(J146<(QUARTILE($J$2:$J$501,1))-1.5*(QUARTILE($J$2:$J$501,3)-QUARTILE($J$2:$J$501,1)),J146>(QUARTILE($J$2:$J$501,3))+1.5*(QUARTILE($J$2:$J$501,3)-QUARTILE($J$2:$J$501,1))),"",J146) -> 0.5572248184 | N146: =IF(COUNTIF($D$2:$D$501,D146)=1,"",IF(I146="","",ABS(IF(I146="",0,(((H146*OFFSET($P$1,MATCH($D146,$O$2:$O$40,0),,)-G146)/G146)))))) -> 0.4905952888 | Q146: =IFERROR(IF(COUNTIF($E$2:$E$501,E146)=1,"",IF(I146="","",ABS(IF(I146="",0,(((H146*OFFSET($S$1,MATCH($E146,$R$2:$R$41,0),,)-G146)/G146)))))),"") -> 0.664901045 | T146: =IFERROR(IF(COUNTIF($F$2:$F$501,F146)=1,"",IF(I146="","",ABS(IF(I146="",0,(((H146*OFFSET($V$1,MATCH($F146,$U$2:$U$105,0),,)-G146)/G146)))))),"") ->  | W146: =IF(OR(J146<(QUARTILE($J$2:$J$501,1))-1.5*(QUARTILE($J$2:$J$501,3)-QUARTILE($J$2:$J$501,1)),J146>(QUARTILE($J$2:$J$501,3))+1.5*(QUARTILE($J$2:$J$501,3)-QUARTILE($J$2:$J$501,1))),"Outlier") -> FALSE
A147: 357922 | B147: EASTMAN CHEMICAL | C147: 1000 | D147: 1300 | E147: 1350 | F147: 1353 | G147: 48.13 | H147: 4.46 | I147: =(IF(IFERROR(G147/H147,"")<0,"",IFERROR(G147/H147,""))) -> 10.79147982 | J147: =IF(COUNTIF($C$2:$C$501,C147)=1,"",IF(I147="","",ABS(IF(I147="",0,(((H147*OFFSET($M$1,MATCH($C147,$L$2:$L$40,0),,)-G147)/G147)))))) -> 0.4360289526 | K147: =IF(OR(J147<(QUARTILE($J$2:$J$501,1))-1.5*(QUARTILE($J$2:$J$501,3)-QUARTILE($J$2:$J$501,1)),J147>(QUARTILE($J$2:$J$501,3))+1.5*(QUARTILE($J$2:$J$501,3)-QUARTILE($J$2:$J$501,1))),"",J147) -> 0.4360289526 | N147: =IF(COUNTIF($D$2:$D$501,D147)=1,"",IF(I147="","",ABS(IF(I147="",0,(((H147*OFFSET($P$1,MATCH($D147,$O$2:$O$40,0),,)-G147)/G147)))))) -> 0.6747497913 | Q147: =IFERROR(IF(COUNTIF($E$2:$E$501,E147)=1,"",IF(I147="","",ABS(IF(I147="",0,(((H147*OFFSET($S$1,MATCH($E147,$R$2:$R$41,0),,)-G147)/G147)))))),"") -> 0.6747497913 | T147: =IFERROR(IF(COUNTIF($F$2:$F$501,F147)=1,"",IF(I147="","",ABS(IF(I147="",0,(((H147*OFFSET($V$1,MATCH($F147,$U$2:$U$105,0),,)-G147)/G147)))))),"") -> 0.3139458006 | W147: =IF(OR(J147<(QUARTILE($J$2:$J$501,1))-1.5*(QUARTILE($J$2:$J$501,3)-QUARTILE($J$2:$J$501,1)),J147>(QUARTILE($J$2:$J$501,3))+1.5*(QUARTILE($J$2:$J$501,3)-QUARTILE($J$2:$J$501,1))),"Outlier") -> FALSE
A148: 500157 | B148: STAPLES | C148: 5000 | D148: 5300 | E148: 5370 | F148: 5379 | G148: 12.59 | H148: 1.4 | I148: =(IF(IFERROR(G148/H148,"")<0,"",IFERROR(G148/H148,""))) -> 8.992857143 | J148: =IF(COUNTIF($C$2:$C$501,C148)=1,"",IF(I148="","",ABS(IF(I148="",0,(((H148*OFFSET($M$1,MATCH($C148,$L$2:$L$40,0),,)-G148)/G148)))))) -> 0.7536709092 | K148: =IF(OR(J148<(QUARTILE($J$2:$J$501,1))-1.5*(QUARTILE($J$2:$J$501,3)-QUARTILE($J$2:$J$501,1)),J148>(QUARTILE($J$2:$J$501,3))+1.5*(QUARTILE($J$2:$J$501,3)-QUARTILE($J$2:$J$501,1))),"",J148) -> 0.7536709092 | N148: =IF(COUNTIF($D$2:$D$501,D148)=1,"",IF(I148="","",ABS(IF(I148="",0,(((H148*OFFSET($P$1,MATCH($D148,$O$2:$O$40,0),,)-G148)/G148)))))) -> 0.6203382908 | Q148: =IFERROR(IF(COUNTIF($E$2:$E$501,E148)=1,"",IF(I148="","",ABS(IF(I148="",0,(((H148*OFFSET($S$1,MATCH($E148,$R$2:$R$41,0),,)-G148)/G148)))))),"") -> 0.5938320993 | T148: =IFERROR(IF(COUNTIF($F$2:$F$501,F148)=1,"",IF(I148="","",ABS(IF(I148="",0,(((H148*OFFSET($V$1,MATCH($F148,$U$2:$U$105,0),,)-G148)/G148)))))),"") -> 0.3756346459 | W148: =IF(OR(J148<(QUARTILE($J$2:$J$501,1))-1.5*(QUARTILE($J$2:$J$501,3)-QUARTILE($J$2:$J$501,1)),J148>(QUARTILE($J$2:$J$501,3))+1.5*(QUARTILE($J$2:$J$501,3)-QUARTILE($J$2:$J$501,1))),"Outlier") -> FALSE
A149: 500320 | B149: ELECTRONIC ARTS | C149: 3000 | D149: 3700 | E149: 3740 | F149: 3747 | G149: 11.89 | H149: 0.23 | I149: =(IF(IFERROR(G149/H149,"")<0,"",IFERROR(G149/H149,""))) -> 51.69565217 | J149: =IF(COUNTIF($C$2:$C$501,C149)=1,"",IF(I149="","",ABS(IF(I149="",0,(((H149*OFFSET($M$1,MATCH($C149,$L$2:$L$40,0),,)-G149)/G149)))))) -> 0.6906860939 | K149: =IF(OR(J149<(QUARTILE($J$2:$J$501,1))-1.5*(QUARTILE($J$2:$J$501,3)-QUARTILE($J$2:$J$501,1)),J149>(QUARTILE($J$2:$J$501,3))+1.5*(QUARTILE($J$2:$J$501,3)-QUARTILE($J$2:$J$501,1))),"",J149) -> 0.6906860939 | N149: =IF(COUNTIF($D$2:$D$501,D149)=1,"",IF(I149="","",ABS(IF(I149="",0,(((H149*OFFSET($P$1,MATCH($D149,$O$2:$O$40,0),,)-G149)/G149)))))) -> 0.6270288001 | Q149: =IFERROR(IF(COUNTIF($E$2:$E$501,E149)=1,"",IF(I149="","",ABS(IF(I149="",0,(((H149*OFFSET($S$1,MATCH($E149,$R$2:$R$41,0),,)-G149)/G149)))))),"") -> 0.6980005682 | T149: =IFERROR(IF(COUNTIF($F$2:$F$501,F149)=1,"",IF(I149="","",ABS(IF(I149="",0,(((H149*OFFSET($V$1,MATCH($F149,$U$2:$U$105,0),,)-G149)/G149)))))),"") ->  | W149: =IF(OR(J149<(QUARTILE($J$2:$J$501,1))-1.5*(QUARTILE($J$2:$J$501,3)-QUARTILE($J$2:$J$501,1)),J149>(QUARTILE($J$2:$J$501,3))+1.5*(QUARTILE($J$2:$J$501,3)-QUARTILE($J$2:$J$501,1))),"Outlier") -> FALSE
A150: 500373 | B150: EOG RES. | C150: 1 | D150: 500 | E150: 530 | F150: 533 | G150: 85.16 | H150: 4.77 | I150: =(IF(IFERROR(G150/H150,"")<0,"",IFERROR(G150/H150,""))) -> 17.85324948 | J150: =IF(COUNTIF($C$2:$C$501,C150)=1,"",IF(I150="","",ABS(IF(I150="",0,(((H150*OFFSET($M$1,MATCH($C150,$L$2:$L$40,0),,)-G150)/G150)))))) -> 0.4806197144 | K150: =IF(OR(J150<(QUARTILE($J$2:$J$501,1))-1.5*(QUARTILE($J$2:$J$501,3)-QUARTILE($J$2:$J$501,1)),J150>(QUARTILE($J$2:$J$501,3))+1.5*(QUARTILE($J$2:$J$501,3)-QUARTILE($J$2:$J$501,1))),"",J150) -> 0.4806197144 | N150: =IF(COUNTIF($D$2:$D$501,D150)=1,"",IF(I150="","",ABS(IF(I150="",0,(((H150*OFFSET($P$1,MATCH($D150,$O$2:$O$40,0),,)-G150)/G150)))))) -> 0.4806197144 | Q150: =IFERROR(IF(COUNTIF($E$2:$E$501,E150)=1,"",IF(I150="","",ABS(IF(I150="",0,(((H150*OFFSET($S$1,MATCH($E150,$R$2:$R$41,0),,)-G150)/G150)))))),"") -> 0.5293120481 | T150: =IFERROR(IF(COUNTIF($F$2:$F$501,F150)=1,"",IF(I150="","",ABS(IF(I150="",0,(((H150*OFFSET($V$1,MATCH($F150,$U$2:$U$105,0),,)-G150)/G150)))))),"") -> 0.5326002517 | W150: =IF(OR(J150<(QUARTILE($J$2:$J$501,1))-1.5*(QUARTILE($J$2:$J$501,3)-QUARTILE($J$2:$J$501,1)),J150>(QUARTILE($J$2:$J$501,3))+1.5*(QUARTILE($J$2:$J$501,3)-QUARTILE($J$2:$J$501,1))),"Outlier") -> FALSE
A151: 501541 | B151: HARRAHS ENTERTAINMENT DEAD - MERGER.08/02/08 | C151: 5000 | D151: 5700 | E151: 5750 | F151: 5752 | G151: 89.97 | H151: 3.72 | I151: =(IF(IFERROR(G151/H151,"")<0,"",IFERROR(G151/H151,""))) -> 24.18548387 | J151: =IF(COUNTIF($C$2:$C$501,C151)=1,"",IF(I151="","",ABS(IF(I151="",0,(((H151*OFFSET($M$1,MATCH($C151,$L$2:$L$40,0),,)-G151)/G151)))))) -> 0.3479348172 | K151: =IF(OR(J151<(QUARTILE($J$2:$J$501,1))-1.5*(QUARTILE($J$2:$J$501,3)-QUARTILE($J$2:$J$501,1)),J151>(QUARTILE($J$2:$J$501,3))+1.5*(QUARTILE($J$2:$J$501,3)-QUARTILE($J$2:$J$501,1))),"",J151) -> 0.3479348172 | N151: =IF(COUNTIF($D$2:$D$501,D151)=1,"",IF(I151="","",ABS(IF(I151="",0,(((H151*OFFSET($P$1,MATCH($D151,$O$2:$O$40,0),,)-G151)/G151)))))) -> 0.09454152188 | Q151: =IFERROR(IF(COUNTIF($E$2:$E$501,E151)=1,"",IF(I151="","",ABS(IF(I151="",0,(((H151*OFFSET($S$1,MATCH($E151,$R$2:$R$41,0),,)-G151)/G151)))))),"") -> 0.09454152188 | T151: =IFERROR(IF(COUNTIF($F$2:$F$501,F151)=1,"",IF(I151="","",ABS(IF(I151="",0,(((H151*OFFSET($V$1,MATCH($F151,$U$2:$U$105,0),,)-G151)/G151)))))),"") ->  | W151: =IF(OR(J151<(QUARTILE($J$2:$J$501,1))-1.5*(QUARTILE($J$2:$J$501,3)-QUARTILE($J$2:$J$501,1)),J151>(QUARTILE($J$2:$J$501,3))+1.5*(QUARTILE($J$2:$J$501,3)-QUARTILE($J$2:$J$501,1))),"Outlier") -> FALSE
A152: 510056 | B152: SYNOVUS FINL. | C152: 8000 | D152: 8300 | E152: 8350 | F152: 8355 | G152: 1.93 | H152: 0 | I152: =(IF(IFERROR(G152/H152,"")<0,"",IFERROR(G152/H152,""))) ->  | J152: =IF(COUNTIF($C$2:$C$501,C152)=1,"",IF(I152="","",ABS(IF(I152="",0,(((H152*OFFSET($M$1,MATCH($C152,$L$2:$L$40,0),,)-G152)/G152)))))) ->  | K152: =IF(OR(J152<(QUARTILE($J$2:$J$501,1))-1.5*(QUARTILE($J$2:$J$501,3)-QUARTILE($J$2:$J$501,1)),J152>(QUARTILE($J$2:$J$501,3))+1.5*(QUARTILE($J$2:$J$501,3)-QUARTILE($J$2:$J$501,1))),"",J152) ->  | N152: =IF(COUNTIF($D$2:$D$501,D152)=1,"",IF(I152="","",ABS(IF(I152="",0,(((H152*OFFSET($P$1,MATCH($D152,$O$2:$O$40,0),,)-G152)/G152)))))) ->  | Q152: =IFERROR(IF(COUNTIF($E$2:$E$501,E152)=1,"",IF(I152="","",ABS(IF(I152="",0,(((H152*OFFSET($S$1,MATCH($E152,$R$2:$R$41,0),,)-G152)/G152)))))),"") ->  | T152: =IFERROR(IF(COUNTIF($F$2:$F$501,F152)=1,"",IF(I152="","",ABS(IF(I152="",0,(((H152*OFFSET($V$1,MATCH($F152,$U$2:$U$105,0),,)-G152)/G152)))))),"") ->  | W152: =IF(OR(J152<(QUARTILE($J$2:$J$501,1))-1.5*(QUARTILE($J$2:$J$501,3)-QUARTILE($J$2:$J$501,1)),J152>(QUARTILE($J$2:$J$501,3))+1.5*(QUARTILE($J$2:$J$501,3)-QUARTILE($J$2:$J$501,1))),"Outlier") -> Outlier
A153: 510078 | B153: COMPASS BANCSHARES DEAD - DEL.07/09/07 | C153: 8000 | D153: 8300 | E153: 8350 | F153: 8355 | G153: 64.36 | H153: 3.47 | I153: =(IF(IFERROR(G153/H153,"")<0,"",IFERROR(G153/H153,""))) -> 18.54755043 | J153: =IF(COUNTIF($C$2:$C$501,C153)=1,"",IF(I153="","",ABS(IF(I153="",0,(((H153*OFFSET($M$1,MATCH($C153,$L$2:$L$40,0),,)-G153)/G153)))))) -> 0.282881524 | K153: =IF(OR(J153<(QUARTILE($J$2:$J$501,1))-1.5*(QUARTILE($J$2:$J$501,3)-QUARTILE($J$2:$J$501,1)),J153>(QUARTILE($J$2:$J$501,3))+1.5*(QUARTILE($J$2:$J$501,3)-QUARTILE($J$2:$J$501,1))),"",J153) -> 0.282881524 | N153: =IF(COUNTIF($D$2:$D$501,D153)=1,"",IF(I153="","",ABS(IF(I153="",0,(((H153*OFFSET($P$1,MATCH($D153,$O$2:$O$40,0),,)-G153)/G153)))))) -> 0.3437704342 | Q153: =IFERROR(IF(COUNTIF($E$2:$E$501,E153)=1,"",IF(I153="","",ABS(IF(I153="",0,(((H153*OFFSET($S$1,MATCH($E153,$R$2:$R$41,0),,)-G153)/G153)))))),"") -> 0.3437704342 | T153: =IFERROR(IF(COUNTIF($F$2:$F$501,F153)=1,"",IF(I153="","",ABS(IF(I153="",0,(((H153*OFFSET($V$1,MATCH($F153,$U$2:$U$105,0),,)-G153)/G153)))))),"") -> 0.3437704342 | W153: =IF(OR(J153<(QUARTILE($J$2:$J$501,1))-1.5*(QUARTILE($J$2:$J$501,3)-QUARTILE($J$2:$J$501,1)),J153>(QUARTILE($J$2:$J$501,3))+1.5*(QUARTILE($J$2:$J$501,3)-QUARTILE($J$2:$J$501,1))),"Outlier") -> FALSE
A154: 510096 | B154: CLEAR CHL.COMMS. DEAD - DELIST.11/08/08 | C154: 5000 | D154: 5500 | E154: 5550 | F154: 5553 | G154: 35.98 | H154: 1.69 | I154: =(IF(IFERROR(G154/H154,"")<0,"",IFERROR(G154/H154,""))) -> 21.28994083 | J154: =IF(COUNTIF($C$2:$C$501,C154)=1,"",IF(I154="","",ABS(IF(I154="",0,(((H154*OFFSET($M$1,MATCH($C154,$L$2:$L$40,0),,)-G154)/G154)))))) -> 0.2592505499 | K154: =IF(OR(J154<(QUARTILE($J$2:$J$501,1))-1.5*(QUARTILE($J$2:$J$501,3)-QUARTILE($J$2:$J$501,1)),J154>(QUARTILE($J$2:$J$501,3))+1.5*(QUARTILE($J$2:$J$501,3)-QUARTILE($J$2:$J$501,1))),"",J154) -> 0.2592505499 | N154: =IF(COUNTIF($D$2:$D$501,D154)=1,"",IF(I154="","",ABS(IF(I154="",0,(((H154*OFFSET($P$1,MATCH($D154,$O$2:$O$40,0),,)-G154)/G154)))))) -> 0.287441513 | Q154: =IFERROR(IF(COUNTIF($E$2:$E$501,E154)=1,"",IF(I154="","",ABS(IF(I154="",0,(((H154*OFFSET($S$1,MATCH($E154,$R$2:$R$41,0),,)-G154)/G154)))))),"") -> 0.287441513 | T154: =IFERROR(IF(COUNTIF($F$2:$F$501,F154)=1,"",IF(I154="","",ABS(IF(I154="",0,(((H154*OFFSET($V$1,MATCH($F154,$U$2:$U$105,0),,)-G154)/G154)))))),"") -> 0.241477265 | W154: =IF(OR(J154<(QUARTILE($J$2:$J$501,1))-1.5*(QUARTILE($J$2:$J$501,3)-QUARTILE($J$2:$J$501,1)),J154>(QUARTILE($J$2:$J$501,3))+1.5*(QUARTILE($J$2:$J$501,3)-QUARTILE($J$2:$J$501,1))),"Outlier") -> FALSE
A155: 510428 | B155: SOVEREIGN BANCORP DEAD - DELIST.12/02/09 | C155: 8000 | D155: 8300 | E155: 8350 | F155: 8355 | G155: 2.47 | H155: 0 | I155: =(IF(IFERROR(G155/H155,"")<0,"",IFERROR(G155/H155,""))) ->  | J155: =IF(COUNTIF($C$2:$C$501,C155)=1,"",IF(I155="","",ABS(IF(I155="",0,(((H155*OFFSET($M$1,MATCH($C155,$L$2:$L$40,0),,)-G155)/G155)))))) ->  | K155: =IF(OR(J155<(QUARTILE($J$2:$J$501,1))-1.5*(QUARTILE($J$2:$J$501,3)-QUARTILE($J$2:$J$501,1)),J155>(QUARTILE($J$2:$J$501,3))+1.5*(QUARTILE($J$2:$J$501,3)-QUARTILE($J$2:$J$501,1))),"",J155) ->  | N155: =IF(COUNTIF($D$2:$D$501,D155)=1,"",IF(I155="","",ABS(IF(I155="",0,(((H155*OFFSET($P$1,MATCH($D155,$O$2:$O$40,0),,)-G155)/G155)))))) ->  | Q155: =IFERROR(IF(COUNTIF($E$2:$E$501,E155)=1,"",IF(I155="","",ABS(IF(I155="",0,(((H155*OFFSET($S$1,MATCH($E155,$R$2:$R$41,0),,)-G155)/G155)))))),"") ->  | T155: =IFERROR(IF(COUNTIF($F$2:$F$501,F155)=1,"",IF(I155="","",ABS(IF(I155="",0,(((H155*OFFSET($V$1,MATCH($F155,$U$2:$U$105,0),,)-G155)/G155)))))),"") ->  | W155: =IF(OR(J155<(QUARTILE($J$2:$J$501,1))-1.5*(QUARTILE($J$2:$J$501,3)-QUARTILE($J$2:$J$501,1)),J155>(QUARTILE($J$2:$J$501,3))+1.5*(QUARTILE($J$2:$J$501,3)-QUARTILE($J$2:$J$501,1))),"Outlier") -> Outlier
A156: 510493 | B156: MCCORMICK & CO NV. | C156: 3000 | D156: 3500 | E156: 3570 | F156: 3577 | G156: 59.06 | H156: 2.77 | I156: =(IF(IFERROR(G156/H156,"")<0,"",IFERROR(G156/H156,""))) -> 21.32129964 | J156: =IF(COUNTIF($C$2:$C$501,C156)=1,"",IF(I156="","",ABS(IF(I156="",0,(((H156*OFFSET($M$1,MATCH($C156,$L$2:$L$40,0),,)-G156)/G156)))))) -> 0.2500370815 | K156: =IF(OR(J156<(QUARTILE($J$2:$J$501,1))-1.5*(QUARTILE($J$2:$J$501,3)-QUARTILE($J$2:$J$501,1)),J156>(QUARTILE($J$2:$J$501,3))+1.5*(QUARTILE($J$2:$J$501,3)-QUARTILE($J$2:$J$501,1))),"",J156) -> 0.2500370815 | N156: =IF(COUNTIF($D$2:$D$501,D156)=1,"",IF(I156="","",ABS(IF(I156="",0,(((H156*OFFSET($P$1,MATCH($D156,$O$2:$O$40,0),,)-G156)/G156)))))) -> 0.1621370767 | Q156: =IFERROR(IF(COUNTIF($E$2:$E$501,E156)=1,"",IF(I156="","",ABS(IF(I156="",0,(((H156*OFFSET($S$1,MATCH($E156,$R$2:$R$41,0),,)-G156)/G156)))))),"") -> 0.1640386058 | T156: =IFERROR(IF(COUNTIF($F$2:$F$501,F156)=1,"",IF(I156="","",ABS(IF(I156="",0,(((H156*OFFSET($V$1,MATCH($F156,$U$2:$U$105,0),,)-G156)/G156)))))),"") -> 0.1799735537 | W156: =IF(OR(J156<(QUARTILE($J$2:$J$501,1))-1.5*(QUARTILE($J$2:$J$501,3)-QUARTILE($J$2:$J$501,1)),J156>(QUARTILE($J$2:$J$501,3))+1.5*(QUARTILE($J$2:$J$501,3)-QUARTILE($J$2:$J$501,1))),"Outlier") -> FALSE
A157: 512545 | B157: COM.BANC. DEAD - DELIST.10/04/08 | C157: 8000 | D157: 8300 | E157: 8350 | F157: 8355 | G157: 35 | H157: 0.71 | I157: =(IF(IFERROR(G157/H157,"")<0,"",IFERROR(G157/H157,""))) -> 49.29577465 | J157: =IF(COUNTIF($C$2:$C$501,C157)=1,"",IF(I157="","",ABS(IF(I157="",0,(((H157*OFFSET($M$1,MATCH($C157,$L$2:$L$40,0),,)-G157)/G157)))))) -> 0.730183952 | K157: =IF(OR(J157<(QUARTILE($J$2:$J$501,1))-1.5*(QUARTILE($J$2:$J$501,3)-QUARTILE($J$2:$J$501,1)),J157>(QUARTILE($J$2:$J$501,3))+1.5*(QUARTILE($J$2:$J$501,3)-QUARTILE($J$2:$J$501,1))),"",J157) -> 0.730183952 | N157: =IF(COUNTIF($D$2:$D$501,D157)=1,"",IF(I157="","",ABS(IF(I157="",0,(((H157*OFFSET($P$1,MATCH($D157,$O$2:$O$40,0),,)-G157)/G157)))))) -> 0.7530934233 | Q157: =IFERROR(IF(COUNTIF($E$2:$E$501,E157)=1,"",IF(I157="","",ABS(IF(I157="",0,(((H157*OFFSET($S$1,MATCH($E157,$R$2:$R$41,0),,)-G157)/G157)))))),"") -> 0.7530934233 | T157: =IFERROR(IF(COUNTIF($F$2:$F$501,F157)=1,"",IF(I157="","",ABS(IF(I157="",0,(((H157*OFFSET($V$1,MATCH($F157,$U$2:$U$105,0),,)-G157)/G157)))))),"") -> 0.7530934233 | W157: =IF(OR(J157<(QUARTILE($J$2:$J$501,1))-1.5*(QUARTILE($J$2:$J$501,3)-QUARTILE($J$2:$J$501,1)),J157>(QUARTILE($J$2:$J$501,3))+1.5*(QUARTILE($J$2:$J$501,3)-QUARTILE($J$2:$J$501,1))),"Outlier") -> FALSE
A158: 514950 | B158: STARWOOD HTLS.& RSTS. WORLDWIDE | C158: 5000 | D158: 5700 | E158: 5750 | F158: 5753 | G158: 50.3 | H158: 3.08 | I158: =(IF(IFERROR(G158/H158,"")<0,"",IFERROR(G158/H158,""))) -> 16.33116883 | J158: =IF(COUNTIF($C$2:$C$501,C158)=1,"",IF(I158="","",ABS(IF(I158="",0,(((H158*OFFSET($M$1,MATCH($C158,$L$2:$L$40,0),,)-G158)/G158)))))) -> 0.03433048026 | K158: =IF(OR(J158<(QUARTILE($J$2:$J$501,1))-1.5*(QUARTILE($J$2:$J$501,3)-QUARTILE($J$2:$J$501,1)),J158>(QUARTILE($J$2:$J$501,3))+1.5*(QUARTILE($J$2:$J$501,3)-QUARTILE($J$2:$J$501,1))),"",J158) -> 0.03433048026 | N158: =IF(COUNTIF($D$2:$D$501,D158)=1,"",IF(I158="","",ABS(IF(I158="",0,(((H158*OFFSET($P$1,MATCH($D158,$O$2:$O$40,0),,)-G158)/G158)))))) -> 0.3409298284 | Q158: =IFERROR(IF(COUNTIF($E$2:$E$501,E158)=1,"",IF(I158="","",ABS(IF(I158="",0,(((H158*OFFSET($S$1,MATCH($E158,$R$2:$R$41,0),,)-G158)/G158)))))),"") -> 0.3409298284 | T158: =IFERROR(IF(COUNTIF($F$2:$F$501,F158)=1,"",IF(I158="","",ABS(IF(I158="",0,(((H158*OFFSET($V$1,MATCH($F158,$U$2:$U$105,0),,)-G158)/G158)))))),"") ->  | W158: =IF(OR(J158<(QUARTILE($J$2:$J$501,1))-1.5*(QUARTILE($J$2:$J$501,3)-QUARTILE($J$2:$J$501,1)),J158>(QUARTILE($J$2:$J$501,3))+1.5*(QUARTILE($J$2:$J$501,3)-QUARTILE($J$2:$J$501,1))),"Outlier") -> FALSE
A159: 519514 | B159: WASTE MAN. | C159: 2000 | D159: 2700 | E159: 2790 | F159: 2799 | G159: 32.55 | H159: 2.03 | I159: =(IF(IFERROR(G159/H159,"")<0,"",IFERROR(G159/H159,""))) -> 16.03448276 | J159: =IF(COUNTIF($C$2:$C$501,C159)=1,"",IF(I159="","",ABS(IF(I159="",0,(((H159*OFFSET($M$1,MATCH($C159,$L$2:$L$40,0),,)-G159)/G159)))))) -> 0.09546000198 | K159: =IF(OR(J159<(QUARTILE($J$2:$J$501,1))-1.5*(QUARTILE($J$2:$J$501,3)-QUARTILE($J$2:$J$501,1)),J159>(QUARTILE($J$2:$J$501,3))+1.5*(QUARTILE($J$2:$J$501,3)-QUARTILE($J$2:$J$501,1))),"",J159) -> 0.09546000198 | N159: =IF(COUNTIF($D$2:$D$501,D159)=1,"",IF(I159="","",ABS(IF(I159="",0,(((H159*OFFSET($P$1,MATCH($D159,$O$2:$O$40,0),,)-G159)/G159)))))) -> 0.1070213507 | Q159: =IFERROR(IF(COUNTIF($E$2:$E$501,E159)=1,"",IF(I159="","",ABS(IF(I159="",0,(((H159*OFFSET($S$1,MATCH($E159,$R$2:$R$41,0),,)-G159)/G159)))))),"") -> 0.06964411568 | T159: =IFERROR(IF(COUNTIF($F$2:$F$501,F159)=1,"",IF(I159="","",ABS(IF(I159="",0,(((H159*OFFSET($V$1,MATCH($F159,$U$2:$U$105,0),,)-G159)/G159)))))),"") ->  | W159: =IF(OR(J159<(QUARTILE($J$2:$J$501,1))-1.5*(QUARTILE($J$2:$J$501,3)-QUARTILE($J$2:$J$501,1)),J159>(QUARTILE($J$2:$J$501,3))+1.5*(QUARTILE($J$2:$J$501,3)-QUARTILE($J$2:$J$501,1))),"Outlier") -> FALSE
A160: 541806 | B160: PLUM CREEK TIMBER | C160: 8000 | D160: 8600 | E160: 8670 | F160: 8675 | G160: 38.88 | H160: 1.14 | I160: =(IF(IFERROR(G160/H160,"")<0,"",IFERROR(G160/H160,""))) -> 34.10526316 | J160: =IF(COUNTIF($C$2:$C$501,C160)=1,"",IF(I160="","",ABS(IF(I160="",0,(((H160*OFFSET($M$1,MATCH($C160,$L$2:$L$40,0),,)-G160)/G160)))))) -> 0.6100076684 | K160: =IF(OR(J160<(QUARTILE($J$2:$J$501,1))-1.5*(QUARTILE($J$2:$J$501,3)-QUARTILE($J$2:$J$501,1)),J160>(QUARTILE($J$2:$J$501,3))+1.5*(QUARTILE($J$2:$J$501,3)-QUARTILE($J$2:$J$501,1))),"",J160) -> 0.6100076684 | N160: =IF(COUNTIF($D$2:$D$501,D160)=1,"",IF(I160="","",ABS(IF(I160="",0,(((H160*OFFSET($P$1,MATCH($D160,$O$2:$O$40,0),,)-G160)/G160)))))) -> 0.3129027017 | Q160: =IFERROR(IF(COUNTIF($E$2:$E$501,E160)=1,"",IF(I160="","",ABS(IF(I160="",0,(((H160*OFFSET($S$1,MATCH($E160,$R$2:$R$41,0),,)-G160)/G160)))))),"") -> 0.466429618 | T160: =IFERROR(IF(COUNTIF($F$2:$F$501,F160)=1,"",IF(I160="","",ABS(IF(I160="",0,(((H160*OFFSET($V$1,MATCH($F160,$U$2:$U$105,0),,)-G160)/G160)))))),"") ->  | W160: =IF(OR(J160<(QUARTILE($J$2:$J$501,1))-1.5*(QUARTILE($J$2:$J$501,3)-QUARTILE($J$2:$J$501,1)),J160>(QUARTILE($J$2:$J$501,3))+1.5*(QUARTILE($J$2:$J$501,3)-QUARTILE($J$2:$J$501,1))),"Outlier") -> FALSE
A161: 541900 | B161: SYMANTEC | C161: 9000 | D161: 9500 | E161: 9530 | F161: 9537 | G161: 13.89 | H161: 1.57 | I161: =(IF(IFERROR(G161/H161,"")<0,"",IFERROR(G161/H161,""))) -> 8.847133758 | J161: =IF(COUNTIF($C$2:$C$501,C161)=1,"",IF(I161="","",ABS(IF(I161="",0,(((H161*OFFSET($M$1,MATCH($C161,$L$2:$L$40,0),,)-G161)/G161)))))) -> 0.4798032678 | K161: =IF(OR(J161<(QUARTILE($J$2:$J$501,1))-1.5*(QUARTILE($J$2:$J$501,3)-QUARTILE($J$2:$J$501,1)),J161>(QUARTILE($J$2:$J$501,3))+1.5*(QUARTILE($J$2:$J$501,3)-QUARTILE($J$2:$J$501,1))),"",J161) -> 0.4798032678 | N161: =IF(COUNTIF($D$2:$D$501,D161)=1,"",IF(I161="","",ABS(IF(I161="",0,(((H161*OFFSET($P$1,MATCH($D161,$O$2:$O$40,0),,)-G161)/G161)))))) -> 0.4798032678 | Q161: =IFERROR(IF(COUNTIF($E$2:$E$501,E161)=1,"",IF(I161="","",ABS(IF(I161="",0,(((H161*OFFSET($S$1,MATCH($E161,$R$2:$R$41,0),,)-G161)/G161)))))),"") -> 0.5961579423 | T161: =IFERROR(IF(COUNTIF($F$2:$F$501,F161)=1,"",IF(I161="","",ABS(IF(I161="",0,(((H161*OFFSET($V$1,MATCH($F161,$U$2:$U$105,0),,)-G161)/G161)))))),"") -> 0.6381236537 | W161: =IF(OR(J161<(QUARTILE($J$2:$J$501,1))-1.5*(QUARTILE($J$2:$J$501,3)-QUARTILE($J$2:$J$501,1)),J161>(QUARTILE($J$2:$J$501,3))+1.5*(QUARTILE($J$2:$J$501,3)-QUARTILE($J$2:$J$501,1))),"Outlier") -> FALSE
A162: 542452 | B162: SOLECTRON DEAD - MERGER | C162: 2000 | D162: 2700 | E162: 2730 | F162: 2733 | G162: 3.87 | H162: 0.08 | I162: =(IF(IFERROR(G162/H162,"")<0,"",IFERROR(G162/H162,""))) -> 48.375 | J162: =IF(COUNTIF($C$2:$C$501,C162)=1,"",IF(I162="","",ABS(IF(I162="",0,(((H162*OFFSET($M$1,MATCH($C162,$L$2:$L$40,0),,)-G162)/G162)))))) -> 0.7001792041 | K162: =IF(OR(J162<(QUARTILE($J$2:$J$501,1))-1.5*(QUARTILE($J$2:$J$501,3)-QUARTILE($J$2:$J$501,1)),J162>(QUARTILE($J$2:$J$501,3))+1.5*(QUARTILE($J$2:$J$501,3)-QUARTILE($J$2:$J$501,1))),"",J162) -> 0.7001792041 | N162: =IF(COUNTIF($D$2:$D$501,D162)=1,"",IF(I162="","",ABS(IF(I162="",0,(((H162*OFFSET($P$1,MATCH($D162,$O$2:$O$40,0),,)-G162)/G162)))))) -> 0.7040113539 | Q162: =IFERROR(IF(COUNTIF($E$2:$E$501,E162)=1,"",IF(I162="","",ABS(IF(I162="",0,(((H162*OFFSET($S$1,MATCH($E162,$R$2:$R$41,0),,)-G162)/G162)))))),"") -> 0.6614743681 | T162: =IFERROR(IF(COUNTIF($F$2:$F$501,F162)=1,"",IF(I162="","",ABS(IF(I162="",0,(((H162*OFFSET($V$1,MATCH($F162,$U$2:$U$105,0),,)-G162)/G162)))))),"") -> 0.6620116755 | W162: =IF(OR(J162<(QUARTILE($J$2:$J$501,1))-1.5*(QUARTILE($J$2:$J$501,3)-QUARTILE($J$2:$J$501,1)),J162>(QUARTILE($J$2:$J$501,3))+1.5*(QUARTILE($J$2:$J$501,3)-QUARTILE($J$2:$J$501,1))),"Outlier") -> FALSE
A163: 542868 | B163: CISCO SYSTEMS | C163: 9000 | D163: 9500 | E163: 9570 | F163: 9578 | G163: 16.48 | H163: 1.35 | I163: =(IF(IFERROR(G163/H163,"")<0,"",IFERROR(G163/H163,""))) -> 12.20740741 | J163: =IF(COUNTIF($C$2:$C$501,C163)=1,"",IF(I163="","",ABS(IF(I163="",0,(((H163*OFFSET($M$1,MATCH($C163,$L$2:$L$40,0),,)-G163)/G163)))))) -> 0.07246502137 | K163: =IF(OR(J163<(QUARTILE($J$2:$J$501,1))-1.5*(QUARTILE($J$2:$J$501,3)-QUARTILE($J$2:$J$501,1)),J163>(QUARTILE($J$2:$J$501,3))+1.5*(QUARTILE($J$2:$J$501,3)-QUARTILE($J$2:$J$501,1))),"",J163) -> 0.07246502137 | N163: =IF(COUNTIF($D$2:$D$501,D163)=1,"",IF(I163="","",ABS(IF(I163="",0,(((H163*OFFSET($P$1,MATCH($D163,$O$2:$O$40,0),,)-G163)/G163)))))) -> 0.07246502137 | Q163: =IFERROR(IF(COUNTIF($E$2:$E$501,E163)=1,"",IF(I163="","",ABS(IF(I163="",0,(((H163*OFFSET($S$1,MATCH($E163,$R$2:$R$41,0),,)-G163)/G163)))))),"") -> 0.02797190355 | T163: =IFERROR(IF(COUNTIF($F$2:$F$501,F163)=1,"",IF(I163="","",ABS(IF(I163="",0,(((H163*OFFSET($V$1,MATCH($F163,$U$2:$U$105,0),,)-G163)/G163)))))),"") -> 0.2148934766 | W163: =IF(OR(J163<(QUARTILE($J$2:$J$501,1))-1.5*(QUARTILE($J$2:$J$501,3)-QUARTILE($J$2:$J$501,1)),J163>(QUARTILE($J$2:$J$501,3))+1.5*(QUARTILE($J$2:$J$501,3)-QUARTILE($J$2:$J$501,1))),"Outlier") -> FALSE
A164: 543349 | B164: SAFEWAY | C164: 5000 | D164: 5300 | E164: 5330 | F164: 5337 | G164: 17.87 | H164: 1.69 | I164: =(IF(IFERROR(G164/H164,"")<0,"",IFERROR(G164/H164,""))) -> 10.5739645 | J164: =IF(COUNTIF($C$2:$C$501,C164)=1,"",IF(I164="","",ABS(IF(I164="",0,(((H164*OFFSET($M$1,MATCH($C164,$L$2:$L$40,0),,)-G164)/G164)))))) -> 0.4914474099 | K164: =IF(OR(J164<(QUARTILE($J$2:$J$501,1))-1.5*(QUARTILE($J$2:$J$501,3)-QUARTILE($J$2:$J$501,1)),J164>(QUARTILE($J$2:$J$501,3))+1.5*(QUARTILE($J$2:$J$501,3)-QUARTILE($J$2:$J$501,1))),"",J164) -> 0.4914474099 | N164: =IF(COUNTIF($D$2:$D$501,D164)=1,"",IF(I164="","",ABS(IF(I164="",0,(((H164*OFFSET($P$1,MATCH($D164,$O$2:$O$40,0),,)-G164)/G164)))))) -> 0.3780517966 | Q164: =IFERROR(IF(COUNTIF($E$2:$E$501,E164)=1,"",IF(I164="","",ABS(IF(I164="",0,(((H164*OFFSET($S$1,MATCH($E164,$R$2:$R$41,0),,)-G164)/G164)))))),"") -> 0.453241446 | T164: =IFERROR(IF(COUNTIF($F$2:$F$501,F164)=1,"",IF(I164="","",ABS(IF(I164="",0,(((H164*OFFSET($V$1,MATCH($F164,$U$2:$U$105,0),,)-G164)/G164)))))),"") -> 0.6546574477 | W164: =IF(OR(J164<(QUARTILE($J$2:$J$501,1))-1.5*(QUARTILE($J$2:$J$501,3)-QUARTILE($J$2:$J$501,1)),J164>(QUARTILE($J$2:$J$501,3))+1.5*(QUARTILE($J$2:$J$501,3)-QUARTILE($J$2:$J$501,1))),"Outlier") -> FALSE
A165: 543487 | B165: VIACOM 'B' | C165: 5000 | D165: 5500 | E165: 5550 | F165: 5553 | G165: 46.61 | H165: 2.98 | I165: =(IF(IFERROR(G165/H165,"")<0,"",IFERROR(G165/H165,""))) -> 15.6409396 | J165: =IF(COUNTIF($C$2:$C$501,C165)=1,"",IF(I165="","",ABS(IF(I165="",0,(((H165*OFFSET($M$1,MATCH($C165,$L$2:$L$40,0),,)-G165)/G165)))))) -> 0.008284180364 | K165: =IF(OR(J165<(QUARTILE($J$2:$J$501,1))-1.5*(QUARTILE($J$2:$J$501,3)-QUARTILE($J$2:$J$501,1)),J165>(QUARTILE($J$2:$J$501,3))+1.5*(QUARTILE($J$2:$J$501,3)-QUARTILE($J$2:$J$501,1))),"",J165) -> 0.008284180364 | N165: =IF(COUNTIF($D$2:$D$501,D165)=1,"",IF(I165="","",ABS(IF(I165="",0,(((H165*OFFSET($P$1,MATCH($D165,$O$2:$O$40,0),,)-G165)/G165)))))) -> 0.03008844642 | Q165: =IFERROR(IF(COUNTIF($E$2:$E$501,E165)=1,"",IF(I165="","",ABS(IF(I165="",0,(((H165*OFFSET($S$1,MATCH($E165,$R$2:$R$41,0),,)-G165)/G165)))))),"") -> 0.03008844642 | T165: =IFERROR(IF(COUNTIF($F$2:$F$501,F165)=1,"",IF(I165="","",ABS(IF(I165="",0,(((H165*OFFSET($V$1,MATCH($F165,$U$2:$U$105,0),,)-G165)/G165)))))),"") -> 0.03247660062 | W165: =IF(OR(J165<(QUARTILE($J$2:$J$501,1))-1.5*(QUARTILE($J$2:$J$501,3)-QUARTILE($J$2:$J$501,1)),J165>(QUARTILE($J$2:$J$501,3))+1.5*(QUARTILE($J$2:$J$501,3)-QUARTILE($J$2:$J$501,1))),"Outlier") -> FALSE
A166: 543542 | B166: XILINX | C166: 9000 | D166: 9500 | E166: 9570 | F166: 9576 | G166: 32.37 | H166: 1.95 | I166: =(IF(IFERROR(G166/H166,"")<0,"",IFERROR(G166/H166,""))) -> 16.6 | J166: =IF(COUNTIF($C$2:$C$501,C166)=1,"",IF(I166="","",ABS(IF(I166="",0,(((H166*OFFSET($M$1,MATCH($C166,$L$2:$L$40,0),,)-G166)/G166)))))) -> 0.2113242502 | K166: =IF(OR(J166<(QUARTILE($J$2:$J$501,1))-1.5*(QUARTILE($J$2:$J$501,3)-QUARTILE($J$2:$J$501,1)),J166>(QUARTILE($J$2:$J$501,3))+1.5*(QUARTILE($J$2:$J$501,3)-QUARTILE($J$2:$J$501,1))),"",J166) -> 0.2113242502 | N166: =IF(COUNTIF($D$2:$D$501,D166)=1,"",IF(I166="","",ABS(IF(I166="",0,(((H166*OFFSET($P$1,MATCH($D166,$O$2:$O$40,0),,)-G166)/G166)))))) -> 0.2113242502 | Q166: =IFERROR(IF(COUNTIF($E$2:$E$501,E166)=1,"",IF(I166="","",ABS(IF(I166="",0,(((H166*OFFSET($S$1,MATCH($E166,$R$2:$R$41,0),,)-G166)/G166)))))),"") -> 0.2440438657 | T166: =IFERROR(IF(COUNTIF($F$2:$F$501,F166)=1,"",IF(I166="","",ABS(IF(I166="",0,(((H166*OFFSET($V$1,MATCH($F166,$U$2:$U$105,0),,)-G166)/G166)))))),"") -> 0.163191594 | W166: =IF(OR(J166<(QUARTILE($J$2:$J$501,1))-1.5*(QUARTILE($J$2:$J$501,3)-QUARTILE($J$2:$J$501,1)),J166>(QUARTILE($J$2:$J$501,3))+1.5*(QUARTILE($J$2:$J$501,3)-QUARTILE($J$2:$J$501,1))),"Outlier") -> FALSE
A167: 544665 | B167: COVENTRY HEALTH CARE | C167: 4000 | D167: 4500 | E167: 4530 | F167: 4533 | G167: 32.46 | H167: 4.16 | I167: =(IF(IFERROR(G167/H167,"")<0,"",IFERROR(G167/H167,""))) -> 7.802884615 | J167: =IF(COUNTIF($C$2:$C$501,C167)=1,"",IF(I167="","",ABS(IF(I167="",0,(((H167*OFFSET($M$1,MATCH($C167,$L$2:$L$40,0),,)-G167)/G167)))))) -> 1.16917116 | K167: =IF(OR(J167<(QUARTILE($J$2:$J$501,1))-1.5*(QUARTILE($J$2:$J$501,3)-QUARTILE($J$2:$J$501,1)),J167>(QUARTILE($J$2:$J$501,3))+1.5*(QUARTILE($J$2:$J$501,3)-QUARTILE($J$2:$J$501,1))),"",J167) ->  | N167: =IF(COUNTIF($D$2:$D$501,D167)=1,"",IF(I167="","",ABS(IF(I167="",0,(((H167*OFFSET($P$1,MATCH($D167,$O$2:$O$40,0),,)-G167)/G167)))))) -> 1.16917116 | Q167: =IFERROR(IF(COUNTIF($E$2:$E$501,E167)=1,"",IF(I167="","",ABS(IF(I167="",0,(((H167*OFFSET($S$1,MATCH($E167,$R$2:$R$41,0),,)-G167)/G167)))))),"") -> 0.9605169531 | T167: =IFERROR(IF(COUNTIF($F$2:$F$501,F167)=1,"",IF(I167="","",ABS(IF(I167="",0,(((H167*OFFSET($V$1,MATCH($F167,$U$2:$U$105,0),,)-G167)/G167)))))),"") -> 0.6595560632 | W167: =IF(OR(J167<(QUARTILE($J$2:$J$501,1))-1.5*(QUARTILE($J$2:$J$501,3)-QUARTILE($J$2:$J$501,1)),J167>(QUARTILE($J$2:$J$501,3))+1.5*(QUARTILE($J$2:$J$501,3)-QUARTILE($J$2:$J$501,1))),"Outlier") -> Outlier
A168: 544682 | B168: MARATHON OIL | C168: 1 | D168: 500 | E168: 530 | F168: 533 | G168: 24.66 | H168: 3.33 | I168: =(IF(IFERROR(G168/H168,"")<0,"",IFERROR(G168/H168,""))) -> 7.405405405 | J168: =IF(COUNTIF($C$2:$C$501,C168)=1,"",IF(I168="","",ABS(IF(I168="",0,(((H168*OFFSET($M$1,MATCH($C168,$L$2:$L$40,0),,)-G168)/G168)))))) -> 0.2521429016 | K168: =IF(OR(J168<(QUARTILE($J$2:$J$501,1))-1.5*(QUARTILE($J$2:$J$501,3)-QUARTILE($J$2:$J$501,1)),J168>(QUARTILE($J$2:$J$501,3))+1.5*(QUARTILE($J$2:$J$501,3)-QUARTILE($J$2:$J$501,1))),"",J168) -> 0.2521429016 | N168: =IF(COUNTIF($D$2:$D$501,D168)=1,"",IF(I168="","",ABS(IF(I168="",0,(((H168*OFFSET($P$1,MATCH($D168,$O$2:$O$40,0),,)-G168)/G168)))))) -> 0.2521429016 | Q168: =IFERROR(IF(COUNTIF($E$2:$E$501,E168)=1,"",IF(I168="","",ABS(IF(I168="",0,(((H168*OFFSET($S$1,MATCH($E168,$R$2:$R$41,0),,)-G168)/G168)))))),"") -> 0.1347534633 | T168: =IFERROR(IF(COUNTIF($F$2:$F$501,F168)=1,"",IF(I168="","",ABS(IF(I168="",0,(((H168*OFFSET($V$1,MATCH($F168,$U$2:$U$105,0),,)-G168)/G168)))))),"") -> 0.1268261296 | W168: =IF(OR(J168<(QUARTILE($J$2:$J$501,1))-1.5*(QUARTILE($J$2:$J$501,3)-QUARTILE($J$2:$J$501,1)),J168>(QUARTILE($J$2:$J$501,3))+1.5*(QUARTILE($J$2:$J$501,3)-QUARTILE($J$2:$J$501,1))),"Outlier") -> FALSE
A169: 544683 | B169: US.STEEL | C169: 1000 | D169: 1700 | E169: 1750 | F169: 1757 | G169: 20.79 | H169: 0 | I169: =(IF(IFERROR(G169/H169,"")<0,"",IFERROR(G169/H169,""))) ->  | J169: =IF(COUNTIF($C$2:$C$501,C169)=1,"",IF(I169="","",ABS(IF(I169="",0,(((H169*OFFSET($M$1,MATCH($C169,$L$2:$L$40,0),,)-G169)/G169)))))) ->  | K169: =IF(OR(J169<(QUARTILE($J$2:$J$501,1))-1.5*(QUARTILE($J$2:$J$501,3)-QUARTILE($J$2:$J$501,1)),J169>(QUARTILE($J$2:$J$501,3))+1.5*(QUARTILE($J$2:$J$501,3)-QUARTILE($J$2:$J$501,1))),"",J169) ->  | N169: =IF(COUNTIF($D$2:$D$501,D169)=1,"",IF(I169="","",ABS(IF(I169="",0,(((H169*OFFSET($P$1,MATCH($D169,$O$2:$O$40,0),,)-G169)/G169)))))) ->  | Q169: =IFERROR(IF(COUNTIF($E$2:$E$501,E169)=1,"",IF(I169="","",ABS(IF(I169="",0,(((H169*OFFSET($S$1,MATCH($E169,$R$2:$R$41,0),,)-G169)/G169)))))),"") ->  | T169: =IFERROR(IF(COUNTIF($F$2:$F$501,F169)=1,"",IF(I169="","",ABS(IF(I169="",0,(((H169*OFFSET($V$1,MATCH($F169,$U$2:$U$105,0),,)-G169)/G169)))))),"") ->  | W169: =IF(OR(J169<(QUARTILE($J$2:$J$501,1))-1.5*(QUARTILE($J$2:$J$501,3)-QUARTILE($J$2:$J$501,1)),J169>(QUARTILE($J$2:$J$501,3))+1.5*(QUARTILE($J$2:$J$501,3)-QUARTILE($J$2:$J$501,1))),"Outlier") -> Outlier
A170: 544717 | B170: PMC-SIERRA | C170: 9000 | D170: 9500 | E170: 9570 | F170: 9576 | G170: 5.98 | H170: 0 | I170: =(IF(IFERROR(G170/H170,"")<0,"",IFERROR(G170/H170,""))) ->  | J170: =IF(COUNTIF($C$2:$C$501,C170)=1,"",IF(I170="","",ABS(IF(I170="",0,(((H170*OFFSET($M$1,MATCH($C170,$L$2:$L$40,0),,)-G170)/G170)))))) ->  | K170: =IF(OR(J170<(QUARTILE($J$2:$J$501,1))-1.5*(QUARTILE($J$2:$J$501,3)-QUARTILE($J$2:$J$501,1)),J170>(QUARTILE($J$2:$J$501,3))+1.5*(QUARTILE($J$2:$J$501,3)-QUARTILE($J$2:$J$501,1))),"",J170) ->  | N170: =IF(COUNTIF($D$2:$D$501,D170)=1,"",IF(I170="","",ABS(IF(I170="",0,(((H170*OFFSET($P$1,MATCH($D170,$O$2:$O$40,0),,)-G170)/G170)))))) ->  | Q170: =IFERROR(IF(COUNTIF($E$2:$E$501,E170)=1,"",IF(I170="","",ABS(IF(I170="",0,(((H170*OFFSET($S$1,MATCH($E170,$R$2:$R$41,0),,)-G170)/G170)))))),"") ->  | T170: =IFERROR(IF(COUNTIF($F$2:$F$501,F170)=1,"",IF(I170="","",ABS(IF(I170="",0,(((H170*OFFSET($V$1,MATCH($F170,$U$2:$U$105,0),,)-G170)/G170)))))),"") ->  | W170: =IF(OR(J170<(QUARTILE($J$2:$J$501,1))-1.5*(QUARTILE($J$2:$J$501,3)-QUARTILE($J$2:$J$501,1)),J170>(QUARTILE($J$2:$J$501,3))+1.5*(QUARTILE($J$2:$J$501,3)-QUARTILE($J$2:$J$501,1))),"Outlier") -> Outlier
A171: 544794 | B171: MEDIMMUNE DEAD - MERGER.19/06/07 | C171: 4000 | D171: 4500 | E171: 4570 | F171: 4573 | G171: 57.97 | H171: 0.67 | I171: =(IF(IFERROR(G171/H171,"")<0,"",IFERROR(G171/H171,""))) -> 86.52238806 | J171: =IF(COUNTIF($C$2:$C$501,C171)=1,"",IF(I171="","",ABS(IF(I171="",0,(((H171*OFFSET($M$1,MATCH($C171,$L$2:$L$40,0),,)-G171)/G171)))))) -> 0.8043767324 | K171: =IF(OR(J171<(QUARTILE($J$2:$J$501,1))-1.5*(QUARTILE($J$2:$J$501,3)-QUARTILE($J$2:$J$501,1)),J171>(QUARTILE($J$2:$J$501,3))+1.5*(QUARTILE($J$2:$J$501,3)-QUARTILE($J$2:$J$501,1))),"",J171) -> 0.8043767324 | N171: =IF(COUNTIF($D$2:$D$501,D171)=1,"",IF(I171="","",ABS(IF(I171="",0,(((H171*OFFSET($P$1,MATCH($D171,$O$2:$O$40,0),,)-G171)/G171)))))) -> 0.8043767324 | Q171: =IFERROR(IF(COUNTIF($E$2:$E$501,E171)=1,"",IF(I171="","",ABS(IF(I171="",0,(((H171*OFFSET($S$1,MATCH($E171,$R$2:$R$41,0),,)-G171)/G171)))))),"") -> 0.7701255765 | T171: =IFERROR(IF(COUNTIF($F$2:$F$501,F171)=1,"",IF(I171="","",ABS(IF(I171="",0,(((H171*OFFSET($V$1,MATCH($F171,$U$2:$U$105,0),,)-G171)/G171)))))),"") -> 0.7190547042 | W171: =IF(OR(J171<(QUARTILE($J$2:$J$501,1))-1.5*(QUARTILE($J$2:$J$501,3)-QUARTILE($J$2:$J$501,1)),J171>(QUARTILE($J$2:$J$501,3))+1.5*(QUARTILE($J$2:$J$501,3)-QUARTILE($J$2:$J$501,1))),"Outlier") -> FALSE
A172: 544882 | B172: JONES GROUP | C172: 3000 | D172: 3700 | E172: 3760 | F172: 3763 | G172: 9.06 | H172: 0.29 | I172: =(IF(IFERROR(G172/H172,"")<0,"",IFERROR(G172/H172,""))) -> 31.24137931 | J172: =IF(COUNTIF($C$2:$C$501,C172)=1,"",IF(I172="","",ABS(IF(I172="",0,(((H172*OFFSET($M$1,MATCH($C172,$L$2:$L$40,0),,)-G172)/G172)))))) -> 0.488172915 | K172: =IF(OR(J172<(QUARTILE($J$2:$J$501,1))-1.5*(QUARTILE($J$2:$J$501,3)-QUARTILE($J$2:$J$501,1)),J172>(QUARTILE($J$2:$J$501,3))+1.5*(QUARTILE($J$2:$J$501,3)-QUARTILE($J$2:$J$501,1))),"",J172) -> 0.488172915 | N172: =IF(COUNTIF($D$2:$D$501,D172)=1,"",IF(I172="","",ABS(IF(I172="",0,(((H172*OFFSET($P$1,MATCH($D172,$O$2:$O$40,0),,)-G172)/G172)))))) -> 0.3828380869 | Q172: =IFERROR(IF(COUNTIF($E$2:$E$501,E172)=1,"",IF(I172="","",ABS(IF(I172="",0,(((H172*OFFSET($S$1,MATCH($E172,$R$2:$R$41,0),,)-G172)/G172)))))),"") -> 0.3776012414 | T172: =IFERROR(IF(COUNTIF($F$2:$F$501,F172)=1,"",IF(I172="","",ABS(IF(I172="",0,(((H172*OFFSET($V$1,MATCH($F172,$U$2:$U$105,0),,)-G172)/G172)))))),"") -> 0.3943799984 | W172: =IF(OR(J172<(QUARTILE($J$2:$J$501,1))-1.5*(QUARTILE($J$2:$J$501,3)-QUARTILE($J$2:$J$501,1)),J172>(QUARTILE($J$2:$J$501,3))+1.5*(QUARTILE($J$2:$J$501,3)-QUARTILE($J$2:$J$501,1))),"Outlier") -> FALSE
A173: 545534 | B173: MGIC INVESTMENT | C173: 8000 | D173: 8700 | E173: 8770 | F173: 8779 | G173: 2.7 | H173: 0 | I173: =(IF(IFERROR(G173/H173,"")<0,"",IFERROR(G173/H173,""))) ->  | J173: =IF(COUNTIF($C$2:$C$501,C173)=1,"",IF(I173="","",ABS(IF(I173="",0,(((H173*OFFSET($M$1,MATCH($C173,$L$2:$L$40,0),,)-G173)/G173)))))) ->  | K173: =IF(OR(J173<(QUARTILE($J$2:$J$501,1))-1.5*(QUARTILE($J$2:$J$501,3)-QUARTILE($J$2:$J$501,1)),J173>(QUARTILE($J$2:$J$501,3))+1.5*(QUARTILE($J$2:$J$501,3)-QUARTILE($J$2:$J$501,1))),"",J173) ->  | N173: =IF(COUNTIF($D$2:$D$501,D173)=1,"",IF(I173="","",ABS(IF(I173="",0,(((H173*OFFSET($P$1,MATCH($D173,$O$2:$O$40,0),,)-G173)/G173)))))) ->  | Q173: =IFERROR(IF(COUNTIF($E$2:$E$501,E173)=1,"",IF(I173="","",ABS(IF(I173="",0,(((H173*OFFSET($S$1,MATCH($E173,$R$2:$R$41,0),,)-G173)/G173)))))),"") ->  | T173: =IFERROR(IF(COUNTIF($F$2:$F$501,F173)=1,"",IF(I173="","",ABS(IF(I173="",0,(((H173*OFFSET($V$1,MATCH($F173,$U$2:$U$105,0),,)-G173)/G173)))))),"") ->  | W173: =IF(OR(J173<(QUARTILE($J$2:$J$501,1))-1.5*(QUARTILE($J$2:$J$501,3)-QUARTILE($J$2:$J$501,1)),J173>(QUARTILE($J$2:$J$501,3))+1.5*(QUARTILE($J$2:$J$501,3)-QUARTILE($J$2:$J$501,1))),"Outlier") -> Outlier
A174: 545615 | B174: TYCO INTERNATIONAL | C174: 2000 | D174: 2700 | E174: 2720 | F174: 2727 | G174: 51.41 | H174: 2.32 | I174: =(IF(IFERROR(G174/H174,"")<0,"",IFERROR(G174/H174,""))) -> 22.15948276 | J174: =IF(COUNTIF($C$2:$C$501,C174)=1,"",IF(I174="","",ABS(IF(I174="",0,(((H174*OFFSET($M$1,MATCH($C174,$L$2:$L$40,0),,)-G174)/G174)))))) -> 0.3454797136 | K174: =IF(OR(J174<(QUARTILE($J$2:$J$501,1))-1.5*(QUARTILE($J$2:$J$501,3)-QUARTILE($J$2:$J$501,1)),J174>(QUARTILE($J$2:$J$501,3))+1.5*(QUARTILE($J$2:$J$501,3)-QUARTILE($J$2:$J$501,1))),"",J174) -> 0.3454797136 | N174: =IF(COUNTIF($D$2:$D$501,D174)=1,"",IF(I174="","",ABS(IF(I174="",0,(((H174*OFFSET($P$1,MATCH($D174,$O$2:$O$40,0),,)-G174)/G174)))))) -> 0.3538454434 | Q174: =IFERROR(IF(COUNTIF($E$2:$E$501,E174)=1,"",IF(I174="","",ABS(IF(I174="",0,(((H174*OFFSET($S$1,MATCH($E174,$R$2:$R$41,0),,)-G174)/G174)))))),"") -> 0.1828746944 | T174: =IFERROR(IF(COUNTIF($F$2:$F$501,F174)=1,"",IF(I174="","",ABS(IF(I174="",0,(((H174*OFFSET($V$1,MATCH($F174,$U$2:$U$105,0),,)-G174)/G174)))))),"") -> 0.3005539568 | W174: =IF(OR(J174<(QUARTILE($J$2:$J$501,1))-1.5*(QUARTILE($J$2:$J$501,3)-QUARTILE($J$2:$J$501,1)),J174>(QUARTILE($J$2:$J$501,3))+1.5*(QUARTILE($J$2:$J$501,3)-QUARTILE($J$2:$J$501,1))),"Outlier") -> FALSE
A175: 545900 | B175: MANOR CARE | C175: 4000 | D175: 4500 | E175: 4530 | F175: 4533 | G175: 66.99 | H175: 2.09 | I175: =(IF(IFERROR(G175/H175,"")<0,"",IFERROR(G175/H175,""))) -> 32.05263158 | J175: =IF(COUNTIF($C$2:$C$501,C175)=1,"",IF(I175="","",ABS(IF(I175="",0,(((H175*OFFSET($M$1,MATCH($C175,$L$2:$L$40,0),,)-G175)/G175)))))) -> 0.4719375152 | K175: =IF(OR(J175<(QUARTILE($J$2:$J$501,1))-1.5*(QUARTILE($J$2:$J$501,3)-QUARTILE($J$2:$J$501,1)),J175>(QUARTILE($J$2:$J$501,3))+1.5*(QUARTILE($J$2:$J$501,3)-QUARTILE($J$2:$J$501,1))),"",J175) -> 0.4719375152 | N175: =IF(COUNTIF($D$2:$D$501,D175)=1,"",IF(I175="","",ABS(IF(I175="",0,(((H175*OFFSET($P$1,MATCH($D175,$O$2:$O$40,0),,)-G175)/G175)))))) -> 0.4719375152 | Q175: =IFERROR(IF(COUNTIF($E$2:$E$501,E175)=1,"",IF(I175="","",ABS(IF(I175="",0,(((H175*OFFSET($S$1,MATCH($E175,$R$2:$R$41,0),,)-G175)/G175)))))),"") -> 0.5227322432 | T175: =IFERROR(IF(COUNTIF($F$2:$F$501,F175)=1,"",IF(I175="","",ABS(IF(I175="",0,(((H175*OFFSET($V$1,MATCH($F175,$U$2:$U$105,0),,)-G175)/G175)))))),"") -> 0.595998087 | W175: =IF(OR(J175<(QUARTILE($J$2:$J$501,1))-1.5*(QUARTILE($J$2:$J$501,3)-QUARTILE($J$2:$J$501,1)),J175>(QUARTILE($J$2:$J$501,3))+1.5*(QUARTILE($J$2:$J$501,3)-QUARTILE($J$2:$J$501,1))),"Outlier") -> FALSE
A176: 546169 | B176: KIMCO REALTY | C176: 8000 | D176: 8600 | E176: 8670 | F176: 8672 | G176: 18.45 | H176: 0.3 | I176: =(IF(IFERROR(G176/H176,"")<0,"",IFERROR(G176/H176,""))) -> 61.5 | J176: =IF(COUNTIF($C$2:$C$501,C176)=1,"",IF(I176="","",ABS(IF(I176="",0,(((H176*OFFSET($M$1,MATCH($C176,$L$2:$L$40,0),,)-G176)/G176)))))) -> 0.783726974 | K176: =IF(OR(J176<(QUARTILE($J$2:$J$501,1))-1.5*(QUARTILE($J$2:$J$501,3)-QUARTILE($J$2:$J$501,1)),J176>(QUARTILE($J$2:$J$501,3))+1.5*(QUARTILE($J$2:$J$501,3)-QUARTILE($J$2:$J$501,1))),"",J176) -> 0.783726974 | N176: =IF(COUNTIF($D$2:$D$501,D176)=1,"",IF(I176="","",ABS(IF(I176="",0,(((H176*OFFSET($P$1,MATCH($D176,$O$2:$O$40,0),,)-G176)/G176)))))) -> 0.271920453 | Q176: =IFERROR(IF(COUNTIF($E$2:$E$501,E176)=1,"",IF(I176="","",ABS(IF(I176="",0,(((H176*OFFSET($S$1,MATCH($E176,$R$2:$R$41,0),,)-G176)/G176)))))),"") -> 0.1867810077 | T176: =IFERROR(IF(COUNTIF($F$2:$F$501,F176)=1,"",IF(I176="","",ABS(IF(I176="",0,(((H176*OFFSET($V$1,MATCH($F176,$U$2:$U$105,0),,)-G176)/G176)))))),"") ->  | W176: =IF(OR(J176<(QUARTILE($J$2:$J$501,1))-1.5*(QUARTILE($J$2:$J$501,3)-QUARTILE($J$2:$J$501,1)),J176>(QUARTILE($J$2:$J$501,3))+1.5*(QUARTILE($J$2:$J$501,3)-QUARTILE($J$2:$J$501,1))),"Outlier") -> FALSE
A177: 546370 | B177: QUALCOMM | C177: 9000 | D177: 9500 | E177: 9570 | F177: 9576 | G177: 54.3 | H177: 3.32 | I177: =(IF(IFERROR(G177/H177,"")<0,"",IFERROR(G177/H177,""))) -> 16.35542169 | J177: =IF(COUNTIF($C$2:$C$501,C177)=1,"",IF(I177="","",ABS(IF(I177="",0,(((H177*OFFSET($M$1,MATCH($C177,$L$2:$L$40,0),,)-G177)/G177)))))) -> 0.199530425 | K177: =IF(OR(J177<(QUARTILE($J$2:$J$501,1))-1.5*(QUARTILE($J$2:$J$501,3)-QUARTILE($J$2:$J$501,1)),J177>(QUARTILE($J$2:$J$501,3))+1.5*(QUARTILE($J$2:$J$501,3)-QUARTILE($J$2:$J$501,1))),"",J177) -> 0.199530425 | N177: =IF(COUNTIF($D$2:$D$501,D177)=1,"",IF(I177="","",ABS(IF(I177="",0,(((H177*OFFSET($P$1,MATCH($D177,$O$2:$O$40,0),,)-G177)/G177)))))) -> 0.199530425 | Q177: =IFERROR(IF(COUNTIF($E$2:$E$501,E177)=1,"",IF(I177="","",ABS(IF(I177="",0,(((H177*OFFSET($S$1,MATCH($E177,$R$2:$R$41,0),,)-G177)/G177)))))),"") -> 0.2327393283 | T177: =IFERROR(IF(COUNTIF($F$2:$F$501,F177)=1,"",IF(I177="","",ABS(IF(I177="",0,(((H177*OFFSET($V$1,MATCH($F177,$U$2:$U$105,0),,)-G177)/G177)))))),"") -> 0.150677995 | W177: =IF(OR(J177<(QUARTILE($J$2:$J$501,1))-1.5*(QUARTILE($J$2:$J$501,3)-QUARTILE($J$2:$J$501,1)),J177>(QUARTILE($J$2:$J$501,3))+1.5*(QUARTILE($J$2:$J$501,3)-QUARTILE($J$2:$J$501,1))),"Outlier") -> FALSE
A178: 546689 | B178: WHOLE FOODS MARKET | C178: 5000 | D178: 5300 | E178: 5330 | F178: 5337 | G178: 93.72 | H178: 2.2 | I178: =(IF(IFERROR(G178/H178,"")<0,"",IFERROR(G178/H178,""))) -> 42.6 | J178: =IF(COUNTIF($C$2:$C$501,C178)=1,"",IF(I178="","",ABS(IF(I178="",0,(((H178*OFFSET($M$1,MATCH($C178,$L$2:$L$40,0),,)-G178)/G178)))))) -> 0.6298001887 | K178: =IF(OR(J178<(QUARTILE($J$2:$J$501,1))-1.5*(QUARTILE($J$2:$J$501,3)-QUARTILE($J$2:$J$501,1)),J178>(QUARTILE($J$2:$J$501,3))+1.5*(QUARTILE($J$2:$J$501,3)-QUARTILE($J$2:$J$501,1))),"",J178) -> 0.6298001887 | N178: =IF(COUNTIF($D$2:$D$501,D178)=1,"",IF(I178="","",ABS(IF(I178="",0,(((H178*OFFSET($P$1,MATCH($D178,$O$2:$O$40,0),,)-G178)/G178)))))) -> 0.6579466955 | Q178: =IFERROR(IF(COUNTIF($E$2:$E$501,E178)=1,"",IF(I178="","",ABS(IF(I178="",0,(((H178*OFFSET($S$1,MATCH($E178,$R$2:$R$41,0),,)-G178)/G178)))))),"") -> 0.6392834869 | T178: =IFERROR(IF(COUNTIF($F$2:$F$501,F178)=1,"",IF(I178="","",ABS(IF(I178="",0,(((H178*OFFSET($V$1,MATCH($F178,$U$2:$U$105,0),,)-G178)/G178)))))),"") -> 0.5892889881 | W178: =IF(OR(J178<(QUARTILE($J$2:$J$501,1))-1.5*(QUARTILE($J$2:$J$501,3)-QUARTILE($J$2:$J$501,1)),J178>(QUARTILE($J$2:$J$501,3))+1.5*(QUARTILE($J$2:$J$501,3)-QUARTILE($J$2:$J$501,1))),"Outlier") -> FALSE
A179: 546697 | B179: GILEAD SCIENCES | C179: 4000 | D179: 4500 | E179: 4570 | F179: 4573 | G179: 50.04 | H179: 3.32 | I179: =(IF(IFERROR(G179/H179,"")<0,"",IFERROR(G179/H179,""))) -> 15.07228916 | J179: =IF(COUNTIF($C$2:$C$501,C179)=1,"",IF(I179="","",ABS(IF(I179="",0,(((H179*OFFSET($M$1,MATCH($C179,$L$2:$L$40,0),,)-G179)/G179)))))) -> 0.1229742277 | K179: =IF(OR(J179<(QUARTILE($J$2:$J$501,1))-1.5*(QUARTILE($J$2:$J$501,3)-QUARTILE($J$2:$J$501,1)),J179>(QUARTILE($J$2:$J$501,3))+1.5*(QUARTILE($J$2:$J$501,3)-QUARTILE($J$2:$J$501,1))),"",J179) -> 0.1229742277 | N179: =IF(COUNTIF($D$2:$D$501,D179)=1,"",IF(I179="","",ABS(IF(I179="",0,(((H179*OFFSET($P$1,MATCH($D179,$O$2:$O$40,0),,)-G179)/G179)))))) -> 0.1229742277 | Q179: =IFERROR(IF(COUNTIF($E$2:$E$501,E179)=1,"",IF(I179="","",ABS(IF(I179="",0,(((H179*OFFSET($S$1,MATCH($E179,$R$2:$R$41,0),,)-G179)/G179)))))),"") -> 0.3195927885 | T179: =IFERROR(IF(COUNTIF($F$2:$F$501,F179)=1,"",IF(I179="","",ABS(IF(I179="",0,(((H179*OFFSET($V$1,MATCH($F179,$U$2:$U$105,0),,)-G179)/G179)))))),"") -> 0.612764833 | W179: =IF(OR(J179<(QUARTILE($J$2:$J$501,1))-1.5*(QUARTILE($J$2:$J$501,3)-QUARTILE($J$2:$J$501,1)),J179>(QUARTILE($J$2:$J$501,3))+1.5*(QUARTILE($J$2:$J$501,3)-QUARTILE($J$2:$J$501,1))),"Outlier") -> FALSE
A180: 546814 | B180: MACY'S | C180: 5000 | D180: 5300 | E180: 5370 | F180: 5373 | G180: 33.45 | H180: 3.04 | I180: =(IF(IFERROR(G180/H180,"")<0,"",IFERROR(G180/H180,""))) -> 11.00328947 | J180: =IF(COUNTIF($C$2:$C$501,C180)=1,"",IF(I180="","",ABS(IF(I180="",0,(((H180*OFFSET($M$1,MATCH($C180,$L$2:$L$40,0),,)-G180)/G180)))))) -> 0.4332543009 | K180: =IF(OR(J180<(QUARTILE($J$2:$J$501,1))-1.5*(QUARTILE($J$2:$J$501,3)-QUARTILE($J$2:$J$501,1)),J180>(QUARTILE($J$2:$J$501,3))+1.5*(QUARTILE($J$2:$J$501,3)-QUARTILE($J$2:$J$501,1))),"",J180) -> 0.4332543009 | N180: =IF(COUNTIF($D$2:$D$501,D180)=1,"",IF(I180="","",ABS(IF(I180="",0,(((H180*OFFSET($P$1,MATCH($D180,$O$2:$O$40,0),,)-G180)/G180)))))) -> 0.3242831434 | Q180: =IFERROR(IF(COUNTIF($E$2:$E$501,E180)=1,"",IF(I180="","",ABS(IF(I180="",0,(((H180*OFFSET($S$1,MATCH($E180,$R$2:$R$41,0),,)-G180)/G180)))))),"") -> 0.3026199495 | T180: =IFERROR(IF(COUNTIF($F$2:$F$501,F180)=1,"",IF(I180="","",ABS(IF(I180="",0,(((H180*OFFSET($V$1,MATCH($F180,$U$2:$U$105,0),,)-G180)/G180)))))),"") -> 0.7315329765 | W180: =IF(OR(J180<(QUARTILE($J$2:$J$501,1))-1.5*(QUARTILE($J$2:$J$501,3)-QUARTILE($J$2:$J$501,1)),J180>(QUARTILE($J$2:$J$501,3))+1.5*(QUARTILE($J$2:$J$501,3)-QUARTILE($J$2:$J$501,1))),"Outlier") -> FALSE
A181: 674693 | B181: VERISIGN | C181: 9000 | D181: 9500 | E181: 9530 | F181: 9533 | G181: 42.52 | H181: 1.05 | I181: =(IF(IFERROR(G181/H181,"")<0,"",IFERROR(G181/H181,""))) -> 40.4952381 | J181: =IF(COUNTIF($C$2:$C$501,C181)=1,"",IF(I181="","",ABS(IF(I181="",0,(((H181*OFFSET($M$1,MATCH($C181,$L$2:$L$40,0),,)-G181)/G181)))))) -> 0.6767022973 | K181: =IF(OR(J181<(QUARTILE($J$2:$J$501,1))-1.5*(QUARTILE($J$2:$J$501,3)-QUARTILE($J$2:$J$501,1)),J181>(QUARTILE($J$2:$J$501,3))+1.5*(QUARTILE($J$2:$J$501,3)-QUARTILE($J$2:$J$501,1))),"",J181) -> 0.6767022973 | N181: =IF(COUNTIF($D$2:$D$501,D181)=1,"",IF(I181="","",ABS(IF(I181="",0,(((H181*OFFSET($P$1,MATCH($D181,$O$2:$O$40,0),,)-G181)/G181)))))) -> 0.6767022973 | Q181: =IFERROR(IF(COUNTIF($E$2:$E$501,E181)=1,"",IF(I181="","",ABS(IF(I181="",0,(((H181*OFFSET($S$1,MATCH($E181,$R$2:$R$41,0),,)-G181)/G181)))))),"") -> 0.6512818919 | T181: =IFERROR(IF(COUNTIF($F$2:$F$501,F181)=1,"",IF(I181="","",ABS(IF(I181="",0,(((H181*OFFSET($V$1,MATCH($F181,$U$2:$U$105,0),,)-G181)/G181)))))),"") -> 0.7095092049 | W181: =IF(OR(J181<(QUARTILE($J$2:$J$501,1))-1.5*(QUARTILE($J$2:$J$501,3)-QUARTILE($J$2:$J$501,1)),J181>(QUARTILE($J$2:$J$501,3))+1.5*(QUARTILE($J$2:$J$501,3)-QUARTILE($J$2:$J$501,1))),"Outlier") -> FALSE
A182: 677631 | B182: MARRIOTT INTL.'A' | C182: 5000 | D182: 5700 | E182: 5750 | F182: 5753 | G182: 37.54 | H182: 0.57 | I182: =(IF(IFERROR(G182/H182,"")<0,"",IFERROR(G182/H182,""))) -> 65.85964912 | J182: =IF(COUNTIF($C$2:$C$501,C182)=1,"",IF(I182="","",ABS(IF(I182="",0,(((H182*OFFSET($M$1,MATCH($C182,$L$2:$L$40,0),,)-G182)/G182)))))) -> 0.7605436383 | K182: =IF(OR(J182<(QUARTILE($J$2:$J$501,1))-1.5*(QUARTILE($J$2:$J$501,3)-QUARTILE($J$2:$J$501,1)),J182>(QUARTILE($J$2:$J$501,3))+1.5*(QUARTILE($J$2:$J$501,3)-QUARTILE($J$2:$J$501,1))),"",J182) -> 0.7605436383 | N182: =IF(COUNTIF($D$2:$D$501,D182)=1,"",IF(I182="","",ABS(IF(I182="",0,(((H182*OFFSET($P$1,MATCH($D182,$O$2:$O$40,0),,)-G182)/G182)))))) -> 0.6674906151 | Q182: =IFERROR(IF(COUNTIF($E$2:$E$501,E182)=1,"",IF(I182="","",ABS(IF(I182="",0,(((H182*OFFSET($S$1,MATCH($E182,$R$2:$R$41,0),,)-G182)/G182)))))),"") -> 0.6674906151 | T182: =IFERROR(IF(COUNTIF($F$2:$F$501,F182)=1,"",IF(I182="","",ABS(IF(I182="",0,(((H182*OFFSET($V$1,MATCH($F182,$U$2:$U$105,0),,)-G182)/G182)))))),"") ->  | W182: =IF(OR(J182<(QUARTILE($J$2:$J$501,1))-1.5*(QUARTILE($J$2:$J$501,3)-QUARTILE($J$2:$J$501,1)),J182>(QUARTILE($J$2:$J$501,3))+1.5*(QUARTILE($J$2:$J$501,3)-QUARTILE($J$2:$J$501,1))),"Outlier") -> FALSE
A183: 680531 | B183: FEDERATED INVRS.'B' | C183: 8000 | D183: 8700 | E183: 8770 | F183: 8771 | G183: 20.94 | H183: 1.59 | I183: =(IF(IFERROR(G183/H183,"")<0,"",IFERROR(G183/H183,""))) -> 13.16981132 | J183: =IF(COUNTIF($C$2:$C$501,C183)=1,"",IF(I183="","",ABS(IF(I183="",0,(((H183*OFFSET($M$1,MATCH($C183,$L$2:$L$40,0),,)-G183)/G183)))))) -> 0.009945456015 | K183: =IF(OR(J183<(QUARTILE($J$2:$J$501,1))-1.5*(QUARTILE($J$2:$J$501,3)-QUARTILE($J$2:$J$501,1)),J183>(QUARTILE($J$2:$J$501,3))+1.5*(QUARTILE($J$2:$J$501,3)-QUARTILE($J$2:$J$501,1))),"",J183) -> 0.009945456015 | N183: =IF(COUNTIF($D$2:$D$501,D183)=1,"",IF(I183="","",ABS(IF(I183="",0,(((H183*OFFSET($P$1,MATCH($D183,$O$2:$O$40,0),,)-G183)/G183)))))) -> 0.04876092939 | Q183: =IFERROR(IF(COUNTIF($E$2:$E$501,E183)=1,"",IF(I183="","",ABS(IF(I183="",0,(((H183*OFFSET($S$1,MATCH($E183,$R$2:$R$41,0),,)-G183)/G183)))))),"") -> 0.04876092939 | T183: =IFERROR(IF(COUNTIF($F$2:$F$501,F183)=1,"",IF(I183="","",ABS(IF(I183="",0,(((H183*OFFSET($V$1,MATCH($F183,$U$2:$U$105,0),,)-G183)/G183)))))),"") -> 0.04211321444 | W183: =IF(OR(J183<(QUARTILE($J$2:$J$501,1))-1.5*(QUARTILE($J$2:$J$501,3)-QUARTILE($J$2:$J$501,1)),J183>(QUARTILE($J$2:$J$501,3))+1.5*(QUARTILE($J$2:$J$501,3)-QUARTILE($J$2:$J$501,1))),"Outlier") -> FALSE
A184: 680604 | B184: L3 COMMUNICATIONS | C184: 2000 | D184: 2700 | E184: 2710 | F184: 2717 | G184: 71.45 | H184: 9.12 | I184: =(IF(IFERROR(G184/H184,"")<0,"",IFERROR(G184/H184,""))) -> 7.834429825 | J184: =IF(COUNTIF($C$2:$C$501,C184)=1,"",IF(I184="","",ABS(IF(I184="",0,(((H184*OFFSET($M$1,MATCH($C184,$L$2:$L$40,0),,)-G184)/G184)))))) -> 0.8512937543 | K184: =IF(OR(J184<(QUARTILE($J$2:$J$501,1))-1.5*(QUARTILE($J$2:$J$501,3)-QUARTILE($J$2:$J$501,1)),J184>(QUARTILE($J$2:$J$501,3))+1.5*(QUARTILE($J$2:$J$501,3)-QUARTILE($J$2:$J$501,1))),"",J184) -> 0.8512937543 | N184: =IF(COUNTIF($D$2:$D$501,D184)=1,"",IF(I184="","",ABS(IF(I184="",0,(((H184*OFFSET($P$1,MATCH($D184,$O$2:$O$40,0),,)-G184)/G184)))))) -> 0.8276315031 | Q184: =IFERROR(IF(COUNTIF($E$2:$E$501,E184)=1,"",IF(I184="","",ABS(IF(I184="",0,(((H184*OFFSET($S$1,MATCH($E184,$R$2:$R$41,0),,)-G184)/G184)))))),"") -> 0.4489786671 | T184: =IFERROR(IF(COUNTIF($F$2:$F$501,F184)=1,"",IF(I184="","",ABS(IF(I184="",0,(((H184*OFFSET($V$1,MATCH($F184,$U$2:$U$105,0),,)-G184)/G184)))))),"") -> 0.1464360303 | W184: =IF(OR(J184<(QUARTILE($J$2:$J$501,1))-1.5*(QUARTILE($J$2:$J$501,3)-QUARTILE($J$2:$J$501,1)),J184>(QUARTILE($J$2:$J$501,3))+1.5*(QUARTILE($J$2:$J$501,3)-QUARTILE($J$2:$J$501,1))),"Outlier") -> FALSE
A185: 683118 | B185: MOODY'S | C185: 8000 | D185: 8700 | E185: 8770 | F185: 8775 | G185: 35.55 | H185: 2.58 | I185: =(IF(IFERROR(G185/H185,"")<0,"",IFERROR(G185/H185,""))) -> 13.77906977 | J185: =IF(COUNTIF($C$2:$C$501,C185)=1,"",IF(I185="","",ABS(IF(I185="",0,(((H185*OFFSET($M$1,MATCH($C185,$L$2:$L$40,0),,)-G185)/G185)))))) -> 0.03471051933 | K185: =IF(OR(J185<(QUARTILE($J$2:$J$501,1))-1.5*(QUARTILE($J$2:$J$501,3)-QUARTILE($J$2:$J$501,1)),J185>(QUARTILE($J$2:$J$501,3))+1.5*(QUARTILE($J$2:$J$501,3)-QUARTILE($J$2:$J$501,1))),"",J185) -> 0.03471051933 | N185: =IF(COUNTIF($D$2:$D$501,D185)=1,"",IF(I185="","",ABS(IF(I185="",0,(((H185*OFFSET($P$1,MATCH($D185,$O$2:$O$40,0),,)-G185)/G185)))))) -> 0.09082113 | Q185: =IFERROR(IF(COUNTIF($E$2:$E$501,E185)=1,"",IF(I185="","",ABS(IF(I185="",0,(((H185*OFFSET($S$1,MATCH($E185,$R$2:$R$41,0),,)-G185)/G185)))))),"") -> 0.09082113 | T185: =IFERROR(IF(COUNTIF($F$2:$F$501,F185)=1,"",IF(I185="","",ABS(IF(I185="",0,(((H185*OFFSET($V$1,MATCH($F185,$U$2:$U$105,0),,)-G185)/G185)))))),"") ->  | W185: =IF(OR(J185<(QUARTILE($J$2:$J$501,1))-1.5*(QUARTILE($J$2:$J$501,3)-QUARTILE($J$2:$J$501,1)),J185>(QUARTILE($J$2:$J$501,3))+1.5*(QUARTILE($J$2:$J$501,3)-QUARTILE($J$2:$J$501,1))),"Outlier") -> FALSE
A186: 683199 | B186: COGNIZANT TECH.SLTN.'A' | C186: 9000 | D186: 9500 | E186: 9530 | F186: 9533 | G186: 56.2 | H186: 2.97 | I186: =(IF(IFERROR(G186/H186,"")<0,"",IFERROR(G186/H186,""))) -> 18.92255892 | J186: =IF(COUNTIF($C$2:$C$501,C186)=1,"",IF(I186="","",ABS(IF(I186="",0,(((H186*OFFSET($M$1,MATCH($C186,$L$2:$L$40,0),,)-G186)/G186)))))) -> 0.3081264802 | K186: =IF(OR(J186<(QUARTILE($J$2:$J$501,1))-1.5*(QUARTILE($J$2:$J$501,3)-QUARTILE($J$2:$J$501,1)),J186>(QUARTILE($J$2:$J$501,3))+1.5*(QUARTILE($J$2:$J$501,3)-QUARTILE($J$2:$J$501,1))),"",J186) -> 0.3081264802 | N186: =IF(COUNTIF($D$2:$D$501,D186)=1,"",IF(I186="","",ABS(IF(I186="",0,(((H186*OFFSET($P$1,MATCH($D186,$O$2:$O$40,0),,)-G186)/G186)))))) -> 0.3081264802 | Q186: =IFERROR(IF(COUNTIF($E$2:$E$501,E186)=1,"",IF(I186="","",ABS(IF(I186="",0,(((H186*OFFSET($S$1,MATCH($E186,$R$2:$R$41,0),,)-G186)/G186)))))),"") -> 0.2537255203 | T186: =IFERROR(IF(COUNTIF($F$2:$F$501,F186)=1,"",IF(I186="","",ABS(IF(I186="",0,(((H186*OFFSET($V$1,MATCH($F186,$U$2:$U$105,0),,)-G186)/G186)))))),"") -> 0.3783349303 | W186: =IF(OR(J186<(QUARTILE($J$2:$J$501,1))-1.5*(QUARTILE($J$2:$J$501,3)-QUARTILE($J$2:$J$501,1)),J186>(QUARTILE($J$2:$J$501,3))+1.5*(QUARTILE($J$2:$J$501,3)-QUARTILE($J$2:$J$501,1))),"Outlier") -> FALSE
A187: 683214 | B187: IMS HEALTH DEAD - DELIST.08/03/10 | C187: 2000 | D187: 2700 | E187: 2790 | F187: 2791 | G187: 21.98 | H187: 1.42 | I187: =(IF(IFERROR(G187/H187,"")<0,"",IFERROR(G187/H187,""))) -> 15.47887324 | J187: =IF(COUNTIF($C$2:$C$501,C187)=1,"",IF(I187="","",ABS(IF(I187="",0,(((H187*OFFSET($M$1,MATCH($C187,$L$2:$L$40,0),,)-G187)/G187)))))) -> 0.06299180965 | K187: =IF(OR(J187<(QUARTILE($J$2:$J$501,1))-1.5*(QUARTILE($J$2:$J$501,3)-QUARTILE($J$2:$J$501,1)),J187>(QUARTILE($J$2:$J$501,3))+1.5*(QUARTILE($J$2:$J$501,3)-QUARTILE($J$2:$J$501,1))),"",J187) -> 0.06299180965 | N187: =IF(COUNTIF($D$2:$D$501,D187)=1,"",IF(I187="","",ABS(IF(I187="",0,(((H187*OFFSET($P$1,MATCH($D187,$O$2:$O$40,0),,)-G187)/G187)))))) -> 0.07496814952 | Q187: =IFERROR(IF(COUNTIF($E$2:$E$501,E187)=1,"",IF(I187="","",ABS(IF(I187="",0,(((H187*OFFSET($S$1,MATCH($E187,$R$2:$R$41,0),,)-G187)/G187)))))),"") -> 0.03624926984 | T187: =IFERROR(IF(COUNTIF($F$2:$F$501,F187)=1,"",IF(I187="","",ABS(IF(I187="",0,(((H187*OFFSET($V$1,MATCH($F187,$U$2:$U$105,0),,)-G187)/G187)))))),"") -> 0.3323027964 | W187: =IF(OR(J187<(QUARTILE($J$2:$J$501,1))-1.5*(QUARTILE($J$2:$J$501,3)-QUARTILE($J$2:$J$501,1)),J187>(QUARTILE($J$2:$J$501,3))+1.5*(QUARTILE($J$2:$J$501,3)-QUARTILE($J$2:$J$501,1))),"Outlier") -> FALSE
A188: 683363 | B188: KING PHARMS. DEAD - DELIST.01/03/11 | C188: 4000 | D188: 4500 | E188: 4570 | F188: 4577 | G188: 14.24 | H188: 0.34 | I188: =(IF(IFERROR(G188/H188,"")<0,"",IFERROR(G188/H188,""))) -> 41.88235294 | J188: =IF(COUNTIF($C$2:$C$501,C188)=1,"",IF(I188="","",ABS(IF(I188="",0,(((H188*OFFSET($M$1,MATCH($C188,$L$2:$L$40,0),,)-G188)/G188)))))) -> 0.5958729373 | K188: =IF(OR(J188<(QUARTILE($J$2:$J$501,1))-1.5*(QUARTILE($J$2:$J$501,3)-QUARTILE($J$2:$J$501,1)),J188>(QUARTILE($J$2:$J$501,3))+1.5*(QUARTILE($J$2:$J$501,3)-QUARTILE($J$2:$J$501,1))),"",J188) -> 0.5958729373 | N188: =IF(COUNTIF($D$2:$D$501,D188)=1,"",IF(I188="","",ABS(IF(I188="",0,(((H188*OFFSET($P$1,MATCH($D188,$O$2:$O$40,0),,)-G188)/G188)))))) -> 0.5958729373 | Q188: =IFERROR(IF(COUNTIF($E$2:$E$501,E188)=1,"",IF(I188="","",ABS(IF(I188="",0,(((H188*OFFSET($S$1,MATCH($E188,$R$2:$R$41,0),,)-G188)/G188)))))),"") -> 0.5251154083 | T188: =IFERROR(IF(COUNTIF($F$2:$F$501,F188)=1,"",IF(I188="","",ABS(IF(I188="",0,(((H188*OFFSET($V$1,MATCH($F188,$U$2:$U$105,0),,)-G188)/G188)))))),"") -> 0.5594381236 | W188: =IF(OR(J188<(QUARTILE($J$2:$J$501,1))-1.5*(QUARTILE($J$2:$J$501,3)-QUARTILE($J$2:$J$501,1)),J188>(QUARTILE($J$2:$J$501,3))+1.5*(QUARTILE($J$2:$J$501,3)-QUARTILE($J$2:$J$501,1))),"Outlier") -> FALSE
A189: 687027 | B189: XL GROUP | C189: 8000 | D189: 8500 | E189: 8530 | F189: 8536 | G189: 20.49 | H189: 0 | I189: =(IF(IFERROR(G189/H189,"")<0,"",IFERROR(G189/H189,""))) ->  | J189: =IF(COUNTIF($C$2:$C$501,C189)=1,"",IF(I189="","",ABS(IF(I189="",0,(((H189*OFFSET($M$1,MATCH($C189,$L$2:$L$40,0),,)-G189)/G189)))))) ->  | K189: =IF(OR(J189<(QUARTILE($J$2:$J$501,1))-1.5*(QUARTILE($J$2:$J$501,3)-QUARTILE($J$2:$J$501,1)),J189>(QUARTILE($J$2:$J$501,3))+1.5*(QUARTILE($J$2:$J$501,3)-QUARTILE($J$2:$J$501,1))),"",J189) ->  | N189: =IF(COUNTIF($D$2:$D$501,D189)=1,"",IF(I189="","",ABS(IF(I189="",0,(((H189*OFFSET($P$1,MATCH($D189,$O$2:$O$40,0),,)-G189)/G189)))))) ->  | Q189: =IFERROR(IF(COUNTIF($E$2:$E$501,E189)=1,"",IF(I189="","",ABS(IF(I189="",0,(((H189*OFFSET($S$1,MATCH($E189,$R$2:$R$41,0),,)-G189)/G189)))))),"") ->  | T189: =IFERROR(IF(COUNTIF($F$2:$F$501,F189)=1,"",IF(I189="","",ABS(IF(I189="",0,(((H189*OFFSET($V$1,MATCH($F189,$U$2:$U$105,0),,)-G189)/G189)))))),"") ->  | W189: =IF(OR(J189<(QUARTILE($J$2:$J$501,1))-1.5*(QUARTILE($J$2:$J$501,3)-QUARTILE($J$2:$J$501,1)),J189>(QUARTILE($J$2:$J$501,3))+1.5*(QUARTILE($J$2:$J$501,3)-QUARTILE($J$2:$J$501,1))),"Outlier") -> Outlier
A190: 687141 | B190: CONVERGYS | C190: 2000 | D190: 2700 | E190: 2790 | F190: 2791 | G190: 14.42 | H190: 2.66 | I190: =(IF(IFERROR(G190/H190,"")<0,"",IFERROR(G190/H190,""))) -> 5.421052632 | J190: =IF(COUNTIF($C$2:$C$501,C190)=1,"",IF(I190="","",ABS(IF(I190="",0,(((H190*OFFSET($M$1,MATCH($C190,$L$2:$L$40,0),,)-G190)/G190)))))) -> 1.675463971 | K190: =IF(OR(J190<(QUARTILE($J$2:$J$501,1))-1.5*(QUARTILE($J$2:$J$501,3)-QUARTILE($J$2:$J$501,1)),J190>(QUARTILE($J$2:$J$501,3))+1.5*(QUARTILE($J$2:$J$501,3)-QUARTILE($J$2:$J$501,1))),"",J190) ->  | N190: =IF(COUNTIF($D$2:$D$501,D190)=1,"",IF(I190="","",ABS(IF(I190="",0,(((H190*OFFSET($P$1,MATCH($D190,$O$2:$O$40,0),,)-G190)/G190)))))) -> 1.641267615 | Q190: =IFERROR(IF(COUNTIF($E$2:$E$501,E190)=1,"",IF(I190="","",ABS(IF(I190="",0,(((H190*OFFSET($S$1,MATCH($E190,$R$2:$R$41,0),,)-G190)/G190)))))),"") -> 1.751822644 | T190: =IFERROR(IF(COUNTIF($F$2:$F$501,F190)=1,"",IF(I190="","",ABS(IF(I190="",0,(((H190*OFFSET($V$1,MATCH($F190,$U$2:$U$105,0),,)-G190)/G190)))))),"") -> 0.9064932734 | W190: =IF(OR(J190<(QUARTILE($J$2:$J$501,1))-1.5*(QUARTILE($J$2:$J$501,3)-QUARTILE($J$2:$J$501,1)),J190>(QUARTILE($J$2:$J$501,3))+1.5*(QUARTILE($J$2:$J$501,3)-QUARTILE($J$2:$J$501,1))),"Outlier") -> Outlier
A191: 687609 | B191: EBAY | C191: 5000 | D191: 5300 | E191: 5370 | F191: 5377 | G191: 40.78 | H191: 2.54 | I191: =(IF(IFERROR(G191/H191,"")<0,"",IFERROR(G191/H191,""))) -> 16.05511811 | J191: =IF(COUNTIF($C$2:$C$501,C191)=1,"",IF(I191="","",ABS(IF(I191="",0,(((H191*OFFSET($M$1,MATCH($C191,$L$2:$L$40,0),,)-G191)/G191)))))) -> 0.01772681747 | K191: =IF(OR(J191<(QUARTILE($J$2:$J$501,1))-1.5*(QUARTILE($J$2:$J$501,3)-QUARTILE($J$2:$J$501,1)),J191>(QUARTILE($J$2:$J$501,3))+1.5*(QUARTILE($J$2:$J$501,3)-QUARTILE($J$2:$J$501,1))),"",J191) -> 0.01772681747 | N191: =IF(COUNTIF($D$2:$D$501,D191)=1,"",IF(I191="","",ABS(IF(I191="",0,(((H191*OFFSET($P$1,MATCH($D191,$O$2:$O$40,0),,)-G191)/G191)))))) -> 0.09240961841 | Q191: =IFERROR(IF(COUNTIF($E$2:$E$501,E191)=1,"",IF(I191="","",ABS(IF(I191="",0,(((H191*OFFSET($S$1,MATCH($E191,$R$2:$R$41,0),,)-G191)/G191)))))),"") -> 0.1072563727 | T191: =IFERROR(IF(COUNTIF($F$2:$F$501,F191)=1,"",IF(I191="","",ABS(IF(I191="",0,(((H191*OFFSET($V$1,MATCH($F191,$U$2:$U$105,0),,)-G191)/G191)))))),"") ->  | W191: =IF(OR(J191<(QUARTILE($J$2:$J$501,1))-1.5*(QUARTILE($J$2:$J$501,3)-QUARTILE($J$2:$J$501,1)),J191>(QUARTILE($J$2:$J$501,3))+1.5*(QUARTILE($J$2:$J$501,3)-QUARTILE($J$2:$J$501,1))),"Outlier") -> FALSE
A192: 694405 | B192: NVIDIA | C192: 9000 | D192: 9500 | E192: 9570 | F192: 9576 | G192: 13.24 | H192: 0.83 | I192: =(IF(IFERROR(G192/H192,"")<0,"",IFERROR(G192/H192,""))) -> 15.95180723 | J192: =IF(COUNTIF($C$2:$C$501,C192)=1,"",IF(I192="","",ABS(IF(I192="",0,(((H192*OFFSET($M$1,MATCH($C192,$L$2:$L$40,0),,)-G192)/G192)))))) -> 0.1792768519 | K192: =IF(OR(J192<(QUARTILE($J$2:$J$501,1))-1.5*(QUARTILE($J$2:$J$501,3)-QUARTILE($J$2:$J$501,1)),J192>(QUARTILE($J$2:$J$501,3))+1.5*(QUARTILE($J$2:$J$501,3)-QUARTILE($J$2:$J$501,1))),"",J192) -> 0.1792768519 | N192: =IF(COUNTIF($D$2:$D$501,D192)=1,"",IF(I192="","",ABS(IF(I192="",0,(((H192*OFFSET($P$1,MATCH($D192,$O$2:$O$40,0),,)-G192)/G192)))))) -> 0.1792768519 | Q192: =IFERROR(IF(COUNTIF($E$2:$E$501,E192)=1,"",IF(I192="","",ABS(IF(I192="",0,(((H192*OFFSET($S$1,MATCH($E192,$R$2:$R$41,0),,)-G192)/G192)))))),"") -> 0.2133260107 | T192: =IFERROR(IF(COUNTIF($F$2:$F$501,F192)=1,"",IF(I192="","",ABS(IF(I192="",0,(((H192*OFFSET($V$1,MATCH($F192,$U$2:$U$105,0),,)-G192)/G192)))))),"") -> 0.1291883521 | W192: =IF(OR(J192<(QUARTILE($J$2:$J$501,1))-1.5*(QUARTILE($J$2:$J$501,3)-QUARTILE($J$2:$J$501,1)),J192>(QUARTILE($J$2:$J$501,3))+1.5*(QUARTILE($J$2:$J$501,3)-QUARTILE($J$2:$J$501,1))),"Outlier") -> FALSE
A193: 696324 | B193: PEPSI BOTTLING GP. DEAD - DELIST.11/03/10 | C193: 3000 | D193: 3500 | E193: 3530 | F193: 3537 | G193: 38.23 | H193: 1.15 | I193: =(IF(IFERROR(G193/H193,"")<0,"",IFERROR(G193/H193,""))) -> 33.24347826 | J193: =IF(COUNTIF($C$2:$C$501,C193)=1,"",IF(I193="","",ABS(IF(I193="",0,(((H193*OFFSET($M$1,MATCH($C193,$L$2:$L$40,0),,)-G193)/G193)))))) -> 0.5189978624 | K193: =IF(OR(J193<(QUARTILE($J$2:$J$501,1))-1.5*(QUARTILE($J$2:$J$501,3)-QUARTILE($J$2:$J$501,1)),J193>(QUARTILE($J$2:$J$501,3))+1.5*(QUARTILE($J$2:$J$501,3)-QUARTILE($J$2:$J$501,1))),"",J193) -> 0.5189978624 | N193: =IF(COUNTIF($D$2:$D$501,D193)=1,"",IF(I193="","",ABS(IF(I193="",0,(((H193*OFFSET($P$1,MATCH($D193,$O$2:$O$40,0),,)-G193)/G193)))))) -> 0.4626216215 | Q193: =IFERROR(IF(COUNTIF($E$2:$E$501,E193)=1,"",IF(I193="","",ABS(IF(I193="",0,(((H193*OFFSET($S$1,MATCH($E193,$R$2:$R$41,0),,)-G193)/G193)))))),"") -> 0.4609868584 | T193: =IFERROR(IF(COUNTIF($F$2:$F$501,F193)=1,"",IF(I193="","",ABS(IF(I193="",0,(((H193*OFFSET($V$1,MATCH($F193,$U$2:$U$105,0),,)-G193)/G193)))))),"") -> 0.4640487935 | W193: =IF(OR(J193<(QUARTILE($J$2:$J$501,1))-1.5*(QUARTILE($J$2:$J$501,3)-QUARTILE($J$2:$J$501,1)),J193>(QUARTILE($J$2:$J$501,3))+1.5*(QUARTILE($J$2:$J$501,3)-QUARTILE($J$2:$J$501,1))),"Outlier") -> FALSE
A194: 696738 | B194: GOLDMAN SACHS GP. | C194: 8000 | D194: 8700 | E194: 8770 | F194: 8777 | G194: 93.49 | H194: 6.8 | I194: =(IF(IFERROR(G194/H194,"")<0,"",IFERROR(G194/H194,""))) -> 13.74852941 | J194: =IF(COUNTIF($C$2:$C$501,C194)=1,"",IF(I194="","",ABS(IF(I194="",0,(((H194*OFFSET($M$1,MATCH($C194,$L$2:$L$40,0),,)-G194)/G194)))))) -> 0.03256626934 | K194: =IF(OR(J194<(QUARTILE($J$2:$J$501,1))-1.5*(QUARTILE($J$2:$J$501,3)-QUARTILE($J$2:$J$501,1)),J194>(QUARTILE($J$2:$J$501,3))+1.5*(QUARTILE($J$2:$J$501,3)-QUARTILE($J$2:$J$501,1))),"",J194) -> 0.03256626934 | N194: =IF(COUNTIF($D$2:$D$501,D194)=1,"",IF(I194="","",ABS(IF(I194="",0,(((H194*OFFSET($P$1,MATCH($D194,$O$2:$O$40,0),,)-G194)/G194)))))) -> 0.08880152155 | Q194: =IFERROR(IF(COUNTIF($E$2:$E$501,E194)=1,"",IF(I194="","",ABS(IF(I194="",0,(((H194*OFFSET($S$1,MATCH($E194,$R$2:$R$41,0),,)-G194)/G194)))))),"") -> 0.08880152155 | T194: =IFERROR(IF(COUNTIF($F$2:$F$501,F194)=1,"",IF(I194="","",ABS(IF(I194="",0,(((H194*OFFSET($V$1,MATCH($F194,$U$2:$U$105,0),,)-G194)/G194)))))),"") -> 0.136753585 | W194: =IF(OR(J194<(QUARTILE($J$2:$J$501,1))-1.5*(QUARTILE($J$2:$J$501,3)-QUARTILE($J$2:$J$501,1)),J194>(QUARTILE($J$2:$J$501,3))+1.5*(QUARTILE($J$2:$J$501,3)-QUARTILE($J$2:$J$501,1))),"Outlier") -> FALSE
A195: 699577 | B195: REYNOLDS AMERICAN | C195: 3000 | D195: 3700 | E195: 3780 | F195: 3785 | G195: 44.13 | H195: 2.22 | I195: =(IF(IFERROR(G195/H195,"")<0,"",IFERROR(G195/H195,""))) -> 19.87837838 | J195: =IF(COUNTIF($C$2:$C$501,C195)=1,"",IF(I195="","",ABS(IF(I195="",0,(((H195*OFFSET($M$1,MATCH($C195,$L$2:$L$40,0),,)-G195)/G195)))))) -> 0.1955991681 | K195: =IF(OR(J195<(QUARTILE($J$2:$J$501,1))-1.5*(QUARTILE($J$2:$J$501,3)-QUARTILE($J$2:$J$501,1)),J195>(QUARTILE($J$2:$J$501,3))+1.5*(QUARTILE($J$2:$J$501,3)-QUARTILE($J$2:$J$501,1))),"",J195) -> 0.1955991681 | N195: =IF(COUNTIF($D$2:$D$501,D195)=1,"",IF(I195="","",ABS(IF(I195="",0,(((H195*OFFSET($P$1,MATCH($D195,$O$2:$O$40,0),,)-G195)/G195)))))) -> 0.03005219764 | Q195: =IFERROR(IF(COUNTIF($E$2:$E$501,E195)=1,"",IF(I195="","",ABS(IF(I195="",0,(((H195*OFFSET($S$1,MATCH($E195,$R$2:$R$41,0),,)-G195)/G195)))))),"") ->  | T195: =IFERROR(IF(COUNTIF($F$2:$F$501,F195)=1,"",IF(I195="","",ABS(IF(I195="",0,(((H195*OFFSET($V$1,MATCH($F195,$U$2:$U$105,0),,)-G195)/G195)))))),"") ->  | W195: =IF(OR(J195<(QUARTILE($J$2:$J$501,1))-1.5*(QUARTILE($J$2:$J$501,3)-QUARTILE($J$2:$J$501,1)),J195>(QUARTILE($J$2:$J$501,3))+1.5*(QUARTILE($J$2:$J$501,3)-QUARTILE($J$2:$J$501,1))),"Outlier") -> FALSE
A196: 699943 | B196: JUNIPER NETWORKS | C196: 9000 | D196: 9500 | E196: 9570 | F196: 9578 | G196: 15.53 | H196: 0.58 | I196: =(IF(IFERROR(G196/H196,"")<0,"",IFERROR(G196/H196,""))) -> 26.77586207 | J196: =IF(COUNTIF($C$2:$C$501,C196)=1,"",IF(I196="","",ABS(IF(I196="",0,(((H196*OFFSET($M$1,MATCH($C196,$L$2:$L$40,0),,)-G196)/G196)))))) -> 0.5110515056 | K196: =IF(OR(J196<(QUARTILE($J$2:$J$501,1))-1.5*(QUARTILE($J$2:$J$501,3)-QUARTILE($J$2:$J$501,1)),J196>(QUARTILE($J$2:$J$501,3))+1.5*(QUARTILE($J$2:$J$501,3)-QUARTILE($J$2:$J$501,1))),"",J196) -> 0.5110515056 | N196: =IF(COUNTIF($D$2:$D$501,D196)=1,"",IF(I196="","",ABS(IF(I196="",0,(((H196*OFFSET($P$1,MATCH($D196,$O$2:$O$40,0),,)-G196)/G196)))))) -> 0.5110515056 | Q196: =IFERROR(IF(COUNTIF($E$2:$E$501,E196)=1,"",IF(I196="","",ABS(IF(I196="",0,(((H196*OFFSET($S$1,MATCH($E196,$R$2:$R$41,0),,)-G196)/G196)))))),"") -> 0.531336403 | T196: =IFERROR(IF(COUNTIF($F$2:$F$501,F196)=1,"",IF(I196="","",ABS(IF(I196="",0,(((H196*OFFSET($V$1,MATCH($F196,$U$2:$U$105,0),,)-G196)/G196)))))),"") -> 0.4461168202 | W196: =IF(OR(J196<(QUARTILE($J$2:$J$501,1))-1.5*(QUARTILE($J$2:$J$501,3)-QUARTILE($J$2:$J$501,1)),J196>(QUARTILE($J$2:$J$501,3))+1.5*(QUARTILE($J$2:$J$501,3)-QUARTILE($J$2:$J$501,1))),"Outlier") -> FALSE
A197: 702181 | B197: LEGG MASON | C197: 8000 | D197: 8700 | E197: 8770 | F197: 8771 | G197: 25.15 | H197: 1.54 | I197: =(IF(IFERROR(G197/H197,"")<0,"",IFERROR(G197/H197,""))) -> 16.33116883 | J197: =IF(COUNTIF($C$2:$C$501,C197)=1,"",IF(I197="","",ABS(IF(I197="",0,(((H197*OFFSET($M$1,MATCH($C197,$L$2:$L$40,0),,)-G197)/G197)))))) -> 0.1855579207 | K197: =IF(OR(J197<(QUARTILE($J$2:$J$501,1))-1.5*(QUARTILE($J$2:$J$501,3)-QUARTILE($J$2:$J$501,1)),J197>(QUARTILE($J$2:$J$501,3))+1.5*(QUARTILE($J$2:$J$501,3)-QUARTILE($J$2:$J$501,1))),"",J197) -> 0.1855579207 | N197: =IF(COUNTIF($D$2:$D$501,D197)=1,"",IF(I197="","",ABS(IF(I197="",0,(((H197*OFFSET($P$1,MATCH($D197,$O$2:$O$40,0),,)-G197)/G197)))))) -> 0.2329000324 | Q197: =IFERROR(IF(COUNTIF($E$2:$E$501,E197)=1,"",IF(I197="","",ABS(IF(I197="",0,(((H197*OFFSET($S$1,MATCH($E197,$R$2:$R$41,0),,)-G197)/G197)))))),"") -> 0.2329000324 | T197: =IFERROR(IF(COUNTIF($F$2:$F$501,F197)=1,"",IF(I197="","",ABS(IF(I197="",0,(((H197*OFFSET($V$1,MATCH($F197,$U$2:$U$105,0),,)-G197)/G197)))))),"") -> 0.1596171376 | W197: =IF(OR(J197<(QUARTILE($J$2:$J$501,1))-1.5*(QUARTILE($J$2:$J$501,3)-QUARTILE($J$2:$J$501,1)),J197>(QUARTILE($J$2:$J$501,3))+1.5*(QUARTILE($J$2:$J$501,3)-QUARTILE($J$2:$J$501,1))),"Outlier") -> FALSE
A198: 702406 | B198: WASHINGTON MUTUAL | C198: 8000 | D198: 8300 | E198: 8350 | F198: 8355 | G198: 0.0197 | H198: 0 | I198: =(IF(IFERROR(G198/H198,"")<0,"",IFERROR(G198/H198,""))) ->  | J198: =IF(COUNTIF($C$2:$C$501,C198)=1,"",IF(I198="","",ABS(IF(I198="",0,(((H198*OFFSET($M$1,MATCH($C198,$L$2:$L$40,0),,)-G198)/G198)))))) ->  | K198: =IF(OR(J198<(QUARTILE($J$2:$J$501,1))-1.5*(QUARTILE($J$2:$J$501,3)-QUARTILE($J$2:$J$501,1)),J198>(QUARTILE($J$2:$J$501,3))+1.5*(QUARTILE($J$2:$J$501,3)-QUARTILE($J$2:$J$501,1))),"",J198) ->  | N198: =IF(COUNTIF($D$2:$D$501,D198)=1,"",IF(I198="","",ABS(IF(I198="",0,(((H198*OFFSET($P$1,MATCH($D198,$O$2:$O$40,0),,)-G198)/G198)))))) ->  | Q198: =IFERROR(IF(COUNTIF($E$2:$E$501,E198)=1,"",IF(I198="","",ABS(IF(I198="",0,(((H198*OFFSET($S$1,MATCH($E198,$R$2:$R$41,0),,)-G198)/G198)))))),"") ->  | T198: =IFERROR(IF(COUNTIF($F$2:$F$501,F198)=1,"",IF(I198="","",ABS(IF(I198="",0,(((H198*OFFSET($V$1,MATCH($F198,$U$2:$U$105,0),,)-G198)/G198)))))),"") ->  | W198: =IF(OR(J198<(QUARTILE($J$2:$J$501,1))-1.5*(QUARTILE($J$2:$J$501,3)-QUARTILE($J$2:$J$501,1)),J198>(QUARTILE($J$2:$J$501,3))+1.5*(QUARTILE($J$2:$J$501,3)-QUARTILE($J$2:$J$501,1))),"Outlier") -> Outlier
A199: 702597 | B199: NOBLE | C199: 1 | D199: 500 | E199: 570 | F199: 573 | G199: 31.03 | H199: 3.02 | I199: =(IF(IFERROR(G199/H199,"")<0,"",IFERROR(G199/H199,""))) -> 10.27483444 | J199: =IF(COUNTIF($C$2:$C$501,C199)=1,"",IF(I199="","",ABS(IF(I199="",0,(((H199*OFFSET($M$1,MATCH($C199,$L$2:$L$40,0),,)-G199)/G199)))))) -> 0.09754012402 | K199: =IF(OR(J199<(QUARTILE($J$2:$J$501,1))-1.5*(QUARTILE($J$2:$J$501,3)-QUARTILE($J$2:$J$501,1)),J199>(QUARTILE($J$2:$J$501,3))+1.5*(QUARTILE($J$2:$J$501,3)-QUARTILE($J$2:$J$501,1))),"",J199) -> 0.09754012402 | N199: =IF(COUNTIF($D$2:$D$501,D199)=1,"",IF(I199="","",ABS(IF(I199="",0,(((H199*OFFSET($P$1,MATCH($D199,$O$2:$O$40,0),,)-G199)/G199)))))) -> 0.09754012402 | Q199: =IFERROR(IF(COUNTIF($E$2:$E$501,E199)=1,"",IF(I199="","",ABS(IF(I199="",0,(((H199*OFFSET($S$1,MATCH($E199,$R$2:$R$41,0),,)-G199)/G199)))))),"") -> 0.006590998479 | T199: =IFERROR(IF(COUNTIF($F$2:$F$501,F199)=1,"",IF(I199="","",ABS(IF(I199="",0,(((H199*OFFSET($V$1,MATCH($F199,$U$2:$U$105,0),,)-G199)/G199)))))),"") -> 0.1235299674 | W199: =IF(OR(J199<(QUARTILE($J$2:$J$501,1))-1.5*(QUARTILE($J$2:$J$501,3)-QUARTILE($J$2:$J$501,1)),J199>(QUARTILE($J$2:$J$501,3))+1.5*(QUARTILE($J$2:$J$501,3)-QUARTILE($J$2:$J$501,1))),"Outlier") -> FALSE
A200: 702635 | B200: UNITEDHEALTH GP. | C200: 4000 | D200: 4500 | E200: 4530 | F200: 4533 | G200: 59.6 | H200: 4.81 | I200: =(IF(IFERROR(G200/H200,"")<0,"",IFERROR(G200/H200,""))) -> 12.39085239 | J200: =IF(COUNTIF($C$2:$C$501,C200)=1,"",IF(I200="","",ABS(IF(I200="",0,(((H200*OFFSET($M$1,MATCH($C200,$L$2:$L$40,0),,)-G200)/G200)))))) -> 0.3659909537 | K200: =IF(OR(J200<(QUARTILE($J$2:$J$501,1))-1.5*(QUARTILE($J$2:$J$501,3)-QUARTILE($J$2:$J$501,1)),J200>(QUARTILE($J$2:$J$501,3))+1.5*(QUARTILE($J$2:$J$501,3)-QUARTILE($J$2:$J$501,1))),"",J200) -> 0.3659909537 | N200: =IF(COUNTIF($D$2:$D$501,D200)=1,"",IF(I200="","",ABS(IF(I200="",0,(((H200*OFFSET($P$1,MATCH($D200,$O$2:$O$40,0),,)-G200)/G200)))))) -> 0.3659909537 | Q200: =IFERROR(IF(COUNTIF($E$2:$E$501,E200)=1,"",IF(I200="","",ABS(IF(I200="",0,(((H200*OFFSET($S$1,MATCH($E200,$R$2:$R$41,0),,)-G200)/G200)))))),"") -> 0.2345952554 | T200: =IFERROR(IF(COUNTIF($F$2:$F$501,F200)=1,"",IF(I200="","",ABS(IF(I200="",0,(((H200*OFFSET($V$1,MATCH($F200,$U$2:$U$105,0),,)-G200)/G200)))))),"") -> 0.04507132083 | W200: =IF(OR(J200<(QUARTILE($J$2:$J$501,1))-1.5*(QUARTILE($J$2:$J$501,3)-QUARTILE($J$2:$J$501,1)),J200>(QUARTILE($J$2:$J$501,3))+1.5*(QUARTILE($J$2:$J$501,3)-QUARTILE($J$2:$J$501,1))),"Outlier") -> FALSE
... 308 more rows
